Workbook

Sheet Intro
G2: Gas distribution service provider
I3: RFM - Depreciation tracking module
L4: Version: | M4: 1.1
L5: Date: | M5: May 2022
B8: Introduction | J8: Gas distribution module
C14: This attachment to the RFM is used by the AER to determine the forecast capital base and tax asset base (TAB) depreciation for a gas distribution service provider.
C15: It also calculates the actual tax depreciation for use in the RFM.
C17: INSTRUCTIONS FOR USE
C18: The RFM - depreciation tracking module handbook, which contains information on this depreciation tracking module, is available on the AER website at http://www.aer.gov.au
C20: a. Fill out input cells on the 'Capital base input' and 'TAB input' sheets. These input cells are highlighted blue.
C21: This provides the data for the depreciation tracking calculations.
C22: In general, input expenditure data should be valued in nominal dollar terms of the year indicated.
C23: Units and basis for entry are specified where required for each data table.
C24: Not all input cells require an input - be sure to read and follow the instructions contained within the comments for each section heading.
C25: All relevant inputs are to be filled on an ongoing basis, with the details of past expenditure and asset lives to be preserved.
C27: b. The values in the 'Tracking output' sheet
C28: This sheet summarises the key outputs of the year-by-year tracking approach, which includes forecast capital base and TAB depreciation to be input into the PTRM
C29: as well as actual tax depreciation for the current access arrangement period to be input into the RFM.
C31: VERSION RECORD
C33: Version | D33: Date | F33: Description
C34: 1 | D34: April 2020 | F34: Initial module
C36: 1.1 | D36: May 2022 | F36: Fixed minor error in 'Tracking output' sheet, Forecast TAB depreciation section for formula reference - asset classes 40 and 41

Sheet AER amendments
A1: No. | B1: Sheet | C1: Cell | D1: Changes
A2: 1 | B2: Capital base input | C2: Q14 | D2: Updated as per Draft decision RFM
A3: =A2+1 -> 2 | B3: Capital base input | C3: Q17 | D3: Updated as per Draft decision RFM
A4: 3 | B4: Capital base input | C4: Q189:Q197 | D4: Removed asset lives. Not required
A5: 4 | B5: Capital base input | C5: Q242:Q251,Q296:Q305 | D5: Removed final year adjustments and lives as per draft decision
A6: 5 | B6: Capital base input | C6: Q404:Q413 | D6: Updated closing capital base consistent with RFM
A7: 6 | B7: TAB input | C7: P72:Q80 | D7: Updated IE capex as per IR004
A8: 7 | B8: TAB input | C8: Q286:Q295,Q340:Q349 | D8: Removed final year adjustments and lives as per draft decision
A10: The AER's draft decision amendments are highlighted in green unless noted.

Sheet Capital base input
E2: =IF($F$8='TAB input'!$F$8, $F$8, 'TAB input'!$F$8)&" - Capital base input - Gas DNSP "&Intro!$I$3&" - version "& Intro!$M$4 -> AGN SA - Capital base input - Gas DNSP RFM - Depreciation tracking module - version 1.1 | J2: Input cells in blue
E4: Year | F4: =IF(LEN($H$9)>4, CONCATENATE(LEFT($H$9, 4)-2 & "-" & IF(AND(RIGHT($H$9, 2)<"12", RIGHT($H$9, 2)>"01"), "0", "") & IF(RIGHT($H$9, 2)="00", "98", IF(RIGHT($H$9, 2)="01", "99", RIGHT($H$9, 2)-2))), $H$9-2) -> 2014-15 | G4: =IF(LEN(F4)>4,CONCATENATE(LEFT(F4,4)+1&"-"&IF(RIGHT(F4, 2)<"09", "0","")&IF(RIGHT(F4, 2)="99", "00", RIGHT(F4,2)+1)),F4+1) -> 2015-16 | H4: =IF(LEN(G4)>4,CONCATENATE(LEFT(G4,4)+1&"-"&IF(RIGHT(G4, 2)<"09", "0","")&IF(RIGHT(G4, 2)="99", "00", RIGHT(G4,2)+1)),G4+1) -> 2016-17 | I4: 2017-18 | J4: 2018-19 | K4: 2019-20 | L4: 2020-21 | M4: 2021-22 | N4: 2022-23 | O4: 2023-24 | P4: 2024-25 | Q4: 2025-26 | R4: 2026-27 | S4: 2027-28 | T4: 2028-29 | U4: 2029-30 | V4: 2030-31 | W4: 2031-32 | X4: 2032-33 | Y4: 2033-34 | Z4: 2034-35 | AA4: 2035-36 | AB4: 2036-37 | AC4: 2037-38 | AD4: 2038-39 | AE4: 2039-40 | AF4: 2040-41 | AG4: 2041-42 | AH4: 2042-43 | AI4: 2043-44 | AJ4: 2044-45 | AK4: 2045-46 | AL4: 2046-47 | AM4: 2047-48 | AN4: 2048-49 | AO4: 2049-50 | AP4: 2050-51 | AQ4: 2051-52 | AR4: 2052-53 | AS4: 2053-54 | AT4: 2054-55 | AU4: 2055-56 | AV4: 2056-57 | AW4: 2057-58 | AX4: 2058-59 | AY4: 2059-60 | AZ4: 2060-61 | BA4: 2061-62 | BB4: 2062-63 | BC4: 2063-64 | BD4: 2064-65 | BE4: 2065-66 | BF4: 2066-67 | BG4: 2067-68 | BH4: 2068-69 | BI4: 2069-70 | BJ4: 2070-71 | BK4: 2071-72 | BL4: 2072-73 | BM4: 2073-74 | BN4: 2074-75 | BO4: 2075-76 | BP4: 2076-77 | BQ4: 2077-78 | BR4: 2078-79 | BS4: 2079-80 | BT4: =IF(LEN(BS4)>4,CONCATENATE(LEFT(BS4,4)+1&"-"&IF(RIGHT(BS4, 2)<"09", "0","")&IF(RIGHT(BS4, 2)="99", "00", RIGHT(BS4,2)+1)),BS4+1) -> 2080-81 | BU4: 2081-82 | BV4: 2082-83 | BW4: 2083-84 | BX4: 2084-85 | BY4: 2085-86 | BZ4: 2086-87 | CA4: 2087-88 | CB4: 2088-89 | CC4: 2089-90 | CD4: 2090-91 | CE4: 2091-92 | CF4: 2092-93 | CG4: 2093-94 | CH4: 2094-95 | CI4: 2095-96 | CJ4: 2096-97 | CK4: 2097-98 | CL4: 2098-99 | CM4: 2099-00 | CN4: 2100-01 | CO4: 2101-02 | CP4: 2102-03 | CQ4: 2103-04 | CR4: 2104-05 | CS4: 2105-06 | CT4: 2106-07 | CU4: 2107-08 | CV4: 2108-09 | CW4: 2109-10 | CX4: 2110-11 | CY4: 2111-12
D6: General information
E8: Business name | F8: AGN SA
E9: First regulatory year for tracking | H9: 2016-17 | I9: =IF(SUM($11:$11)=COUNTA($H$9:H$9), "Input for next period", "") ->  | J9: =IF(SUM($11:$11)=COUNTA($H$9:I$9), "Input for next period", "") ->  | K9: =IF(SUM($11:$11)=COUNTA($H$9:J$9), "Input for next period", "") ->  | L9: =IF(SUM($11:$11)=COUNTA($H$9:K$9), "Input for next period", "") ->  | M9: =IF(SUM($11:$11)=COUNTA($H$9:L$9), "Input for next period", "") ->  | N9: =IF(SUM($11:$11)=COUNTA($H$9:M$9), "Input for next period", "") ->  | O9: =IF(SUM($11:$11)=COUNTA($H$9:N$9), "Input for next period", "") ->  | P9: =IF(SUM($11:$11)=COUNTA($H$9:O$9), "Input for next period", "") ->  | Q9: =IF(SUM($11:$11)=COUNTA($H$9:P$9), "Input for next period", "") ->  | R9: =IF(SUM($11:$11)=COUNTA($H$9:Q$9), "Input for next period", "") -> Input for next period | S9: =IF(SUM($11:$11)=COUNTA($H$9:R$9), "Input for next period", "") ->  | T9: =IF(SUM($11:$11)=COUNTA($H$9:S$9), "Input for next period", "") ->  | U9: =IF(SUM($11:$11)=COUNTA($H$9:T$9), "Input for next period", "") ->  | V9: =IF(SUM($11:$11)=COUNTA($H$9:U$9), "Input for next period", "") ->  | W9: =IF(SUM($11:$11)=COUNTA($H$9:V$9), "Input for next period", "") ->  | X9: =IF(SUM($11:$11)=COUNTA($H$9:W$9), "Input for next period", "") ->  | Y9: =IF(SUM($11:$11)=COUNTA($H$9:X$9), "Input for next period", "") ->  | Z9: =IF(SUM($11:$11)=COUNTA($H$9:Y$9), "Input for next period", "") ->  | AA9: =IF(SUM($11:$11)=COUNTA($H$9:Z$9), "Input for next period", "") ->  | AB9: =IF(SUM($11:$11)=COUNTA($H$9:AA$9), "Input for next period", "") ->  | AC9: =IF(SUM($11:$11)=COUNTA($H$9:AB$9), "Input for next period", "") ->  | AD9: =IF(SUM($11:$11)=COUNTA($H$9:AC$9), "Input for next period", "") ->  | AE9: =IF(SUM($11:$11)=COUNTA($H$9:AD$9), "Input for next period", "") ->  | AF9: =IF(SUM($11:$11)=COUNTA($H$9:AE$9), "Input for next period", "") ->  | AG9: =IF(SUM($11:$11)=COUNTA($H$9:AF$9), "Input for next period", "") ->  | AH9: =IF(SUM($11:$11)=COUNTA($H$9:AG$9), "Input for next period", "") ->  | AI9: =IF(SUM($11:$11)=COUNTA($H$9:AH$9), "Input for next period", "") ->  | AJ9: =IF(SUM($11:$11)=COUNTA($H$9:AI$9), "Input for next period", "") ->  | AK9: =IF(SUM($11:$11)=COUNTA($H$9:AJ$9), "Input for next period", "") ->  | AL9: =IF(SUM($11:$11)=COUNTA($H$9:AK$9), "Input for next period", "") ->  | AM9: =IF(SUM($11:$11)=COUNTA($H$9:AL$9), "Input for next period", "") ->  | AN9: =IF(SUM($11:$11)=COUNTA($H$9:AM$9), "Input for next period", "") ->  | AO9: =IF(SUM($11:$11)=COUNTA($H$9:AN$9), "Input for next period", "") ->  | AP9: =IF(SUM($11:$11)=COUNTA($H$9:AO$9), "Input for next period", "") ->  | AQ9: =IF(SUM($11:$11)=COUNTA($H$9:AP$9), "Input for next period", "") ->  | AR9: =IF(SUM($11:$11)=COUNTA($H$9:AQ$9), "Input for next period", "") ->  | AS9: =IF(SUM($11:$11)=COUNTA($H$9:AR$9), "Input for next period", "") ->  | AT9: =IF(SUM($11:$11)=COUNTA($H$9:AS$9), "Input for next period", "") ->  | AU9: =IF(SUM($11:$11)=COUNTA($H$9:AT$9), "Input for next period", "") ->  | AV9: =IF(SUM($11:$11)=COUNTA($H$9:AU$9), "Input for next period", "") ->  | AW9: =IF(SUM($11:$11)=COUNTA($H$9:AV$9), "Input for next period", "") ->  | AX9: =IF(SUM($11:$11)=COUNTA($H$9:AW$9), "Input for next period", "") ->  | AY9: =IF(SUM($11:$11)=COUNTA($H$9:AX$9), "Input for next period", "") ->  | AZ9: =IF(SUM($11:$11)=COUNTA($H$9:AY$9), "Input for next period", "") ->  | BA9: =IF(SUM($11:$11)=COUNTA($H$9:AZ$9), "Input for next period", "") ->  | BB9: =IF(SUM($11:$11)=COUNTA($H$9:BA$9), "Input for next period", "") ->  | BC9: =IF(SUM($11:$11)=COUNTA($H$9:BB$9), "Input for next period", "") ->  | BD9: =IF(SUM($11:$11)=COUNTA($H$9:BC$9), "Input for next period", "") ->  | BE9: =IF(SUM($11:$11)=COUNTA($H$9:BD$9), "Input for next period", "") ->  | BF9: =IF(SUM($11:$11)=COUNTA($H$9:BE$9), "Input for next period", "") ->  | BG9: =IF(SUM($11:$11)=COUNTA($H$9:BF$9), "Input for next period", "") ->  | BH9: =IF(SUM($11:$11)=COUNTA($H$9:BG$9), "Input for next period", "") ->  | BI9: =IF(SUM($11:$11)=COUNTA($H$9:BH$9), "Input for next period", "") ->  | BJ9: =IF(SUM($11:$11)=COUNTA($H$9:BI$9), "Input for next period", "") ->  | BK9: =IF(SUM($11:$11)=COUNTA($H$9:BJ$9), "Input for next period", "") ->  | BL9: =IF(SUM($11:$11)=COUNTA($H$9:BK$9), "Input for next period", "") ->  | BM9: =IF(SUM($11:$11)=COUNTA($H$9:BL$9), "Input for next period", "") ->  | BN9: =IF(SUM($11:$11)=COUNTA($H$9:BM$9), "Input for next period", "") ->  | BO9: =IF(SUM($11:$11)=COUNTA($H$9:BN$9), "Input for next period", "") ->  | BP9: =IF(SUM($11:$11)=COUNTA($H$9:BO$9), "Input for next period", "") ->  | BQ9: =IF(SUM($11:$11)=COUNTA($H$9:BP$9), "Input for next period", "") ->  | BR9: =IF(SUM($11:$11)=COUNTA($H$9:BQ$9), "Input for next period", "") ->  | BS9: =IF(SUM($11:$11)=COUNTA($H$9:BR$9), "Input for next period", "") ->  | BT9: =IF(SUM($11:$11)=COUNTA($H$9:BS$9), "Input for next period", "") ->  | BU9: =IF(SUM($11:$11)=COUNTA($H$9:BT$9), "Input for next period", "") ->  | BV9: =IF(SUM($11:$11)=COUNTA($H$9:BU$9), "Input for next period", "") ->  | BW9: =IF(SUM($11:$11)=COUNTA($H$9:BV$9), "Input for next period", "") ->  | BX9: =IF(SUM($11:$11)=COUNTA($H$9:BW$9), "Input for next period", "") ->  | BY9: =IF(SUM($11:$11)=COUNTA($H$9:BX$9), "Input for next period", "") ->  | BZ9: =IF(SUM($11:$11)=COUNTA($H$9:BY$9), "Input for next period", "") ->  | CA9: =IF(SUM($11:$11)=COUNTA($H$9:BZ$9), "Input for next period", "") ->  | CB9: =IF(SUM($11:$11)=COUNTA($H$9:CA$9), "Input for next period", "") ->  | CC9: =IF(SUM($11:$11)=COUNTA($H$9:CB$9), "Input for next period", "") ->  | CD9: =IF(SUM($11:$11)=COUNTA($H$9:CC$9), "Input for next period", "") ->  | CE9: =IF(SUM($11:$11)=COUNTA($H$9:CD$9), "Input for next period", "") ->  | CF9: =IF(SUM($11:$11)=COUNTA($H$9:CE$9), "Input for next period", "") ->  | CG9: =IF(SUM($11:$11)=COUNTA($H$9:CF$9), "Input for next period", "") ->  | CH9: =IF(SUM($11:$11)=COUNTA($H$9:CG$9), "Input for next period", "") ->  | CI9: =IF(SUM($11:$11)=COUNTA($H$9:CH$9), "Input for next period", "") ->  | CJ9: =IF(SUM($11:$11)=COUNTA($H$9:CI$9), "Input for next period", "") ->  | CK9: =IF(SUM($11:$11)=COUNTA($H$9:CJ$9), "Input for next period", "") ->  | CL9: =IF(SUM($11:$11)=COUNTA($H$9:CK$9), "Input for next period", "") ->  | CM9: =IF(SUM($11:$11)=COUNTA($H$9:CL$9), "Input for next period", "") ->  | CN9: =IF(SUM($11:$11)=COUNTA($H$9:CM$9), "Input for next period", "") ->  | CO9: =IF(SUM($11:$11)=COUNTA($H$9:CN$9), "Input for next period", "") ->  | CP9: =IF(SUM($11:$11)=COUNTA($H$9:CO$9), "Input for next period", "") ->  | CQ9: =IF(SUM($11:$11)=COUNTA($H$9:CP$9), "Input for next period", "") ->  | CR9: =IF(SUM($11:$11)=COUNTA($H$9:CQ$9), "Input for next period", "") ->  | CS9: =IF(SUM($11:$11)=COUNTA($H$9:CR$9), "Input for next period", "") ->  | CT9: =IF(SUM($11:$11)=COUNTA($H$9:CS$9), "Input for next period", "") ->  | CU9: =IF(SUM($11:$11)=COUNTA($H$9:CT$9), "Input for next period", "") ->  | CV9: =IF(SUM($11:$11)=COUNTA($H$9:CU$9), "Input for next period", "") ->  | CW9: =IF(SUM($11:$11)=COUNTA($H$9:CV$9), "Input for next period", "") ->  | CX9: =IF(SUM($11:$11)=COUNTA($H$9:CW$9), "Input for next period", "") ->  | CY9: =IF(SUM($11:$11)=COUNTA($H$9:CX$9), "Input for next period", "") -> 
E10: Regulatory period | H10: 2016-21 | M10: 2021-26
E11: Years in regulatory period | H11: 5 | M11: 5
E13: Lagged inflation approach | F13: Partially-lagged
E14: =IF($F$13="All-lagged", "Lagged actual", "Actual")& " CPI inflation rate" -> Actual CPI inflation rate | F14: 0.01328273245 | G14: 0.01310861423 | H14: 0.0147601476 | I14: 0.01909090909 | J14: 0.0178412132 | K14: 0.01840490798 | L14: 0.008605851979 | M14: 0.03498293515 | N14: 0.07831821929 | O14: 0.04051987768 | P14: 0.0242468773 | Q14: 0.03
E15: Actual CPI (one year lagged) | F15: =G15/IF($F$13="Partially-lagged", (1+F14), (1+G14)) -> 0.9868913858 | G15: 1 | H15: =G15*(1+IF($F$13="Partially-lagged",G14,H14)) -> 1.013108614 | I15: 1.028062247 | J15: 1.04768889 | K15: 1.066380931 | L15: 1.086007574 | M15: 1.095353594 | N15: 1.133672278 | O15: 1.222459472 | P15: =O15*(1+IF($F$13="Partially-lagged",O14,P14)) -> 1.27199338 | Q15: 1.302835247 | R15: 1.341920305 | S15: 1.341920305 | T15: 1.341920305 | U15: 1.341920305 | V15: 1.341920305 | W15: 1.341920305 | X15: 1.341920305 | Y15: 1.341920305 | Z15: 1.341920305 | AA15: 1.341920305 | AB15: 1.341920305 | AC15: 1.341920305 | AD15: 1.341920305 | AE15: 1.341920305 | AF15: 1.341920305 | AG15: 1.341920305 | AH15: 1.341920305 | AI15: 1.341920305 | AJ15: 1.341920305 | AK15: 1.341920305 | AL15: 1.341920305 | AM15: 1.341920305 | AN15: =AM15*(1+IF($F$13="Partially-lagged",AM14,AN14)) -> 1.341920305 | AO15: 1.341920305 | AP15: 1.341920305 | AQ15: 1.341920305 | AR15: 1.341920305 | AS15: 1.341920305 | AT15: 1.341920305 | AU15: 1.341920305 | AV15: 1.341920305 | AW15: 1.341920305 | AX15: 1.341920305 | AY15: 1.341920305 | AZ15: 1.341920305 | BA15: 1.341920305 | BB15: 1.341920305 | BC15: 1.341920305 | BD15: 1.341920305 | BE15: 1.341920305 | BF15: 1.341920305 | BG15: 1.341920305 | BH15: 1.341920305 | BI15: 1.341920305 | BJ15: 1.341920305 | BK15: 1.341920305 | BL15: 1.341920305 | BM15: 1.341920305 | BN15: 1.341920305 | BO15: 1.341920305 | BP15: 1.341920305 | BQ15: 1.341920305 | BR15: 1.341920305 | BS15: 1.341920305 | BT15: =BS15*(1+IF($F$13="Partially-lagged",BS14,BT14)) -> 1.341920305 | BU15: 1.341920305 | BV15: 1.341920305 | BW15: 1.341920305 | BX15: 1.341920305 | BY15: 1.341920305 | BZ15: 1.341920305 | CA15: 1.341920305 | CB15: 1.341920305 | CC15: 1.341920305 | CD15: 1.341920305 | CE15: 1.341920305 | CF15: 1.341920305 | CG15: 1.341920305 | CH15: 1.341920305 | CI15: 1.341920305 | CJ15: 1.341920305 | CK15: 1.341920305 | CL15: 1.341920305 | CM15: 1.341920305 | CN15: 1.341920305 | CO15: 1.341920305 | CP15: 1.341920305 | CQ15: 1.341920305 | CR15: 1.341920305 | CS15: 1.341920305 | CT15: 1.341920305 | CU15: 1.341920305 | CV15: 1.341920305 | CW15: 1.341920305 | CX15: 1.341920305 | CY15: 1.341920305
E17: Nominal vanilla WACC (fixed real time varying) | G17: 0.08947457804 | H17: 0.05196453523 | I17: 0.05621364466 | J17: 0.05434938858 | K17: 0.05423233021 | L17: 0.04244653309 | M17: 0.0649918906 | N17: 0.1087152029 | O17: 0.07042443527 | P17: 0.0538700466 | Q17: 0.05998854788
E18: Nominal vanilla WACC index | F18: =G18/(1+G17) -> 0.9178736431 | G18: 1 | H18: =G18*(1+H17) -> 1.051964535 | I18: 1.111099296 | J18: 1.171486863 | K18: 1.235019326 | L18: 1.287441614 | M18: 1.371114879 | N18: 1.520175911 | O18: 1.627233441 | P18: 1.714892582 | Q18: 1.817766498
E19: Real vanilla WACC | G19: 0.07537786446 | H19: 0.0366632329 | I19: 0.0364273052 | J19: 0.03586824242 | K19: 0.0351799387 | L19: 0.03355193809 | M19: 0.02899463791 | N19: 0.02818925165 | O19: 0.02874001568 | P19: 0.02892190346 | Q19: 0.02911509503
E20: Real vanilla WACC index | F20: =G20/(1+G19) -> 0.9299056946 | G20: 1 | H20: =G20*(1+H19) -> 1.036663233 | I20: 1.074426081 | J20: 1.112963856 | K20: 1.152117856 | L20: 1.190773643 | M20: 1.225299694 | N20: 1.259839975 | O20: 1.296047796 | P20: 1.333531965 | Q20: 1.372357875 | R20: 1.372357875 | S20: 1.372357875 | T20: 1.372357875 | U20: 1.372357875 | V20: 1.372357875 | W20: 1.372357875 | X20: 1.372357875 | Y20: 1.372357875 | Z20: 1.372357875 | AA20: 1.372357875 | AB20: 1.372357875 | AC20: 1.372357875 | AD20: 1.372357875 | AE20: 1.372357875 | AF20: 1.372357875 | AG20: 1.372357875 | AH20: 1.372357875 | AI20: 1.372357875 | AJ20: 1.372357875 | AK20: 1.372357875 | AL20: 1.372357875 | AM20: 1.372357875 | AN20: 1.372357875 | AO20: 1.372357875 | AP20: 1.372357875 | AQ20: 1.372357875 | AR20: 1.372357875 | AS20: 1.372357875 | AT20: 1.372357875 | AU20: 1.372357875 | AV20: 1.372357875 | AW20: 1.372357875 | AX20: 1.372357875 | AY20: 1.372357875 | AZ20: 1.372357875 | BA20: 1.372357875 | BB20: 1.372357875 | BC20: 1.372357875 | BD20: 1.372357875 | BE20: 1.372357875 | BF20: 1.372357875 | BG20: 1.372357875 | BH20: 1.372357875 | BI20: 1.372357875 | BJ20: 1.372357875 | BK20: 1.372357875 | BL20: 1.372357875 | BM20: 1.372357875 | BN20: 1.372357875 | BO20: 1.372357875 | BP20: 1.372357875 | BQ20: 1.372357875 | BR20: 1.372357875 | BS20: 1.372357875 | BT20: =BS20*(1+BT19) -> 1.372357875 | BU20: 1.372357875 | BV20: 1.372357875 | BW20: 1.372357875 | BX20: 1.372357875 | BY20: 1.372357875 | BZ20: 1.372357875 | CA20: 1.372357875 | CB20: 1.372357875 | CC20: 1.372357875 | CD20: 1.372357875 | CE20: 1.372357875 | CF20: 1.372357875 | CG20: 1.372357875 | CH20: 1.372357875 | CI20: 1.372357875 | CJ20: 1.372357875 | CK20: 1.372357875 | CL20: 1.372357875 | CM20: 1.372357875 | CN20: 1.372357875 | CO20: 1.372357875 | CP20: 1.372357875 | CQ20: 1.372357875 | CR20: 1.372357875 | CS20: 1.372357875 | CT20: 1.372357875 | CU20: 1.372357875 | CV20: 1.372357875 | CW20: 1.372357875 | CX20: 1.372357875 | CY20: 1.372357875
E22: Depreciation timing - year after incurred capex | H22: Yes | I22: Yes | J22: Yes | K22: Yes | L22: Yes
D24: Starting capital base and actual gross capex - As incurred ($m, nominal)
E25: Asset class | G25: ="Capital base (closing as at "&$G$4&")" -> Capital base (closing as at 2015-16) | H25: ="Actual gross capex ("&H4&")" -> Actual gross capex (2016-17) | I25: =IF(COUNTA($H$25:H$25)<SUM($11:$11), "Actual gross capex ("&I4&")", "") -> Actual gross capex (2017-18) | J25: =IF(COUNTA($H$25:I$25)<SUM($11:$11), "Actual gross capex ("&J4&")", "") -> Actual gross capex (2018-19) | K25: =IF(COUNTA($H$25:J$25)<SUM($11:$11), "Actual gross capex ("&K4&")", "") -> Actual gross capex (2019-20) | L25: =IF(COUNTA($H$25:K$25)<SUM($11:$11), "Actual gross capex ("&L4&")", "") -> Actual gross capex (2020-21) | M25: =IF(COUNTA($H$25:L$25)<SUM($11:$11), "Actual gross capex ("&M4&")", "") -> Actual gross capex (2021-22) | N25: =IF(COUNTA($H$25:M$25)<SUM($11:$11), "Actual gross capex ("&N4&")", "") -> Actual gross capex (2022-23) | O25: =IF(COUNTA($H$25:N$25)<SUM($11:$11), "Actual gross capex ("&O4&")", "") -> Actual gross capex (2023-24) | P25: =IF(COUNTA($H$25:O$25)<SUM($11:$11), "Actual gross capex ("&P4&")", "") -> Actual gross capex (2024-25) | Q25: =IF(COUNTA($H$25:P$25)<SUM($11:$11), "Actual gross capex ("&Q4&")", "") -> Actual gross capex (2025-26) | R25: =IF(COUNTA($H$25:Q$25)<SUM($11:$11), "Actual gross capex ("&R4&")", "") ->  | S25: =IF(COUNTA($H$25:R$25)<SUM($11:$11), "Actual gross capex ("&S4&")", "") ->  | T25: =IF(COUNTA($H$25:S$25)<SUM($11:$11), "Actual gross capex ("&T4&")", "") ->  | U25: =IF(COUNTA($H$25:T$25)<SUM($11:$11), "Actual gross capex ("&U4&")", "") ->  | V25: =IF(COUNTA($H$25:U$25)<SUM($11:$11), "Actual gross capex ("&V4&")", "") ->  | W25: =IF(COUNTA($H$25:V$25)<SUM($11:$11), "Actual gross capex ("&W4&")", "") ->  | X25: =IF(COUNTA($H$25:W$25)<SUM($11:$11), "Actual gross capex ("&X4&")", "") ->  | Y25: =IF(COUNTA($H$25:X$25)<SUM($11:$11), "Actual gross capex ("&Y4&")", "") ->  | Z25: =IF(COUNTA($H$25:Y$25)<SUM($11:$11), "Actual gross capex ("&Z4&")", "") ->  | AA25: =IF(COUNTA($H$25:Z$25)<SUM($11:$11), "Actual gross capex ("&AA4&")", "") ->  | AB25: =IF(COUNTA($H$25:AA$25)<SUM($11:$11), "Actual gross capex ("&AB4&")", "") ->  | AC25: =IF(COUNTA($H$25:AB$25)<SUM($11:$11), "Actual gross capex ("&AC4&")", "") ->  | AD25: =IF(COUNTA($H$25:AC$25)<SUM($11:$11), "Actual gross capex ("&AD4&")", "") ->  | AE25: =IF(COUNTA($H$25:AD$25)<SUM($11:$11), "Actual gross capex ("&AE4&")", "") ->  | AF25: =IF(COUNTA($H$25:AE$25)<SUM($11:$11), "Actual gross capex ("&AF4&")", "") ->  | AG25: =IF(COUNTA($H$25:AF$25)<SUM($11:$11), "Actual gross capex ("&AG4&")", "") ->  | AH25: =IF(COUNTA($H$25:AG$25)<SUM($11:$11), "Actual gross capex ("&AH4&")", "") ->  | AI25: =IF(COUNTA($H$25:AH$25)<SUM($11:$11), "Actual gross capex ("&AI4&")", "") ->  | AJ25: =IF(COUNTA($H$25:AI$25)<SUM($11:$11), "Actual gross capex ("&AJ4&")", "") ->  | AK25: =IF(COUNTA($H$25:AJ$25)<SUM($11:$11), "Actual gross capex ("&AK4&")", "") ->  | AL25: =IF(COUNTA($H$25:AK$25)<SUM($11:$11), "Actual gross capex ("&AL4&")", "") ->  | AM25: =IF(COUNTA($H$25:AL$25)<SUM($11:$11), "Actual gross capex ("&AM4&")", "") ->  | AN25: =IF(COUNTA($H$25:AM$25)<SUM($11:$11), "Actual gross capex ("&AN4&")", "") ->  | AO25: =IF(COUNTA($H$25:AN$25)<SUM($11:$11), "Actual gross capex ("&AO4&")", "") ->  | AP25: =IF(COUNTA($H$25:AO$25)<SUM($11:$11), "Actual gross capex ("&AP4&")", "") ->  | AQ25: =IF(COUNTA($H$25:AP$25)<SUM($11:$11), "Actual gross capex ("&AQ4&")", "") ->  | AR25: =IF(COUNTA($H$25:AQ$25)<SUM($11:$11), "Actual gross capex ("&AR4&")", "") ->  | AS25: =IF(COUNTA($H$25:AR$25)<SUM($11:$11), "Actual gross capex ("&AS4&")", "") ->  | AT25: =IF(COUNTA($H$25:AS$25)<SUM($11:$11), "Actual gross capex ("&AT4&")", "") ->  | AU25: =IF(COUNTA($H$25:AT$25)<SUM($11:$11), "Actual gross capex ("&AU4&")", "") ->  | AV25: =IF(COUNTA($H$25:AU$25)<SUM($11:$11), "Actual gross capex ("&AV4&")", "") ->  | AW25: =IF(COUNTA($H$25:AV$25)<SUM($11:$11), "Actual gross capex ("&AW4&")", "") ->  | AX25: =IF(COUNTA($H$25:AW$25)<SUM($11:$11), "Actual gross capex ("&AX4&")", "") ->  | AY25: =IF(COUNTA($H$25:AX$25)<SUM($11:$11), "Actual gross capex ("&AY4&")", "") ->  | AZ25: =IF(COUNTA($H$25:AY$25)<SUM($11:$11), "Actual gross capex ("&AZ4&")", "") ->  | BA25: =IF(COUNTA($H$25:AZ$25)<SUM($11:$11), "Actual gross capex ("&BA4&")", "") ->  | BB25: =IF(COUNTA($H$25:BA$25)<SUM($11:$11), "Actual gross capex ("&BB4&")", "") ->  | BC25: =IF(COUNTA($H$25:BB$25)<SUM($11:$11), "Actual gross capex ("&BC4&")", "") ->  | BD25: =IF(COUNTA($H$25:BC$25)<SUM($11:$11), "Actual gross capex ("&BD4&")", "") ->  | BE25: =IF(COUNTA($H$25:BD$25)<SUM($11:$11), "Actual gross capex ("&BE4&")", "") ->  | BF25: =IF(COUNTA($H$25:BE$25)<SUM($11:$11), "Actual gross capex ("&BF4&")", "") ->  | BG25: =IF(COUNTA($H$25:BF$25)<SUM($11:$11), "Actual gross capex ("&BG4&")", "") ->  | BH25: =IF(COUNTA($H$25:BG$25)<SUM($11:$11), "Actual gross capex ("&BH4&")", "") ->  | BI25: =IF(COUNTA($H$25:BH$25)<SUM($11:$11), "Actual gross capex ("&BI4&")", "") ->  | BJ25: =IF(COUNTA($H$25:BI$25)<SUM($11:$11), "Actual gross capex ("&BJ4&")", "") ->  | BK25: =IF(COUNTA($H$25:BJ$25)<SUM($11:$11), "Actual gross capex ("&BK4&")", "") ->  | BL25: =IF(COUNTA($H$25:BK$25)<SUM($11:$11), "Actual gross capex ("&BL4&")", "") ->  | BM25: =IF(COUNTA($H$25:BL$25)<SUM($11:$11), "Actual gross capex ("&BM4&")", "") ->  | BN25: =IF(COUNTA($H$25:BM$25)<SUM($11:$11), "Actual gross capex ("&BN4&")", "") ->  | BO25: =IF(COUNTA($H$25:BN$25)<SUM($11:$11), "Actual gross capex ("&BO4&")", "") ->  | BP25: =IF(COUNTA($H$25:BO$25)<SUM($11:$11), "Actual gross capex ("&BP4&")", "") ->  | BQ25: =IF(COUNTA($H$25:BP$25)<SUM($11:$11), "Actual gross capex ("&BQ4&")", "") ->  | BR25: =IF(COUNTA($H$25:BQ$25)<SUM($11:$11), "Actual gross capex ("&BR4&")", "") ->  | BS25: =IF(COUNTA($H$25:BR$25)<SUM($11:$11), "Actual gross capex ("&BS4&")", "") ->  | BT25: =IF(COUNTA($H$25:BS$25)<SUM($11:$11), "Actual gross capex ("&BT4&")", "") ->  | BU25: =IF(COUNTA($H$25:BT$25)<SUM($11:$11), "Actual gross capex ("&BU4&")", "") ->  | BV25: =IF(COUNTA($H$25:BU$25)<SUM($11:$11), "Actual gross capex ("&BV4&")", "") ->  | BW25: =IF(COUNTA($H$25:BV$25)<SUM($11:$11), "Actual gross capex ("&BW4&")", "") ->  | BX25: =IF(COUNTA($H$25:BW$25)<SUM($11:$11), "Actual gross capex ("&BX4&")", "") ->  | BY25: =IF(COUNTA($H$25:BX$25)<SUM($11:$11), "Actual gross capex ("&BY4&")", "") ->  | BZ25: =IF(COUNTA($H$25:BY$25)<SUM($11:$11), "Actual gross capex ("&BZ4&")", "") ->  | CA25: =IF(COUNTA($H$25:BZ$25)<SUM($11:$11), "Actual gross capex ("&CA4&")", "") ->  | CB25: =IF(COUNTA($H$25:CA$25)<SUM($11:$11), "Actual gross capex ("&CB4&")", "") ->  | CC25: =IF(COUNTA($H$25:CB$25)<SUM($11:$11), "Actual gross capex ("&CC4&")", "") ->  | CD25: =IF(COUNTA($H$25:CC$25)<SUM($11:$11), "Actual gross capex ("&CD4&")", "") ->  | CE25: =IF(COUNTA($H$25:CD$25)<SUM($11:$11), "Actual gross capex ("&CE4&")", "") ->  | CF25: =IF(COUNTA($H$25:CE$25)<SUM($11:$11), "Actual gross capex ("&CF4&")", "") ->  | CG25: =IF(COUNTA($H$25:CF$25)<SUM($11:$11), "Actual gross capex ("&CG4&")", "") ->  | CH25: =IF(COUNTA($H$25:CG$25)<SUM($11:$11), "Actual gross capex ("&CH4&")", "") ->  | CI25: =IF(COUNTA($H$25:CH$25)<SUM($11:$11), "Actual gross capex ("&CI4&")", "") ->  | CJ25: =IF(COUNTA($H$25:CI$25)<SUM($11:$11), "Actual gross capex ("&CJ4&")", "") ->  | CK25: =IF(COUNTA($H$25:CJ$25)<SUM($11:$11), "Actual gross capex ("&CK4&")", "") ->  | CL25: =IF(COUNTA($H$25:CK$25)<SUM($11:$11), "Actual gross capex ("&CL4&")", "") ->  | CM25: =IF(COUNTA($H$25:CL$25)<SUM($11:$11), "Actual gross capex ("&CM4&")", "") ->  | CN25: =IF(COUNTA($H$25:CM$25)<SUM($11:$11), "Actual gross capex ("&CN4&")", "") ->  | CO25: =IF(COUNTA($H$25:CN$25)<SUM($11:$11), "Actual gross capex ("&CO4&")", "") ->  | CP25: =IF(COUNTA($H$25:CO$25)<SUM($11:$11), "Actual gross capex ("&CP4&")", "") ->  | CQ25: =IF(COUNTA($H$25:CP$25)<SUM($11:$11), "Actual gross capex ("&CQ4&")", "") ->  | CR25: =IF(COUNTA($H$25:CQ$25)<SUM($11:$11), "Actual gross capex ("&CR4&")", "") ->  | CS25: =IF(COUNTA($H$25:CR$25)<SUM($11:$11), "Actual gross capex ("&CS4&")", "") ->  | CT25: =IF(COUNTA($H$25:CS$25)<SUM($11:$11), "Actual gross capex ("&CT4&")", "") ->  | CU25: =IF(COUNTA($H$25:CT$25)<SUM($11:$11), "Actual gross capex ("&CU4&")", "") ->  | CV25: =IF(COUNTA($H$25:CU$25)<SUM($11:$11), "Actual gross capex ("&CV4&")", "") ->  | CW25: =IF(COUNTA($H$25:CV$25)<SUM($11:$11), "Actual gross capex ("&CW4&")", "") ->  | CX25: =IF(COUNTA($H$25:CW$25)<SUM($11:$11), "Actual gross capex ("&CX4&")", "") ->  | CY25: =IF(COUNTA($H$25:CX$25)<SUM($11:$11), "Actual gross capex ("&CY4&")", "") -> 
D27: 1 | E27: Mains | G27: 978.9705139 | H27: 71.09033029 | I27: 73.96843216 | J27: 74.92925336 | K27: 65.452091 | L27: 65.5509 | M27: 50.927561 | N27: 59.171988 | O27: 56.43249655 | P27: 88.56444386 | Q27: 44.44515366
D28: 2 | E28: Inlets | G28: 121.0581084 | H28: 14.20493362 | I28: 16.17322627 | J28: 15.99480584 | K28: 18.901413 | L28: 17.062029 | M28: 16.698498 | N28: 17.807126 | O28: 20.22891049 | P28: 16.02639195 | Q28: 21.29690318
D29: 3 | E29: Meters | G29: 56.99294817 | H29: 9.75949778 | I29: 8.874331696 | J29: 10.125749 | K29: 6.863406 | L29: 7.255374 | M29: 9.642196 | N29: 10.833185 | O29: 6.858486014 | P29: 8.527282789 | Q29: 9.57665901
D30: 4 | E30: Telemetry | G30: 4.139795268 | H30: 0.1994222578 | I30: 0.003270312391 | J30: 0.2055811376 | K30: 0.141555 | L30: 0.121491 | M30: 0.303216 | N30: 0.538994 | O30: 0.2263497783 | P30: 0.4374080487 | Q30: 0.5256247064
D31: 5 | E31: IT System | G31: 19.23423291 | H31: 0.7595921506 | I31: 3.386311851 | J31: 5.064835226 | K31: 5.039743 | L31: 8.124313 | M31: 8.962729 | N31: 5.429452 | O31: 2.769427212 | P31: 10.87389322 | Q31: 7.598190827
D32: 6 | E32: Other Distribution System Equipment | G32: 201.7962545 | H32: 1.994479894 | I32: 2.577514292 | J32: 2.951148154 | K32: 4.984866 | L32: 4.839913 | M32: 6.172538 | N32: 4.09614 | O32: 9.107877572 | P32: 11.7440004 | Q32: 16.24772902
D33: 7 | E33: Other | G33: 3.436416174 | H33: 0.755441404 | I33: 0.7108051724 | J33: 0.3521191741 | K33: 1.587281 | L33: 1.946809 | M33: 0.878566 | N33: 0.836167 | O33: 1.599508344 | P33: 1.62724429 | Q33: 1.070940887
D34: 8 | E34: Low pressure mains depn | G34: 0 | H34: 0 | I34: 0 | J34: 0 | K34: 0 | L34: 0 | M34: 0 | N34: 0 | O34: 0 | P34: 0 | Q34: 0
D35: 9 | E35: Low pressure inlets depn | G35: 0 | H35: 0 | I35: 0 | J35: 0 | K35: 0 | L35: 0 | M35: 0 | N35: 0 | O35: 0 | P35: 0 | Q35: 0
D36: 10 | E36: Future of Gas Depreciation | L36: 0 | M36: 0 | N36: 0 | O36: 0 | P36: 0 | Q36: 0
D37: 11 | E37: 0
D38: 12 | E38: 0
D39: 13 | E39: 0
D40: 14 | E40: 0
D41: 15 | E41: 0
D42: 16 | E42: 0
D43: 17 | E43: 0
D44: 18 | E44: 0
D45: 19 | E45: 0
D46: 20 | E46: 0
D47: 21 | E47: 0
D48: 22 | E48: 0
D49: 23 | E49: 0
D50: 24 | E50: 0
D51: 25 | E51: 0
D52: 26 | E52: 0
D53: 27 | E53: 0
D54: 28 | E54: 0
D55: 29 | E55: 0
D56: 30 | E56: 0
D57: 31 | E57: 0
D58: 32 | E58: 0
D59: 33 | E59: 0
D60: 34 | E60: 0
D61: 35 | E61: 0
D62: 36 | E62: 0
... 77 more rows

Sheet TAB input
E2: =IF('Capital base input'!$F$8=$F$8, 'Capital base input'!$F$8, $F$8)&" - TAB input - Gas DNSP "&Intro!$I$3&" - version "&Intro!$M$4 -> AGN SA - TAB input - Gas DNSP RFM - Depreciation tracking module - version 1.1 | J2: Input cells in blue
E4: Year | F4: =IF(LEN($H$9)>4, CONCATENATE(LEFT($H$9, 4)-2 & "-" & IF(AND(RIGHT($H$9, 2)<"12", RIGHT($H$9, 2)>"01"), "0", "") & IF(RIGHT($H$9, 2)="00", "98", IF(RIGHT($H$9, 2)="01", "99", RIGHT($H$9, 2)-2))), $H$9-2) -> 2014-15 | G4: =IF(LEN(F4)>4,CONCATENATE(LEFT(F4,4)+1&"-"&IF(RIGHT(F4, 2)<"09", "0","")&IF(RIGHT(F4, 2)="99", "00", RIGHT(F4,2)+1)),F4+1) -> 2015-16 | H4: =IF(LEN(G4)>4,CONCATENATE(LEFT(G4,4)+1&"-"&IF(RIGHT(G4, 2)<"09", "0","")&IF(RIGHT(G4, 2)="99", "00", RIGHT(G4,2)+1)),G4+1) -> 2016-17 | I4: 2017-18 | J4: 2018-19 | K4: 2019-20 | L4: 2020-21 | M4: 2021-22 | N4: 2022-23 | O4: 2023-24 | P4: 2024-25 | Q4: 2025-26 | R4: 2026-27 | S4: 2027-28 | T4: 2028-29 | U4: 2029-30 | V4: 2030-31 | W4: 2031-32 | X4: 2032-33 | Y4: 2033-34 | Z4: 2034-35 | AA4: 2035-36 | AB4: 2036-37 | AC4: 2037-38 | AD4: 2038-39 | AE4: 2039-40 | AF4: 2040-41 | AG4: 2041-42 | AH4: 2042-43 | AI4: 2043-44 | AJ4: 2044-45 | AK4: 2045-46 | AL4: 2046-47 | AM4: 2047-48 | AN4: 2048-49 | AO4: 2049-50 | AP4: 2050-51 | AQ4: 2051-52 | AR4: 2052-53 | AS4: 2053-54 | AT4: 2054-55 | AU4: 2055-56 | AV4: 2056-57 | AW4: 2057-58 | AX4: 2058-59 | AY4: 2059-60 | AZ4: 2060-61 | BA4: 2061-62 | BB4: 2062-63 | BC4: 2063-64 | BD4: 2064-65 | BE4: 2065-66 | BF4: 2066-67 | BG4: 2067-68 | BH4: 2068-69 | BI4: 2069-70 | BJ4: 2070-71 | BK4: 2071-72 | BL4: 2072-73 | BM4: 2073-74 | BN4: 2074-75 | BO4: 2075-76 | BP4: 2076-77 | BQ4: 2077-78 | BR4: 2078-79 | BS4: 2079-80 | BT4: =IF(LEN(BS4)>4,CONCATENATE(LEFT(BS4,4)+1&"-"&IF(RIGHT(BS4, 2)<"09", "0","")&IF(RIGHT(BS4, 2)="99", "00", RIGHT(BS4,2)+1)),BS4+1) -> 2080-81 | BU4: 2081-82 | BV4: 2082-83 | BW4: 2083-84 | BX4: 2084-85 | BY4: 2085-86 | BZ4: 2086-87 | CA4: 2087-88 | CB4: 2088-89 | CC4: 2089-90 | CD4: 2090-91 | CE4: 2091-92 | CF4: 2092-93 | CG4: 2093-94 | CH4: 2094-95 | CI4: 2095-96 | CJ4: 2096-97 | CK4: 2097-98 | CL4: 2098-99 | CM4: 2099-00 | CN4: 2100-01 | CO4: 2101-02 | CP4: 2102-03 | CQ4: 2103-04 | CR4: 2104-05 | CS4: 2105-06 | CT4: 2106-07 | CU4: 2107-08 | CV4: 2108-09 | CW4: 2109-10 | CX4: 2110-11 | CY4: 2111-12
D6: General information
E8: Business name | F8: ='Capital base input'!$F$8 -> AGN SA
E9: First regulatory year for tracking | H9: 2016-17 | I9: =IF(SUM($11:$11)=COUNTA($H$9:H$9), "Input for next period", "") ->  | J9: =IF(SUM($11:$11)=COUNTA($H$9:I$9), "Input for next period", "") ->  | K9: =IF(SUM($11:$11)=COUNTA($H$9:J$9), "Input for next period", "") ->  | L9: =IF(SUM($11:$11)=COUNTA($H$9:K$9), "Input for next period", "") ->  | M9: =IF(SUM($11:$11)=COUNTA($H$9:L$9), "Input for next period", "") ->  | N9: =IF(SUM($11:$11)=COUNTA($H$9:M$9), "Input for next period", "") ->  | O9: =IF(SUM($11:$11)=COUNTA($H$9:N$9), "Input for next period", "") ->  | P9: =IF(SUM($11:$11)=COUNTA($H$9:O$9), "Input for next period", "") ->  | Q9: =IF(SUM($11:$11)=COUNTA($H$9:P$9), "Input for next period", "") ->  | R9: =IF(SUM($11:$11)=COUNTA($H$9:Q$9), "Input for next period", "") -> Input for next period | S9: =IF(SUM($11:$11)=COUNTA($H$9:R$9), "Input for next period", "") ->  | T9: =IF(SUM($11:$11)=COUNTA($H$9:S$9), "Input for next period", "") ->  | U9: =IF(SUM($11:$11)=COUNTA($H$9:T$9), "Input for next period", "") ->  | V9: =IF(SUM($11:$11)=COUNTA($H$9:U$9), "Input for next period", "") ->  | W9: =IF(SUM($11:$11)=COUNTA($H$9:V$9), "Input for next period", "") ->  | X9: =IF(SUM($11:$11)=COUNTA($H$9:W$9), "Input for next period", "") ->  | Y9: =IF(SUM($11:$11)=COUNTA($H$9:X$9), "Input for next period", "") ->  | Z9: =IF(SUM($11:$11)=COUNTA($H$9:Y$9), "Input for next period", "") ->  | AA9: =IF(SUM($11:$11)=COUNTA($H$9:Z$9), "Input for next period", "") ->  | AB9: =IF(SUM($11:$11)=COUNTA($H$9:AA$9), "Input for next period", "") ->  | AC9: =IF(SUM($11:$11)=COUNTA($H$9:AB$9), "Input for next period", "") ->  | AD9: =IF(SUM($11:$11)=COUNTA($H$9:AC$9), "Input for next period", "") ->  | AE9: =IF(SUM($11:$11)=COUNTA($H$9:AD$9), "Input for next period", "") ->  | AF9: =IF(SUM($11:$11)=COUNTA($H$9:AE$9), "Input for next period", "") ->  | AG9: =IF(SUM($11:$11)=COUNTA($H$9:AF$9), "Input for next period", "") ->  | AH9: =IF(SUM($11:$11)=COUNTA($H$9:AG$9), "Input for next period", "") ->  | AI9: =IF(SUM($11:$11)=COUNTA($H$9:AH$9), "Input for next period", "") ->  | AJ9: =IF(SUM($11:$11)=COUNTA($H$9:AI$9), "Input for next period", "") ->  | AK9: =IF(SUM($11:$11)=COUNTA($H$9:AJ$9), "Input for next period", "") ->  | AL9: =IF(SUM($11:$11)=COUNTA($H$9:AK$9), "Input for next period", "") ->  | AM9: =IF(SUM($11:$11)=COUNTA($H$9:AL$9), "Input for next period", "") ->  | AN9: =IF(SUM($11:$11)=COUNTA($H$9:AM$9), "Input for next period", "") ->  | AO9: =IF(SUM($11:$11)=COUNTA($H$9:AN$9), "Input for next period", "") ->  | AP9: =IF(SUM($11:$11)=COUNTA($H$9:AO$9), "Input for next period", "") ->  | AQ9: =IF(SUM($11:$11)=COUNTA($H$9:AP$9), "Input for next period", "") ->  | AR9: =IF(SUM($11:$11)=COUNTA($H$9:AQ$9), "Input for next period", "") ->  | AS9: =IF(SUM($11:$11)=COUNTA($H$9:AR$9), "Input for next period", "") ->  | AT9: =IF(SUM($11:$11)=COUNTA($H$9:AS$9), "Input for next period", "") ->  | AU9: =IF(SUM($11:$11)=COUNTA($H$9:AT$9), "Input for next period", "") ->  | AV9: =IF(SUM($11:$11)=COUNTA($H$9:AU$9), "Input for next period", "") ->  | AW9: =IF(SUM($11:$11)=COUNTA($H$9:AV$9), "Input for next period", "") ->  | AX9: =IF(SUM($11:$11)=COUNTA($H$9:AW$9), "Input for next period", "") ->  | AY9: =IF(SUM($11:$11)=COUNTA($H$9:AX$9), "Input for next period", "") ->  | AZ9: =IF(SUM($11:$11)=COUNTA($H$9:AY$9), "Input for next period", "") ->  | BA9: =IF(SUM($11:$11)=COUNTA($H$9:AZ$9), "Input for next period", "") ->  | BB9: =IF(SUM($11:$11)=COUNTA($H$9:BA$9), "Input for next period", "") ->  | BC9: =IF(SUM($11:$11)=COUNTA($H$9:BB$9), "Input for next period", "") ->  | BD9: =IF(SUM($11:$11)=COUNTA($H$9:BC$9), "Input for next period", "") ->  | BE9: =IF(SUM($11:$11)=COUNTA($H$9:BD$9), "Input for next period", "") ->  | BF9: =IF(SUM($11:$11)=COUNTA($H$9:BE$9), "Input for next period", "") ->  | BG9: =IF(SUM($11:$11)=COUNTA($H$9:BF$9), "Input for next period", "") ->  | BH9: =IF(SUM($11:$11)=COUNTA($H$9:BG$9), "Input for next period", "") ->  | BI9: =IF(SUM($11:$11)=COUNTA($H$9:BH$9), "Input for next period", "") ->  | BJ9: =IF(SUM($11:$11)=COUNTA($H$9:BI$9), "Input for next period", "") ->  | BK9: =IF(SUM($11:$11)=COUNTA($H$9:BJ$9), "Input for next period", "") ->  | BL9: =IF(SUM($11:$11)=COUNTA($H$9:BK$9), "Input for next period", "") ->  | BM9: =IF(SUM($11:$11)=COUNTA($H$9:BL$9), "Input for next period", "") ->  | BN9: =IF(SUM($11:$11)=COUNTA($H$9:BM$9), "Input for next period", "") ->  | BO9: =IF(SUM($11:$11)=COUNTA($H$9:BN$9), "Input for next period", "") ->  | BP9: =IF(SUM($11:$11)=COUNTA($H$9:BO$9), "Input for next period", "") ->  | BQ9: =IF(SUM($11:$11)=COUNTA($H$9:BP$9), "Input for next period", "") ->  | BR9: =IF(SUM($11:$11)=COUNTA($H$9:BQ$9), "Input for next period", "") ->  | BS9: =IF(SUM($11:$11)=COUNTA($H$9:BR$9), "Input for next period", "") ->  | BT9: =IF(SUM($11:$11)=COUNTA($H$9:BS$9), "Input for next period", "") ->  | BU9: =IF(SUM($11:$11)=COUNTA($H$9:BT$9), "Input for next period", "") ->  | BV9: =IF(SUM($11:$11)=COUNTA($H$9:BU$9), "Input for next period", "") ->  | BW9: =IF(SUM($11:$11)=COUNTA($H$9:BV$9), "Input for next period", "") ->  | BX9: =IF(SUM($11:$11)=COUNTA($H$9:BW$9), "Input for next period", "") ->  | BY9: =IF(SUM($11:$11)=COUNTA($H$9:BX$9), "Input for next period", "") ->  | BZ9: =IF(SUM($11:$11)=COUNTA($H$9:BY$9), "Input for next period", "") ->  | CA9: =IF(SUM($11:$11)=COUNTA($H$9:BZ$9), "Input for next period", "") ->  | CB9: =IF(SUM($11:$11)=COUNTA($H$9:CA$9), "Input for next period", "") ->  | CC9: =IF(SUM($11:$11)=COUNTA($H$9:CB$9), "Input for next period", "") ->  | CD9: =IF(SUM($11:$11)=COUNTA($H$9:CC$9), "Input for next period", "") ->  | CE9: =IF(SUM($11:$11)=COUNTA($H$9:CD$9), "Input for next period", "") ->  | CF9: =IF(SUM($11:$11)=COUNTA($H$9:CE$9), "Input for next period", "") ->  | CG9: =IF(SUM($11:$11)=COUNTA($H$9:CF$9), "Input for next period", "") ->  | CH9: =IF(SUM($11:$11)=COUNTA($H$9:CG$9), "Input for next period", "") ->  | CI9: =IF(SUM($11:$11)=COUNTA($H$9:CH$9), "Input for next period", "") ->  | CJ9: =IF(SUM($11:$11)=COUNTA($H$9:CI$9), "Input for next period", "") ->  | CK9: =IF(SUM($11:$11)=COUNTA($H$9:CJ$9), "Input for next period", "") ->  | CL9: =IF(SUM($11:$11)=COUNTA($H$9:CK$9), "Input for next period", "") ->  | CM9: =IF(SUM($11:$11)=COUNTA($H$9:CL$9), "Input for next period", "") ->  | CN9: =IF(SUM($11:$11)=COUNTA($H$9:CM$9), "Input for next period", "") ->  | CO9: =IF(SUM($11:$11)=COUNTA($H$9:CN$9), "Input for next period", "") ->  | CP9: =IF(SUM($11:$11)=COUNTA($H$9:CO$9), "Input for next period", "") ->  | CQ9: =IF(SUM($11:$11)=COUNTA($H$9:CP$9), "Input for next period", "") ->  | CR9: =IF(SUM($11:$11)=COUNTA($H$9:CQ$9), "Input for next period", "") ->  | CS9: =IF(SUM($11:$11)=COUNTA($H$9:CR$9), "Input for next period", "") ->  | CT9: =IF(SUM($11:$11)=COUNTA($H$9:CS$9), "Input for next period", "") ->  | CU9: =IF(SUM($11:$11)=COUNTA($H$9:CT$9), "Input for next period", "") ->  | CV9: =IF(SUM($11:$11)=COUNTA($H$9:CU$9), "Input for next period", "") ->  | CW9: =IF(SUM($11:$11)=COUNTA($H$9:CV$9), "Input for next period", "") ->  | CX9: =IF(SUM($11:$11)=COUNTA($H$9:CW$9), "Input for next period", "") ->  | CY9: =IF(SUM($11:$11)=COUNTA($H$9:CX$9), "Input for next period", "") -> 
E10: Regulatory period | H10: 2016-21 | I10: =IFERROR(IF(INDEX('Capital base input'!10:10, MATCH(I$4, 'Capital base input'!$4:$4, 0))="", "", INDEX('Capital base input'!10:10, MATCH(I$4, 'Capital base input'!$4:$4, 0))), "") ->  | J10: =IFERROR(IF(INDEX('Capital base input'!10:10, MATCH(J$4, 'Capital base input'!$4:$4, 0))="", "", INDEX('Capital base input'!10:10, MATCH(J$4, 'Capital base input'!$4:$4, 0))), "") ->  | K10: =IFERROR(IF(INDEX('Capital base input'!10:10, MATCH(K$4, 'Capital base input'!$4:$4, 0))="", "", INDEX('Capital base input'!10:10, MATCH(K$4, 'Capital base input'!$4:$4, 0))), "") ->  | L10: =IFERROR(IF(INDEX('Capital base input'!10:10, MATCH(L$4, 'Capital base input'!$4:$4, 0))="", "", INDEX('Capital base input'!10:10, MATCH(L$4, 'Capital base input'!$4:$4, 0))), "") ->  | M10: =IFERROR(IF(INDEX('Capital base input'!10:10, MATCH(M$4, 'Capital base input'!$4:$4, 0))="", "", INDEX('Capital base input'!10:10, MATCH(M$4, 'Capital base input'!$4:$4, 0))), "") -> 2021-26 | N10: =IFERROR(IF(INDEX('Capital base input'!10:10, MATCH(N$4, 'Capital base input'!$4:$4, 0))="", "", INDEX('Capital base input'!10:10, MATCH(N$4, 'Capital base input'!$4:$4, 0))), "") ->  | O10: =IFERROR(IF(INDEX('Capital base input'!10:10, MATCH(O$4, 'Capital base input'!$4:$4, 0))="", "", INDEX('Capital base input'!10:10, MATCH(O$4, 'Capital base input'!$4:$4, 0))), "") ->  | P10: =IFERROR(IF(INDEX('Capital base input'!10:10, MATCH(P$4, 'Capital base input'!$4:$4, 0))="", "", INDEX('Capital base input'!10:10, MATCH(P$4, 'Capital base input'!$4:$4, 0))), "") ->  | Q10: =IFERROR(IF(INDEX('Capital base input'!10:10, MATCH(Q$4, 'Capital base input'!$4:$4, 0))="", "", INDEX('Capital base input'!10:10, MATCH(Q$4, 'Capital base input'!$4:$4, 0))), "") ->  | R10: =IFERROR(IF(INDEX('Capital base input'!10:10, MATCH(R$4, 'Capital base input'!$4:$4, 0))="", "", INDEX('Capital base input'!10:10, MATCH(R$4, 'Capital base input'!$4:$4, 0))), "") ->  | S10: =IFERROR(IF(INDEX('Capital base input'!10:10, MATCH(S$4, 'Capital base input'!$4:$4, 0))="", "", INDEX('Capital base input'!10:10, MATCH(S$4, 'Capital base input'!$4:$4, 0))), "") ->  | T10: =IFERROR(IF(INDEX('Capital base input'!10:10, MATCH(T$4, 'Capital base input'!$4:$4, 0))="", "", INDEX('Capital base input'!10:10, MATCH(T$4, 'Capital base input'!$4:$4, 0))), "") ->  | U10: =IFERROR(IF(INDEX('Capital base input'!10:10, MATCH(U$4, 'Capital base input'!$4:$4, 0))="", "", INDEX('Capital base input'!10:10, MATCH(U$4, 'Capital base input'!$4:$4, 0))), "") ->  | V10: =IFERROR(IF(INDEX('Capital base input'!10:10, MATCH(V$4, 'Capital base input'!$4:$4, 0))="", "", INDEX('Capital base input'!10:10, MATCH(V$4, 'Capital base input'!$4:$4, 0))), "") ->  | W10: =IFERROR(IF(INDEX('Capital base input'!10:10, MATCH(W$4, 'Capital base input'!$4:$4, 0))="", "", INDEX('Capital base input'!10:10, MATCH(W$4, 'Capital base input'!$4:$4, 0))), "") ->  | X10: =IFERROR(IF(INDEX('Capital base input'!10:10, MATCH(X$4, 'Capital base input'!$4:$4, 0))="", "", INDEX('Capital base input'!10:10, MATCH(X$4, 'Capital base input'!$4:$4, 0))), "") ->  | Y10: =IFERROR(IF(INDEX('Capital base input'!10:10, MATCH(Y$4, 'Capital base input'!$4:$4, 0))="", "", INDEX('Capital base input'!10:10, MATCH(Y$4, 'Capital base input'!$4:$4, 0))), "") ->  | Z10: =IFERROR(IF(INDEX('Capital base input'!10:10, MATCH(Z$4, 'Capital base input'!$4:$4, 0))="", "", INDEX('Capital base input'!10:10, MATCH(Z$4, 'Capital base input'!$4:$4, 0))), "") ->  | AA10: =IFERROR(IF(INDEX('Capital base input'!10:10, MATCH(AA$4, 'Capital base input'!$4:$4, 0))="", "", INDEX('Capital base input'!10:10, MATCH(AA$4, 'Capital base input'!$4:$4, 0))), "") ->  | AB10: =IFERROR(IF(INDEX('Capital base input'!10:10, MATCH(AB$4, 'Capital base input'!$4:$4, 0))="", "", INDEX('Capital base input'!10:10, MATCH(AB$4, 'Capital base input'!$4:$4, 0))), "") ->  | AC10: =IFERROR(IF(INDEX('Capital base input'!10:10, MATCH(AC$4, 'Capital base input'!$4:$4, 0))="", "", INDEX('Capital base input'!10:10, MATCH(AC$4, 'Capital base input'!$4:$4, 0))), "") ->  | AD10: =IFERROR(IF(INDEX('Capital base input'!10:10, MATCH(AD$4, 'Capital base input'!$4:$4, 0))="", "", INDEX('Capital base input'!10:10, MATCH(AD$4, 'Capital base input'!$4:$4, 0))), "") ->  | AE10: =IFERROR(IF(INDEX('Capital base input'!10:10, MATCH(AE$4, 'Capital base input'!$4:$4, 0))="", "", INDEX('Capital base input'!10:10, MATCH(AE$4, 'Capital base input'!$4:$4, 0))), "") ->  | AF10: =IFERROR(IF(INDEX('Capital base input'!10:10, MATCH(AF$4, 'Capital base input'!$4:$4, 0))="", "", INDEX('Capital base input'!10:10, MATCH(AF$4, 'Capital base input'!$4:$4, 0))), "") ->  | AG10: =IFERROR(IF(INDEX('Capital base input'!10:10, MATCH(AG$4, 'Capital base input'!$4:$4, 0))="", "", INDEX('Capital base input'!10:10, MATCH(AG$4, 'Capital base input'!$4:$4, 0))), "") ->  | AH10: =IFERROR(IF(INDEX('Capital base input'!10:10, MATCH(AH$4, 'Capital base input'!$4:$4, 0))="", "", INDEX('Capital base input'!10:10, MATCH(AH$4, 'Capital base input'!$4:$4, 0))), "") ->  | AI10: =IFERROR(IF(INDEX('Capital base input'!10:10, MATCH(AI$4, 'Capital base input'!$4:$4, 0))="", "", INDEX('Capital base input'!10:10, MATCH(AI$4, 'Capital base input'!$4:$4, 0))), "") ->  | AJ10: =IFERROR(IF(INDEX('Capital base input'!10:10, MATCH(AJ$4, 'Capital base input'!$4:$4, 0))="", "", INDEX('Capital base input'!10:10, MATCH(AJ$4, 'Capital base input'!$4:$4, 0))), "") ->  | AK10: =IFERROR(IF(INDEX('Capital base input'!10:10, MATCH(AK$4, 'Capital base input'!$4:$4, 0))="", "", INDEX('Capital base input'!10:10, MATCH(AK$4, 'Capital base input'!$4:$4, 0))), "") ->  | AL10: =IFERROR(IF(INDEX('Capital base input'!10:10, MATCH(AL$4, 'Capital base input'!$4:$4, 0))="", "", INDEX('Capital base input'!10:10, MATCH(AL$4, 'Capital base input'!$4:$4, 0))), "") ->  | AM10: =IFERROR(IF(INDEX('Capital base input'!10:10, MATCH(AM$4, 'Capital base input'!$4:$4, 0))="", "", INDEX('Capital base input'!10:10, MATCH(AM$4, 'Capital base input'!$4:$4, 0))), "") ->  | AN10: =IFERROR(IF(INDEX('Capital base input'!10:10, MATCH(AN$4, 'Capital base input'!$4:$4, 0))="", "", INDEX('Capital base input'!10:10, MATCH(AN$4, 'Capital base input'!$4:$4, 0))), "") ->  | AO10: =IFERROR(IF(INDEX('Capital base input'!10:10, MATCH(AO$4, 'Capital base input'!$4:$4, 0))="", "", INDEX('Capital base input'!10:10, MATCH(AO$4, 'Capital base input'!$4:$4, 0))), "") ->  | AP10: =IFERROR(IF(INDEX('Capital base input'!10:10, MATCH(AP$4, 'Capital base input'!$4:$4, 0))="", "", INDEX('Capital base input'!10:10, MATCH(AP$4, 'Capital base input'!$4:$4, 0))), "") ->  | AQ10: =IFERROR(IF(INDEX('Capital base input'!10:10, MATCH(AQ$4, 'Capital base input'!$4:$4, 0))="", "", INDEX('Capital base input'!10:10, MATCH(AQ$4, 'Capital base input'!$4:$4, 0))), "") ->  | AR10: =IFERROR(IF(INDEX('Capital base input'!10:10, MATCH(AR$4, 'Capital base input'!$4:$4, 0))="", "", INDEX('Capital base input'!10:10, MATCH(AR$4, 'Capital base input'!$4:$4, 0))), "") ->  | AS10: =IFERROR(IF(INDEX('Capital base input'!10:10, MATCH(AS$4, 'Capital base input'!$4:$4, 0))="", "", INDEX('Capital base input'!10:10, MATCH(AS$4, 'Capital base input'!$4:$4, 0))), "") ->  | AT10: =IFERROR(IF(INDEX('Capital base input'!10:10, MATCH(AT$4, 'Capital base input'!$4:$4, 0))="", "", INDEX('Capital base input'!10:10, MATCH(AT$4, 'Capital base input'!$4:$4, 0))), "") ->  | AU10: =IFERROR(IF(INDEX('Capital base input'!10:10, MATCH(AU$4, 'Capital base input'!$4:$4, 0))="", "", INDEX('Capital base input'!10:10, MATCH(AU$4, 'Capital base input'!$4:$4, 0))), "") ->  | AV10: =IFERROR(IF(INDEX('Capital base input'!10:10, MATCH(AV$4, 'Capital base input'!$4:$4, 0))="", "", INDEX('Capital base input'!10:10, MATCH(AV$4, 'Capital base input'!$4:$4, 0))), "") ->  | AW10: =IFERROR(IF(INDEX('Capital base input'!10:10, MATCH(AW$4, 'Capital base input'!$4:$4, 0))="", "", INDEX('Capital base input'!10:10, MATCH(AW$4, 'Capital base input'!$4:$4, 0))), "") ->  | AX10: =IFERROR(IF(INDEX('Capital base input'!10:10, MATCH(AX$4, 'Capital base input'!$4:$4, 0))="", "", INDEX('Capital base input'!10:10, MATCH(AX$4, 'Capital base input'!$4:$4, 0))), "") ->  | AY10: =IFERROR(IF(INDEX('Capital base input'!10:10, MATCH(AY$4, 'Capital base input'!$4:$4, 0))="", "", INDEX('Capital base input'!10:10, MATCH(AY$4, 'Capital base input'!$4:$4, 0))), "") ->  | AZ10: =IFERROR(IF(INDEX('Capital base input'!10:10, MATCH(AZ$4, 'Capital base input'!$4:$4, 0))="", "", INDEX('Capital base input'!10:10, MATCH(AZ$4, 'Capital base input'!$4:$4, 0))), "") ->  | BA10: =IFERROR(IF(INDEX('Capital base input'!10:10, MATCH(BA$4, 'Capital base input'!$4:$4, 0))="", "", INDEX('Capital base input'!10:10, MATCH(BA$4, 'Capital base input'!$4:$4, 0))), "") ->  | BB10: =IFERROR(IF(INDEX('Capital base input'!10:10, MATCH(BB$4, 'Capital base input'!$4:$4, 0))="", "", INDEX('Capital base input'!10:10, MATCH(BB$4, 'Capital base input'!$4:$4, 0))), "") ->  | BC10: =IFERROR(IF(INDEX('Capital base input'!10:10, MATCH(BC$4, 'Capital base input'!$4:$4, 0))="", "", INDEX('Capital base input'!10:10, MATCH(BC$4, 'Capital base input'!$4:$4, 0))), "") ->  | BD10: =IFERROR(IF(INDEX('Capital base input'!10:10, MATCH(BD$4, 'Capital base input'!$4:$4, 0))="", "", INDEX('Capital base input'!10:10, MATCH(BD$4, 'Capital base input'!$4:$4, 0))), "") ->  | BE10: =IFERROR(IF(INDEX('Capital base input'!10:10, MATCH(BE$4, 'Capital base input'!$4:$4, 0))="", "", INDEX('Capital base input'!10:10, MATCH(BE$4, 'Capital base input'!$4:$4, 0))), "") ->  | BF10: =IFERROR(IF(INDEX('Capital base input'!10:10, MATCH(BF$4, 'Capital base input'!$4:$4, 0))="", "", INDEX('Capital base input'!10:10, MATCH(BF$4, 'Capital base input'!$4:$4, 0))), "") ->  | BG10: =IFERROR(IF(INDEX('Capital base input'!10:10, MATCH(BG$4, 'Capital base input'!$4:$4, 0))="", "", INDEX('Capital base input'!10:10, MATCH(BG$4, 'Capital base input'!$4:$4, 0))), "") ->  | BH10: =IFERROR(IF(INDEX('Capital base input'!10:10, MATCH(BH$4, 'Capital base input'!$4:$4, 0))="", "", INDEX('Capital base input'!10:10, MATCH(BH$4, 'Capital base input'!$4:$4, 0))), "") ->  | BI10: =IFERROR(IF(INDEX('Capital base input'!10:10, MATCH(BI$4, 'Capital base input'!$4:$4, 0))="", "", INDEX('Capital base input'!10:10, MATCH(BI$4, 'Capital base input'!$4:$4, 0))), "") ->  | BJ10: =IFERROR(IF(INDEX('Capital base input'!10:10, MATCH(BJ$4, 'Capital base input'!$4:$4, 0))="", "", INDEX('Capital base input'!10:10, MATCH(BJ$4, 'Capital base input'!$4:$4, 0))), "") ->  | BK10: =IFERROR(IF(INDEX('Capital base input'!10:10, MATCH(BK$4, 'Capital base input'!$4:$4, 0))="", "", INDEX('Capital base input'!10:10, MATCH(BK$4, 'Capital base input'!$4:$4, 0))), "") ->  | BL10: =IFERROR(IF(INDEX('Capital base input'!10:10, MATCH(BL$4, 'Capital base input'!$4:$4, 0))="", "", INDEX('Capital base input'!10:10, MATCH(BL$4, 'Capital base input'!$4:$4, 0))), "") ->  | BM10: =IFERROR(IF(INDEX('Capital base input'!10:10, MATCH(BM$4, 'Capital base input'!$4:$4, 0))="", "", INDEX('Capital base input'!10:10, MATCH(BM$4, 'Capital base input'!$4:$4, 0))), "") ->  | BN10: =IFERROR(IF(INDEX('Capital base input'!10:10, MATCH(BN$4, 'Capital base input'!$4:$4, 0))="", "", INDEX('Capital base input'!10:10, MATCH(BN$4, 'Capital base input'!$4:$4, 0))), "") ->  | BO10: =IFERROR(IF(INDEX('Capital base input'!10:10, MATCH(BO$4, 'Capital base input'!$4:$4, 0))="", "", INDEX('Capital base input'!10:10, MATCH(BO$4, 'Capital base input'!$4:$4, 0))), "") ->  | BP10: =IFERROR(IF(INDEX('Capital base input'!10:10, MATCH(BP$4, 'Capital base input'!$4:$4, 0))="", "", INDEX('Capital base input'!10:10, MATCH(BP$4, 'Capital base input'!$4:$4, 0))), "") ->  | BQ10: =IFERROR(IF(INDEX('Capital base input'!10:10, MATCH(BQ$4, 'Capital base input'!$4:$4, 0))="", "", INDEX('Capital base input'!10:10, MATCH(BQ$4, 'Capital base input'!$4:$4, 0))), "") ->  | BR10: =IFERROR(IF(INDEX('Capital base input'!10:10, MATCH(BR$4, 'Capital base input'!$4:$4, 0))="", "", INDEX('Capital base input'!10:10, MATCH(BR$4, 'Capital base input'!$4:$4, 0))), "") ->  | BS10: =IFERROR(IF(INDEX('Capital base input'!10:10, MATCH(BS$4, 'Capital base input'!$4:$4, 0))="", "", INDEX('Capital base input'!10:10, MATCH(BS$4, 'Capital base input'!$4:$4, 0))), "") ->  | BT10: =IFERROR(IF(INDEX('Capital base input'!10:10, MATCH(BT$4, 'Capital base input'!$4:$4, 0))="", "", INDEX('Capital base input'!10:10, MATCH(BT$4, 'Capital base input'!$4:$4, 0))), "") ->  | BU10: =IFERROR(IF(INDEX('Capital base input'!10:10, MATCH(BU$4, 'Capital base input'!$4:$4, 0))="", "", INDEX('Capital base input'!10:10, MATCH(BU$4, 'Capital base input'!$4:$4, 0))), "") ->  | BV10: =IFERROR(IF(INDEX('Capital base input'!10:10, MATCH(BV$4, 'Capital base input'!$4:$4, 0))="", "", INDEX('Capital base input'!10:10, MATCH(BV$4, 'Capital base input'!$4:$4, 0))), "") ->  | BW10: =IFERROR(IF(INDEX('Capital base input'!10:10, MATCH(BW$4, 'Capital base input'!$4:$4, 0))="", "", INDEX('Capital base input'!10:10, MATCH(BW$4, 'Capital base input'!$4:$4, 0))), "") ->  | BX10: =IFERROR(IF(INDEX('Capital base input'!10:10, MATCH(BX$4, 'Capital base input'!$4:$4, 0))="", "", INDEX('Capital base input'!10:10, MATCH(BX$4, 'Capital base input'!$4:$4, 0))), "") ->  | BY10: =IFERROR(IF(INDEX('Capital base input'!10:10, MATCH(BY$4, 'Capital base input'!$4:$4, 0))="", "", INDEX('Capital base input'!10:10, MATCH(BY$4, 'Capital base input'!$4:$4, 0))), "") ->  | BZ10: =IFERROR(IF(INDEX('Capital base input'!10:10, MATCH(BZ$4, 'Capital base input'!$4:$4, 0))="", "", INDEX('Capital base input'!10:10, MATCH(BZ$4, 'Capital base input'!$4:$4, 0))), "") ->  | CA10: =IFERROR(IF(INDEX('Capital base input'!10:10, MATCH(CA$4, 'Capital base input'!$4:$4, 0))="", "", INDEX('Capital base input'!10:10, MATCH(CA$4, 'Capital base input'!$4:$4, 0))), "") ->  | CB10: =IFERROR(IF(INDEX('Capital base input'!10:10, MATCH(CB$4, 'Capital base input'!$4:$4, 0))="", "", INDEX('Capital base input'!10:10, MATCH(CB$4, 'Capital base input'!$4:$4, 0))), "") ->  | CC10: =IFERROR(IF(INDEX('Capital base input'!10:10, MATCH(CC$4, 'Capital base input'!$4:$4, 0))="", "", INDEX('Capital base input'!10:10, MATCH(CC$4, 'Capital base input'!$4:$4, 0))), "") ->  | CD10: =IFERROR(IF(INDEX('Capital base input'!10:10, MATCH(CD$4, 'Capital base input'!$4:$4, 0))="", "", INDEX('Capital base input'!10:10, MATCH(CD$4, 'Capital base input'!$4:$4, 0))), "") ->  | CE10: =IFERROR(IF(INDEX('Capital base input'!10:10, MATCH(CE$4, 'Capital base input'!$4:$4, 0))="", "", INDEX('Capital base input'!10:10, MATCH(CE$4, 'Capital base input'!$4:$4, 0))), "") ->  | CF10: =IFERROR(IF(INDEX('Capital base input'!10:10, MATCH(CF$4, 'Capital base input'!$4:$4, 0))="", "", INDEX('Capital base input'!10:10, MATCH(CF$4, 'Capital base input'!$4:$4, 0))), "") ->  | CG10: =IFERROR(IF(INDEX('Capital base input'!10:10, MATCH(CG$4, 'Capital base input'!$4:$4, 0))="", "", INDEX('Capital base input'!10:10, MATCH(CG$4, 'Capital base input'!$4:$4, 0))), "") ->  | CH10: =IFERROR(IF(INDEX('Capital base input'!10:10, MATCH(CH$4, 'Capital base input'!$4:$4, 0))="", "", INDEX('Capital base input'!10:10, MATCH(CH$4, 'Capital base input'!$4:$4, 0))), "") ->  | CI10: =IFERROR(IF(INDEX('Capital base input'!10:10, MATCH(CI$4, 'Capital base input'!$4:$4, 0))="", "", INDEX('Capital base input'!10:10, MATCH(CI$4, 'Capital base input'!$4:$4, 0))), "") ->  | CJ10: =IFERROR(IF(INDEX('Capital base input'!10:10, MATCH(CJ$4, 'Capital base input'!$4:$4, 0))="", "", INDEX('Capital base input'!10:10, MATCH(CJ$4, 'Capital base input'!$4:$4, 0))), "") ->  | CK10: =IFERROR(IF(INDEX('Capital base input'!10:10, MATCH(CK$4, 'Capital base input'!$4:$4, 0))="", "", INDEX('Capital base input'!10:10, MATCH(CK$4, 'Capital base input'!$4:$4, 0))), "") ->  | CL10: =IFERROR(IF(INDEX('Capital base input'!10:10, MATCH(CL$4, 'Capital base input'!$4:$4, 0))="", "", INDEX('Capital base input'!10:10, MATCH(CL$4, 'Capital base input'!$4:$4, 0))), "") ->  | CM10: =IFERROR(IF(INDEX('Capital base input'!10:10, MATCH(CM$4, 'Capital base input'!$4:$4, 0))="", "", INDEX('Capital base input'!10:10, MATCH(CM$4, 'Capital base input'!$4:$4, 0))), "") ->  | CN10: =IFERROR(IF(INDEX('Capital base input'!10:10, MATCH(CN$4, 'Capital base input'!$4:$4, 0))="", "", INDEX('Capital base input'!10:10, MATCH(CN$4, 'Capital base input'!$4:$4, 0))), "") ->  | CO10: =IFERROR(IF(INDEX('Capital base input'!10:10, MATCH(CO$4, 'Capital base input'!$4:$4, 0))="", "", INDEX('Capital base input'!10:10, MATCH(CO$4, 'Capital base input'!$4:$4, 0))), "") ->  | CP10: =IFERROR(IF(INDEX('Capital base input'!10:10, MATCH(CP$4, 'Capital base input'!$4:$4, 0))="", "", INDEX('Capital base input'!10:10, MATCH(CP$4, 'Capital base input'!$4:$4, 0))), "") ->  | CQ10: =IFERROR(IF(INDEX('Capital base input'!10:10, MATCH(CQ$4, 'Capital base input'!$4:$4, 0))="", "", INDEX('Capital base input'!10:10, MATCH(CQ$4, 'Capital base input'!$4:$4, 0))), "") ->  | CR10: =IFERROR(IF(INDEX('Capital base input'!10:10, MATCH(CR$4, 'Capital base input'!$4:$4, 0))="", "", INDEX('Capital base input'!10:10, MATCH(CR$4, 'Capital base input'!$4:$4, 0))), "") ->  | CS10: =IFERROR(IF(INDEX('Capital base input'!10:10, MATCH(CS$4, 'Capital base input'!$4:$4, 0))="", "", INDEX('Capital base input'!10:10, MATCH(CS$4, 'Capital base input'!$4:$4, 0))), "") ->  | CT10: =IFERROR(IF(INDEX('Capital base input'!10:10, MATCH(CT$4, 'Capital base input'!$4:$4, 0))="", "", INDEX('Capital base input'!10:10, MATCH(CT$4, 'Capital base input'!$4:$4, 0))), "") ->  | CU10: =IFERROR(IF(INDEX('Capital base input'!10:10, MATCH(CU$4, 'Capital base input'!$4:$4, 0))="", "", INDEX('Capital base input'!10:10, MATCH(CU$4, 'Capital base input'!$4:$4, 0))), "") ->  | CV10: =IFERROR(IF(INDEX('Capital base input'!10:10, MATCH(CV$4, 'Capital base input'!$4:$4, 0))="", "", INDEX('Capital base input'!10:10, MATCH(CV$4, 'Capital base input'!$4:$4, 0))), "") ->  | CW10: =IFERROR(IF(INDEX('Capital base input'!10:10, MATCH(CW$4, 'Capital base input'!$4:$4, 0))="", "", INDEX('Capital base input'!10:10, MATCH(CW$4, 'Capital base input'!$4:$4, 0))), "") ->  | CX10: =IFERROR(IF(INDEX('Capital base input'!10:10, MATCH(CX$4, 'Capital base input'!$4:$4, 0))="", "", INDEX('Capital base input'!10:10, MATCH(CX$4, 'Capital base input'!$4:$4, 0))), "") ->  | CY10: =IFERROR(IF(INDEX('Capital base input'!10:10, MATCH(CY$4, 'Capital base input'!$4:$4, 0))="", "", INDEX('Capital base input'!10:10, MATCH(CY$4, 'Capital base input'!$4:$4, 0))), "") -> 
E11: Years in regulatory period | H11: 5 | I11: =IFERROR(IF(INDEX('Capital base input'!11:11, MATCH(I$4, 'Capital base input'!$4:$4, 0))="", "", INDEX('Capital base input'!11:11, MATCH(I$4, 'Capital base input'!$4:$4, 0))), "") ->  | J11: =IFERROR(IF(INDEX('Capital base input'!11:11, MATCH(J$4, 'Capital base input'!$4:$4, 0))="", "", INDEX('Capital base input'!11:11, MATCH(J$4, 'Capital base input'!$4:$4, 0))), "") ->  | K11: =IFERROR(IF(INDEX('Capital base input'!11:11, MATCH(K$4, 'Capital base input'!$4:$4, 0))="", "", INDEX('Capital base input'!11:11, MATCH(K$4, 'Capital base input'!$4:$4, 0))), "") ->  | L11: =IFERROR(IF(INDEX('Capital base input'!11:11, MATCH(L$4, 'Capital base input'!$4:$4, 0))="", "", INDEX('Capital base input'!11:11, MATCH(L$4, 'Capital base input'!$4:$4, 0))), "") ->  | M11: =IFERROR(IF(INDEX('Capital base input'!11:11, MATCH(M$4, 'Capital base input'!$4:$4, 0))="", "", INDEX('Capital base input'!11:11, MATCH(M$4, 'Capital base input'!$4:$4, 0))), "") -> 5 | N11: =IFERROR(IF(INDEX('Capital base input'!11:11, MATCH(N$4, 'Capital base input'!$4:$4, 0))="", "", INDEX('Capital base input'!11:11, MATCH(N$4, 'Capital base input'!$4:$4, 0))), "") ->  | O11: =IFERROR(IF(INDEX('Capital base input'!11:11, MATCH(O$4, 'Capital base input'!$4:$4, 0))="", "", INDEX('Capital base input'!11:11, MATCH(O$4, 'Capital base input'!$4:$4, 0))), "") ->  | P11: =IFERROR(IF(INDEX('Capital base input'!11:11, MATCH(P$4, 'Capital base input'!$4:$4, 0))="", "", INDEX('Capital base input'!11:11, MATCH(P$4, 'Capital base input'!$4:$4, 0))), "") ->  | Q11: =IFERROR(IF(INDEX('Capital base input'!11:11, MATCH(Q$4, 'Capital base input'!$4:$4, 0))="", "", INDEX('Capital base input'!11:11, MATCH(Q$4, 'Capital base input'!$4:$4, 0))), "") ->  | R11: =IFERROR(IF(INDEX('Capital base input'!11:11, MATCH(R$4, 'Capital base input'!$4:$4, 0))="", "", INDEX('Capital base input'!11:11, MATCH(R$4, 'Capital base input'!$4:$4, 0))), "") ->  | S11: =IFERROR(IF(INDEX('Capital base input'!11:11, MATCH(S$4, 'Capital base input'!$4:$4, 0))="", "", INDEX('Capital base input'!11:11, MATCH(S$4, 'Capital base input'!$4:$4, 0))), "") ->  | T11: =IFERROR(IF(INDEX('Capital base input'!11:11, MATCH(T$4, 'Capital base input'!$4:$4, 0))="", "", INDEX('Capital base input'!11:11, MATCH(T$4, 'Capital base input'!$4:$4, 0))), "") ->  | U11: =IFERROR(IF(INDEX('Capital base input'!11:11, MATCH(U$4, 'Capital base input'!$4:$4, 0))="", "", INDEX('Capital base input'!11:11, MATCH(U$4, 'Capital base input'!$4:$4, 0))), "") ->  | V11: =IFERROR(IF(INDEX('Capital base input'!11:11, MATCH(V$4, 'Capital base input'!$4:$4, 0))="", "", INDEX('Capital base input'!11:11, MATCH(V$4, 'Capital base input'!$4:$4, 0))), "") ->  | W11: =IFERROR(IF(INDEX('Capital base input'!11:11, MATCH(W$4, 'Capital base input'!$4:$4, 0))="", "", INDEX('Capital base input'!11:11, MATCH(W$4, 'Capital base input'!$4:$4, 0))), "") ->  | X11: =IFERROR(IF(INDEX('Capital base input'!11:11, MATCH(X$4, 'Capital base input'!$4:$4, 0))="", "", INDEX('Capital base input'!11:11, MATCH(X$4, 'Capital base input'!$4:$4, 0))), "") ->  | Y11: =IFERROR(IF(INDEX('Capital base input'!11:11, MATCH(Y$4, 'Capital base input'!$4:$4, 0))="", "", INDEX('Capital base input'!11:11, MATCH(Y$4, 'Capital base input'!$4:$4, 0))), "") ->  | Z11: =IFERROR(IF(INDEX('Capital base input'!11:11, MATCH(Z$4, 'Capital base input'!$4:$4, 0))="", "", INDEX('Capital base input'!11:11, MATCH(Z$4, 'Capital base input'!$4:$4, 0))), "") ->  | AA11: =IFERROR(IF(INDEX('Capital base input'!11:11, MATCH(AA$4, 'Capital base input'!$4:$4, 0))="", "", INDEX('Capital base input'!11:11, MATCH(AA$4, 'Capital base input'!$4:$4, 0))), "") ->  | AB11: =IFERROR(IF(INDEX('Capital base input'!11:11, MATCH(AB$4, 'Capital base input'!$4:$4, 0))="", "", INDEX('Capital base input'!11:11, MATCH(AB$4, 'Capital base input'!$4:$4, 0))), "") ->  | AC11: =IFERROR(IF(INDEX('Capital base input'!11:11, MATCH(AC$4, 'Capital base input'!$4:$4, 0))="", "", INDEX('Capital base input'!11:11, MATCH(AC$4, 'Capital base input'!$4:$4, 0))), "") ->  | AD11: =IFERROR(IF(INDEX('Capital base input'!11:11, MATCH(AD$4, 'Capital base input'!$4:$4, 0))="", "", INDEX('Capital base input'!11:11, MATCH(AD$4, 'Capital base input'!$4:$4, 0))), "") ->  | AE11: =IFERROR(IF(INDEX('Capital base input'!11:11, MATCH(AE$4, 'Capital base input'!$4:$4, 0))="", "", INDEX('Capital base input'!11:11, MATCH(AE$4, 'Capital base input'!$4:$4, 0))), "") ->  | AF11: =IFERROR(IF(INDEX('Capital base input'!11:11, MATCH(AF$4, 'Capital base input'!$4:$4, 0))="", "", INDEX('Capital base input'!11:11, MATCH(AF$4, 'Capital base input'!$4:$4, 0))), "") ->  | AG11: =IFERROR(IF(INDEX('Capital base input'!11:11, MATCH(AG$4, 'Capital base input'!$4:$4, 0))="", "", INDEX('Capital base input'!11:11, MATCH(AG$4, 'Capital base input'!$4:$4, 0))), "") ->  | AH11: =IFERROR(IF(INDEX('Capital base input'!11:11, MATCH(AH$4, 'Capital base input'!$4:$4, 0))="", "", INDEX('Capital base input'!11:11, MATCH(AH$4, 'Capital base input'!$4:$4, 0))), "") ->  | AI11: =IFERROR(IF(INDEX('Capital base input'!11:11, MATCH(AI$4, 'Capital base input'!$4:$4, 0))="", "", INDEX('Capital base input'!11:11, MATCH(AI$4, 'Capital base input'!$4:$4, 0))), "") ->  | AJ11: =IFERROR(IF(INDEX('Capital base input'!11:11, MATCH(AJ$4, 'Capital base input'!$4:$4, 0))="", "", INDEX('Capital base input'!11:11, MATCH(AJ$4, 'Capital base input'!$4:$4, 0))), "") ->  | AK11: =IFERROR(IF(INDEX('Capital base input'!11:11, MATCH(AK$4, 'Capital base input'!$4:$4, 0))="", "", INDEX('Capital base input'!11:11, MATCH(AK$4, 'Capital base input'!$4:$4, 0))), "") ->  | AL11: =IFERROR(IF(INDEX('Capital base input'!11:11, MATCH(AL$4, 'Capital base input'!$4:$4, 0))="", "", INDEX('Capital base input'!11:11, MATCH(AL$4, 'Capital base input'!$4:$4, 0))), "") ->  | AM11: =IFERROR(IF(INDEX('Capital base input'!11:11, MATCH(AM$4, 'Capital base input'!$4:$4, 0))="", "", INDEX('Capital base input'!11:11, MATCH(AM$4, 'Capital base input'!$4:$4, 0))), "") ->  | AN11: =IFERROR(IF(INDEX('Capital base input'!11:11, MATCH(AN$4, 'Capital base input'!$4:$4, 0))="", "", INDEX('Capital base input'!11:11, MATCH(AN$4, 'Capital base input'!$4:$4, 0))), "") ->  | AO11: =IFERROR(IF(INDEX('Capital base input'!11:11, MATCH(AO$4, 'Capital base input'!$4:$4, 0))="", "", INDEX('Capital base input'!11:11, MATCH(AO$4, 'Capital base input'!$4:$4, 0))), "") ->  | AP11: =IFERROR(IF(INDEX('Capital base input'!11:11, MATCH(AP$4, 'Capital base input'!$4:$4, 0))="", "", INDEX('Capital base input'!11:11, MATCH(AP$4, 'Capital base input'!$4:$4, 0))), "") ->  | AQ11: =IFERROR(IF(INDEX('Capital base input'!11:11, MATCH(AQ$4, 'Capital base input'!$4:$4, 0))="", "", INDEX('Capital base input'!11:11, MATCH(AQ$4, 'Capital base input'!$4:$4, 0))), "") ->  | AR11: =IFERROR(IF(INDEX('Capital base input'!11:11, MATCH(AR$4, 'Capital base input'!$4:$4, 0))="", "", INDEX('Capital base input'!11:11, MATCH(AR$4, 'Capital base input'!$4:$4, 0))), "") ->  | AS11: =IFERROR(IF(INDEX('Capital base input'!11:11, MATCH(AS$4, 'Capital base input'!$4:$4, 0))="", "", INDEX('Capital base input'!11:11, MATCH(AS$4, 'Capital base input'!$4:$4, 0))), "") ->  | AT11: =IFERROR(IF(INDEX('Capital base input'!11:11, MATCH(AT$4, 'Capital base input'!$4:$4, 0))="", "", INDEX('Capital base input'!11:11, MATCH(AT$4, 'Capital base input'!$4:$4, 0))), "") ->  | AU11: =IFERROR(IF(INDEX('Capital base input'!11:11, MATCH(AU$4, 'Capital base input'!$4:$4, 0))="", "", INDEX('Capital base input'!11:11, MATCH(AU$4, 'Capital base input'!$4:$4, 0))), "") ->  | AV11: =IFERROR(IF(INDEX('Capital base input'!11:11, MATCH(AV$4, 'Capital base input'!$4:$4, 0))="", "", INDEX('Capital base input'!11:11, MATCH(AV$4, 'Capital base input'!$4:$4, 0))), "") ->  | AW11: =IFERROR(IF(INDEX('Capital base input'!11:11, MATCH(AW$4, 'Capital base input'!$4:$4, 0))="", "", INDEX('Capital base input'!11:11, MATCH(AW$4, 'Capital base input'!$4:$4, 0))), "") ->  | AX11: =IFERROR(IF(INDEX('Capital base input'!11:11, MATCH(AX$4, 'Capital base input'!$4:$4, 0))="", "", INDEX('Capital base input'!11:11, MATCH(AX$4, 'Capital base input'!$4:$4, 0))), "") ->  | AY11: =IFERROR(IF(INDEX('Capital base input'!11:11, MATCH(AY$4, 'Capital base input'!$4:$4, 0))="", "", INDEX('Capital base input'!11:11, MATCH(AY$4, 'Capital base input'!$4:$4, 0))), "") ->  | AZ11: =IFERROR(IF(INDEX('Capital base input'!11:11, MATCH(AZ$4, 'Capital base input'!$4:$4, 0))="", "", INDEX('Capital base input'!11:11, MATCH(AZ$4, 'Capital base input'!$4:$4, 0))), "") ->  | BA11: =IFERROR(IF(INDEX('Capital base input'!11:11, MATCH(BA$4, 'Capital base input'!$4:$4, 0))="", "", INDEX('Capital base input'!11:11, MATCH(BA$4, 'Capital base input'!$4:$4, 0))), "") ->  | BB11: =IFERROR(IF(INDEX('Capital base input'!11:11, MATCH(BB$4, 'Capital base input'!$4:$4, 0))="", "", INDEX('Capital base input'!11:11, MATCH(BB$4, 'Capital base input'!$4:$4, 0))), "") ->  | BC11: =IFERROR(IF(INDEX('Capital base input'!11:11, MATCH(BC$4, 'Capital base input'!$4:$4, 0))="", "", INDEX('Capital base input'!11:11, MATCH(BC$4, 'Capital base input'!$4:$4, 0))), "") ->  | BD11: =IFERROR(IF(INDEX('Capital base input'!11:11, MATCH(BD$4, 'Capital base input'!$4:$4, 0))="", "", INDEX('Capital base input'!11:11, MATCH(BD$4, 'Capital base input'!$4:$4, 0))), "") ->  | BE11: =IFERROR(IF(INDEX('Capital base input'!11:11, MATCH(BE$4, 'Capital base input'!$4:$4, 0))="", "", INDEX('Capital base input'!11:11, MATCH(BE$4, 'Capital base input'!$4:$4, 0))), "") ->  | BF11: =IFERROR(IF(INDEX('Capital base input'!11:11, MATCH(BF$4, 'Capital base input'!$4:$4, 0))="", "", INDEX('Capital base input'!11:11, MATCH(BF$4, 'Capital base input'!$4:$4, 0))), "") ->  | BG11: =IFERROR(IF(INDEX('Capital base input'!11:11, MATCH(BG$4, 'Capital base input'!$4:$4, 0))="", "", INDEX('Capital base input'!11:11, MATCH(BG$4, 'Capital base input'!$4:$4, 0))), "") ->  | BH11: =IFERROR(IF(INDEX('Capital base input'!11:11, MATCH(BH$4, 'Capital base input'!$4:$4, 0))="", "", INDEX('Capital base input'!11:11, MATCH(BH$4, 'Capital base input'!$4:$4, 0))), "") ->  | BI11: =IFERROR(IF(INDEX('Capital base input'!11:11, MATCH(BI$4, 'Capital base input'!$4:$4, 0))="", "", INDEX('Capital base input'!11:11, MATCH(BI$4, 'Capital base input'!$4:$4, 0))), "") ->  | BJ11: =IFERROR(IF(INDEX('Capital base input'!11:11, MATCH(BJ$4, 'Capital base input'!$4:$4, 0))="", "", INDEX('Capital base input'!11:11, MATCH(BJ$4, 'Capital base input'!$4:$4, 0))), "") ->  | BK11: =IFERROR(IF(INDEX('Capital base input'!11:11, MATCH(BK$4, 'Capital base input'!$4:$4, 0))="", "", INDEX('Capital base input'!11:11, MATCH(BK$4, 'Capital base input'!$4:$4, 0))), "") ->  | BL11: =IFERROR(IF(INDEX('Capital base input'!11:11, MATCH(BL$4, 'Capital base input'!$4:$4, 0))="", "", INDEX('Capital base input'!11:11, MATCH(BL$4, 'Capital base input'!$4:$4, 0))), "") ->  | BM11: =IFERROR(IF(INDEX('Capital base input'!11:11, MATCH(BM$4, 'Capital base input'!$4:$4, 0))="", "", INDEX('Capital base input'!11:11, MATCH(BM$4, 'Capital base input'!$4:$4, 0))), "") ->  | BN11: =IFERROR(IF(INDEX('Capital base input'!11:11, MATCH(BN$4, 'Capital base input'!$4:$4, 0))="", "", INDEX('Capital base input'!11:11, MATCH(BN$4, 'Capital base input'!$4:$4, 0))), "") ->  | BO11: =IFERROR(IF(INDEX('Capital base input'!11:11, MATCH(BO$4, 'Capital base input'!$4:$4, 0))="", "", INDEX('Capital base input'!11:11, MATCH(BO$4, 'Capital base input'!$4:$4, 0))), "") ->  | BP11: =IFERROR(IF(INDEX('Capital base input'!11:11, MATCH(BP$4, 'Capital base input'!$4:$4, 0))="", "", INDEX('Capital base input'!11:11, MATCH(BP$4, 'Capital base input'!$4:$4, 0))), "") ->  | BQ11: =IFERROR(IF(INDEX('Capital base input'!11:11, MATCH(BQ$4, 'Capital base input'!$4:$4, 0))="", "", INDEX('Capital base input'!11:11, MATCH(BQ$4, 'Capital base input'!$4:$4, 0))), "") ->  | BR11: =IFERROR(IF(INDEX('Capital base input'!11:11, MATCH(BR$4, 'Capital base input'!$4:$4, 0))="", "", INDEX('Capital base input'!11:11, MATCH(BR$4, 'Capital base input'!$4:$4, 0))), "") ->  | BS11: =IFERROR(IF(INDEX('Capital base input'!11:11, MATCH(BS$4, 'Capital base input'!$4:$4, 0))="", "", INDEX('Capital base input'!11:11, MATCH(BS$4, 'Capital base input'!$4:$4, 0))), "") ->  | BT11: =IFERROR(IF(INDEX('Capital base input'!11:11, MATCH(BT$4, 'Capital base input'!$4:$4, 0))="", "", INDEX('Capital base input'!11:11, MATCH(BT$4, 'Capital base input'!$4:$4, 0))), "") ->  | BU11: =IFERROR(IF(INDEX('Capital base input'!11:11, MATCH(BU$4, 'Capital base input'!$4:$4, 0))="", "", INDEX('Capital base input'!11:11, MATCH(BU$4, 'Capital base input'!$4:$4, 0))), "") ->  | BV11: =IFERROR(IF(INDEX('Capital base input'!11:11, MATCH(BV$4, 'Capital base input'!$4:$4, 0))="", "", INDEX('Capital base input'!11:11, MATCH(BV$4, 'Capital base input'!$4:$4, 0))), "") ->  | BW11: =IFERROR(IF(INDEX('Capital base input'!11:11, MATCH(BW$4, 'Capital base input'!$4:$4, 0))="", "", INDEX('Capital base input'!11:11, MATCH(BW$4, 'Capital base input'!$4:$4, 0))), "") ->  | BX11: =IFERROR(IF(INDEX('Capital base input'!11:11, MATCH(BX$4, 'Capital base input'!$4:$4, 0))="", "", INDEX('Capital base input'!11:11, MATCH(BX$4, 'Capital base input'!$4:$4, 0))), "") ->  | BY11: =IFERROR(IF(INDEX('Capital base input'!11:11, MATCH(BY$4, 'Capital base input'!$4:$4, 0))="", "", INDEX('Capital base input'!11:11, MATCH(BY$4, 'Capital base input'!$4:$4, 0))), "") ->  | BZ11: =IFERROR(IF(INDEX('Capital base input'!11:11, MATCH(BZ$4, 'Capital base input'!$4:$4, 0))="", "", INDEX('Capital base input'!11:11, MATCH(BZ$4, 'Capital base input'!$4:$4, 0))), "") ->  | CA11: =IFERROR(IF(INDEX('Capital base input'!11:11, MATCH(CA$4, 'Capital base input'!$4:$4, 0))="", "", INDEX('Capital base input'!11:11, MATCH(CA$4, 'Capital base input'!$4:$4, 0))), "") ->  | CB11: =IFERROR(IF(INDEX('Capital base input'!11:11, MATCH(CB$4, 'Capital base input'!$4:$4, 0))="", "", INDEX('Capital base input'!11:11, MATCH(CB$4, 'Capital base input'!$4:$4, 0))), "") ->  | CC11: =IFERROR(IF(INDEX('Capital base input'!11:11, MATCH(CC$4, 'Capital base input'!$4:$4, 0))="", "", INDEX('Capital base input'!11:11, MATCH(CC$4, 'Capital base input'!$4:$4, 0))), "") ->  | CD11: =IFERROR(IF(INDEX('Capital base input'!11:11, MATCH(CD$4, 'Capital base input'!$4:$4, 0))="", "", INDEX('Capital base input'!11:11, MATCH(CD$4, 'Capital base input'!$4:$4, 0))), "") ->  | CE11: =IFERROR(IF(INDEX('Capital base input'!11:11, MATCH(CE$4, 'Capital base input'!$4:$4, 0))="", "", INDEX('Capital base input'!11:11, MATCH(CE$4, 'Capital base input'!$4:$4, 0))), "") ->  | CF11: =IFERROR(IF(INDEX('Capital base input'!11:11, MATCH(CF$4, 'Capital base input'!$4:$4, 0))="", "", INDEX('Capital base input'!11:11, MATCH(CF$4, 'Capital base input'!$4:$4, 0))), "") ->  | CG11: =IFERROR(IF(INDEX('Capital base input'!11:11, MATCH(CG$4, 'Capital base input'!$4:$4, 0))="", "", INDEX('Capital base input'!11:11, MATCH(CG$4, 'Capital base input'!$4:$4, 0))), "") ->  | CH11: =IFERROR(IF(INDEX('Capital base input'!11:11, MATCH(CH$4, 'Capital base input'!$4:$4, 0))="", "", INDEX('Capital base input'!11:11, MATCH(CH$4, 'Capital base input'!$4:$4, 0))), "") ->  | CI11: =IFERROR(IF(INDEX('Capital base input'!11:11, MATCH(CI$4, 'Capital base input'!$4:$4, 0))="", "", INDEX('Capital base input'!11:11, MATCH(CI$4, 'Capital base input'!$4:$4, 0))), "") ->  | CJ11: =IFERROR(IF(INDEX('Capital base input'!11:11, MATCH(CJ$4, 'Capital base input'!$4:$4, 0))="", "", INDEX('Capital base input'!11:11, MATCH(CJ$4, 'Capital base input'!$4:$4, 0))), "") ->  | CK11: =IFERROR(IF(INDEX('Capital base input'!11:11, MATCH(CK$4, 'Capital base input'!$4:$4, 0))="", "", INDEX('Capital base input'!11:11, MATCH(CK$4, 'Capital base input'!$4:$4, 0))), "") ->  | CL11: =IFERROR(IF(INDEX('Capital base input'!11:11, MATCH(CL$4, 'Capital base input'!$4:$4, 0))="", "", INDEX('Capital base input'!11:11, MATCH(CL$4, 'Capital base input'!$4:$4, 0))), "") ->  | CM11: =IFERROR(IF(INDEX('Capital base input'!11:11, MATCH(CM$4, 'Capital base input'!$4:$4, 0))="", "", INDEX('Capital base input'!11:11, MATCH(CM$4, 'Capital base input'!$4:$4, 0))), "") ->  | CN11: =IFERROR(IF(INDEX('Capital base input'!11:11, MATCH(CN$4, 'Capital base input'!$4:$4, 0))="", "", INDEX('Capital base input'!11:11, MATCH(CN$4, 'Capital base input'!$4:$4, 0))), "") ->  | CO11: =IFERROR(IF(INDEX('Capital base input'!11:11, MATCH(CO$4, 'Capital base input'!$4:$4, 0))="", "", INDEX('Capital base input'!11:11, MATCH(CO$4, 'Capital base input'!$4:$4, 0))), "") ->  | CP11: =IFERROR(IF(INDEX('Capital base input'!11:11, MATCH(CP$4, 'Capital base input'!$4:$4, 0))="", "", INDEX('Capital base input'!11:11, MATCH(CP$4, 'Capital base input'!$4:$4, 0))), "") ->  | CQ11: =IFERROR(IF(INDEX('Capital base input'!11:11, MATCH(CQ$4, 'Capital base input'!$4:$4, 0))="", "", INDEX('Capital base input'!11:11, MATCH(CQ$4, 'Capital base input'!$4:$4, 0))), "") ->  | CR11: =IFERROR(IF(INDEX('Capital base input'!11:11, MATCH(CR$4, 'Capital base input'!$4:$4, 0))="", "", INDEX('Capital base input'!11:11, MATCH(CR$4, 'Capital base input'!$4:$4, 0))), "") ->  | CS11: =IFERROR(IF(INDEX('Capital base input'!11:11, MATCH(CS$4, 'Capital base input'!$4:$4, 0))="", "", INDEX('Capital base input'!11:11, MATCH(CS$4, 'Capital base input'!$4:$4, 0))), "") ->  | CT11: =IFERROR(IF(INDEX('Capital base input'!11:11, MATCH(CT$4, 'Capital base input'!$4:$4, 0))="", "", INDEX('Capital base input'!11:11, MATCH(CT$4, 'Capital base input'!$4:$4, 0))), "") ->  | CU11: =IFERROR(IF(INDEX('Capital base input'!11:11, MATCH(CU$4, 'Capital base input'!$4:$4, 0))="", "", INDEX('Capital base input'!11:11, MATCH(CU$4, 'Capital base input'!$4:$4, 0))), "") ->  | CV11: =IFERROR(IF(INDEX('Capital base input'!11:11, MATCH(CV$4, 'Capital base input'!$4:$4, 0))="", "", INDEX('Capital base input'!11:11, MATCH(CV$4, 'Capital base input'!$4:$4, 0))), "") ->  | CW11: =IFERROR(IF(INDEX('Capital base input'!11:11, MATCH(CW$4, 'Capital base input'!$4:$4, 0))="", "", INDEX('Capital base input'!11:11, MATCH(CW$4, 'Capital base input'!$4:$4, 0))), "") ->  | CX11: =IFERROR(IF(INDEX('Capital base input'!11:11, MATCH(CX$4, 'Capital base input'!$4:$4, 0))="", "", INDEX('Capital base input'!11:11, MATCH(CX$4, 'Capital base input'!$4:$4, 0))), "") ->  | CY11: =IFERROR(IF(INDEX('Capital base input'!11:11, MATCH(CY$4, 'Capital base input'!$4:$4, 0))="", "", INDEX('Capital base input'!11:11, MATCH(CY$4, 'Capital base input'!$4:$4, 0))), "") -> 
G12: =IF(OR(G$446:G$495="DV"), "DV input required", "") ->  | H12: =IF(AND(OR(H$446:H$495="DV"), H$13=""), "DV input required", "") ->  | I12: =IF(COUNTA($H$12:H$12)<SUM($11:$11), IF(AND(I$446:I$495=""), IF(AND(H$13<>"", I$13=""), "DV input required", H$12), IF(AND(OR(I$446:I$495="DV"), I$13=""), "DV input required", "")), "") ->  | J12: =IF(COUNTA($H$12:I$12)<SUM($11:$11), IF(AND(J$446:J$495=""), IF(AND(I$13<>"", J$13=""), "DV input required", I$12), IF(AND(OR(J$446:J$495="DV"), J$13=""), "DV input required", "")), "") ->  | K12: =IF(COUNTA($H$12:J$12)<SUM($11:$11), IF(AND(K$446:K$495=""), IF(AND(J$13<>"", K$13=""), "DV input required", J$12), IF(AND(OR(K$446:K$495="DV"), K$13=""), "DV input required", "")), "") ->  | L12: =IF(COUNTA($H$12:K$12)<SUM($11:$11), IF(AND(L$446:L$495=""), IF(AND(K$13<>"", L$13=""), "DV input required", K$12), IF(AND(OR(L$446:L$495="DV"), L$13=""), "DV input required", "")), "") ->  | M12: =IF(COUNTA($H$12:L$12)<SUM($11:$11), IF(AND(M$446:M$495=""), IF(AND(L$13<>"", M$13=""), "DV input required", L$12), IF(AND(OR(M$446:M$495="DV"), M$13=""), "DV input required", "")), "") ->  | N12: =IF(COUNTA($H$12:M$12)<SUM($11:$11), IF(AND(N$446:N$495=""), IF(AND(M$13<>"", N$13=""), "DV input required", M$12), IF(AND(OR(N$446:N$495="DV"), N$13=""), "DV input required", "")), "") ->  | O12: =IF(COUNTA($H$12:N$12)<SUM($11:$11), IF(AND(O$446:O$495=""), IF(AND(N$13<>"", O$13=""), "DV input required", N$12), IF(AND(OR(O$446:O$495="DV"), O$13=""), "DV input required", "")), "") ->  | P12: =IF(COUNTA($H$12:O$12)<SUM($11:$11), IF(AND(P$446:P$495=""), IF(AND(O$13<>"", P$13=""), "DV input required", O$12), IF(AND(OR(P$446:P$495="DV"), P$13=""), "DV input required", "")), "") ->  | Q12: =IF(COUNTA($H$12:P$12)<SUM($11:$11), IF(AND(Q$446:Q$495=""), IF(AND(P$13<>"", Q$13=""), "DV input required", P$12), IF(AND(OR(Q$446:Q$495="DV"), Q$13=""), "DV input required", "")), "") ->  | R12: =IF(COUNTA($H$12:Q$12)<SUM($11:$11), IF(AND(R$446:R$495=""), IF(AND(Q$13<>"", R$13=""), "DV input required", Q$12), IF(AND(OR(R$446:R$495="DV"), R$13=""), "DV input required", "")), "") ->  | S12: =IF(COUNTA($H$12:R$12)<SUM($11:$11), IF(AND(S$446:S$495=""), IF(AND(R$13<>"", S$13=""), "DV input required", R$12), IF(AND(OR(S$446:S$495="DV"), S$13=""), "DV input required", "")), "") ->  | T12: =IF(COUNTA($H$12:S$12)<SUM($11:$11), IF(AND(T$446:T$495=""), IF(AND(S$13<>"", T$13=""), "DV input required", S$12), IF(AND(OR(T$446:T$495="DV"), T$13=""), "DV input required", "")), "") ->  | U12: =IF(COUNTA($H$12:T$12)<SUM($11:$11), IF(AND(U$446:U$495=""), IF(AND(T$13<>"", U$13=""), "DV input required", T$12), IF(AND(OR(U$446:U$495="DV"), U$13=""), "DV input required", "")), "") ->  | V12: =IF(COUNTA($H$12:U$12)<SUM($11:$11), IF(AND(V$446:V$495=""), IF(AND(U$13<>"", V$13=""), "DV input required", U$12), IF(AND(OR(V$446:V$495="DV"), V$13=""), "DV input required", "")), "") ->  | W12: =IF(COUNTA($H$12:V$12)<SUM($11:$11), IF(AND(W$446:W$495=""), IF(AND(V$13<>"", W$13=""), "DV input required", V$12), IF(AND(OR(W$446:W$495="DV"), W$13=""), "DV input required", "")), "") ->  | X12: =IF(COUNTA($H$12:W$12)<SUM($11:$11), IF(AND(X$446:X$495=""), IF(AND(W$13<>"", X$13=""), "DV input required", W$12), IF(AND(OR(X$446:X$495="DV"), X$13=""), "DV input required", "")), "") ->  | Y12: =IF(COUNTA($H$12:X$12)<SUM($11:$11), IF(AND(Y$446:Y$495=""), IF(AND(X$13<>"", Y$13=""), "DV input required", X$12), IF(AND(OR(Y$446:Y$495="DV"), Y$13=""), "DV input required", "")), "") ->  | Z12: =IF(COUNTA($H$12:Y$12)<SUM($11:$11), IF(AND(Z$446:Z$495=""), IF(AND(Y$13<>"", Z$13=""), "DV input required", Y$12), IF(AND(OR(Z$446:Z$495="DV"), Z$13=""), "DV input required", "")), "") ->  | AA12: =IF(COUNTA($H$12:Z$12)<SUM($11:$11), IF(AND(AA$446:AA$495=""), IF(AND(Z$13<>"", AA$13=""), "DV input required", Z$12), IF(AND(OR(AA$446:AA$495="DV"), AA$13=""), "DV input required", "")), "") ->  | AB12: =IF(COUNTA($H$12:AA$12)<SUM($11:$11), IF(AND(AB$446:AB$495=""), IF(AND(AA$13<>"", AB$13=""), "DV input required", AA$12), IF(AND(OR(AB$446:AB$495="DV"), AB$13=""), "DV input required", "")), "") ->  | AC12: =IF(COUNTA($H$12:AB$12)<SUM($11:$11), IF(AND(AC$446:AC$495=""), IF(AND(AB$13<>"", AC$13=""), "DV input required", AB$12), IF(AND(OR(AC$446:AC$495="DV"), AC$13=""), "DV input required", "")), "") ->  | AD12: =IF(COUNTA($H$12:AC$12)<SUM($11:$11), IF(AND(AD$446:AD$495=""), IF(AND(AC$13<>"", AD$13=""), "DV input required", AC$12), IF(AND(OR(AD$446:AD$495="DV"), AD$13=""), "DV input required", "")), "") ->  | AE12: =IF(COUNTA($H$12:AD$12)<SUM($11:$11), IF(AND(AE$446:AE$495=""), IF(AND(AD$13<>"", AE$13=""), "DV input required", AD$12), IF(AND(OR(AE$446:AE$495="DV"), AE$13=""), "DV input required", "")), "") ->  | AF12: =IF(COUNTA($H$12:AE$12)<SUM($11:$11), IF(AND(AF$446:AF$495=""), IF(AND(AE$13<>"", AF$13=""), "DV input required", AE$12), IF(AND(OR(AF$446:AF$495="DV"), AF$13=""), "DV input required", "")), "") ->  | AG12: =IF(COUNTA($H$12:AF$12)<SUM($11:$11), IF(AND(AG$446:AG$495=""), IF(AND(AF$13<>"", AG$13=""), "DV input required", AF$12), IF(AND(OR(AG$446:AG$495="DV"), AG$13=""), "DV input required", "")), "") ->  | AH12: =IF(COUNTA($H$12:AG$12)<SUM($11:$11), IF(AND(AH$446:AH$495=""), IF(AND(AG$13<>"", AH$13=""), "DV input required", AG$12), IF(AND(OR(AH$446:AH$495="DV"), AH$13=""), "DV input required", "")), "") ->  | AI12: =IF(COUNTA($H$12:AH$12)<SUM($11:$11), IF(AND(AI$446:AI$495=""), IF(AND(AH$13<>"", AI$13=""), "DV input required", AH$12), IF(AND(OR(AI$446:AI$495="DV"), AI$13=""), "DV input required", "")), "") ->  | AJ12: =IF(COUNTA($H$12:AI$12)<SUM($11:$11), IF(AND(AJ$446:AJ$495=""), IF(AND(AI$13<>"", AJ$13=""), "DV input required", AI$12), IF(AND(OR(AJ$446:AJ$495="DV"), AJ$13=""), "DV input required", "")), "") ->  | AK12: =IF(COUNTA($H$12:AJ$12)<SUM($11:$11), IF(AND(AK$446:AK$495=""), IF(AND(AJ$13<>"", AK$13=""), "DV input required", AJ$12), IF(AND(OR(AK$446:AK$495="DV"), AK$13=""), "DV input required", "")), "") ->  | AL12: =IF(COUNTA($H$12:AK$12)<SUM($11:$11), IF(AND(AL$446:AL$495=""), IF(AND(AK$13<>"", AL$13=""), "DV input required", AK$12), IF(AND(OR(AL$446:AL$495="DV"), AL$13=""), "DV input required", "")), "") ->  | AM12: =IF(COUNTA($H$12:AL$12)<SUM($11:$11), IF(AND(AM$446:AM$495=""), IF(AND(AL$13<>"", AM$13=""), "DV input required", AL$12), IF(AND(OR(AM$446:AM$495="DV"), AM$13=""), "DV input required", "")), "") ->  | AN12: =IF(COUNTA($H$12:AM$12)<SUM($11:$11), IF(AND(AN$446:AN$495=""), IF(AND(AM$13<>"", AN$13=""), "DV input required", AM$12), IF(AND(OR(AN$446:AN$495="DV"), AN$13=""), "DV input required", "")), "") ->  | AO12: =IF(COUNTA($H$12:AN$12)<SUM($11:$11), IF(AND(AO$446:AO$495=""), IF(AND(AN$13<>"", AO$13=""), "DV input required", AN$12), IF(AND(OR(AO$446:AO$495="DV"), AO$13=""), "DV input required", "")), "") ->  | AP12: =IF(COUNTA($H$12:AO$12)<SUM($11:$11), IF(AND(AP$446:AP$495=""), IF(AND(AO$13<>"", AP$13=""), "DV input required", AO$12), IF(AND(OR(AP$446:AP$495="DV"), AP$13=""), "DV input required", "")), "") ->  | AQ12: =IF(COUNTA($H$12:AP$12)<SUM($11:$11), IF(AND(AQ$446:AQ$495=""), IF(AND(AP$13<>"", AQ$13=""), "DV input required", AP$12), IF(AND(OR(AQ$446:AQ$495="DV"), AQ$13=""), "DV input required", "")), "") ->  | AR12: =IF(COUNTA($H$12:AQ$12)<SUM($11:$11), IF(AND(AR$446:AR$495=""), IF(AND(AQ$13<>"", AR$13=""), "DV input required", AQ$12), IF(AND(OR(AR$446:AR$495="DV"), AR$13=""), "DV input required", "")), "") ->  | AS12: =IF(COUNTA($H$12:AR$12)<SUM($11:$11), IF(AND(AS$446:AS$495=""), IF(AND(AR$13<>"", AS$13=""), "DV input required", AR$12), IF(AND(OR(AS$446:AS$495="DV"), AS$13=""), "DV input required", "")), "") ->  | AT12: =IF(COUNTA($H$12:AS$12)<SUM($11:$11), IF(AND(AT$446:AT$495=""), IF(AND(AS$13<>"", AT$13=""), "DV input required", AS$12), IF(AND(OR(AT$446:AT$495="DV"), AT$13=""), "DV input required", "")), "") ->  | AU12: =IF(COUNTA($H$12:AT$12)<SUM($11:$11), IF(AND(AU$446:AU$495=""), IF(AND(AT$13<>"", AU$13=""), "DV input required", AT$12), IF(AND(OR(AU$446:AU$495="DV"), AU$13=""), "DV input required", "")), "") ->  | AV12: =IF(COUNTA($H$12:AU$12)<SUM($11:$11), IF(AND(AV$446:AV$495=""), IF(AND(AU$13<>"", AV$13=""), "DV input required", AU$12), IF(AND(OR(AV$446:AV$495="DV"), AV$13=""), "DV input required", "")), "") ->  | AW12: =IF(COUNTA($H$12:AV$12)<SUM($11:$11), IF(AND(AW$446:AW$495=""), IF(AND(AV$13<>"", AW$13=""), "DV input required", AV$12), IF(AND(OR(AW$446:AW$495="DV"), AW$13=""), "DV input required", "")), "") ->  | AX12: =IF(COUNTA($H$12:AW$12)<SUM($11:$11), IF(AND(AX$446:AX$495=""), IF(AND(AW$13<>"", AX$13=""), "DV input required", AW$12), IF(AND(OR(AX$446:AX$495="DV"), AX$13=""), "DV input required", "")), "") ->  | AY12: =IF(COUNTA($H$12:AX$12)<SUM($11:$11), IF(AND(AY$446:AY$495=""), IF(AND(AX$13<>"", AY$13=""), "DV input required", AX$12), IF(AND(OR(AY$446:AY$495="DV"), AY$13=""), "DV input required", "")), "") ->  | AZ12: =IF(COUNTA($H$12:AY$12)<SUM($11:$11), IF(AND(AZ$446:AZ$495=""), IF(AND(AY$13<>"", AZ$13=""), "DV input required", AY$12), IF(AND(OR(AZ$446:AZ$495="DV"), AZ$13=""), "DV input required", "")), "") ->  | BA12: =IF(COUNTA($H$12:AZ$12)<SUM($11:$11), IF(AND(BA$446:BA$495=""), IF(AND(AZ$13<>"", BA$13=""), "DV input required", AZ$12), IF(AND(OR(BA$446:BA$495="DV"), BA$13=""), "DV input required", "")), "") ->  | BB12: =IF(COUNTA($H$12:BA$12)<SUM($11:$11), IF(AND(BB$446:BB$495=""), IF(AND(BA$13<>"", BB$13=""), "DV input required", BA$12), IF(AND(OR(BB$446:BB$495="DV"), BB$13=""), "DV input required", "")), "") ->  | BC12: =IF(COUNTA($H$12:BB$12)<SUM($11:$11), IF(AND(BC$446:BC$495=""), IF(AND(BB$13<>"", BC$13=""), "DV input required", BB$12), IF(AND(OR(BC$446:BC$495="DV"), BC$13=""), "DV input required", "")), "") ->  | BD12: =IF(COUNTA($H$12:BC$12)<SUM($11:$11), IF(AND(BD$446:BD$495=""), IF(AND(BC$13<>"", BD$13=""), "DV input required", BC$12), IF(AND(OR(BD$446:BD$495="DV"), BD$13=""), "DV input required", "")), "") ->  | BE12: =IF(COUNTA($H$12:BD$12)<SUM($11:$11), IF(AND(BE$446:BE$495=""), IF(AND(BD$13<>"", BE$13=""), "DV input required", BD$12), IF(AND(OR(BE$446:BE$495="DV"), BE$13=""), "DV input required", "")), "") ->  | BF12: =IF(COUNTA($H$12:BE$12)<SUM($11:$11), IF(AND(BF$446:BF$495=""), IF(AND(BE$13<>"", BF$13=""), "DV input required", BE$12), IF(AND(OR(BF$446:BF$495="DV"), BF$13=""), "DV input required", "")), "") ->  | BG12: =IF(COUNTA($H$12:BF$12)<SUM($11:$11), IF(AND(BG$446:BG$495=""), IF(AND(BF$13<>"", BG$13=""), "DV input required", BF$12), IF(AND(OR(BG$446:BG$495="DV"), BG$13=""), "DV input required", "")), "") ->  | BH12: =IF(COUNTA($H$12:BG$12)<SUM($11:$11), IF(AND(BH$446:BH$495=""), IF(AND(BG$13<>"", BH$13=""), "DV input required", BG$12), IF(AND(OR(BH$446:BH$495="DV"), BH$13=""), "DV input required", "")), "") ->  | BI12: =IF(COUNTA($H$12:BH$12)<SUM($11:$11), IF(AND(BI$446:BI$495=""), IF(AND(BH$13<>"", BI$13=""), "DV input required", BH$12), IF(AND(OR(BI$446:BI$495="DV"), BI$13=""), "DV input required", "")), "") ->  | BJ12: =IF(COUNTA($H$12:BI$12)<SUM($11:$11), IF(AND(BJ$446:BJ$495=""), IF(AND(BI$13<>"", BJ$13=""), "DV input required", BI$12), IF(AND(OR(BJ$446:BJ$495="DV"), BJ$13=""), "DV input required", "")), "") ->  | BK12: =IF(COUNTA($H$12:BJ$12)<SUM($11:$11), IF(AND(BK$446:BK$495=""), IF(AND(BJ$13<>"", BK$13=""), "DV input required", BJ$12), IF(AND(OR(BK$446:BK$495="DV"), BK$13=""), "DV input required", "")), "") ->  | BL12: =IF(COUNTA($H$12:BK$12)<SUM($11:$11), IF(AND(BL$446:BL$495=""), IF(AND(BK$13<>"", BL$13=""), "DV input required", BK$12), IF(AND(OR(BL$446:BL$495="DV"), BL$13=""), "DV input required", "")), "") ->  | BM12: =IF(COUNTA($H$12:BL$12)<SUM($11:$11), IF(AND(BM$446:BM$495=""), IF(AND(BL$13<>"", BM$13=""), "DV input required", BL$12), IF(AND(OR(BM$446:BM$495="DV"), BM$13=""), "DV input required", "")), "") ->  | BN12: =IF(COUNTA($H$12:BM$12)<SUM($11:$11), IF(AND(BN$446:BN$495=""), IF(AND(BM$13<>"", BN$13=""), "DV input required", BM$12), IF(AND(OR(BN$446:BN$495="DV"), BN$13=""), "DV input required", "")), "") ->  | BO12: =IF(COUNTA($H$12:BN$12)<SUM($11:$11), IF(AND(BO$446:BO$495=""), IF(AND(BN$13<>"", BO$13=""), "DV input required", BN$12), IF(AND(OR(BO$446:BO$495="DV"), BO$13=""), "DV input required", "")), "") ->  | BP12: =IF(COUNTA($H$12:BO$12)<SUM($11:$11), IF(AND(BP$446:BP$495=""), IF(AND(BO$13<>"", BP$13=""), "DV input required", BO$12), IF(AND(OR(BP$446:BP$495="DV"), BP$13=""), "DV input required", "")), "") ->  | BQ12: =IF(COUNTA($H$12:BP$12)<SUM($11:$11), IF(AND(BQ$446:BQ$495=""), IF(AND(BP$13<>"", BQ$13=""), "DV input required", BP$12), IF(AND(OR(BQ$446:BQ$495="DV"), BQ$13=""), "DV input required", "")), "") ->  | BR12: =IF(COUNTA($H$12:BQ$12)<SUM($11:$11), IF(AND(BR$446:BR$495=""), IF(AND(BQ$13<>"", BR$13=""), "DV input required", BQ$12), IF(AND(OR(BR$446:BR$495="DV"), BR$13=""), "DV input required", "")), "") ->  | BS12: =IF(COUNTA($H$12:BR$12)<SUM($11:$11), IF(AND(BS$446:BS$495=""), IF(AND(BR$13<>"", BS$13=""), "DV input required", BR$12), IF(AND(OR(BS$446:BS$495="DV"), BS$13=""), "DV input required", "")), "") ->  | BT12: =IF(COUNTA($H$12:BS$12)<SUM($11:$11), IF(AND(BT$446:BT$495=""), IF(AND(BS$13<>"", BT$13=""), "DV input required", BS$12), IF(AND(OR(BT$446:BT$495="DV"), BT$13=""), "DV input required", "")), "") ->  | BU12: =IF(COUNTA($H$12:BT$12)<SUM($11:$11), IF(AND(BU$446:BU$495=""), IF(AND(BT$13<>"", BU$13=""), "DV input required", BT$12), IF(AND(OR(BU$446:BU$495="DV"), BU$13=""), "DV input required", "")), "") ->  | BV12: =IF(COUNTA($H$12:BU$12)<SUM($11:$11), IF(AND(BV$446:BV$495=""), IF(AND(BU$13<>"", BV$13=""), "DV input required", BU$12), IF(AND(OR(BV$446:BV$495="DV"), BV$13=""), "DV input required", "")), "") ->  | BW12: =IF(COUNTA($H$12:BV$12)<SUM($11:$11), IF(AND(BW$446:BW$495=""), IF(AND(BV$13<>"", BW$13=""), "DV input required", BV$12), IF(AND(OR(BW$446:BW$495="DV"), BW$13=""), "DV input required", "")), "") ->  | BX12: =IF(COUNTA($H$12:BW$12)<SUM($11:$11), IF(AND(BX$446:BX$495=""), IF(AND(BW$13<>"", BX$13=""), "DV input required", BW$12), IF(AND(OR(BX$446:BX$495="DV"), BX$13=""), "DV input required", "")), "") ->  | BY12: =IF(COUNTA($H$12:BX$12)<SUM($11:$11), IF(AND(BY$446:BY$495=""), IF(AND(BX$13<>"", BY$13=""), "DV input required", BX$12), IF(AND(OR(BY$446:BY$495="DV"), BY$13=""), "DV input required", "")), "") ->  | BZ12: =IF(COUNTA($H$12:BY$12)<SUM($11:$11), IF(AND(BZ$446:BZ$495=""), IF(AND(BY$13<>"", BZ$13=""), "DV input required", BY$12), IF(AND(OR(BZ$446:BZ$495="DV"), BZ$13=""), "DV input required", "")), "") ->  | CA12: =IF(COUNTA($H$12:BZ$12)<SUM($11:$11), IF(AND(CA$446:CA$495=""), IF(AND(BZ$13<>"", CA$13=""), "DV input required", BZ$12), IF(AND(OR(CA$446:CA$495="DV"), CA$13=""), "DV input required", "")), "") ->  | CB12: =IF(COUNTA($H$12:CA$12)<SUM($11:$11), IF(AND(CB$446:CB$495=""), IF(AND(CA$13<>"", CB$13=""), "DV input required", CA$12), IF(AND(OR(CB$446:CB$495="DV"), CB$13=""), "DV input required", "")), "") ->  | CC12: =IF(COUNTA($H$12:CB$12)<SUM($11:$11), IF(AND(CC$446:CC$495=""), IF(AND(CB$13<>"", CC$13=""), "DV input required", CB$12), IF(AND(OR(CC$446:CC$495="DV"), CC$13=""), "DV input required", "")), "") ->  | CD12: =IF(COUNTA($H$12:CC$12)<SUM($11:$11), IF(AND(CD$446:CD$495=""), IF(AND(CC$13<>"", CD$13=""), "DV input required", CC$12), IF(AND(OR(CD$446:CD$495="DV"), CD$13=""), "DV input required", "")), "") ->  | CE12: =IF(COUNTA($H$12:CD$12)<SUM($11:$11), IF(AND(CE$446:CE$495=""), IF(AND(CD$13<>"", CE$13=""), "DV input required", CD$12), IF(AND(OR(CE$446:CE$495="DV"), CE$13=""), "DV input required", "")), "") ->  | CF12: =IF(COUNTA($H$12:CE$12)<SUM($11:$11), IF(AND(CF$446:CF$495=""), IF(AND(CE$13<>"", CF$13=""), "DV input required", CE$12), IF(AND(OR(CF$446:CF$495="DV"), CF$13=""), "DV input required", "")), "") ->  | CG12: =IF(COUNTA($H$12:CF$12)<SUM($11:$11), IF(AND(CG$446:CG$495=""), IF(AND(CF$13<>"", CG$13=""), "DV input required", CF$12), IF(AND(OR(CG$446:CG$495="DV"), CG$13=""), "DV input required", "")), "") ->  | CH12: =IF(COUNTA($H$12:CG$12)<SUM($11:$11), IF(AND(CH$446:CH$495=""), IF(AND(CG$13<>"", CH$13=""), "DV input required", CG$12), IF(AND(OR(CH$446:CH$495="DV"), CH$13=""), "DV input required", "")), "") ->  | CI12: =IF(COUNTA($H$12:CH$12)<SUM($11:$11), IF(AND(CI$446:CI$495=""), IF(AND(CH$13<>"", CI$13=""), "DV input required", CH$12), IF(AND(OR(CI$446:CI$495="DV"), CI$13=""), "DV input required", "")), "") ->  | CJ12: =IF(COUNTA($H$12:CI$12)<SUM($11:$11), IF(AND(CJ$446:CJ$495=""), IF(AND(CI$13<>"", CJ$13=""), "DV input required", CI$12), IF(AND(OR(CJ$446:CJ$495="DV"), CJ$13=""), "DV input required", "")), "") ->  | CK12: =IF(COUNTA($H$12:CJ$12)<SUM($11:$11), IF(AND(CK$446:CK$495=""), IF(AND(CJ$13<>"", CK$13=""), "DV input required", CJ$12), IF(AND(OR(CK$446:CK$495="DV"), CK$13=""), "DV input required", "")), "") ->  | CL12: =IF(COUNTA($H$12:CK$12)<SUM($11:$11), IF(AND(CL$446:CL$495=""), IF(AND(CK$13<>"", CL$13=""), "DV input required", CK$12), IF(AND(OR(CL$446:CL$495="DV"), CL$13=""), "DV input required", "")), "") ->  | CM12: =IF(COUNTA($H$12:CL$12)<SUM($11:$11), IF(AND(CM$446:CM$495=""), IF(AND(CL$13<>"", CM$13=""), "DV input required", CL$12), IF(AND(OR(CM$446:CM$495="DV"), CM$13=""), "DV input required", "")), "") ->  | CN12: =IF(COUNTA($H$12:CM$12)<SUM($11:$11), IF(AND(CN$446:CN$495=""), IF(AND(CM$13<>"", CN$13=""), "DV input required", CM$12), IF(AND(OR(CN$446:CN$495="DV"), CN$13=""), "DV input required", "")), "") ->  | CO12: =IF(COUNTA($H$12:CN$12)<SUM($11:$11), IF(AND(CO$446:CO$495=""), IF(AND(CN$13<>"", CO$13=""), "DV input required", CN$12), IF(AND(OR(CO$446:CO$495="DV"), CO$13=""), "DV input required", "")), "") ->  | CP12: =IF(COUNTA($H$12:CO$12)<SUM($11:$11), IF(AND(CP$446:CP$495=""), IF(AND(CO$13<>"", CP$13=""), "DV input required", CO$12), IF(AND(OR(CP$446:CP$495="DV"), CP$13=""), "DV input required", "")), "") ->  | CQ12: =IF(COUNTA($H$12:CP$12)<SUM($11:$11), IF(AND(CQ$446:CQ$495=""), IF(AND(CP$13<>"", CQ$13=""), "DV input required", CP$12), IF(AND(OR(CQ$446:CQ$495="DV"), CQ$13=""), "DV input required", "")), "") ->  | CR12: =IF(COUNTA($H$12:CQ$12)<SUM($11:$11), IF(AND(CR$446:CR$495=""), IF(AND(CQ$13<>"", CR$13=""), "DV input required", CQ$12), IF(AND(OR(CR$446:CR$495="DV"), CR$13=""), "DV input required", "")), "") ->  | CS12: =IF(COUNTA($H$12:CR$12)<SUM($11:$11), IF(AND(CS$446:CS$495=""), IF(AND(CR$13<>"", CS$13=""), "DV input required", CR$12), IF(AND(OR(CS$446:CS$495="DV"), CS$13=""), "DV input required", "")), "") ->  | CT12: =IF(COUNTA($H$12:CS$12)<SUM($11:$11), IF(AND(CT$446:CT$495=""), IF(AND(CS$13<>"", CT$13=""), "DV input required", CS$12), IF(AND(OR(CT$446:CT$495="DV"), CT$13=""), "DV input required", "")), "") ->  | CU12: =IF(COUNTA($H$12:CT$12)<SUM($11:$11), IF(AND(CU$446:CU$495=""), IF(AND(CT$13<>"", CU$13=""), "DV input required", CT$12), IF(AND(OR(CU$446:CU$495="DV"), CU$13=""), "DV input required", "")), "") ->  | CV12: =IF(COUNTA($H$12:CU$12)<SUM($11:$11), IF(AND(CV$446:CV$495=""), IF(AND(CU$13<>"", CV$13=""), "DV input required", CU$12), IF(AND(OR(CV$446:CV$495="DV"), CV$13=""), "DV input required", "")), "") ->  | CW12: =IF(COUNTA($H$12:CV$12)<SUM($11:$11), IF(AND(CW$446:CW$495=""), IF(AND(CV$13<>"", CW$13=""), "DV input required", CV$12), IF(AND(OR(CW$446:CW$495="DV"), CW$13=""), "DV input required", "")), "") ->  | CX12: =IF(COUNTA($H$12:CW$12)<SUM($11:$11), IF(AND(CX$446:CX$495=""), IF(AND(CW$13<>"", CX$13=""), "DV input required", CW$12), IF(AND(OR(CX$446:CX$495="DV"), CX$13=""), "DV input required", "")), "") ->  | CY12: =IF(COUNTA($H$12:CX$12)<SUM($11:$11), IF(AND(CY$446:CY$495=""), IF(AND(CX$13<>"", CY$13=""), "DV input required", CX$12), IF(AND(OR(CY$446:CY$495="DV"), CY$13=""), "DV input required", "")), "") -> 
E13: Diminishing value multiplier | H13: 2 | I13: 2 | J13: 2 | K13: 2 | L13: 2 | M13: 2 | N13: 2 | O13: 2 | P13: 2 | Q13: 2
D15: Starting TAB and actual gross capex - As incurred ($m, nominal)
E16: Asset class | G16: ="TAB (opening as at "&$H$4&")" -> TAB (opening as at 2016-17) | H16: ="Actual gross capex ("&H$4&")" -> Actual gross capex (2016-17) | I16: =IF(COUNTA($H$16:H$16)<SUM($11:$11), "Actual gross capex ("&I$4&")", "") -> Actual gross capex (2017-18) | J16: =IF(COUNTA($H$16:I$16)<SUM($11:$11), "Actual gross capex ("&J$4&")", "") -> Actual gross capex (2018-19) | K16: =IF(COUNTA($H$16:J$16)<SUM($11:$11), "Actual gross capex ("&K$4&")", "") -> Actual gross capex (2019-20) | L16: =IF(COUNTA($H$16:K$16)<SUM($11:$11), "Actual gross capex ("&L$4&")", "") -> Actual gross capex (2020-21) | M16: =IF(COUNTA($H$16:L$16)<SUM($11:$11), "Actual gross capex ("&M$4&")", "") -> Actual gross capex (2021-22) | N16: =IF(COUNTA($H$16:M$16)<SUM($11:$11), "Actual gross capex ("&N$4&")", "") -> Actual gross capex (2022-23) | O16: =IF(COUNTA($H$16:N$16)<SUM($11:$11), "Actual gross capex ("&O$4&")", "") -> Actual gross capex (2023-24) | P16: =IF(COUNTA($H$16:O$16)<SUM($11:$11), "Actual gross capex ("&P$4&")", "") -> Actual gross capex (2024-25) | Q16: =IF(COUNTA($H$16:P$16)<SUM($11:$11), "Actual gross capex ("&Q$4&")", "") -> Actual gross capex (2025-26) | R16: =IF(COUNTA($H$16:Q$16)<SUM($11:$11), "Actual gross capex ("&R$4&")", "") ->  | S16: =IF(COUNTA($H$16:R$16)<SUM($11:$11), "Actual gross capex ("&S$4&")", "") ->  | T16: =IF(COUNTA($H$16:S$16)<SUM($11:$11), "Actual gross capex ("&T$4&")", "") ->  | U16: =IF(COUNTA($H$16:T$16)<SUM($11:$11), "Actual gross capex ("&U$4&")", "") ->  | V16: =IF(COUNTA($H$16:U$16)<SUM($11:$11), "Actual gross capex ("&V$4&")", "") ->  | W16: =IF(COUNTA($H$16:V$16)<SUM($11:$11), "Actual gross capex ("&W$4&")", "") ->  | X16: =IF(COUNTA($H$16:W$16)<SUM($11:$11), "Actual gross capex ("&X$4&")", "") ->  | Y16: =IF(COUNTA($H$16:X$16)<SUM($11:$11), "Actual gross capex ("&Y$4&")", "") ->  | Z16: =IF(COUNTA($H$16:Y$16)<SUM($11:$11), "Actual gross capex ("&Z$4&")", "") ->  | AA16: =IF(COUNTA($H$16:Z$16)<SUM($11:$11), "Actual gross capex ("&AA$4&")", "") ->  | AB16: =IF(COUNTA($H$16:AA$16)<SUM($11:$11), "Actual gross capex ("&AB$4&")", "") ->  | AC16: =IF(COUNTA($H$16:AB$16)<SUM($11:$11), "Actual gross capex ("&AC$4&")", "") ->  | AD16: =IF(COUNTA($H$16:AC$16)<SUM($11:$11), "Actual gross capex ("&AD$4&")", "") ->  | AE16: =IF(COUNTA($H$16:AD$16)<SUM($11:$11), "Actual gross capex ("&AE$4&")", "") ->  | AF16: =IF(COUNTA($H$16:AE$16)<SUM($11:$11), "Actual gross capex ("&AF$4&")", "") ->  | AG16: =IF(COUNTA($H$16:AF$16)<SUM($11:$11), "Actual gross capex ("&AG$4&")", "") ->  | AH16: =IF(COUNTA($H$16:AG$16)<SUM($11:$11), "Actual gross capex ("&AH$4&")", "") ->  | AI16: =IF(COUNTA($H$16:AH$16)<SUM($11:$11), "Actual gross capex ("&AI$4&")", "") ->  | AJ16: =IF(COUNTA($H$16:AI$16)<SUM($11:$11), "Actual gross capex ("&AJ$4&")", "") ->  | AK16: =IF(COUNTA($H$16:AJ$16)<SUM($11:$11), "Actual gross capex ("&AK$4&")", "") ->  | AL16: =IF(COUNTA($H$16:AK$16)<SUM($11:$11), "Actual gross capex ("&AL$4&")", "") ->  | AM16: =IF(COUNTA($H$16:AL$16)<SUM($11:$11), "Actual gross capex ("&AM$4&")", "") ->  | AN16: =IF(COUNTA($H$16:AM$16)<SUM($11:$11), "Actual gross capex ("&AN$4&")", "") ->  | AO16: =IF(COUNTA($H$16:AN$16)<SUM($11:$11), "Actual gross capex ("&AO$4&")", "") ->  | AP16: =IF(COUNTA($H$16:AO$16)<SUM($11:$11), "Actual gross capex ("&AP$4&")", "") ->  | AQ16: =IF(COUNTA($H$16:AP$16)<SUM($11:$11), "Actual gross capex ("&AQ$4&")", "") ->  | AR16: =IF(COUNTA($H$16:AQ$16)<SUM($11:$11), "Actual gross capex ("&AR$4&")", "") ->  | AS16: =IF(COUNTA($H$16:AR$16)<SUM($11:$11), "Actual gross capex ("&AS$4&")", "") ->  | AT16: =IF(COUNTA($H$16:AS$16)<SUM($11:$11), "Actual gross capex ("&AT$4&")", "") ->  | AU16: =IF(COUNTA($H$16:AT$16)<SUM($11:$11), "Actual gross capex ("&AU$4&")", "") ->  | AV16: =IF(COUNTA($H$16:AU$16)<SUM($11:$11), "Actual gross capex ("&AV$4&")", "") ->  | AW16: =IF(COUNTA($H$16:AV$16)<SUM($11:$11), "Actual gross capex ("&AW$4&")", "") ->  | AX16: =IF(COUNTA($H$16:AW$16)<SUM($11:$11), "Actual gross capex ("&AX$4&")", "") ->  | AY16: =IF(COUNTA($H$16:AX$16)<SUM($11:$11), "Actual gross capex ("&AY$4&")", "") ->  | AZ16: =IF(COUNTA($H$16:AY$16)<SUM($11:$11), "Actual gross capex ("&AZ$4&")", "") ->  | BA16: =IF(COUNTA($H$16:AZ$16)<SUM($11:$11), "Actual gross capex ("&BA$4&")", "") ->  | BB16: =IF(COUNTA($H$16:BA$16)<SUM($11:$11), "Actual gross capex ("&BB$4&")", "") ->  | BC16: =IF(COUNTA($H$16:BB$16)<SUM($11:$11), "Actual gross capex ("&BC$4&")", "") ->  | BD16: =IF(COUNTA($H$16:BC$16)<SUM($11:$11), "Actual gross capex ("&BD$4&")", "") ->  | BE16: =IF(COUNTA($H$16:BD$16)<SUM($11:$11), "Actual gross capex ("&BE$4&")", "") ->  | BF16: =IF(COUNTA($H$16:BE$16)<SUM($11:$11), "Actual gross capex ("&BF$4&")", "") ->  | BG16: =IF(COUNTA($H$16:BF$16)<SUM($11:$11), "Actual gross capex ("&BG$4&")", "") ->  | BH16: =IF(COUNTA($H$16:BG$16)<SUM($11:$11), "Actual gross capex ("&BH$4&")", "") ->  | BI16: =IF(COUNTA($H$16:BH$16)<SUM($11:$11), "Actual gross capex ("&BI$4&")", "") ->  | BJ16: =IF(COUNTA($H$16:BI$16)<SUM($11:$11), "Actual gross capex ("&BJ$4&")", "") ->  | BK16: =IF(COUNTA($H$16:BJ$16)<SUM($11:$11), "Actual gross capex ("&BK$4&")", "") ->  | BL16: =IF(COUNTA($H$16:BK$16)<SUM($11:$11), "Actual gross capex ("&BL$4&")", "") ->  | BM16: =IF(COUNTA($H$16:BL$16)<SUM($11:$11), "Actual gross capex ("&BM$4&")", "") ->  | BN16: =IF(COUNTA($H$16:BM$16)<SUM($11:$11), "Actual gross capex ("&BN$4&")", "") ->  | BO16: =IF(COUNTA($H$16:BN$16)<SUM($11:$11), "Actual gross capex ("&BO$4&")", "") ->  | BP16: =IF(COUNTA($H$16:BO$16)<SUM($11:$11), "Actual gross capex ("&BP$4&")", "") ->  | BQ16: =IF(COUNTA($H$16:BP$16)<SUM($11:$11), "Actual gross capex ("&BQ$4&")", "") ->  | BR16: =IF(COUNTA($H$16:BQ$16)<SUM($11:$11), "Actual gross capex ("&BR$4&")", "") ->  | BS16: =IF(COUNTA($H$16:BR$16)<SUM($11:$11), "Actual gross capex ("&BS$4&")", "") ->  | BT16: =IF(COUNTA($H$16:BS$16)<SUM($11:$11), "Actual gross capex ("&BT$4&")", "") ->  | BU16: =IF(COUNTA($H$16:BT$16)<SUM($11:$11), "Actual gross capex ("&BU$4&")", "") ->  | BV16: =IF(COUNTA($H$16:BU$16)<SUM($11:$11), "Actual gross capex ("&BV$4&")", "") ->  | BW16: =IF(COUNTA($H$16:BV$16)<SUM($11:$11), "Actual gross capex ("&BW$4&")", "") ->  | BX16: =IF(COUNTA($H$16:BW$16)<SUM($11:$11), "Actual gross capex ("&BX$4&")", "") ->  | BY16: =IF(COUNTA($H$16:BX$16)<SUM($11:$11), "Actual gross capex ("&BY$4&")", "") ->  | BZ16: =IF(COUNTA($H$16:BY$16)<SUM($11:$11), "Actual gross capex ("&BZ$4&")", "") ->  | CA16: =IF(COUNTA($H$16:BZ$16)<SUM($11:$11), "Actual gross capex ("&CA$4&")", "") ->  | CB16: =IF(COUNTA($H$16:CA$16)<SUM($11:$11), "Actual gross capex ("&CB$4&")", "") ->  | CC16: =IF(COUNTA($H$16:CB$16)<SUM($11:$11), "Actual gross capex ("&CC$4&")", "") ->  | CD16: =IF(COUNTA($H$16:CC$16)<SUM($11:$11), "Actual gross capex ("&CD$4&")", "") ->  | CE16: =IF(COUNTA($H$16:CD$16)<SUM($11:$11), "Actual gross capex ("&CE$4&")", "") ->  | CF16: =IF(COUNTA($H$16:CE$16)<SUM($11:$11), "Actual gross capex ("&CF$4&")", "") ->  | CG16: =IF(COUNTA($H$16:CF$16)<SUM($11:$11), "Actual gross capex ("&CG$4&")", "") ->  | CH16: =IF(COUNTA($H$16:CG$16)<SUM($11:$11), "Actual gross capex ("&CH$4&")", "") ->  | CI16: =IF(COUNTA($H$16:CH$16)<SUM($11:$11), "Actual gross capex ("&CI$4&")", "") ->  | CJ16: =IF(COUNTA($H$16:CI$16)<SUM($11:$11), "Actual gross capex ("&CJ$4&")", "") ->  | CK16: =IF(COUNTA($H$16:CJ$16)<SUM($11:$11), "Actual gross capex ("&CK$4&")", "") ->  | CL16: =IF(COUNTA($H$16:CK$16)<SUM($11:$11), "Actual gross capex ("&CL$4&")", "") ->  | CM16: =IF(COUNTA($H$16:CL$16)<SUM($11:$11), "Actual gross capex ("&CM$4&")", "") ->  | CN16: =IF(COUNTA($H$16:CM$16)<SUM($11:$11), "Actual gross capex ("&CN$4&")", "") ->  | CO16: =IF(COUNTA($H$16:CN$16)<SUM($11:$11), "Actual gross capex ("&CO$4&")", "") ->  | CP16: =IF(COUNTA($H$16:CO$16)<SUM($11:$11), "Actual gross capex ("&CP$4&")", "") ->  | CQ16: =IF(COUNTA($H$16:CP$16)<SUM($11:$11), "Actual gross capex ("&CQ$4&")", "") ->  | CR16: =IF(COUNTA($H$16:CQ$16)<SUM($11:$11), "Actual gross capex ("&CR$4&")", "") ->  | CS16: =IF(COUNTA($H$16:CR$16)<SUM($11:$11), "Actual gross capex ("&CS$4&")", "") ->  | CT16: =IF(COUNTA($H$16:CS$16)<SUM($11:$11), "Actual gross capex ("&CT$4&")", "") ->  | CU16: =IF(COUNTA($H$16:CT$16)<SUM($11:$11), "Actual gross capex ("&CU$4&")", "") ->  | CV16: =IF(COUNTA($H$16:CU$16)<SUM($11:$11), "Actual gross capex ("&CV$4&")", "") ->  | CW16: =IF(COUNTA($H$16:CV$16)<SUM($11:$11), "Actual gross capex ("&CW$4&")", "") ->  | CX16: =IF(COUNTA($H$16:CW$16)<SUM($11:$11), "Actual gross capex ("&CX$4&")", "") ->  | CY16: =IF(COUNTA($H$16:CX$16)<SUM($11:$11), "Actual gross capex ("&CY$4&")", "") -> 
D18: 1 | E18: ='Capital base input'!E27 -> Mains | G18: 381.0050649 | H18: =INDEX('Capital base input'!$H$27:$XFD$76, MATCH($E18, 'Capital base input'!$E$27:$E$76, 0), MATCH(H$4, RAB_years, 0)) -> 71.09033029 | I18: =INDEX('Capital base input'!$H$27:$XFD$76, MATCH($E18, 'Capital base input'!$E$27:$E$76, 0), MATCH(I$4, RAB_years, 0)) -> 73.96843216 | J18: =INDEX('Capital base input'!$H$27:$XFD$76, MATCH($E18, 'Capital base input'!$E$27:$E$76, 0), MATCH(J$4, RAB_years, 0)) -> 74.92925336 | K18: =INDEX('Capital base input'!$H$27:$XFD$76, MATCH($E18, 'Capital base input'!$E$27:$E$76, 0), MATCH(K$4, RAB_years, 0)) -> 65.452091 | L18: =INDEX('Capital base input'!$H$27:$XFD$76, MATCH($E18, 'Capital base input'!$E$27:$E$76, 0), MATCH(L$4, RAB_years, 0)) -> 65.5509 | M18: =INDEX('Capital base input'!$H$27:$XFD$76, MATCH($E18, 'Capital base input'!$E$27:$E$76, 0), MATCH(M$4, RAB_years, 0)) -> 50.927561 | N18: =INDEX('Capital base input'!$H$27:$XFD$76, MATCH($E18, 'Capital base input'!$E$27:$E$76, 0), MATCH(N$4, RAB_years, 0)) -> 59.171988 | O18: =INDEX('Capital base input'!$H$27:$XFD$76, MATCH($E18, 'Capital base input'!$E$27:$E$76, 0), MATCH(O$4, RAB_years, 0)) -> 56.43249655 | P18: =INDEX('Capital base input'!$H$27:$XFD$76, MATCH($E18, 'Capital base input'!$E$27:$E$76, 0), MATCH(P$4, RAB_years, 0)) -> 88.56444386 | Q18: =INDEX('Capital base input'!$H$27:$XFD$76, MATCH($E18, 'Capital base input'!$E$27:$E$76, 0), MATCH(Q$4, RAB_years, 0)) -> 44.44515366 | R18: =INDEX('Capital base input'!$H$27:$XFD$76, MATCH($E18, 'Capital base input'!$E$27:$E$76, 0), MATCH(R$4, RAB_years, 0)) -> 0 | S18: =INDEX('Capital base input'!$H$27:$XFD$76, MATCH($E18, 'Capital base input'!$E$27:$E$76, 0), MATCH(S$4, RAB_years, 0)) -> 0 | T18: =INDEX('Capital base input'!$H$27:$XFD$76, MATCH($E18, 'Capital base input'!$E$27:$E$76, 0), MATCH(T$4, RAB_years, 0)) -> 0 | U18: =INDEX('Capital base input'!$H$27:$XFD$76, MATCH($E18, 'Capital base input'!$E$27:$E$76, 0), MATCH(U$4, RAB_years, 0)) -> 0 | V18: =INDEX('Capital base input'!$H$27:$XFD$76, MATCH($E18, 'Capital base input'!$E$27:$E$76, 0), MATCH(V$4, RAB_years, 0)) -> 0 | W18: =INDEX('Capital base input'!$H$27:$XFD$76, MATCH($E18, 'Capital base input'!$E$27:$E$76, 0), MATCH(W$4, RAB_years, 0)) -> 0 | X18: =INDEX('Capital base input'!$H$27:$XFD$76, MATCH($E18, 'Capital base input'!$E$27:$E$76, 0), MATCH(X$4, RAB_years, 0)) -> 0 | Y18: =INDEX('Capital base input'!$H$27:$XFD$76, MATCH($E18, 'Capital base input'!$E$27:$E$76, 0), MATCH(Y$4, RAB_years, 0)) -> 0 | Z18: =INDEX('Capital base input'!$H$27:$XFD$76, MATCH($E18, 'Capital base input'!$E$27:$E$76, 0), MATCH(Z$4, RAB_years, 0)) -> 0 | AA18: =INDEX('Capital base input'!$H$27:$XFD$76, MATCH($E18, 'Capital base input'!$E$27:$E$76, 0), MATCH(AA$4, RAB_years, 0)) -> 0 | AB18: =INDEX('Capital base input'!$H$27:$XFD$76, MATCH($E18, 'Capital base input'!$E$27:$E$76, 0), MATCH(AB$4, RAB_years, 0)) -> 0 | AC18: =INDEX('Capital base input'!$H$27:$XFD$76, MATCH($E18, 'Capital base input'!$E$27:$E$76, 0), MATCH(AC$4, RAB_years, 0)) -> 0 | AD18: =INDEX('Capital base input'!$H$27:$XFD$76, MATCH($E18, 'Capital base input'!$E$27:$E$76, 0), MATCH(AD$4, RAB_years, 0)) -> 0 | AE18: =INDEX('Capital base input'!$H$27:$XFD$76, MATCH($E18, 'Capital base input'!$E$27:$E$76, 0), MATCH(AE$4, RAB_years, 0)) -> 0 | AF18: =INDEX('Capital base input'!$H$27:$XFD$76, MATCH($E18, 'Capital base input'!$E$27:$E$76, 0), MATCH(AF$4, RAB_years, 0)) -> 0 | AG18: =INDEX('Capital base input'!$H$27:$XFD$76, MATCH($E18, 'Capital base input'!$E$27:$E$76, 0), MATCH(AG$4, RAB_years, 0)) -> 0 | AH18: =INDEX('Capital base input'!$H$27:$XFD$76, MATCH($E18, 'Capital base input'!$E$27:$E$76, 0), MATCH(AH$4, RAB_years, 0)) -> 0 | AI18: =INDEX('Capital base input'!$H$27:$XFD$76, MATCH($E18, 'Capital base input'!$E$27:$E$76, 0), MATCH(AI$4, RAB_years, 0)) -> 0 | AJ18: =INDEX('Capital base input'!$H$27:$XFD$76, MATCH($E18, 'Capital base input'!$E$27:$E$76, 0), MATCH(AJ$4, RAB_years, 0)) -> 0 | AK18: =INDEX('Capital base input'!$H$27:$XFD$76, MATCH($E18, 'Capital base input'!$E$27:$E$76, 0), MATCH(AK$4, RAB_years, 0)) -> 0 | AL18: =INDEX('Capital base input'!$H$27:$XFD$76, MATCH($E18, 'Capital base input'!$E$27:$E$76, 0), MATCH(AL$4, RAB_years, 0)) -> 0 | AM18: =INDEX('Capital base input'!$H$27:$XFD$76, MATCH($E18, 'Capital base input'!$E$27:$E$76, 0), MATCH(AM$4, RAB_years, 0)) -> 0 | AN18: =INDEX('Capital base input'!$H$27:$XFD$76, MATCH($E18, 'Capital base input'!$E$27:$E$76, 0), MATCH(AN$4, RAB_years, 0)) -> 0 | AO18: =INDEX('Capital base input'!$H$27:$XFD$76, MATCH($E18, 'Capital base input'!$E$27:$E$76, 0), MATCH(AO$4, RAB_years, 0)) -> 0 | AP18: =INDEX('Capital base input'!$H$27:$XFD$76, MATCH($E18, 'Capital base input'!$E$27:$E$76, 0), MATCH(AP$4, RAB_years, 0)) -> 0 | AQ18: =INDEX('Capital base input'!$H$27:$XFD$76, MATCH($E18, 'Capital base input'!$E$27:$E$76, 0), MATCH(AQ$4, RAB_years, 0)) -> 0 | AR18: =INDEX('Capital base input'!$H$27:$XFD$76, MATCH($E18, 'Capital base input'!$E$27:$E$76, 0), MATCH(AR$4, RAB_years, 0)) -> 0 | AS18: =INDEX('Capital base input'!$H$27:$XFD$76, MATCH($E18, 'Capital base input'!$E$27:$E$76, 0), MATCH(AS$4, RAB_years, 0)) -> 0 | AT18: =INDEX('Capital base input'!$H$27:$XFD$76, MATCH($E18, 'Capital base input'!$E$27:$E$76, 0), MATCH(AT$4, RAB_years, 0)) -> 0 | AU18: =INDEX('Capital base input'!$H$27:$XFD$76, MATCH($E18, 'Capital base input'!$E$27:$E$76, 0), MATCH(AU$4, RAB_years, 0)) -> 0 | AV18: =INDEX('Capital base input'!$H$27:$XFD$76, MATCH($E18, 'Capital base input'!$E$27:$E$76, 0), MATCH(AV$4, RAB_years, 0)) -> 0 | AW18: =INDEX('Capital base input'!$H$27:$XFD$76, MATCH($E18, 'Capital base input'!$E$27:$E$76, 0), MATCH(AW$4, RAB_years, 0)) -> 0 | AX18: =INDEX('Capital base input'!$H$27:$XFD$76, MATCH($E18, 'Capital base input'!$E$27:$E$76, 0), MATCH(AX$4, RAB_years, 0)) -> 0 | AY18: =INDEX('Capital base input'!$H$27:$XFD$76, MATCH($E18, 'Capital base input'!$E$27:$E$76, 0), MATCH(AY$4, RAB_years, 0)) -> 0 | AZ18: =INDEX('Capital base input'!$H$27:$XFD$76, MATCH($E18, 'Capital base input'!$E$27:$E$76, 0), MATCH(AZ$4, RAB_years, 0)) -> 0 | BA18: =INDEX('Capital base input'!$H$27:$XFD$76, MATCH($E18, 'Capital base input'!$E$27:$E$76, 0), MATCH(BA$4, RAB_years, 0)) -> 0 | BB18: =INDEX('Capital base input'!$H$27:$XFD$76, MATCH($E18, 'Capital base input'!$E$27:$E$76, 0), MATCH(BB$4, RAB_years, 0)) -> 0 | BC18: =INDEX('Capital base input'!$H$27:$XFD$76, MATCH($E18, 'Capital base input'!$E$27:$E$76, 0), MATCH(BC$4, RAB_years, 0)) -> 0 | BD18: =INDEX('Capital base input'!$H$27:$XFD$76, MATCH($E18, 'Capital base input'!$E$27:$E$76, 0), MATCH(BD$4, RAB_years, 0)) -> 0 | BE18: =INDEX('Capital base input'!$H$27:$XFD$76, MATCH($E18, 'Capital base input'!$E$27:$E$76, 0), MATCH(BE$4, RAB_years, 0)) -> 0 | BF18: =INDEX('Capital base input'!$H$27:$XFD$76, MATCH($E18, 'Capital base input'!$E$27:$E$76, 0), MATCH(BF$4, RAB_years, 0)) -> 0 | BG18: =INDEX('Capital base input'!$H$27:$XFD$76, MATCH($E18, 'Capital base input'!$E$27:$E$76, 0), MATCH(BG$4, RAB_years, 0)) -> 0 | BH18: =INDEX('Capital base input'!$H$27:$XFD$76, MATCH($E18, 'Capital base input'!$E$27:$E$76, 0), MATCH(BH$4, RAB_years, 0)) -> 0 | BI18: =INDEX('Capital base input'!$H$27:$XFD$76, MATCH($E18, 'Capital base input'!$E$27:$E$76, 0), MATCH(BI$4, RAB_years, 0)) -> 0 | BJ18: =INDEX('Capital base input'!$H$27:$XFD$76, MATCH($E18, 'Capital base input'!$E$27:$E$76, 0), MATCH(BJ$4, RAB_years, 0)) -> 0 | BK18: =INDEX('Capital base input'!$H$27:$XFD$76, MATCH($E18, 'Capital base input'!$E$27:$E$76, 0), MATCH(BK$4, RAB_years, 0)) -> 0 | BL18: =INDEX('Capital base input'!$H$27:$XFD$76, MATCH($E18, 'Capital base input'!$E$27:$E$76, 0), MATCH(BL$4, RAB_years, 0)) -> 0 | BM18: =INDEX('Capital base input'!$H$27:$XFD$76, MATCH($E18, 'Capital base input'!$E$27:$E$76, 0), MATCH(BM$4, RAB_years, 0)) -> 0 | BN18: =INDEX('Capital base input'!$H$27:$XFD$76, MATCH($E18, 'Capital base input'!$E$27:$E$76, 0), MATCH(BN$4, RAB_years, 0)) -> 0 | BO18: =INDEX('Capital base input'!$H$27:$XFD$76, MATCH($E18, 'Capital base input'!$E$27:$E$76, 0), MATCH(BO$4, RAB_years, 0)) -> 0 | BP18: =INDEX('Capital base input'!$H$27:$XFD$76, MATCH($E18, 'Capital base input'!$E$27:$E$76, 0), MATCH(BP$4, RAB_years, 0)) -> 0 | BQ18: =INDEX('Capital base input'!$H$27:$XFD$76, MATCH($E18, 'Capital base input'!$E$27:$E$76, 0), MATCH(BQ$4, RAB_years, 0)) -> 0 | BR18: =INDEX('Capital base input'!$H$27:$XFD$76, MATCH($E18, 'Capital base input'!$E$27:$E$76, 0), MATCH(BR$4, RAB_years, 0)) -> 0 | BS18: =INDEX('Capital base input'!$H$27:$XFD$76, MATCH($E18, 'Capital base input'!$E$27:$E$76, 0), MATCH(BS$4, RAB_years, 0)) -> 0 | BT18: =INDEX('Capital base input'!$H$27:$XFD$76, MATCH($E18, 'Capital base input'!$E$27:$E$76, 0), MATCH(BT$4, RAB_years, 0)) -> 0 | BU18: =INDEX('Capital base input'!$H$27:$XFD$76, MATCH($E18, 'Capital base input'!$E$27:$E$76, 0), MATCH(BU$4, RAB_years, 0)) -> 0 | BV18: =INDEX('Capital base input'!$H$27:$XFD$76, MATCH($E18, 'Capital base input'!$E$27:$E$76, 0), MATCH(BV$4, RAB_years, 0)) -> 0 | BW18: =INDEX('Capital base input'!$H$27:$XFD$76, MATCH($E18, 'Capital base input'!$E$27:$E$76, 0), MATCH(BW$4, RAB_years, 0)) -> 0 | BX18: =INDEX('Capital base input'!$H$27:$XFD$76, MATCH($E18, 'Capital base input'!$E$27:$E$76, 0), MATCH(BX$4, RAB_years, 0)) -> 0 | BY18: =INDEX('Capital base input'!$H$27:$XFD$76, MATCH($E18, 'Capital base input'!$E$27:$E$76, 0), MATCH(BY$4, RAB_years, 0)) -> 0 | BZ18: =INDEX('Capital base input'!$H$27:$XFD$76, MATCH($E18, 'Capital base input'!$E$27:$E$76, 0), MATCH(BZ$4, RAB_years, 0)) -> 0 | CA18: =INDEX('Capital base input'!$H$27:$XFD$76, MATCH($E18, 'Capital base input'!$E$27:$E$76, 0), MATCH(CA$4, RAB_years, 0)) -> 0 | CB18: =INDEX('Capital base input'!$H$27:$XFD$76, MATCH($E18, 'Capital base input'!$E$27:$E$76, 0), MATCH(CB$4, RAB_years, 0)) -> 0 | CC18: =INDEX('Capital base input'!$H$27:$XFD$76, MATCH($E18, 'Capital base input'!$E$27:$E$76, 0), MATCH(CC$4, RAB_years, 0)) -> 0 | CD18: =INDEX('Capital base input'!$H$27:$XFD$76, MATCH($E18, 'Capital base input'!$E$27:$E$76, 0), MATCH(CD$4, RAB_years, 0)) -> 0 | CE18: =INDEX('Capital base input'!$H$27:$XFD$76, MATCH($E18, 'Capital base input'!$E$27:$E$76, 0), MATCH(CE$4, RAB_years, 0)) -> 0 | CF18: =INDEX('Capital base input'!$H$27:$XFD$76, MATCH($E18, 'Capital base input'!$E$27:$E$76, 0), MATCH(CF$4, RAB_years, 0)) -> 0 | CG18: =INDEX('Capital base input'!$H$27:$XFD$76, MATCH($E18, 'Capital base input'!$E$27:$E$76, 0), MATCH(CG$4, RAB_years, 0)) -> 0 | CH18: =INDEX('Capital base input'!$H$27:$XFD$76, MATCH($E18, 'Capital base input'!$E$27:$E$76, 0), MATCH(CH$4, RAB_years, 0)) -> 0 | CI18: =INDEX('Capital base input'!$H$27:$XFD$76, MATCH($E18, 'Capital base input'!$E$27:$E$76, 0), MATCH(CI$4, RAB_years, 0)) -> 0 | CJ18: =INDEX('Capital base input'!$H$27:$XFD$76, MATCH($E18, 'Capital base input'!$E$27:$E$76, 0), MATCH(CJ$4, RAB_years, 0)) -> 0 | CK18: =INDEX('Capital base input'!$H$27:$XFD$76, MATCH($E18, 'Capital base input'!$E$27:$E$76, 0), MATCH(CK$4, RAB_years, 0)) -> 0 | CL18: =INDEX('Capital base input'!$H$27:$XFD$76, MATCH($E18, 'Capital base input'!$E$27:$E$76, 0), MATCH(CL$4, RAB_years, 0)) -> 0 | CM18: =INDEX('Capital base input'!$H$27:$XFD$76, MATCH($E18, 'Capital base input'!$E$27:$E$76, 0), MATCH(CM$4, RAB_years, 0)) -> 0 | CN18: =INDEX('Capital base input'!$H$27:$XFD$76, MATCH($E18, 'Capital base input'!$E$27:$E$76, 0), MATCH(CN$4, RAB_years, 0)) -> 0 | CO18: =INDEX('Capital base input'!$H$27:$XFD$76, MATCH($E18, 'Capital base input'!$E$27:$E$76, 0), MATCH(CO$4, RAB_years, 0)) -> 0 | CP18: =INDEX('Capital base input'!$H$27:$XFD$76, MATCH($E18, 'Capital base input'!$E$27:$E$76, 0), MATCH(CP$4, RAB_years, 0)) -> 0 | CQ18: =INDEX('Capital base input'!$H$27:$XFD$76, MATCH($E18, 'Capital base input'!$E$27:$E$76, 0), MATCH(CQ$4, RAB_years, 0)) -> 0 | CR18: =INDEX('Capital base input'!$H$27:$XFD$76, MATCH($E18, 'Capital base input'!$E$27:$E$76, 0), MATCH(CR$4, RAB_years, 0)) -> 0 | CS18: =INDEX('Capital base input'!$H$27:$XFD$76, MATCH($E18, 'Capital base input'!$E$27:$E$76, 0), MATCH(CS$4, RAB_years, 0)) -> 0 | CT18: =INDEX('Capital base input'!$H$27:$XFD$76, MATCH($E18, 'Capital base input'!$E$27:$E$76, 0), MATCH(CT$4, RAB_years, 0)) -> 0 | CU18: =INDEX('Capital base input'!$H$27:$XFD$76, MATCH($E18, 'Capital base input'!$E$27:$E$76, 0), MATCH(CU$4, RAB_years, 0)) -> 0 | CV18: =INDEX('Capital base input'!$H$27:$XFD$76, MATCH($E18, 'Capital base input'!$E$27:$E$76, 0), MATCH(CV$4, RAB_years, 0)) -> 0 | CW18: =INDEX('Capital base input'!$H$27:$XFD$76, MATCH($E18, 'Capital base input'!$E$27:$E$76, 0), MATCH(CW$4, RAB_years, 0)) -> 0 | CX18: =INDEX('Capital base input'!$H$27:$XFD$76, MATCH($E18, 'Capital base input'!$E$27:$E$76, 0), MATCH(CX$4, RAB_years, 0)) -> 0 | CY18: =INDEX('Capital base input'!$H$27:$XFD$76, MATCH($E18, 'Capital base input'!$E$27:$E$76, 0), MATCH(CY$4, RAB_years, 0)) -> 0
D19: 2 | E19: ='Capital base input'!E28 -> Inlets | G19: 101.0636331 | H19: =INDEX('Capital base input'!$H$27:$XFD$76, MATCH($E19, 'Capital base input'!$E$27:$E$76, 0), MATCH(H$4, RAB_years, 0)) -> 14.20493362 | I19: =INDEX('Capital base input'!$H$27:$XFD$76, MATCH($E19, 'Capital base input'!$E$27:$E$76, 0), MATCH(I$4, RAB_years, 0)) -> 16.17322627 | J19: =INDEX('Capital base input'!$H$27:$XFD$76, MATCH($E19, 'Capital base input'!$E$27:$E$76, 0), MATCH(J$4, RAB_years, 0)) -> 15.99480584 | K19: =INDEX('Capital base input'!$H$27:$XFD$76, MATCH($E19, 'Capital base input'!$E$27:$E$76, 0), MATCH(K$4, RAB_years, 0)) -> 18.901413 | L19: =INDEX('Capital base input'!$H$27:$XFD$76, MATCH($E19, 'Capital base input'!$E$27:$E$76, 0), MATCH(L$4, RAB_years, 0)) -> 17.062029 | M19: =INDEX('Capital base input'!$H$27:$XFD$76, MATCH($E19, 'Capital base input'!$E$27:$E$76, 0), MATCH(M$4, RAB_years, 0)) -> 16.698498 | N19: =INDEX('Capital base input'!$H$27:$XFD$76, MATCH($E19, 'Capital base input'!$E$27:$E$76, 0), MATCH(N$4, RAB_years, 0)) -> 17.807126 | O19: =INDEX('Capital base input'!$H$27:$XFD$76, MATCH($E19, 'Capital base input'!$E$27:$E$76, 0), MATCH(O$4, RAB_years, 0)) -> 20.22891049 | P19: =INDEX('Capital base input'!$H$27:$XFD$76, MATCH($E19, 'Capital base input'!$E$27:$E$76, 0), MATCH(P$4, RAB_years, 0)) -> 16.02639195 | Q19: =INDEX('Capital base input'!$H$27:$XFD$76, MATCH($E19, 'Capital base input'!$E$27:$E$76, 0), MATCH(Q$4, RAB_years, 0)) -> 21.29690318 | R19: =INDEX('Capital base input'!$H$27:$XFD$76, MATCH($E19, 'Capital base input'!$E$27:$E$76, 0), MATCH(R$4, RAB_years, 0)) -> 0 | S19: =INDEX('Capital base input'!$H$27:$XFD$76, MATCH($E19, 'Capital base input'!$E$27:$E$76, 0), MATCH(S$4, RAB_years, 0)) -> 0 | T19: =INDEX('Capital base input'!$H$27:$XFD$76, MATCH($E19, 'Capital base input'!$E$27:$E$76, 0), MATCH(T$4, RAB_years, 0)) -> 0 | U19: =INDEX('Capital base input'!$H$27:$XFD$76, MATCH($E19, 'Capital base input'!$E$27:$E$76, 0), MATCH(U$4, RAB_years, 0)) -> 0 | V19: =INDEX('Capital base input'!$H$27:$XFD$76, MATCH($E19, 'Capital base input'!$E$27:$E$76, 0), MATCH(V$4, RAB_years, 0)) -> 0 | W19: =INDEX('Capital base input'!$H$27:$XFD$76, MATCH($E19, 'Capital base input'!$E$27:$E$76, 0), MATCH(W$4, RAB_years, 0)) -> 0 | X19: =INDEX('Capital base input'!$H$27:$XFD$76, MATCH($E19, 'Capital base input'!$E$27:$E$76, 0), MATCH(X$4, RAB_years, 0)) -> 0 | Y19: =INDEX('Capital base input'!$H$27:$XFD$76, MATCH($E19, 'Capital base input'!$E$27:$E$76, 0), MATCH(Y$4, RAB_years, 0)) -> 0 | Z19: =INDEX('Capital base input'!$H$27:$XFD$76, MATCH($E19, 'Capital base input'!$E$27:$E$76, 0), MATCH(Z$4, RAB_years, 0)) -> 0 | AA19: =INDEX('Capital base input'!$H$27:$XFD$76, MATCH($E19, 'Capital base input'!$E$27:$E$76, 0), MATCH(AA$4, RAB_years, 0)) -> 0 | AB19: =INDEX('Capital base input'!$H$27:$XFD$76, MATCH($E19, 'Capital base input'!$E$27:$E$76, 0), MATCH(AB$4, RAB_years, 0)) -> 0 | AC19: =INDEX('Capital base input'!$H$27:$XFD$76, MATCH($E19, 'Capital base input'!$E$27:$E$76, 0), MATCH(AC$4, RAB_years, 0)) -> 0 | AD19: =INDEX('Capital base input'!$H$27:$XFD$76, MATCH($E19, 'Capital base input'!$E$27:$E$76, 0), MATCH(AD$4, RAB_years, 0)) -> 0 | AE19: =INDEX('Capital base input'!$H$27:$XFD$76, MATCH($E19, 'Capital base input'!$E$27:$E$76, 0), MATCH(AE$4, RAB_years, 0)) -> 0 | AF19: =INDEX('Capital base input'!$H$27:$XFD$76, MATCH($E19, 'Capital base input'!$E$27:$E$76, 0), MATCH(AF$4, RAB_years, 0)) -> 0 | AG19: =INDEX('Capital base input'!$H$27:$XFD$76, MATCH($E19, 'Capital base input'!$E$27:$E$76, 0), MATCH(AG$4, RAB_years, 0)) -> 0 | AH19: =INDEX('Capital base input'!$H$27:$XFD$76, MATCH($E19, 'Capital base input'!$E$27:$E$76, 0), MATCH(AH$4, RAB_years, 0)) -> 0 | AI19: =INDEX('Capital base input'!$H$27:$XFD$76, MATCH($E19, 'Capital base input'!$E$27:$E$76, 0), MATCH(AI$4, RAB_years, 0)) -> 0 | AJ19: =INDEX('Capital base input'!$H$27:$XFD$76, MATCH($E19, 'Capital base input'!$E$27:$E$76, 0), MATCH(AJ$4, RAB_years, 0)) -> 0 | AK19: =INDEX('Capital base input'!$H$27:$XFD$76, MATCH($E19, 'Capital base input'!$E$27:$E$76, 0), MATCH(AK$4, RAB_years, 0)) -> 0 | AL19: =INDEX('Capital base input'!$H$27:$XFD$76, MATCH($E19, 'Capital base input'!$E$27:$E$76, 0), MATCH(AL$4, RAB_years, 0)) -> 0 | AM19: =INDEX('Capital base input'!$H$27:$XFD$76, MATCH($E19, 'Capital base input'!$E$27:$E$76, 0), MATCH(AM$4, RAB_years, 0)) -> 0 | AN19: =INDEX('Capital base input'!$H$27:$XFD$76, MATCH($E19, 'Capital base input'!$E$27:$E$76, 0), MATCH(AN$4, RAB_years, 0)) -> 0 | AO19: =INDEX('Capital base input'!$H$27:$XFD$76, MATCH($E19, 'Capital base input'!$E$27:$E$76, 0), MATCH(AO$4, RAB_years, 0)) -> 0 | AP19: =INDEX('Capital base input'!$H$27:$XFD$76, MATCH($E19, 'Capital base input'!$E$27:$E$76, 0), MATCH(AP$4, RAB_years, 0)) -> 0 | AQ19: =INDEX('Capital base input'!$H$27:$XFD$76, MATCH($E19, 'Capital base input'!$E$27:$E$76, 0), MATCH(AQ$4, RAB_years, 0)) -> 0 | AR19: =INDEX('Capital base input'!$H$27:$XFD$76, MATCH($E19, 'Capital base input'!$E$27:$E$76, 0), MATCH(AR$4, RAB_years, 0)) -> 0 | AS19: =INDEX('Capital base input'!$H$27:$XFD$76, MATCH($E19, 'Capital base input'!$E$27:$E$76, 0), MATCH(AS$4, RAB_years, 0)) -> 0 | AT19: =INDEX('Capital base input'!$H$27:$XFD$76, MATCH($E19, 'Capital base input'!$E$27:$E$76, 0), MATCH(AT$4, RAB_years, 0)) -> 0 | AU19: =INDEX('Capital base input'!$H$27:$XFD$76, MATCH($E19, 'Capital base input'!$E$27:$E$76, 0), MATCH(AU$4, RAB_years, 0)) -> 0 | AV19: =INDEX('Capital base input'!$H$27:$XFD$76, MATCH($E19, 'Capital base input'!$E$27:$E$76, 0), MATCH(AV$4, RAB_years, 0)) -> 0 | AW19: =INDEX('Capital base input'!$H$27:$XFD$76, MATCH($E19, 'Capital base input'!$E$27:$E$76, 0), MATCH(AW$4, RAB_years, 0)) -> 0 | AX19: =INDEX('Capital base input'!$H$27:$XFD$76, MATCH($E19, 'Capital base input'!$E$27:$E$76, 0), MATCH(AX$4, RAB_years, 0)) -> 0 | AY19: =INDEX('Capital base input'!$H$27:$XFD$76, MATCH($E19, 'Capital base input'!$E$27:$E$76, 0), MATCH(AY$4, RAB_years, 0)) -> 0 | AZ19: =INDEX('Capital base input'!$H$27:$XFD$76, MATCH($E19, 'Capital base input'!$E$27:$E$76, 0), MATCH(AZ$4, RAB_years, 0)) -> 0 | BA19: =INDEX('Capital base input'!$H$27:$XFD$76, MATCH($E19, 'Capital base input'!$E$27:$E$76, 0), MATCH(BA$4, RAB_years, 0)) -> 0 | BB19: =INDEX('Capital base input'!$H$27:$XFD$76, MATCH($E19, 'Capital base input'!$E$27:$E$76, 0), MATCH(BB$4, RAB_years, 0)) -> 0 | BC19: =INDEX('Capital base input'!$H$27:$XFD$76, MATCH($E19, 'Capital base input'!$E$27:$E$76, 0), MATCH(BC$4, RAB_years, 0)) -> 0 | BD19: =INDEX('Capital base input'!$H$27:$XFD$76, MATCH($E19, 'Capital base input'!$E$27:$E$76, 0), MATCH(BD$4, RAB_years, 0)) -> 0 | BE19: =INDEX('Capital base input'!$H$27:$XFD$76, MATCH($E19, 'Capital base input'!$E$27:$E$76, 0), MATCH(BE$4, RAB_years, 0)) -> 0 | BF19: =INDEX('Capital base input'!$H$27:$XFD$76, MATCH($E19, 'Capital base input'!$E$27:$E$76, 0), MATCH(BF$4, RAB_years, 0)) -> 0 | BG19: =INDEX('Capital base input'!$H$27:$XFD$76, MATCH($E19, 'Capital base input'!$E$27:$E$76, 0), MATCH(BG$4, RAB_years, 0)) -> 0 | BH19: =INDEX('Capital base input'!$H$27:$XFD$76, MATCH($E19, 'Capital base input'!$E$27:$E$76, 0), MATCH(BH$4, RAB_years, 0)) -> 0 | BI19: =INDEX('Capital base input'!$H$27:$XFD$76, MATCH($E19, 'Capital base input'!$E$27:$E$76, 0), MATCH(BI$4, RAB_years, 0)) -> 0 | BJ19: =INDEX('Capital base input'!$H$27:$XFD$76, MATCH($E19, 'Capital base input'!$E$27:$E$76, 0), MATCH(BJ$4, RAB_years, 0)) -> 0 | BK19: =INDEX('Capital base input'!$H$27:$XFD$76, MATCH($E19, 'Capital base input'!$E$27:$E$76, 0), MATCH(BK$4, RAB_years, 0)) -> 0 | BL19: =INDEX('Capital base input'!$H$27:$XFD$76, MATCH($E19, 'Capital base input'!$E$27:$E$76, 0), MATCH(BL$4, RAB_years, 0)) -> 0 | BM19: =INDEX('Capital base input'!$H$27:$XFD$76, MATCH($E19, 'Capital base input'!$E$27:$E$76, 0), MATCH(BM$4, RAB_years, 0)) -> 0 | BN19: =INDEX('Capital base input'!$H$27:$XFD$76, MATCH($E19, 'Capital base input'!$E$27:$E$76, 0), MATCH(BN$4, RAB_years, 0)) -> 0 | BO19: =INDEX('Capital base input'!$H$27:$XFD$76, MATCH($E19, 'Capital base input'!$E$27:$E$76, 0), MATCH(BO$4, RAB_years, 0)) -> 0 | BP19: =INDEX('Capital base input'!$H$27:$XFD$76, MATCH($E19, 'Capital base input'!$E$27:$E$76, 0), MATCH(BP$4, RAB_years, 0)) -> 0 | BQ19: =INDEX('Capital base input'!$H$27:$XFD$76, MATCH($E19, 'Capital base input'!$E$27:$E$76, 0), MATCH(BQ$4, RAB_years, 0)) -> 0 | BR19: =INDEX('Capital base input'!$H$27:$XFD$76, MATCH($E19, 'Capital base input'!$E$27:$E$76, 0), MATCH(BR$4, RAB_years, 0)) -> 0 | BS19: =INDEX('Capital base input'!$H$27:$XFD$76, MATCH($E19, 'Capital base input'!$E$27:$E$76, 0), MATCH(BS$4, RAB_years, 0)) -> 0 | BT19: =INDEX('Capital base input'!$H$27:$XFD$76, MATCH($E19, 'Capital base input'!$E$27:$E$76, 0), MATCH(BT$4, RAB_years, 0)) -> 0 | BU19: =INDEX('Capital base input'!$H$27:$XFD$76, MATCH($E19, 'Capital base input'!$E$27:$E$76, 0), MATCH(BU$4, RAB_years, 0)) -> 0 | BV19: =INDEX('Capital base input'!$H$27:$XFD$76, MATCH($E19, 'Capital base input'!$E$27:$E$76, 0), MATCH(BV$4, RAB_years, 0)) -> 0 | BW19: =INDEX('Capital base input'!$H$27:$XFD$76, MATCH($E19, 'Capital base input'!$E$27:$E$76, 0), MATCH(BW$4, RAB_years, 0)) -> 0 | BX19: =INDEX('Capital base input'!$H$27:$XFD$76, MATCH($E19, 'Capital base input'!$E$27:$E$76, 0), MATCH(BX$4, RAB_years, 0)) -> 0 | BY19: =INDEX('Capital base input'!$H$27:$XFD$76, MATCH($E19, 'Capital base input'!$E$27:$E$76, 0), MATCH(BY$4, RAB_years, 0)) -> 0 | BZ19: =INDEX('Capital base input'!$H$27:$XFD$76, MATCH($E19, 'Capital base input'!$E$27:$E$76, 0), MATCH(BZ$4, RAB_years, 0)) -> 0 | CA19: =INDEX('Capital base input'!$H$27:$XFD$76, MATCH($E19, 'Capital base input'!$E$27:$E$76, 0), MATCH(CA$4, RAB_years, 0)) -> 0 | CB19: =INDEX('Capital base input'!$H$27:$XFD$76, MATCH($E19, 'Capital base input'!$E$27:$E$76, 0), MATCH(CB$4, RAB_years, 0)) -> 0 | CC19: =INDEX('Capital base input'!$H$27:$XFD$76, MATCH($E19, 'Capital base input'!$E$27:$E$76, 0), MATCH(CC$4, RAB_years, 0)) -> 0 | CD19: =INDEX('Capital base input'!$H$27:$XFD$76, MATCH($E19, 'Capital base input'!$E$27:$E$76, 0), MATCH(CD$4, RAB_years, 0)) -> 0 | CE19: =INDEX('Capital base input'!$H$27:$XFD$76, MATCH($E19, 'Capital base input'!$E$27:$E$76, 0), MATCH(CE$4, RAB_years, 0)) -> 0 | CF19: =INDEX('Capital base input'!$H$27:$XFD$76, MATCH($E19, 'Capital base input'!$E$27:$E$76, 0), MATCH(CF$4, RAB_years, 0)) -> 0 | CG19: =INDEX('Capital base input'!$H$27:$XFD$76, MATCH($E19, 'Capital base input'!$E$27:$E$76, 0), MATCH(CG$4, RAB_years, 0)) -> 0 | CH19: =INDEX('Capital base input'!$H$27:$XFD$76, MATCH($E19, 'Capital base input'!$E$27:$E$76, 0), MATCH(CH$4, RAB_years, 0)) -> 0 | CI19: =INDEX('Capital base input'!$H$27:$XFD$76, MATCH($E19, 'Capital base input'!$E$27:$E$76, 0), MATCH(CI$4, RAB_years, 0)) -> 0 | CJ19: =INDEX('Capital base input'!$H$27:$XFD$76, MATCH($E19, 'Capital base input'!$E$27:$E$76, 0), MATCH(CJ$4, RAB_years, 0)) -> 0 | CK19: =INDEX('Capital base input'!$H$27:$XFD$76, MATCH($E19, 'Capital base input'!$E$27:$E$76, 0), MATCH(CK$4, RAB_years, 0)) -> 0 | CL19: =INDEX('Capital base input'!$H$27:$XFD$76, MATCH($E19, 'Capital base input'!$E$27:$E$76, 0), MATCH(CL$4, RAB_years, 0)) -> 0 | CM19: =INDEX('Capital base input'!$H$27:$XFD$76, MATCH($E19, 'Capital base input'!$E$27:$E$76, 0), MATCH(CM$4, RAB_years, 0)) -> 0 | CN19: =INDEX('Capital base input'!$H$27:$XFD$76, MATCH($E19, 'Capital base input'!$E$27:$E$76, 0), MATCH(CN$4, RAB_years, 0)) -> 0 | CO19: =INDEX('Capital base input'!$H$27:$XFD$76, MATCH($E19, 'Capital base input'!$E$27:$E$76, 0), MATCH(CO$4, RAB_years, 0)) -> 0 | CP19: =INDEX('Capital base input'!$H$27:$XFD$76, MATCH($E19, 'Capital base input'!$E$27:$E$76, 0), MATCH(CP$4, RAB_years, 0)) -> 0 | CQ19: =INDEX('Capital base input'!$H$27:$XFD$76, MATCH($E19, 'Capital base input'!$E$27:$E$76, 0), MATCH(CQ$4, RAB_years, 0)) -> 0 | CR19: =INDEX('Capital base input'!$H$27:$XFD$76, MATCH($E19, 'Capital base input'!$E$27:$E$76, 0), MATCH(CR$4, RAB_years, 0)) -> 0 | CS19: =INDEX('Capital base input'!$H$27:$XFD$76, MATCH($E19, 'Capital base input'!$E$27:$E$76, 0), MATCH(CS$4, RAB_years, 0)) -> 0 | CT19: =INDEX('Capital base input'!$H$27:$XFD$76, MATCH($E19, 'Capital base input'!$E$27:$E$76, 0), MATCH(CT$4, RAB_years, 0)) -> 0 | CU19: =INDEX('Capital base input'!$H$27:$XFD$76, MATCH($E19, 'Capital base input'!$E$27:$E$76, 0), MATCH(CU$4, RAB_years, 0)) -> 0 | CV19: =INDEX('Capital base input'!$H$27:$XFD$76, MATCH($E19, 'Capital base input'!$E$27:$E$76, 0), MATCH(CV$4, RAB_years, 0)) -> 0 | CW19: =INDEX('Capital base input'!$H$27:$XFD$76, MATCH($E19, 'Capital base input'!$E$27:$E$76, 0), MATCH(CW$4, RAB_years, 0)) -> 0 | CX19: =INDEX('Capital base input'!$H$27:$XFD$76, MATCH($E19, 'Capital base input'!$E$27:$E$76, 0), MATCH(CX$4, RAB_years, 0)) -> 0 | CY19: =INDEX('Capital base input'!$H$27:$XFD$76, MATCH($E19, 'Capital base input'!$E$27:$E$76, 0), MATCH(CY$4, RAB_years, 0)) -> 0
D20: 3 | E20: ='Capital base input'!E29 -> Meters | G20: 57.11574439 | H20: =INDEX('Capital base input'!$H$27:$XFD$76, MATCH($E20, 'Capital base input'!$E$27:$E$76, 0), MATCH(H$4, RAB_years, 0)) -> 9.75949778 | I20: =INDEX('Capital base input'!$H$27:$XFD$76, MATCH($E20, 'Capital base input'!$E$27:$E$76, 0), MATCH(I$4, RAB_years, 0)) -> 8.874331696 | J20: =INDEX('Capital base input'!$H$27:$XFD$76, MATCH($E20, 'Capital base input'!$E$27:$E$76, 0), MATCH(J$4, RAB_years, 0)) -> 10.125749 | K20: =INDEX('Capital base input'!$H$27:$XFD$76, MATCH($E20, 'Capital base input'!$E$27:$E$76, 0), MATCH(K$4, RAB_years, 0)) -> 6.863406 | L20: =INDEX('Capital base input'!$H$27:$XFD$76, MATCH($E20, 'Capital base input'!$E$27:$E$76, 0), MATCH(L$4, RAB_years, 0)) -> 7.255374 | M20: =INDEX('Capital base input'!$H$27:$XFD$76, MATCH($E20, 'Capital base input'!$E$27:$E$76, 0), MATCH(M$4, RAB_years, 0)) -> 9.642196 | N20: =INDEX('Capital base input'!$H$27:$XFD$76, MATCH($E20, 'Capital base input'!$E$27:$E$76, 0), MATCH(N$4, RAB_years, 0)) -> 10.833185 | O20: =INDEX('Capital base input'!$H$27:$XFD$76, MATCH($E20, 'Capital base input'!$E$27:$E$76, 0), MATCH(O$4, RAB_years, 0)) -> 6.858486014 | P20: =INDEX('Capital base input'!$H$27:$XFD$76, MATCH($E20, 'Capital base input'!$E$27:$E$76, 0), MATCH(P$4, RAB_years, 0)) -> 8.527282789 | Q20: =INDEX('Capital base input'!$H$27:$XFD$76, MATCH($E20, 'Capital base input'!$E$27:$E$76, 0), MATCH(Q$4, RAB_years, 0)) -> 9.57665901 | R20: =INDEX('Capital base input'!$H$27:$XFD$76, MATCH($E20, 'Capital base input'!$E$27:$E$76, 0), MATCH(R$4, RAB_years, 0)) -> 0 | S20: =INDEX('Capital base input'!$H$27:$XFD$76, MATCH($E20, 'Capital base input'!$E$27:$E$76, 0), MATCH(S$4, RAB_years, 0)) -> 0 | T20: =INDEX('Capital base input'!$H$27:$XFD$76, MATCH($E20, 'Capital base input'!$E$27:$E$76, 0), MATCH(T$4, RAB_years, 0)) -> 0 | U20: =INDEX('Capital base input'!$H$27:$XFD$76, MATCH($E20, 'Capital base input'!$E$27:$E$76, 0), MATCH(U$4, RAB_years, 0)) -> 0 | V20: =INDEX('Capital base input'!$H$27:$XFD$76, MATCH($E20, 'Capital base input'!$E$27:$E$76, 0), MATCH(V$4, RAB_years, 0)) -> 0 | W20: =INDEX('Capital base input'!$H$27:$XFD$76, MATCH($E20, 'Capital base input'!$E$27:$E$76, 0), MATCH(W$4, RAB_years, 0)) -> 0 | X20: =INDEX('Capital base input'!$H$27:$XFD$76, MATCH($E20, 'Capital base input'!$E$27:$E$76, 0), MATCH(X$4, RAB_years, 0)) -> 0 | Y20: =INDEX('Capital base input'!$H$27:$XFD$76, MATCH($E20, 'Capital base input'!$E$27:$E$76, 0), MATCH(Y$4, RAB_years, 0)) -> 0 | Z20: =INDEX('Capital base input'!$H$27:$XFD$76, MATCH($E20, 'Capital base input'!$E$27:$E$76, 0), MATCH(Z$4, RAB_years, 0)) -> 0 | AA20: =INDEX('Capital base input'!$H$27:$XFD$76, MATCH($E20, 'Capital base input'!$E$27:$E$76, 0), MATCH(AA$4, RAB_years, 0)) -> 0 | AB20: =INDEX('Capital base input'!$H$27:$XFD$76, MATCH($E20, 'Capital base input'!$E$27:$E$76, 0), MATCH(AB$4, RAB_years, 0)) -> 0 | AC20: =INDEX('Capital base input'!$H$27:$XFD$76, MATCH($E20, 'Capital base input'!$E$27:$E$76, 0), MATCH(AC$4, RAB_years, 0)) -> 0 | AD20: =INDEX('Capital base input'!$H$27:$XFD$76, MATCH($E20, 'Capital base input'!$E$27:$E$76, 0), MATCH(AD$4, RAB_years, 0)) -> 0 | AE20: =INDEX('Capital base input'!$H$27:$XFD$76, MATCH($E20, 'Capital base input'!$E$27:$E$76, 0), MATCH(AE$4, RAB_years, 0)) -> 0 | AF20: =INDEX('Capital base input'!$H$27:$XFD$76, MATCH($E20, 'Capital base input'!$E$27:$E$76, 0), MATCH(AF$4, RAB_years, 0)) -> 0 | AG20: =INDEX('Capital base input'!$H$27:$XFD$76, MATCH($E20, 'Capital base input'!$E$27:$E$76, 0), MATCH(AG$4, RAB_years, 0)) -> 0 | AH20: =INDEX('Capital base input'!$H$27:$XFD$76, MATCH($E20, 'Capital base input'!$E$27:$E$76, 0), MATCH(AH$4, RAB_years, 0)) -> 0 | AI20: =INDEX('Capital base input'!$H$27:$XFD$76, MATCH($E20, 'Capital base input'!$E$27:$E$76, 0), MATCH(AI$4, RAB_years, 0)) -> 0 | AJ20: =INDEX('Capital base input'!$H$27:$XFD$76, MATCH($E20, 'Capital base input'!$E$27:$E$76, 0), MATCH(AJ$4, RAB_years, 0)) -> 0 | AK20: =INDEX('Capital base input'!$H$27:$XFD$76, MATCH($E20, 'Capital base input'!$E$27:$E$76, 0), MATCH(AK$4, RAB_years, 0)) -> 0 | AL20: =INDEX('Capital base input'!$H$27:$XFD$76, MATCH($E20, 'Capital base input'!$E$27:$E$76, 0), MATCH(AL$4, RAB_years, 0)) -> 0 | AM20: =INDEX('Capital base input'!$H$27:$XFD$76, MATCH($E20, 'Capital base input'!$E$27:$E$76, 0), MATCH(AM$4, RAB_years, 0)) -> 0 | AN20: =INDEX('Capital base input'!$H$27:$XFD$76, MATCH($E20, 'Capital base input'!$E$27:$E$76, 0), MATCH(AN$4, RAB_years, 0)) -> 0 | AO20: =INDEX('Capital base input'!$H$27:$XFD$76, MATCH($E20, 'Capital base input'!$E$27:$E$76, 0), MATCH(AO$4, RAB_years, 0)) -> 0 | AP20: =INDEX('Capital base input'!$H$27:$XFD$76, MATCH($E20, 'Capital base input'!$E$27:$E$76, 0), MATCH(AP$4, RAB_years, 0)) -> 0 | AQ20: =INDEX('Capital base input'!$H$27:$XFD$76, MATCH($E20, 'Capital base input'!$E$27:$E$76, 0), MATCH(AQ$4, RAB_years, 0)) -> 0 | AR20: =INDEX('Capital base input'!$H$27:$XFD$76, MATCH($E20, 'Capital base input'!$E$27:$E$76, 0), MATCH(AR$4, RAB_years, 0)) -> 0 | AS20: =INDEX('Capital base input'!$H$27:$XFD$76, MATCH($E20, 'Capital base input'!$E$27:$E$76, 0), MATCH(AS$4, RAB_years, 0)) -> 0 | AT20: =INDEX('Capital base input'!$H$27:$XFD$76, MATCH($E20, 'Capital base input'!$E$27:$E$76, 0), MATCH(AT$4, RAB_years, 0)) -> 0 | AU20: =INDEX('Capital base input'!$H$27:$XFD$76, MATCH($E20, 'Capital base input'!$E$27:$E$76, 0), MATCH(AU$4, RAB_years, 0)) -> 0 | AV20: =INDEX('Capital base input'!$H$27:$XFD$76, MATCH($E20, 'Capital base input'!$E$27:$E$76, 0), MATCH(AV$4, RAB_years, 0)) -> 0 | AW20: =INDEX('Capital base input'!$H$27:$XFD$76, MATCH($E20, 'Capital base input'!$E$27:$E$76, 0), MATCH(AW$4, RAB_years, 0)) -> 0 | AX20: =INDEX('Capital base input'!$H$27:$XFD$76, MATCH($E20, 'Capital base input'!$E$27:$E$76, 0), MATCH(AX$4, RAB_years, 0)) -> 0 | AY20: =INDEX('Capital base input'!$H$27:$XFD$76, MATCH($E20, 'Capital base input'!$E$27:$E$76, 0), MATCH(AY$4, RAB_years, 0)) -> 0 | AZ20: =INDEX('Capital base input'!$H$27:$XFD$76, MATCH($E20, 'Capital base input'!$E$27:$E$76, 0), MATCH(AZ$4, RAB_years, 0)) -> 0 | BA20: =INDEX('Capital base input'!$H$27:$XFD$76, MATCH($E20, 'Capital base input'!$E$27:$E$76, 0), MATCH(BA$4, RAB_years, 0)) -> 0 | BB20: =INDEX('Capital base input'!$H$27:$XFD$76, MATCH($E20, 'Capital base input'!$E$27:$E$76, 0), MATCH(BB$4, RAB_years, 0)) -> 0 | BC20: =INDEX('Capital base input'!$H$27:$XFD$76, MATCH($E20, 'Capital base input'!$E$27:$E$76, 0), MATCH(BC$4, RAB_years, 0)) -> 0 | BD20: =INDEX('Capital base input'!$H$27:$XFD$76, MATCH($E20, 'Capital base input'!$E$27:$E$76, 0), MATCH(BD$4, RAB_years, 0)) -> 0 | BE20: =INDEX('Capital base input'!$H$27:$XFD$76, MATCH($E20, 'Capital base input'!$E$27:$E$76, 0), MATCH(BE$4, RAB_years, 0)) -> 0 | BF20: =INDEX('Capital base input'!$H$27:$XFD$76, MATCH($E20, 'Capital base input'!$E$27:$E$76, 0), MATCH(BF$4, RAB_years, 0)) -> 0 | BG20: =INDEX('Capital base input'!$H$27:$XFD$76, MATCH($E20, 'Capital base input'!$E$27:$E$76, 0), MATCH(BG$4, RAB_years, 0)) -> 0 | BH20: =INDEX('Capital base input'!$H$27:$XFD$76, MATCH($E20, 'Capital base input'!$E$27:$E$76, 0), MATCH(BH$4, RAB_years, 0)) -> 0 | BI20: =INDEX('Capital base input'!$H$27:$XFD$76, MATCH($E20, 'Capital base input'!$E$27:$E$76, 0), MATCH(BI$4, RAB_years, 0)) -> 0 | BJ20: =INDEX('Capital base input'!$H$27:$XFD$76, MATCH($E20, 'Capital base input'!$E$27:$E$76, 0), MATCH(BJ$4, RAB_years, 0)) -> 0 | BK20: =INDEX('Capital base input'!$H$27:$XFD$76, MATCH($E20, 'Capital base input'!$E$27:$E$76, 0), MATCH(BK$4, RAB_years, 0)) -> 0 | BL20: =INDEX('Capital base input'!$H$27:$XFD$76, MATCH($E20, 'Capital base input'!$E$27:$E$76, 0), MATCH(BL$4, RAB_years, 0)) -> 0 | BM20: =INDEX('Capital base input'!$H$27:$XFD$76, MATCH($E20, 'Capital base input'!$E$27:$E$76, 0), MATCH(BM$4, RAB_years, 0)) -> 0 | BN20: =INDEX('Capital base input'!$H$27:$XFD$76, MATCH($E20, 'Capital base input'!$E$27:$E$76, 0), MATCH(BN$4, RAB_years, 0)) -> 0 | BO20: =INDEX('Capital base input'!$H$27:$XFD$76, MATCH($E20, 'Capital base input'!$E$27:$E$76, 0), MATCH(BO$4, RAB_years, 0)) -> 0 | BP20: =INDEX('Capital base input'!$H$27:$XFD$76, MATCH($E20, 'Capital base input'!$E$27:$E$76, 0), MATCH(BP$4, RAB_years, 0)) -> 0 | BQ20: =INDEX('Capital base input'!$H$27:$XFD$76, MATCH($E20, 'Capital base input'!$E$27:$E$76, 0), MATCH(BQ$4, RAB_years, 0)) -> 0 | BR20: =INDEX('Capital base input'!$H$27:$XFD$76, MATCH($E20, 'Capital base input'!$E$27:$E$76, 0), MATCH(BR$4, RAB_years, 0)) -> 0 | BS20: =INDEX('Capital base input'!$H$27:$XFD$76, MATCH($E20, 'Capital base input'!$E$27:$E$76, 0), MATCH(BS$4, RAB_years, 0)) -> 0 | BT20: =INDEX('Capital base input'!$H$27:$XFD$76, MATCH($E20, 'Capital base input'!$E$27:$E$76, 0), MATCH(BT$4, RAB_years, 0)) -> 0 | BU20: =INDEX('Capital base input'!$H$27:$XFD$76, MATCH($E20, 'Capital base input'!$E$27:$E$76, 0), MATCH(BU$4, RAB_years, 0)) -> 0 | BV20: =INDEX('Capital base input'!$H$27:$XFD$76, MATCH($E20, 'Capital base input'!$E$27:$E$76, 0), MATCH(BV$4, RAB_years, 0)) -> 0 | BW20: =INDEX('Capital base input'!$H$27:$XFD$76, MATCH($E20, 'Capital base input'!$E$27:$E$76, 0), MATCH(BW$4, RAB_years, 0)) -> 0 | BX20: =INDEX('Capital base input'!$H$27:$XFD$76, MATCH($E20, 'Capital base input'!$E$27:$E$76, 0), MATCH(BX$4, RAB_years, 0)) -> 0 | BY20: =INDEX('Capital base input'!$H$27:$XFD$76, MATCH($E20, 'Capital base input'!$E$27:$E$76, 0), MATCH(BY$4, RAB_years, 0)) -> 0 | BZ20: =INDEX('Capital base input'!$H$27:$XFD$76, MATCH($E20, 'Capital base input'!$E$27:$E$76, 0), MATCH(BZ$4, RAB_years, 0)) -> 0 | CA20: =INDEX('Capital base input'!$H$27:$XFD$76, MATCH($E20, 'Capital base input'!$E$27:$E$76, 0), MATCH(CA$4, RAB_years, 0)) -> 0 | CB20: =INDEX('Capital base input'!$H$27:$XFD$76, MATCH($E20, 'Capital base input'!$E$27:$E$76, 0), MATCH(CB$4, RAB_years, 0)) -> 0 | CC20: =INDEX('Capital base input'!$H$27:$XFD$76, MATCH($E20, 'Capital base input'!$E$27:$E$76, 0), MATCH(CC$4, RAB_years, 0)) -> 0 | CD20: =INDEX('Capital base input'!$H$27:$XFD$76, MATCH($E20, 'Capital base input'!$E$27:$E$76, 0), MATCH(CD$4, RAB_years, 0)) -> 0 | CE20: =INDEX('Capital base input'!$H$27:$XFD$76, MATCH($E20, 'Capital base input'!$E$27:$E$76, 0), MATCH(CE$4, RAB_years, 0)) -> 0 | CF20: =INDEX('Capital base input'!$H$27:$XFD$76, MATCH($E20, 'Capital base input'!$E$27:$E$76, 0), MATCH(CF$4, RAB_years, 0)) -> 0 | CG20: =INDEX('Capital base input'!$H$27:$XFD$76, MATCH($E20, 'Capital base input'!$E$27:$E$76, 0), MATCH(CG$4, RAB_years, 0)) -> 0 | CH20: =INDEX('Capital base input'!$H$27:$XFD$76, MATCH($E20, 'Capital base input'!$E$27:$E$76, 0), MATCH(CH$4, RAB_years, 0)) -> 0 | CI20: =INDEX('Capital base input'!$H$27:$XFD$76, MATCH($E20, 'Capital base input'!$E$27:$E$76, 0), MATCH(CI$4, RAB_years, 0)) -> 0 | CJ20: =INDEX('Capital base input'!$H$27:$XFD$76, MATCH($E20, 'Capital base input'!$E$27:$E$76, 0), MATCH(CJ$4, RAB_years, 0)) -> 0 | CK20: =INDEX('Capital base input'!$H$27:$XFD$76, MATCH($E20, 'Capital base input'!$E$27:$E$76, 0), MATCH(CK$4, RAB_years, 0)) -> 0 | CL20: =INDEX('Capital base input'!$H$27:$XFD$76, MATCH($E20, 'Capital base input'!$E$27:$E$76, 0), MATCH(CL$4, RAB_years, 0)) -> 0 | CM20: =INDEX('Capital base input'!$H$27:$XFD$76, MATCH($E20, 'Capital base input'!$E$27:$E$76, 0), MATCH(CM$4, RAB_years, 0)) -> 0 | CN20: =INDEX('Capital base input'!$H$27:$XFD$76, MATCH($E20, 'Capital base input'!$E$27:$E$76, 0), MATCH(CN$4, RAB_years, 0)) -> 0 | CO20: =INDEX('Capital base input'!$H$27:$XFD$76, MATCH($E20, 'Capital base input'!$E$27:$E$76, 0), MATCH(CO$4, RAB_years, 0)) -> 0 | CP20: =INDEX('Capital base input'!$H$27:$XFD$76, MATCH($E20, 'Capital base input'!$E$27:$E$76, 0), MATCH(CP$4, RAB_years, 0)) -> 0 | CQ20: =INDEX('Capital base input'!$H$27:$XFD$76, MATCH($E20, 'Capital base input'!$E$27:$E$76, 0), MATCH(CQ$4, RAB_years, 0)) -> 0 | CR20: =INDEX('Capital base input'!$H$27:$XFD$76, MATCH($E20, 'Capital base input'!$E$27:$E$76, 0), MATCH(CR$4, RAB_years, 0)) -> 0 | CS20: =INDEX('Capital base input'!$H$27:$XFD$76, MATCH($E20, 'Capital base input'!$E$27:$E$76, 0), MATCH(CS$4, RAB_years, 0)) -> 0 | CT20: =INDEX('Capital base input'!$H$27:$XFD$76, MATCH($E20, 'Capital base input'!$E$27:$E$76, 0), MATCH(CT$4, RAB_years, 0)) -> 0 | CU20: =INDEX('Capital base input'!$H$27:$XFD$76, MATCH($E20, 'Capital base input'!$E$27:$E$76, 0), MATCH(CU$4, RAB_years, 0)) -> 0 | CV20: =INDEX('Capital base input'!$H$27:$XFD$76, MATCH($E20, 'Capital base input'!$E$27:$E$76, 0), MATCH(CV$4, RAB_years, 0)) -> 0 | CW20: =INDEX('Capital base input'!$H$27:$XFD$76, MATCH($E20, 'Capital base input'!$E$27:$E$76, 0), MATCH(CW$4, RAB_years, 0)) -> 0 | CX20: =INDEX('Capital base input'!$H$27:$XFD$76, MATCH($E20, 'Capital base input'!$E$27:$E$76, 0), MATCH(CX$4, RAB_years, 0)) -> 0 | CY20: =INDEX('Capital base input'!$H$27:$XFD$76, MATCH($E20, 'Capital base input'!$E$27:$E$76, 0), MATCH(CY$4, RAB_years, 0)) -> 0
D21: 4 | E21: ='Capital base input'!E30 -> Telemetry | G21: 1.544365899 | H21: =INDEX('Capital base input'!$H$27:$XFD$76, MATCH($E21, 'Capital base input'!$E$27:$E$76, 0), MATCH(H$4, RAB_years, 0)) -> 0.1994222578 | I21: =INDEX('Capital base input'!$H$27:$XFD$76, MATCH($E21, 'Capital base input'!$E$27:$E$76, 0), MATCH(I$4, RAB_years, 0)) -> 0.003270312391 | J21: =INDEX('Capital base input'!$H$27:$XFD$76, MATCH($E21, 'Capital base input'!$E$27:$E$76, 0), MATCH(J$4, RAB_years, 0)) -> 0.2055811376 | K21: =INDEX('Capital base input'!$H$27:$XFD$76, MATCH($E21, 'Capital base input'!$E$27:$E$76, 0), MATCH(K$4, RAB_years, 0)) -> 0.141555 | L21: =INDEX('Capital base input'!$H$27:$XFD$76, MATCH($E21, 'Capital base input'!$E$27:$E$76, 0), MATCH(L$4, RAB_years, 0)) -> 0.121491 | M21: =INDEX('Capital base input'!$H$27:$XFD$76, MATCH($E21, 'Capital base input'!$E$27:$E$76, 0), MATCH(M$4, RAB_years, 0)) -> 0.303216 | N21: =INDEX('Capital base input'!$H$27:$XFD$76, MATCH($E21, 'Capital base input'!$E$27:$E$76, 0), MATCH(N$4, RAB_years, 0)) -> 0.538994 | O21: =INDEX('Capital base input'!$H$27:$XFD$76, MATCH($E21, 'Capital base input'!$E$27:$E$76, 0), MATCH(O$4, RAB_years, 0)) -> 0.2263497783 | P21: =INDEX('Capital base input'!$H$27:$XFD$76, MATCH($E21, 'Capital base input'!$E$27:$E$76, 0), MATCH(P$4, RAB_years, 0)) -> 0.4374080487 | Q21: =INDEX('Capital base input'!$H$27:$XFD$76, MATCH($E21, 'Capital base input'!$E$27:$E$76, 0), MATCH(Q$4, RAB_years, 0)) -> 0.5256247064 | R21: =INDEX('Capital base input'!$H$27:$XFD$76, MATCH($E21, 'Capital base input'!$E$27:$E$76, 0), MATCH(R$4, RAB_years, 0)) -> 0 | S21: =INDEX('Capital base input'!$H$27:$XFD$76, MATCH($E21, 'Capital base input'!$E$27:$E$76, 0), MATCH(S$4, RAB_years, 0)) -> 0 | T21: =INDEX('Capital base input'!$H$27:$XFD$76, MATCH($E21, 'Capital base input'!$E$27:$E$76, 0), MATCH(T$4, RAB_years, 0)) -> 0 | U21: =INDEX('Capital base input'!$H$27:$XFD$76, MATCH($E21, 'Capital base input'!$E$27:$E$76, 0), MATCH(U$4, RAB_years, 0)) -> 0 | V21: =INDEX('Capital base input'!$H$27:$XFD$76, MATCH($E21, 'Capital base input'!$E$27:$E$76, 0), MATCH(V$4, RAB_years, 0)) -> 0 | W21: =INDEX('Capital base input'!$H$27:$XFD$76, MATCH($E21, 'Capital base input'!$E$27:$E$76, 0), MATCH(W$4, RAB_years, 0)) -> 0 | X21: =INDEX('Capital base input'!$H$27:$XFD$76, MATCH($E21, 'Capital base input'!$E$27:$E$76, 0), MATCH(X$4, RAB_years, 0)) -> 0 | Y21: =INDEX('Capital base input'!$H$27:$XFD$76, MATCH($E21, 'Capital base input'!$E$27:$E$76, 0), MATCH(Y$4, RAB_years, 0)) -> 0 | Z21: =INDEX('Capital base input'!$H$27:$XFD$76, MATCH($E21, 'Capital base input'!$E$27:$E$76, 0), MATCH(Z$4, RAB_years, 0)) -> 0 | AA21: =INDEX('Capital base input'!$H$27:$XFD$76, MATCH($E21, 'Capital base input'!$E$27:$E$76, 0), MATCH(AA$4, RAB_years, 0)) -> 0 | AB21: =INDEX('Capital base input'!$H$27:$XFD$76, MATCH($E21, 'Capital base input'!$E$27:$E$76, 0), MATCH(AB$4, RAB_years, 0)) -> 0 | AC21: =INDEX('Capital base input'!$H$27:$XFD$76, MATCH($E21, 'Capital base input'!$E$27:$E$76, 0), MATCH(AC$4, RAB_years, 0)) -> 0 | AD21: =INDEX('Capital base input'!$H$27:$XFD$76, MATCH($E21, 'Capital base input'!$E$27:$E$76, 0), MATCH(AD$4, RAB_years, 0)) -> 0 | AE21: =INDEX('Capital base input'!$H$27:$XFD$76, MATCH($E21, 'Capital base input'!$E$27:$E$76, 0), MATCH(AE$4, RAB_years, 0)) -> 0 | AF21: =INDEX('Capital base input'!$H$27:$XFD$76, MATCH($E21, 'Capital base input'!$E$27:$E$76, 0), MATCH(AF$4, RAB_years, 0)) -> 0 | AG21: =INDEX('Capital base input'!$H$27:$XFD$76, MATCH($E21, 'Capital base input'!$E$27:$E$76, 0), MATCH(AG$4, RAB_years, 0)) -> 0 | AH21: =INDEX('Capital base input'!$H$27:$XFD$76, MATCH($E21, 'Capital base input'!$E$27:$E$76, 0), MATCH(AH$4, RAB_years, 0)) -> 0 | AI21: =INDEX('Capital base input'!$H$27:$XFD$76, MATCH($E21, 'Capital base input'!$E$27:$E$76, 0), MATCH(AI$4, RAB_years, 0)) -> 0 | AJ21: =INDEX('Capital base input'!$H$27:$XFD$76, MATCH($E21, 'Capital base input'!$E$27:$E$76, 0), MATCH(AJ$4, RAB_years, 0)) -> 0 | AK21: =INDEX('Capital base input'!$H$27:$XFD$76, MATCH($E21, 'Capital base input'!$E$27:$E$76, 0), MATCH(AK$4, RAB_years, 0)) -> 0 | AL21: =INDEX('Capital base input'!$H$27:$XFD$76, MATCH($E21, 'Capital base input'!$E$27:$E$76, 0), MATCH(AL$4, RAB_years, 0)) -> 0 | AM21: =INDEX('Capital base input'!$H$27:$XFD$76, MATCH($E21, 'Capital base input'!$E$27:$E$76, 0), MATCH(AM$4, RAB_years, 0)) -> 0 | AN21: =INDEX('Capital base input'!$H$27:$XFD$76, MATCH($E21, 'Capital base input'!$E$27:$E$76, 0), MATCH(AN$4, RAB_years, 0)) -> 0 | AO21: =INDEX('Capital base input'!$H$27:$XFD$76, MATCH($E21, 'Capital base input'!$E$27:$E$76, 0), MATCH(AO$4, RAB_years, 0)) -> 0 | AP21: =INDEX('Capital base input'!$H$27:$XFD$76, MATCH($E21, 'Capital base input'!$E$27:$E$76, 0), MATCH(AP$4, RAB_years, 0)) -> 0 | AQ21: =INDEX('Capital base input'!$H$27:$XFD$76, MATCH($E21, 'Capital base input'!$E$27:$E$76, 0), MATCH(AQ$4, RAB_years, 0)) -> 0 | AR21: =INDEX('Capital base input'!$H$27:$XFD$76, MATCH($E21, 'Capital base input'!$E$27:$E$76, 0), MATCH(AR$4, RAB_years, 0)) -> 0 | AS21: =INDEX('Capital base input'!$H$27:$XFD$76, MATCH($E21, 'Capital base input'!$E$27:$E$76, 0), MATCH(AS$4, RAB_years, 0)) -> 0 | AT21: =INDEX('Capital base input'!$H$27:$XFD$76, MATCH($E21, 'Capital base input'!$E$27:$E$76, 0), MATCH(AT$4, RAB_years, 0)) -> 0 | AU21: =INDEX('Capital base input'!$H$27:$XFD$76, MATCH($E21, 'Capital base input'!$E$27:$E$76, 0), MATCH(AU$4, RAB_years, 0)) -> 0 | AV21: =INDEX('Capital base input'!$H$27:$XFD$76, MATCH($E21, 'Capital base input'!$E$27:$E$76, 0), MATCH(AV$4, RAB_years, 0)) -> 0 | AW21: =INDEX('Capital base input'!$H$27:$XFD$76, MATCH($E21, 'Capital base input'!$E$27:$E$76, 0), MATCH(AW$4, RAB_years, 0)) -> 0 | AX21: =INDEX('Capital base input'!$H$27:$XFD$76, MATCH($E21, 'Capital base input'!$E$27:$E$76, 0), MATCH(AX$4, RAB_years, 0)) -> 0 | AY21: =INDEX('Capital base input'!$H$27:$XFD$76, MATCH($E21, 'Capital base input'!$E$27:$E$76, 0), MATCH(AY$4, RAB_years, 0)) -> 0 | AZ21: =INDEX('Capital base input'!$H$27:$XFD$76, MATCH($E21, 'Capital base input'!$E$27:$E$76, 0), MATCH(AZ$4, RAB_years, 0)) -> 0 | BA21: =INDEX('Capital base input'!$H$27:$XFD$76, MATCH($E21, 'Capital base input'!$E$27:$E$76, 0), MATCH(BA$4, RAB_years, 0)) -> 0 | BB21: =INDEX('Capital base input'!$H$27:$XFD$76, MATCH($E21, 'Capital base input'!$E$27:$E$76, 0), MATCH(BB$4, RAB_years, 0)) -> 0 | BC21: =INDEX('Capital base input'!$H$27:$XFD$76, MATCH($E21, 'Capital base input'!$E$27:$E$76, 0), MATCH(BC$4, RAB_years, 0)) -> 0 | BD21: =INDEX('Capital base input'!$H$27:$XFD$76, MATCH($E21, 'Capital base input'!$E$27:$E$76, 0), MATCH(BD$4, RAB_years, 0)) -> 0 | BE21: =INDEX('Capital base input'!$H$27:$XFD$76, MATCH($E21, 'Capital base input'!$E$27:$E$76, 0), MATCH(BE$4, RAB_years, 0)) -> 0 | BF21: =INDEX('Capital base input'!$H$27:$XFD$76, MATCH($E21, 'Capital base input'!$E$27:$E$76, 0), MATCH(BF$4, RAB_years, 0)) -> 0 | BG21: =INDEX('Capital base input'!$H$27:$XFD$76, MATCH($E21, 'Capital base input'!$E$27:$E$76, 0), MATCH(BG$4, RAB_years, 0)) -> 0 | BH21: =INDEX('Capital base input'!$H$27:$XFD$76, MATCH($E21, 'Capital base input'!$E$27:$E$76, 0), MATCH(BH$4, RAB_years, 0)) -> 0 | BI21: =INDEX('Capital base input'!$H$27:$XFD$76, MATCH($E21, 'Capital base input'!$E$27:$E$76, 0), MATCH(BI$4, RAB_years, 0)) -> 0 | BJ21: =INDEX('Capital base input'!$H$27:$XFD$76, MATCH($E21, 'Capital base input'!$E$27:$E$76, 0), MATCH(BJ$4, RAB_years, 0)) -> 0 | BK21: =INDEX('Capital base input'!$H$27:$XFD$76, MATCH($E21, 'Capital base input'!$E$27:$E$76, 0), MATCH(BK$4, RAB_years, 0)) -> 0 | BL21: =INDEX('Capital base input'!$H$27:$XFD$76, MATCH($E21, 'Capital base input'!$E$27:$E$76, 0), MATCH(BL$4, RAB_years, 0)) -> 0 | BM21: =INDEX('Capital base input'!$H$27:$XFD$76, MATCH($E21, 'Capital base input'!$E$27:$E$76, 0), MATCH(BM$4, RAB_years, 0)) -> 0 | BN21: =INDEX('Capital base input'!$H$27:$XFD$76, MATCH($E21, 'Capital base input'!$E$27:$E$76, 0), MATCH(BN$4, RAB_years, 0)) -> 0 | BO21: =INDEX('Capital base input'!$H$27:$XFD$76, MATCH($E21, 'Capital base input'!$E$27:$E$76, 0), MATCH(BO$4, RAB_years, 0)) -> 0 | BP21: =INDEX('Capital base input'!$H$27:$XFD$76, MATCH($E21, 'Capital base input'!$E$27:$E$76, 0), MATCH(BP$4, RAB_years, 0)) -> 0 | BQ21: =INDEX('Capital base input'!$H$27:$XFD$76, MATCH($E21, 'Capital base input'!$E$27:$E$76, 0), MATCH(BQ$4, RAB_years, 0)) -> 0 | BR21: =INDEX('Capital base input'!$H$27:$XFD$76, MATCH($E21, 'Capital base input'!$E$27:$E$76, 0), MATCH(BR$4, RAB_years, 0)) -> 0 | BS21: =INDEX('Capital base input'!$H$27:$XFD$76, MATCH($E21, 'Capital base input'!$E$27:$E$76, 0), MATCH(BS$4, RAB_years, 0)) -> 0 | BT21: =INDEX('Capital base input'!$H$27:$XFD$76, MATCH($E21, 'Capital base input'!$E$27:$E$76, 0), MATCH(BT$4, RAB_years, 0)) -> 0 | BU21: =INDEX('Capital base input'!$H$27:$XFD$76, MATCH($E21, 'Capital base input'!$E$27:$E$76, 0), MATCH(BU$4, RAB_years, 0)) -> 0 | BV21: =INDEX('Capital base input'!$H$27:$XFD$76, MATCH($E21, 'Capital base input'!$E$27:$E$76, 0), MATCH(BV$4, RAB_years, 0)) -> 0 | BW21: =INDEX('Capital base input'!$H$27:$XFD$76, MATCH($E21, 'Capital base input'!$E$27:$E$76, 0), MATCH(BW$4, RAB_years, 0)) -> 0 | BX21: =INDEX('Capital base input'!$H$27:$XFD$76, MATCH($E21, 'Capital base input'!$E$27:$E$76, 0), MATCH(BX$4, RAB_years, 0)) -> 0 | BY21: =INDEX('Capital base input'!$H$27:$XFD$76, MATCH($E21, 'Capital base input'!$E$27:$E$76, 0), MATCH(BY$4, RAB_years, 0)) -> 0 | BZ21: =INDEX('Capital base input'!$H$27:$XFD$76, MATCH($E21, 'Capital base input'!$E$27:$E$76, 0), MATCH(BZ$4, RAB_years, 0)) -> 0 | CA21: =INDEX('Capital base input'!$H$27:$XFD$76, MATCH($E21, 'Capital base input'!$E$27:$E$76, 0), MATCH(CA$4, RAB_years, 0)) -> 0 | CB21: =INDEX('Capital base input'!$H$27:$XFD$76, MATCH($E21, 'Capital base input'!$E$27:$E$76, 0), MATCH(CB$4, RAB_years, 0)) -> 0 | CC21: =INDEX('Capital base input'!$H$27:$XFD$76, MATCH($E21, 'Capital base input'!$E$27:$E$76, 0), MATCH(CC$4, RAB_years, 0)) -> 0 | CD21: =INDEX('Capital base input'!$H$27:$XFD$76, MATCH($E21, 'Capital base input'!$E$27:$E$76, 0), MATCH(CD$4, RAB_years, 0)) -> 0 | CE21: =INDEX('Capital base input'!$H$27:$XFD$76, MATCH($E21, 'Capital base input'!$E$27:$E$76, 0), MATCH(CE$4, RAB_years, 0)) -> 0 | CF21: =INDEX('Capital base input'!$H$27:$XFD$76, MATCH($E21, 'Capital base input'!$E$27:$E$76, 0), MATCH(CF$4, RAB_years, 0)) -> 0 | CG21: =INDEX('Capital base input'!$H$27:$XFD$76, MATCH($E21, 'Capital base input'!$E$27:$E$76, 0), MATCH(CG$4, RAB_years, 0)) -> 0 | CH21: =INDEX('Capital base input'!$H$27:$XFD$76, MATCH($E21, 'Capital base input'!$E$27:$E$76, 0), MATCH(CH$4, RAB_years, 0)) -> 0 | CI21: =INDEX('Capital base input'!$H$27:$XFD$76, MATCH($E21, 'Capital base input'!$E$27:$E$76, 0), MATCH(CI$4, RAB_years, 0)) -> 0 | CJ21: =INDEX('Capital base input'!$H$27:$XFD$76, MATCH($E21, 'Capital base input'!$E$27:$E$76, 0), MATCH(CJ$4, RAB_years, 0)) -> 0 | CK21: =INDEX('Capital base input'!$H$27:$XFD$76, MATCH($E21, 'Capital base input'!$E$27:$E$76, 0), MATCH(CK$4, RAB_years, 0)) -> 0 | CL21: =INDEX('Capital base input'!$H$27:$XFD$76, MATCH($E21, 'Capital base input'!$E$27:$E$76, 0), MATCH(CL$4, RAB_years, 0)) -> 0 | CM21: =INDEX('Capital base input'!$H$27:$XFD$76, MATCH($E21, 'Capital base input'!$E$27:$E$76, 0), MATCH(CM$4, RAB_years, 0)) -> 0 | CN21: =INDEX('Capital base input'!$H$27:$XFD$76, MATCH($E21, 'Capital base input'!$E$27:$E$76, 0), MATCH(CN$4, RAB_years, 0)) -> 0 | CO21: =INDEX('Capital base input'!$H$27:$XFD$76, MATCH($E21, 'Capital base input'!$E$27:$E$76, 0), MATCH(CO$4, RAB_years, 0)) -> 0 | CP21: =INDEX('Capital base input'!$H$27:$XFD$76, MATCH($E21, 'Capital base input'!$E$27:$E$76, 0), MATCH(CP$4, RAB_years, 0)) -> 0 | CQ21: =INDEX('Capital base input'!$H$27:$XFD$76, MATCH($E21, 'Capital base input'!$E$27:$E$76, 0), MATCH(CQ$4, RAB_years, 0)) -> 0 | CR21: =INDEX('Capital base input'!$H$27:$XFD$76, MATCH($E21, 'Capital base input'!$E$27:$E$76, 0), MATCH(CR$4, RAB_years, 0)) -> 0 | CS21: =INDEX('Capital base input'!$H$27:$XFD$76, MATCH($E21, 'Capital base input'!$E$27:$E$76, 0), MATCH(CS$4, RAB_years, 0)) -> 0 | CT21: =INDEX('Capital base input'!$H$27:$XFD$76, MATCH($E21, 'Capital base input'!$E$27:$E$76, 0), MATCH(CT$4, RAB_years, 0)) -> 0 | CU21: =INDEX('Capital base input'!$H$27:$XFD$76, MATCH($E21, 'Capital base input'!$E$27:$E$76, 0), MATCH(CU$4, RAB_years, 0)) -> 0 | CV21: =INDEX('Capital base input'!$H$27:$XFD$76, MATCH($E21, 'Capital base input'!$E$27:$E$76, 0), MATCH(CV$4, RAB_years, 0)) -> 0 | CW21: =INDEX('Capital base input'!$H$27:$XFD$76, MATCH($E21, 'Capital base input'!$E$27:$E$76, 0), MATCH(CW$4, RAB_years, 0)) -> 0 | CX21: =INDEX('Capital base input'!$H$27:$XFD$76, MATCH($E21, 'Capital base input'!$E$27:$E$76, 0), MATCH(CX$4, RAB_years, 0)) -> 0 | CY21: =INDEX('Capital base input'!$H$27:$XFD$76, MATCH($E21, 'Capital base input'!$E$27:$E$76, 0), MATCH(CY$4, RAB_years, 0)) -> 0
D22: 5 | E22: ='Capital base input'!E31 -> IT System | G22: 13.26228805 | H22: =INDEX('Capital base input'!$H$27:$XFD$76, MATCH($E22, 'Capital base input'!$E$27:$E$76, 0), MATCH(H$4, RAB_years, 0)) -> 0.7595921506 | I22: =INDEX('Capital base input'!$H$27:$XFD$76, MATCH($E22, 'Capital base input'!$E$27:$E$76, 0), MATCH(I$4, RAB_years, 0)) -> 3.386311851 | J22: =INDEX('Capital base input'!$H$27:$XFD$76, MATCH($E22, 'Capital base input'!$E$27:$E$76, 0), MATCH(J$4, RAB_years, 0)) -> 5.064835226 | K22: =INDEX('Capital base input'!$H$27:$XFD$76, MATCH($E22, 'Capital base input'!$E$27:$E$76, 0), MATCH(K$4, RAB_years, 0)) -> 5.039743 | L22: =INDEX('Capital base input'!$H$27:$XFD$76, MATCH($E22, 'Capital base input'!$E$27:$E$76, 0), MATCH(L$4, RAB_years, 0)) -> 8.124313 | M22: =INDEX('Capital base input'!$H$27:$XFD$76, MATCH($E22, 'Capital base input'!$E$27:$E$76, 0), MATCH(M$4, RAB_years, 0)) -> 8.962729 | N22: =INDEX('Capital base input'!$H$27:$XFD$76, MATCH($E22, 'Capital base input'!$E$27:$E$76, 0), MATCH(N$4, RAB_years, 0)) -> 5.429452 | O22: =INDEX('Capital base input'!$H$27:$XFD$76, MATCH($E22, 'Capital base input'!$E$27:$E$76, 0), MATCH(O$4, RAB_years, 0)) -> 2.769427212 | P22: =INDEX('Capital base input'!$H$27:$XFD$76, MATCH($E22, 'Capital base input'!$E$27:$E$76, 0), MATCH(P$4, RAB_years, 0)) -> 10.87389322 | Q22: =INDEX('Capital base input'!$H$27:$XFD$76, MATCH($E22, 'Capital base input'!$E$27:$E$76, 0), MATCH(Q$4, RAB_years, 0)) -> 7.598190827 | R22: =INDEX('Capital base input'!$H$27:$XFD$76, MATCH($E22, 'Capital base input'!$E$27:$E$76, 0), MATCH(R$4, RAB_years, 0)) -> 0 | S22: =INDEX('Capital base input'!$H$27:$XFD$76, MATCH($E22, 'Capital base input'!$E$27:$E$76, 0), MATCH(S$4, RAB_years, 0)) -> 0 | T22: =INDEX('Capital base input'!$H$27:$XFD$76, MATCH($E22, 'Capital base input'!$E$27:$E$76, 0), MATCH(T$4, RAB_years, 0)) -> 0 | U22: =INDEX('Capital base input'!$H$27:$XFD$76, MATCH($E22, 'Capital base input'!$E$27:$E$76, 0), MATCH(U$4, RAB_years, 0)) -> 0 | V22: =INDEX('Capital base input'!$H$27:$XFD$76, MATCH($E22, 'Capital base input'!$E$27:$E$76, 0), MATCH(V$4, RAB_years, 0)) -> 0 | W22: =INDEX('Capital base input'!$H$27:$XFD$76, MATCH($E22, 'Capital base input'!$E$27:$E$76, 0), MATCH(W$4, RAB_years, 0)) -> 0 | X22: =INDEX('Capital base input'!$H$27:$XFD$76, MATCH($E22, 'Capital base input'!$E$27:$E$76, 0), MATCH(X$4, RAB_years, 0)) -> 0 | Y22: =INDEX('Capital base input'!$H$27:$XFD$76, MATCH($E22, 'Capital base input'!$E$27:$E$76, 0), MATCH(Y$4, RAB_years, 0)) -> 0 | Z22: =INDEX('Capital base input'!$H$27:$XFD$76, MATCH($E22, 'Capital base input'!$E$27:$E$76, 0), MATCH(Z$4, RAB_years, 0)) -> 0 | AA22: =INDEX('Capital base input'!$H$27:$XFD$76, MATCH($E22, 'Capital base input'!$E$27:$E$76, 0), MATCH(AA$4, RAB_years, 0)) -> 0 | AB22: =INDEX('Capital base input'!$H$27:$XFD$76, MATCH($E22, 'Capital base input'!$E$27:$E$76, 0), MATCH(AB$4, RAB_years, 0)) -> 0 | AC22: =INDEX('Capital base input'!$H$27:$XFD$76, MATCH($E22, 'Capital base input'!$E$27:$E$76, 0), MATCH(AC$4, RAB_years, 0)) -> 0 | AD22: =INDEX('Capital base input'!$H$27:$XFD$76, MATCH($E22, 'Capital base input'!$E$27:$E$76, 0), MATCH(AD$4, RAB_years, 0)) -> 0 | AE22: =INDEX('Capital base input'!$H$27:$XFD$76, MATCH($E22, 'Capital base input'!$E$27:$E$76, 0), MATCH(AE$4, RAB_years, 0)) -> 0 | AF22: =INDEX('Capital base input'!$H$27:$XFD$76, MATCH($E22, 'Capital base input'!$E$27:$E$76, 0), MATCH(AF$4, RAB_years, 0)) -> 0 | AG22: =INDEX('Capital base input'!$H$27:$XFD$76, MATCH($E22, 'Capital base input'!$E$27:$E$76, 0), MATCH(AG$4, RAB_years, 0)) -> 0 | AH22: =INDEX('Capital base input'!$H$27:$XFD$76, MATCH($E22, 'Capital base input'!$E$27:$E$76, 0), MATCH(AH$4, RAB_years, 0)) -> 0 | AI22: =INDEX('Capital base input'!$H$27:$XFD$76, MATCH($E22, 'Capital base input'!$E$27:$E$76, 0), MATCH(AI$4, RAB_years, 0)) -> 0 | AJ22: =INDEX('Capital base input'!$H$27:$XFD$76, MATCH($E22, 'Capital base input'!$E$27:$E$76, 0), MATCH(AJ$4, RAB_years, 0)) -> 0 | AK22: =INDEX('Capital base input'!$H$27:$XFD$76, MATCH($E22, 'Capital base input'!$E$27:$E$76, 0), MATCH(AK$4, RAB_years, 0)) -> 0 | AL22: =INDEX('Capital base input'!$H$27:$XFD$76, MATCH($E22, 'Capital base input'!$E$27:$E$76, 0), MATCH(AL$4, RAB_years, 0)) -> 0 | AM22: =INDEX('Capital base input'!$H$27:$XFD$76, MATCH($E22, 'Capital base input'!$E$27:$E$76, 0), MATCH(AM$4, RAB_years, 0)) -> 0 | AN22: =INDEX('Capital base input'!$H$27:$XFD$76, MATCH($E22, 'Capital base input'!$E$27:$E$76, 0), MATCH(AN$4, RAB_years, 0)) -> 0 | AO22: =INDEX('Capital base input'!$H$27:$XFD$76, MATCH($E22, 'Capital base input'!$E$27:$E$76, 0), MATCH(AO$4, RAB_years, 0)) -> 0 | AP22: =INDEX('Capital base input'!$H$27:$XFD$76, MATCH($E22, 'Capital base input'!$E$27:$E$76, 0), MATCH(AP$4, RAB_years, 0)) -> 0 | AQ22: =INDEX('Capital base input'!$H$27:$XFD$76, MATCH($E22, 'Capital base input'!$E$27:$E$76, 0), MATCH(AQ$4, RAB_years, 0)) -> 0 | AR22: =INDEX('Capital base input'!$H$27:$XFD$76, MATCH($E22, 'Capital base input'!$E$27:$E$76, 0), MATCH(AR$4, RAB_years, 0)) -> 0 | AS22: =INDEX('Capital base input'!$H$27:$XFD$76, MATCH($E22, 'Capital base input'!$E$27:$E$76, 0), MATCH(AS$4, RAB_years, 0)) -> 0 | AT22: =INDEX('Capital base input'!$H$27:$XFD$76, MATCH($E22, 'Capital base input'!$E$27:$E$76, 0), MATCH(AT$4, RAB_years, 0)) -> 0 | AU22: =INDEX('Capital base input'!$H$27:$XFD$76, MATCH($E22, 'Capital base input'!$E$27:$E$76, 0), MATCH(AU$4, RAB_years, 0)) -> 0 | AV22: =INDEX('Capital base input'!$H$27:$XFD$76, MATCH($E22, 'Capital base input'!$E$27:$E$76, 0), MATCH(AV$4, RAB_years, 0)) -> 0 | AW22: =INDEX('Capital base input'!$H$27:$XFD$76, MATCH($E22, 'Capital base input'!$E$27:$E$76, 0), MATCH(AW$4, RAB_years, 0)) -> 0 | AX22: =INDEX('Capital base input'!$H$27:$XFD$76, MATCH($E22, 'Capital base input'!$E$27:$E$76, 0), MATCH(AX$4, RAB_years, 0)) -> 0 | AY22: =INDEX('Capital base input'!$H$27:$XFD$76, MATCH($E22, 'Capital base input'!$E$27:$E$76, 0), MATCH(AY$4, RAB_years, 0)) -> 0 | AZ22: =INDEX('Capital base input'!$H$27:$XFD$76, MATCH($E22, 'Capital base input'!$E$27:$E$76, 0), MATCH(AZ$4, RAB_years, 0)) -> 0 | BA22: =INDEX('Capital base input'!$H$27:$XFD$76, MATCH($E22, 'Capital base input'!$E$27:$E$76, 0), MATCH(BA$4, RAB_years, 0)) -> 0 | BB22: =INDEX('Capital base input'!$H$27:$XFD$76, MATCH($E22, 'Capital base input'!$E$27:$E$76, 0), MATCH(BB$4, RAB_years, 0)) -> 0 | BC22: =INDEX('Capital base input'!$H$27:$XFD$76, MATCH($E22, 'Capital base input'!$E$27:$E$76, 0), MATCH(BC$4, RAB_years, 0)) -> 0 | BD22: =INDEX('Capital base input'!$H$27:$XFD$76, MATCH($E22, 'Capital base input'!$E$27:$E$76, 0), MATCH(BD$4, RAB_years, 0)) -> 0 | BE22: =INDEX('Capital base input'!$H$27:$XFD$76, MATCH($E22, 'Capital base input'!$E$27:$E$76, 0), MATCH(BE$4, RAB_years, 0)) -> 0 | BF22: =INDEX('Capital base input'!$H$27:$XFD$76, MATCH($E22, 'Capital base input'!$E$27:$E$76, 0), MATCH(BF$4, RAB_years, 0)) -> 0 | BG22: =INDEX('Capital base input'!$H$27:$XFD$76, MATCH($E22, 'Capital base input'!$E$27:$E$76, 0), MATCH(BG$4, RAB_years, 0)) -> 0 | BH22: =INDEX('Capital base input'!$H$27:$XFD$76, MATCH($E22, 'Capital base input'!$E$27:$E$76, 0), MATCH(BH$4, RAB_years, 0)) -> 0 | BI22: =INDEX('Capital base input'!$H$27:$XFD$76, MATCH($E22, 'Capital base input'!$E$27:$E$76, 0), MATCH(BI$4, RAB_years, 0)) -> 0 | BJ22: =INDEX('Capital base input'!$H$27:$XFD$76, MATCH($E22, 'Capital base input'!$E$27:$E$76, 0), MATCH(BJ$4, RAB_years, 0)) -> 0 | BK22: =INDEX('Capital base input'!$H$27:$XFD$76, MATCH($E22, 'Capital base input'!$E$27:$E$76, 0), MATCH(BK$4, RAB_years, 0)) -> 0 | BL22: =INDEX('Capital base input'!$H$27:$XFD$76, MATCH($E22, 'Capital base input'!$E$27:$E$76, 0), MATCH(BL$4, RAB_years, 0)) -> 0 | BM22: =INDEX('Capital base input'!$H$27:$XFD$76, MATCH($E22, 'Capital base input'!$E$27:$E$76, 0), MATCH(BM$4, RAB_years, 0)) -> 0 | BN22: =INDEX('Capital base input'!$H$27:$XFD$76, MATCH($E22, 'Capital base input'!$E$27:$E$76, 0), MATCH(BN$4, RAB_years, 0)) -> 0 | BO22: =INDEX('Capital base input'!$H$27:$XFD$76, MATCH($E22, 'Capital base input'!$E$27:$E$76, 0), MATCH(BO$4, RAB_years, 0)) -> 0 | BP22: =INDEX('Capital base input'!$H$27:$XFD$76, MATCH($E22, 'Capital base input'!$E$27:$E$76, 0), MATCH(BP$4, RAB_years, 0)) -> 0 | BQ22: =INDEX('Capital base input'!$H$27:$XFD$76, MATCH($E22, 'Capital base input'!$E$27:$E$76, 0), MATCH(BQ$4, RAB_years, 0)) -> 0 | BR22: =INDEX('Capital base input'!$H$27:$XFD$76, MATCH($E22, 'Capital base input'!$E$27:$E$76, 0), MATCH(BR$4, RAB_years, 0)) -> 0 | BS22: =INDEX('Capital base input'!$H$27:$XFD$76, MATCH($E22, 'Capital base input'!$E$27:$E$76, 0), MATCH(BS$4, RAB_years, 0)) -> 0 | BT22: =INDEX('Capital base input'!$H$27:$XFD$76, MATCH($E22, 'Capital base input'!$E$27:$E$76, 0), MATCH(BT$4, RAB_years, 0)) -> 0 | BU22: =INDEX('Capital base input'!$H$27:$XFD$76, MATCH($E22, 'Capital base input'!$E$27:$E$76, 0), MATCH(BU$4, RAB_years, 0)) -> 0 | BV22: =INDEX('Capital base input'!$H$27:$XFD$76, MATCH($E22, 'Capital base input'!$E$27:$E$76, 0), MATCH(BV$4, RAB_years, 0)) -> 0 | BW22: =INDEX('Capital base input'!$H$27:$XFD$76, MATCH($E22, 'Capital base input'!$E$27:$E$76, 0), MATCH(BW$4, RAB_years, 0)) -> 0 | BX22: =INDEX('Capital base input'!$H$27:$XFD$76, MATCH($E22, 'Capital base input'!$E$27:$E$76, 0), MATCH(BX$4, RAB_years, 0)) -> 0 | BY22: =INDEX('Capital base input'!$H$27:$XFD$76, MATCH($E22, 'Capital base input'!$E$27:$E$76, 0), MATCH(BY$4, RAB_years, 0)) -> 0 | BZ22: =INDEX('Capital base input'!$H$27:$XFD$76, MATCH($E22, 'Capital base input'!$E$27:$E$76, 0), MATCH(BZ$4, RAB_years, 0)) -> 0 | CA22: =INDEX('Capital base input'!$H$27:$XFD$76, MATCH($E22, 'Capital base input'!$E$27:$E$76, 0), MATCH(CA$4, RAB_years, 0)) -> 0 | CB22: =INDEX('Capital base input'!$H$27:$XFD$76, MATCH($E22, 'Capital base input'!$E$27:$E$76, 0), MATCH(CB$4, RAB_years, 0)) -> 0 | CC22: =INDEX('Capital base input'!$H$27:$XFD$76, MATCH($E22, 'Capital base input'!$E$27:$E$76, 0), MATCH(CC$4, RAB_years, 0)) -> 0 | CD22: =INDEX('Capital base input'!$H$27:$XFD$76, MATCH($E22, 'Capital base input'!$E$27:$E$76, 0), MATCH(CD$4, RAB_years, 0)) -> 0 | CE22: =INDEX('Capital base input'!$H$27:$XFD$76, MATCH($E22, 'Capital base input'!$E$27:$E$76, 0), MATCH(CE$4, RAB_years, 0)) -> 0 | CF22: =INDEX('Capital base input'!$H$27:$XFD$76, MATCH($E22, 'Capital base input'!$E$27:$E$76, 0), MATCH(CF$4, RAB_years, 0)) -> 0 | CG22: =INDEX('Capital base input'!$H$27:$XFD$76, MATCH($E22, 'Capital base input'!$E$27:$E$76, 0), MATCH(CG$4, RAB_years, 0)) -> 0 | CH22: =INDEX('Capital base input'!$H$27:$XFD$76, MATCH($E22, 'Capital base input'!$E$27:$E$76, 0), MATCH(CH$4, RAB_years, 0)) -> 0 | CI22: =INDEX('Capital base input'!$H$27:$XFD$76, MATCH($E22, 'Capital base input'!$E$27:$E$76, 0), MATCH(CI$4, RAB_years, 0)) -> 0 | CJ22: =INDEX('Capital base input'!$H$27:$XFD$76, MATCH($E22, 'Capital base input'!$E$27:$E$76, 0), MATCH(CJ$4, RAB_years, 0)) -> 0 | CK22: =INDEX('Capital base input'!$H$27:$XFD$76, MATCH($E22, 'Capital base input'!$E$27:$E$76, 0), MATCH(CK$4, RAB_years, 0)) -> 0 | CL22: =INDEX('Capital base input'!$H$27:$XFD$76, MATCH($E22, 'Capital base input'!$E$27:$E$76, 0), MATCH(CL$4, RAB_years, 0)) -> 0 | CM22: =INDEX('Capital base input'!$H$27:$XFD$76, MATCH($E22, 'Capital base input'!$E$27:$E$76, 0), MATCH(CM$4, RAB_years, 0)) -> 0 | CN22: =INDEX('Capital base input'!$H$27:$XFD$76, MATCH($E22, 'Capital base input'!$E$27:$E$76, 0), MATCH(CN$4, RAB_years, 0)) -> 0 | CO22: =INDEX('Capital base input'!$H$27:$XFD$76, MATCH($E22, 'Capital base input'!$E$27:$E$76, 0), MATCH(CO$4, RAB_years, 0)) -> 0 | CP22: =INDEX('Capital base input'!$H$27:$XFD$76, MATCH($E22, 'Capital base input'!$E$27:$E$76, 0), MATCH(CP$4, RAB_years, 0)) -> 0 | CQ22: =INDEX('Capital base input'!$H$27:$XFD$76, MATCH($E22, 'Capital base input'!$E$27:$E$76, 0), MATCH(CQ$4, RAB_years, 0)) -> 0 | CR22: =INDEX('Capital base input'!$H$27:$XFD$76, MATCH($E22, 'Capital base input'!$E$27:$E$76, 0), MATCH(CR$4, RAB_years, 0)) -> 0 | CS22: =INDEX('Capital base input'!$H$27:$XFD$76, MATCH($E22, 'Capital base input'!$E$27:$E$76, 0), MATCH(CS$4, RAB_years, 0)) -> 0 | CT22: =INDEX('Capital base input'!$H$27:$XFD$76, MATCH($E22, 'Capital base input'!$E$27:$E$76, 0), MATCH(CT$4, RAB_years, 0)) -> 0 | CU22: =INDEX('Capital base input'!$H$27:$XFD$76, MATCH($E22, 'Capital base input'!$E$27:$E$76, 0), MATCH(CU$4, RAB_years, 0)) -> 0 | CV22: =INDEX('Capital base input'!$H$27:$XFD$76, MATCH($E22, 'Capital base input'!$E$27:$E$76, 0), MATCH(CV$4, RAB_years, 0)) -> 0 | CW22: =INDEX('Capital base input'!$H$27:$XFD$76, MATCH($E22, 'Capital base input'!$E$27:$E$76, 0), MATCH(CW$4, RAB_years, 0)) -> 0 | CX22: =INDEX('Capital base input'!$H$27:$XFD$76, MATCH($E22, 'Capital base input'!$E$27:$E$76, 0), MATCH(CX$4, RAB_years, 0)) -> 0 | CY22: =INDEX('Capital base input'!$H$27:$XFD$76, MATCH($E22, 'Capital base input'!$E$27:$E$76, 0), MATCH(CY$4, RAB_years, 0)) -> 0
D23: 6 | E23: ='Capital base input'!E32 -> Other Distribution System Equipment | G23: 18.51268849 | H23: =INDEX('Capital base input'!$H$27:$XFD$76, MATCH($E23, 'Capital base input'!$E$27:$E$76, 0), MATCH(H$4, RAB_years, 0)) -> 1.994479894 | I23: =INDEX('Capital base input'!$H$27:$XFD$76, MATCH($E23, 'Capital base input'!$E$27:$E$76, 0), MATCH(I$4, RAB_years, 0)) -> 2.577514292 | J23: =INDEX('Capital base input'!$H$27:$XFD$76, MATCH($E23, 'Capital base input'!$E$27:$E$76, 0), MATCH(J$4, RAB_years, 0)) -> 2.951148154 | K23: =INDEX('Capital base input'!$H$27:$XFD$76, MATCH($E23, 'Capital base input'!$E$27:$E$76, 0), MATCH(K$4, RAB_years, 0)) -> 4.984866 | L23: =INDEX('Capital base input'!$H$27:$XFD$76, MATCH($E23, 'Capital base input'!$E$27:$E$76, 0), MATCH(L$4, RAB_years, 0)) -> 4.839913 | M23: =INDEX('Capital base input'!$H$27:$XFD$76, MATCH($E23, 'Capital base input'!$E$27:$E$76, 0), MATCH(M$4, RAB_years, 0)) -> 6.172538 | N23: =INDEX('Capital base input'!$H$27:$XFD$76, MATCH($E23, 'Capital base input'!$E$27:$E$76, 0), MATCH(N$4, RAB_years, 0)) -> 4.09614 | O23: =INDEX('Capital base input'!$H$27:$XFD$76, MATCH($E23, 'Capital base input'!$E$27:$E$76, 0), MATCH(O$4, RAB_years, 0)) -> 9.107877572 | P23: =INDEX('Capital base input'!$H$27:$XFD$76, MATCH($E23, 'Capital base input'!$E$27:$E$76, 0), MATCH(P$4, RAB_years, 0)) -> 11.7440004 | Q23: =INDEX('Capital base input'!$H$27:$XFD$76, MATCH($E23, 'Capital base input'!$E$27:$E$76, 0), MATCH(Q$4, RAB_years, 0)) -> 16.24772902 | R23: =INDEX('Capital base input'!$H$27:$XFD$76, MATCH($E23, 'Capital base input'!$E$27:$E$76, 0), MATCH(R$4, RAB_years, 0)) -> 0 | S23: =INDEX('Capital base input'!$H$27:$XFD$76, MATCH($E23, 'Capital base input'!$E$27:$E$76, 0), MATCH(S$4, RAB_years, 0)) -> 0 | T23: =INDEX('Capital base input'!$H$27:$XFD$76, MATCH($E23, 'Capital base input'!$E$27:$E$76, 0), MATCH(T$4, RAB_years, 0)) -> 0 | U23: =INDEX('Capital base input'!$H$27:$XFD$76, MATCH($E23, 'Capital base input'!$E$27:$E$76, 0), MATCH(U$4, RAB_years, 0)) -> 0 | V23: =INDEX('Capital base input'!$H$27:$XFD$76, MATCH($E23, 'Capital base input'!$E$27:$E$76, 0), MATCH(V$4, RAB_years, 0)) -> 0 | W23: =INDEX('Capital base input'!$H$27:$XFD$76, MATCH($E23, 'Capital base input'!$E$27:$E$76, 0), MATCH(W$4, RAB_years, 0)) -> 0 | X23: =INDEX('Capital base input'!$H$27:$XFD$76, MATCH($E23, 'Capital base input'!$E$27:$E$76, 0), MATCH(X$4, RAB_years, 0)) -> 0 | Y23: =INDEX('Capital base input'!$H$27:$XFD$76, MATCH($E23, 'Capital base input'!$E$27:$E$76, 0), MATCH(Y$4, RAB_years, 0)) -> 0 | Z23: =INDEX('Capital base input'!$H$27:$XFD$76, MATCH($E23, 'Capital base input'!$E$27:$E$76, 0), MATCH(Z$4, RAB_years, 0)) -> 0 | AA23: =INDEX('Capital base input'!$H$27:$XFD$76, MATCH($E23, 'Capital base input'!$E$27:$E$76, 0), MATCH(AA$4, RAB_years, 0)) -> 0 | AB23: =INDEX('Capital base input'!$H$27:$XFD$76, MATCH($E23, 'Capital base input'!$E$27:$E$76, 0), MATCH(AB$4, RAB_years, 0)) -> 0 | AC23: =INDEX('Capital base input'!$H$27:$XFD$76, MATCH($E23, 'Capital base input'!$E$27:$E$76, 0), MATCH(AC$4, RAB_years, 0)) -> 0 | AD23: =INDEX('Capital base input'!$H$27:$XFD$76, MATCH($E23, 'Capital base input'!$E$27:$E$76, 0), MATCH(AD$4, RAB_years, 0)) -> 0 | AE23: =INDEX('Capital base input'!$H$27:$XFD$76, MATCH($E23, 'Capital base input'!$E$27:$E$76, 0), MATCH(AE$4, RAB_years, 0)) -> 0 | AF23: =INDEX('Capital base input'!$H$27:$XFD$76, MATCH($E23, 'Capital base input'!$E$27:$E$76, 0), MATCH(AF$4, RAB_years, 0)) -> 0 | AG23: =INDEX('Capital base input'!$H$27:$XFD$76, MATCH($E23, 'Capital base input'!$E$27:$E$76, 0), MATCH(AG$4, RAB_years, 0)) -> 0 | AH23: =INDEX('Capital base input'!$H$27:$XFD$76, MATCH($E23, 'Capital base input'!$E$27:$E$76, 0), MATCH(AH$4, RAB_years, 0)) -> 0 | AI23: =INDEX('Capital base input'!$H$27:$XFD$76, MATCH($E23, 'Capital base input'!$E$27:$E$76, 0), MATCH(AI$4, RAB_years, 0)) -> 0 | AJ23: =INDEX('Capital base input'!$H$27:$XFD$76, MATCH($E23, 'Capital base input'!$E$27:$E$76, 0), MATCH(AJ$4, RAB_years, 0)) -> 0 | AK23: =INDEX('Capital base input'!$H$27:$XFD$76, MATCH($E23, 'Capital base input'!$E$27:$E$76, 0), MATCH(AK$4, RAB_years, 0)) -> 0 | AL23: =INDEX('Capital base input'!$H$27:$XFD$76, MATCH($E23, 'Capital base input'!$E$27:$E$76, 0), MATCH(AL$4, RAB_years, 0)) -> 0 | AM23: =INDEX('Capital base input'!$H$27:$XFD$76, MATCH($E23, 'Capital base input'!$E$27:$E$76, 0), MATCH(AM$4, RAB_years, 0)) -> 0 | AN23: =INDEX('Capital base input'!$H$27:$XFD$76, MATCH($E23, 'Capital base input'!$E$27:$E$76, 0), MATCH(AN$4, RAB_years, 0)) -> 0 | AO23: =INDEX('Capital base input'!$H$27:$XFD$76, MATCH($E23, 'Capital base input'!$E$27:$E$76, 0), MATCH(AO$4, RAB_years, 0)) -> 0 | AP23: =INDEX('Capital base input'!$H$27:$XFD$76, MATCH($E23, 'Capital base input'!$E$27:$E$76, 0), MATCH(AP$4, RAB_years, 0)) -> 0 | AQ23: =INDEX('Capital base input'!$H$27:$XFD$76, MATCH($E23, 'Capital base input'!$E$27:$E$76, 0), MATCH(AQ$4, RAB_years, 0)) -> 0 | AR23: =INDEX('Capital base input'!$H$27:$XFD$76, MATCH($E23, 'Capital base input'!$E$27:$E$76, 0), MATCH(AR$4, RAB_years, 0)) -> 0 | AS23: =INDEX('Capital base input'!$H$27:$XFD$76, MATCH($E23, 'Capital base input'!$E$27:$E$76, 0), MATCH(AS$4, RAB_years, 0)) -> 0 | AT23: =INDEX('Capital base input'!$H$27:$XFD$76, MATCH($E23, 'Capital base input'!$E$27:$E$76, 0), MATCH(AT$4, RAB_years, 0)) -> 0 | AU23: =INDEX('Capital base input'!$H$27:$XFD$76, MATCH($E23, 'Capital base input'!$E$27:$E$76, 0), MATCH(AU$4, RAB_years, 0)) -> 0 | AV23: =INDEX('Capital base input'!$H$27:$XFD$76, MATCH($E23, 'Capital base input'!$E$27:$E$76, 0), MATCH(AV$4, RAB_years, 0)) -> 0 | AW23: =INDEX('Capital base input'!$H$27:$XFD$76, MATCH($E23, 'Capital base input'!$E$27:$E$76, 0), MATCH(AW$4, RAB_years, 0)) -> 0 | AX23: =INDEX('Capital base input'!$H$27:$XFD$76, MATCH($E23, 'Capital base input'!$E$27:$E$76, 0), MATCH(AX$4, RAB_years, 0)) -> 0 | AY23: =INDEX('Capital base input'!$H$27:$XFD$76, MATCH($E23, 'Capital base input'!$E$27:$E$76, 0), MATCH(AY$4, RAB_years, 0)) -> 0 | AZ23: =INDEX('Capital base input'!$H$27:$XFD$76, MATCH($E23, 'Capital base input'!$E$27:$E$76, 0), MATCH(AZ$4, RAB_years, 0)) -> 0 | BA23: =INDEX('Capital base input'!$H$27:$XFD$76, MATCH($E23, 'Capital base input'!$E$27:$E$76, 0), MATCH(BA$4, RAB_years, 0)) -> 0 | BB23: =INDEX('Capital base input'!$H$27:$XFD$76, MATCH($E23, 'Capital base input'!$E$27:$E$76, 0), MATCH(BB$4, RAB_years, 0)) -> 0 | BC23: =INDEX('Capital base input'!$H$27:$XFD$76, MATCH($E23, 'Capital base input'!$E$27:$E$76, 0), MATCH(BC$4, RAB_years, 0)) -> 0 | BD23: =INDEX('Capital base input'!$H$27:$XFD$76, MATCH($E23, 'Capital base input'!$E$27:$E$76, 0), MATCH(BD$4, RAB_years, 0)) -> 0 | BE23: =INDEX('Capital base input'!$H$27:$XFD$76, MATCH($E23, 'Capital base input'!$E$27:$E$76, 0), MATCH(BE$4, RAB_years, 0)) -> 0 | BF23: =INDEX('Capital base input'!$H$27:$XFD$76, MATCH($E23, 'Capital base input'!$E$27:$E$76, 0), MATCH(BF$4, RAB_years, 0)) -> 0 | BG23: =INDEX('Capital base input'!$H$27:$XFD$76, MATCH($E23, 'Capital base input'!$E$27:$E$76, 0), MATCH(BG$4, RAB_years, 0)) -> 0 | BH23: =INDEX('Capital base input'!$H$27:$XFD$76, MATCH($E23, 'Capital base input'!$E$27:$E$76, 0), MATCH(BH$4, RAB_years, 0)) -> 0 | BI23: =INDEX('Capital base input'!$H$27:$XFD$76, MATCH($E23, 'Capital base input'!$E$27:$E$76, 0), MATCH(BI$4, RAB_years, 0)) -> 0 | BJ23: =INDEX('Capital base input'!$H$27:$XFD$76, MATCH($E23, 'Capital base input'!$E$27:$E$76, 0), MATCH(BJ$4, RAB_years, 0)) -> 0 | BK23: =INDEX('Capital base input'!$H$27:$XFD$76, MATCH($E23, 'Capital base input'!$E$27:$E$76, 0), MATCH(BK$4, RAB_years, 0)) -> 0 | BL23: =INDEX('Capital base input'!$H$27:$XFD$76, MATCH($E23, 'Capital base input'!$E$27:$E$76, 0), MATCH(BL$4, RAB_years, 0)) -> 0 | BM23: =INDEX('Capital base input'!$H$27:$XFD$76, MATCH($E23, 'Capital base input'!$E$27:$E$76, 0), MATCH(BM$4, RAB_years, 0)) -> 0 | BN23: =INDEX('Capital base input'!$H$27:$XFD$76, MATCH($E23, 'Capital base input'!$E$27:$E$76, 0), MATCH(BN$4, RAB_years, 0)) -> 0 | BO23: =INDEX('Capital base input'!$H$27:$XFD$76, MATCH($E23, 'Capital base input'!$E$27:$E$76, 0), MATCH(BO$4, RAB_years, 0)) -> 0 | BP23: =INDEX('Capital base input'!$H$27:$XFD$76, MATCH($E23, 'Capital base input'!$E$27:$E$76, 0), MATCH(BP$4, RAB_years, 0)) -> 0 | BQ23: =INDEX('Capital base input'!$H$27:$XFD$76, MATCH($E23, 'Capital base input'!$E$27:$E$76, 0), MATCH(BQ$4, RAB_years, 0)) -> 0 | BR23: =INDEX('Capital base input'!$H$27:$XFD$76, MATCH($E23, 'Capital base input'!$E$27:$E$76, 0), MATCH(BR$4, RAB_years, 0)) -> 0 | BS23: =INDEX('Capital base input'!$H$27:$XFD$76, MATCH($E23, 'Capital base input'!$E$27:$E$76, 0), MATCH(BS$4, RAB_years, 0)) -> 0 | BT23: =INDEX('Capital base input'!$H$27:$XFD$76, MATCH($E23, 'Capital base input'!$E$27:$E$76, 0), MATCH(BT$4, RAB_years, 0)) -> 0 | BU23: =INDEX('Capital base input'!$H$27:$XFD$76, MATCH($E23, 'Capital base input'!$E$27:$E$76, 0), MATCH(BU$4, RAB_years, 0)) -> 0 | BV23: =INDEX('Capital base input'!$H$27:$XFD$76, MATCH($E23, 'Capital base input'!$E$27:$E$76, 0), MATCH(BV$4, RAB_years, 0)) -> 0 | BW23: =INDEX('Capital base input'!$H$27:$XFD$76, MATCH($E23, 'Capital base input'!$E$27:$E$76, 0), MATCH(BW$4, RAB_years, 0)) -> 0 | BX23: =INDEX('Capital base input'!$H$27:$XFD$76, MATCH($E23, 'Capital base input'!$E$27:$E$76, 0), MATCH(BX$4, RAB_years, 0)) -> 0 | BY23: =INDEX('Capital base input'!$H$27:$XFD$76, MATCH($E23, 'Capital base input'!$E$27:$E$76, 0), MATCH(BY$4, RAB_years, 0)) -> 0 | BZ23: =INDEX('Capital base input'!$H$27:$XFD$76, MATCH($E23, 'Capital base input'!$E$27:$E$76, 0), MATCH(BZ$4, RAB_years, 0)) -> 0 | CA23: =INDEX('Capital base input'!$H$27:$XFD$76, MATCH($E23, 'Capital base input'!$E$27:$E$76, 0), MATCH(CA$4, RAB_years, 0)) -> 0 | CB23: =INDEX('Capital base input'!$H$27:$XFD$76, MATCH($E23, 'Capital base input'!$E$27:$E$76, 0), MATCH(CB$4, RAB_years, 0)) -> 0 | CC23: =INDEX('Capital base input'!$H$27:$XFD$76, MATCH($E23, 'Capital base input'!$E$27:$E$76, 0), MATCH(CC$4, RAB_years, 0)) -> 0 | CD23: =INDEX('Capital base input'!$H$27:$XFD$76, MATCH($E23, 'Capital base input'!$E$27:$E$76, 0), MATCH(CD$4, RAB_years, 0)) -> 0 | CE23: =INDEX('Capital base input'!$H$27:$XFD$76, MATCH($E23, 'Capital base input'!$E$27:$E$76, 0), MATCH(CE$4, RAB_years, 0)) -> 0 | CF23: =INDEX('Capital base input'!$H$27:$XFD$76, MATCH($E23, 'Capital base input'!$E$27:$E$76, 0), MATCH(CF$4, RAB_years, 0)) -> 0 | CG23: =INDEX('Capital base input'!$H$27:$XFD$76, MATCH($E23, 'Capital base input'!$E$27:$E$76, 0), MATCH(CG$4, RAB_years, 0)) -> 0 | CH23: =INDEX('Capital base input'!$H$27:$XFD$76, MATCH($E23, 'Capital base input'!$E$27:$E$76, 0), MATCH(CH$4, RAB_years, 0)) -> 0 | CI23: =INDEX('Capital base input'!$H$27:$XFD$76, MATCH($E23, 'Capital base input'!$E$27:$E$76, 0), MATCH(CI$4, RAB_years, 0)) -> 0 | CJ23: =INDEX('Capital base input'!$H$27:$XFD$76, MATCH($E23, 'Capital base input'!$E$27:$E$76, 0), MATCH(CJ$4, RAB_years, 0)) -> 0 | CK23: =INDEX('Capital base input'!$H$27:$XFD$76, MATCH($E23, 'Capital base input'!$E$27:$E$76, 0), MATCH(CK$4, RAB_years, 0)) -> 0 | CL23: =INDEX('Capital base input'!$H$27:$XFD$76, MATCH($E23, 'Capital base input'!$E$27:$E$76, 0), MATCH(CL$4, RAB_years, 0)) -> 0 | CM23: =INDEX('Capital base input'!$H$27:$XFD$76, MATCH($E23, 'Capital base input'!$E$27:$E$76, 0), MATCH(CM$4, RAB_years, 0)) -> 0 | CN23: =INDEX('Capital base input'!$H$27:$XFD$76, MATCH($E23, 'Capital base input'!$E$27:$E$76, 0), MATCH(CN$4, RAB_years, 0)) -> 0 | CO23: =INDEX('Capital base input'!$H$27:$XFD$76, MATCH($E23, 'Capital base input'!$E$27:$E$76, 0), MATCH(CO$4, RAB_years, 0)) -> 0 | CP23: =INDEX('Capital base input'!$H$27:$XFD$76, MATCH($E23, 'Capital base input'!$E$27:$E$76, 0), MATCH(CP$4, RAB_years, 0)) -> 0 | CQ23: =INDEX('Capital base input'!$H$27:$XFD$76, MATCH($E23, 'Capital base input'!$E$27:$E$76, 0), MATCH(CQ$4, RAB_years, 0)) -> 0 | CR23: =INDEX('Capital base input'!$H$27:$XFD$76, MATCH($E23, 'Capital base input'!$E$27:$E$76, 0), MATCH(CR$4, RAB_years, 0)) -> 0 | CS23: =INDEX('Capital base input'!$H$27:$XFD$76, MATCH($E23, 'Capital base input'!$E$27:$E$76, 0), MATCH(CS$4, RAB_years, 0)) -> 0 | CT23: =INDEX('Capital base input'!$H$27:$XFD$76, MATCH($E23, 'Capital base input'!$E$27:$E$76, 0), MATCH(CT$4, RAB_years, 0)) -> 0 | CU23: =INDEX('Capital base input'!$H$27:$XFD$76, MATCH($E23, 'Capital base input'!$E$27:$E$76, 0), MATCH(CU$4, RAB_years, 0)) -> 0 | CV23: =INDEX('Capital base input'!$H$27:$XFD$76, MATCH($E23, 'Capital base input'!$E$27:$E$76, 0), MATCH(CV$4, RAB_years, 0)) -> 0 | CW23: =INDEX('Capital base input'!$H$27:$XFD$76, MATCH($E23, 'Capital base input'!$E$27:$E$76, 0), MATCH(CW$4, RAB_years, 0)) -> 0 | CX23: =INDEX('Capital base input'!$H$27:$XFD$76, MATCH($E23, 'Capital base input'!$E$27:$E$76, 0), MATCH(CX$4, RAB_years, 0)) -> 0 | CY23: =INDEX('Capital base input'!$H$27:$XFD$76, MATCH($E23, 'Capital base input'!$E$27:$E$76, 0), MATCH(CY$4, RAB_years, 0)) -> 0
D24: 7 | E24: ='Capital base input'!E33 -> Other | G24: 3.755155409 | H24: =INDEX('Capital base input'!$H$27:$XFD$76, MATCH($E24, 'Capital base input'!$E$27:$E$76, 0), MATCH(H$4, RAB_years, 0)) -> 0.755441404 | I24: =INDEX('Capital base input'!$H$27:$XFD$76, MATCH($E24, 'Capital base input'!$E$27:$E$76, 0), MATCH(I$4, RAB_years, 0)) -> 0.7108051724 | J24: =INDEX('Capital base input'!$H$27:$XFD$76, MATCH($E24, 'Capital base input'!$E$27:$E$76, 0), MATCH(J$4, RAB_years, 0)) -> 0.3521191741 | K24: =INDEX('Capital base input'!$H$27:$XFD$76, MATCH($E24, 'Capital base input'!$E$27:$E$76, 0), MATCH(K$4, RAB_years, 0)) -> 1.587281 | L24: =INDEX('Capital base input'!$H$27:$XFD$76, MATCH($E24, 'Capital base input'!$E$27:$E$76, 0), MATCH(L$4, RAB_years, 0)) -> 1.946809 | M24: =INDEX('Capital base input'!$H$27:$XFD$76, MATCH($E24, 'Capital base input'!$E$27:$E$76, 0), MATCH(M$4, RAB_years, 0)) -> 0.878566 | N24: =INDEX('Capital base input'!$H$27:$XFD$76, MATCH($E24, 'Capital base input'!$E$27:$E$76, 0), MATCH(N$4, RAB_years, 0)) -> 0.836167 | O24: =INDEX('Capital base input'!$H$27:$XFD$76, MATCH($E24, 'Capital base input'!$E$27:$E$76, 0), MATCH(O$4, RAB_years, 0)) -> 1.599508344 | P24: =INDEX('Capital base input'!$H$27:$XFD$76, MATCH($E24, 'Capital base input'!$E$27:$E$76, 0), MATCH(P$4, RAB_years, 0)) -> 1.62724429 | Q24: =INDEX('Capital base input'!$H$27:$XFD$76, MATCH($E24, 'Capital base input'!$E$27:$E$76, 0), MATCH(Q$4, RAB_years, 0)) -> 1.070940887 | R24: =INDEX('Capital base input'!$H$27:$XFD$76, MATCH($E24, 'Capital base input'!$E$27:$E$76, 0), MATCH(R$4, RAB_years, 0)) -> 0 | S24: =INDEX('Capital base input'!$H$27:$XFD$76, MATCH($E24, 'Capital base input'!$E$27:$E$76, 0), MATCH(S$4, RAB_years, 0)) -> 0 | T24: =INDEX('Capital base input'!$H$27:$XFD$76, MATCH($E24, 'Capital base input'!$E$27:$E$76, 0), MATCH(T$4, RAB_years, 0)) -> 0 | U24: =INDEX('Capital base input'!$H$27:$XFD$76, MATCH($E24, 'Capital base input'!$E$27:$E$76, 0), MATCH(U$4, RAB_years, 0)) -> 0 | V24: =INDEX('Capital base input'!$H$27:$XFD$76, MATCH($E24, 'Capital base input'!$E$27:$E$76, 0), MATCH(V$4, RAB_years, 0)) -> 0 | W24: =INDEX('Capital base input'!$H$27:$XFD$76, MATCH($E24, 'Capital base input'!$E$27:$E$76, 0), MATCH(W$4, RAB_years, 0)) -> 0 | X24: =INDEX('Capital base input'!$H$27:$XFD$76, MATCH($E24, 'Capital base input'!$E$27:$E$76, 0), MATCH(X$4, RAB_years, 0)) -> 0 | Y24: =INDEX('Capital base input'!$H$27:$XFD$76, MATCH($E24, 'Capital base input'!$E$27:$E$76, 0), MATCH(Y$4, RAB_years, 0)) -> 0 | Z24: =INDEX('Capital base input'!$H$27:$XFD$76, MATCH($E24, 'Capital base input'!$E$27:$E$76, 0), MATCH(Z$4, RAB_years, 0)) -> 0 | AA24: =INDEX('Capital base input'!$H$27:$XFD$76, MATCH($E24, 'Capital base input'!$E$27:$E$76, 0), MATCH(AA$4, RAB_years, 0)) -> 0 | AB24: =INDEX('Capital base input'!$H$27:$XFD$76, MATCH($E24, 'Capital base input'!$E$27:$E$76, 0), MATCH(AB$4, RAB_years, 0)) -> 0 | AC24: =INDEX('Capital base input'!$H$27:$XFD$76, MATCH($E24, 'Capital base input'!$E$27:$E$76, 0), MATCH(AC$4, RAB_years, 0)) -> 0 | AD24: =INDEX('Capital base input'!$H$27:$XFD$76, MATCH($E24, 'Capital base input'!$E$27:$E$76, 0), MATCH(AD$4, RAB_years, 0)) -> 0 | AE24: =INDEX('Capital base input'!$H$27:$XFD$76, MATCH($E24, 'Capital base input'!$E$27:$E$76, 0), MATCH(AE$4, RAB_years, 0)) -> 0 | AF24: =INDEX('Capital base input'!$H$27:$XFD$76, MATCH($E24, 'Capital base input'!$E$27:$E$76, 0), MATCH(AF$4, RAB_years, 0)) -> 0 | AG24: =INDEX('Capital base input'!$H$27:$XFD$76, MATCH($E24, 'Capital base input'!$E$27:$E$76, 0), MATCH(AG$4, RAB_years, 0)) -> 0 | AH24: =INDEX('Capital base input'!$H$27:$XFD$76, MATCH($E24, 'Capital base input'!$E$27:$E$76, 0), MATCH(AH$4, RAB_years, 0)) -> 0 | AI24: =INDEX('Capital base input'!$H$27:$XFD$76, MATCH($E24, 'Capital base input'!$E$27:$E$76, 0), MATCH(AI$4, RAB_years, 0)) -> 0 | AJ24: =INDEX('Capital base input'!$H$27:$XFD$76, MATCH($E24, 'Capital base input'!$E$27:$E$76, 0), MATCH(AJ$4, RAB_years, 0)) -> 0 | AK24: =INDEX('Capital base input'!$H$27:$XFD$76, MATCH($E24, 'Capital base input'!$E$27:$E$76, 0), MATCH(AK$4, RAB_years, 0)) -> 0 | AL24: =INDEX('Capital base input'!$H$27:$XFD$76, MATCH($E24, 'Capital base input'!$E$27:$E$76, 0), MATCH(AL$4, RAB_years, 0)) -> 0 | AM24: =INDEX('Capital base input'!$H$27:$XFD$76, MATCH($E24, 'Capital base input'!$E$27:$E$76, 0), MATCH(AM$4, RAB_years, 0)) -> 0 | AN24: =INDEX('Capital base input'!$H$27:$XFD$76, MATCH($E24, 'Capital base input'!$E$27:$E$76, 0), MATCH(AN$4, RAB_years, 0)) -> 0 | AO24: =INDEX('Capital base input'!$H$27:$XFD$76, MATCH($E24, 'Capital base input'!$E$27:$E$76, 0), MATCH(AO$4, RAB_years, 0)) -> 0 | AP24: =INDEX('Capital base input'!$H$27:$XFD$76, MATCH($E24, 'Capital base input'!$E$27:$E$76, 0), MATCH(AP$4, RAB_years, 0)) -> 0 | AQ24: =INDEX('Capital base input'!$H$27:$XFD$76, MATCH($E24, 'Capital base input'!$E$27:$E$76, 0), MATCH(AQ$4, RAB_years, 0)) -> 0 | AR24: =INDEX('Capital base input'!$H$27:$XFD$76, MATCH($E24, 'Capital base input'!$E$27:$E$76, 0), MATCH(AR$4, RAB_years, 0)) -> 0 | AS24: =INDEX('Capital base input'!$H$27:$XFD$76, MATCH($E24, 'Capital base input'!$E$27:$E$76, 0), MATCH(AS$4, RAB_years, 0)) -> 0 | AT24: =INDEX('Capital base input'!$H$27:$XFD$76, MATCH($E24, 'Capital base input'!$E$27:$E$76, 0), MATCH(AT$4, RAB_years, 0)) -> 0 | AU24: =INDEX('Capital base input'!$H$27:$XFD$76, MATCH($E24, 'Capital base input'!$E$27:$E$76, 0), MATCH(AU$4, RAB_years, 0)) -> 0 | AV24: =INDEX('Capital base input'!$H$27:$XFD$76, MATCH($E24, 'Capital base input'!$E$27:$E$76, 0), MATCH(AV$4, RAB_years, 0)) -> 0 | AW24: =INDEX('Capital base input'!$H$27:$XFD$76, MATCH($E24, 'Capital base input'!$E$27:$E$76, 0), MATCH(AW$4, RAB_years, 0)) -> 0 | AX24: =INDEX('Capital base input'!$H$27:$XFD$76, MATCH($E24, 'Capital base input'!$E$27:$E$76, 0), MATCH(AX$4, RAB_years, 0)) -> 0 | AY24: =INDEX('Capital base input'!$H$27:$XFD$76, MATCH($E24, 'Capital base input'!$E$27:$E$76, 0), MATCH(AY$4, RAB_years, 0)) -> 0 | AZ24: =INDEX('Capital base input'!$H$27:$XFD$76, MATCH($E24, 'Capital base input'!$E$27:$E$76, 0), MATCH(AZ$4, RAB_years, 0)) -> 0 | BA24: =INDEX('Capital base input'!$H$27:$XFD$76, MATCH($E24, 'Capital base input'!$E$27:$E$76, 0), MATCH(BA$4, RAB_years, 0)) -> 0 | BB24: =INDEX('Capital base input'!$H$27:$XFD$76, MATCH($E24, 'Capital base input'!$E$27:$E$76, 0), MATCH(BB$4, RAB_years, 0)) -> 0 | BC24: =INDEX('Capital base input'!$H$27:$XFD$76, MATCH($E24, 'Capital base input'!$E$27:$E$76, 0), MATCH(BC$4, RAB_years, 0)) -> 0 | BD24: =INDEX('Capital base input'!$H$27:$XFD$76, MATCH($E24, 'Capital base input'!$E$27:$E$76, 0), MATCH(BD$4, RAB_years, 0)) -> 0 | BE24: =INDEX('Capital base input'!$H$27:$XFD$76, MATCH($E24, 'Capital base input'!$E$27:$E$76, 0), MATCH(BE$4, RAB_years, 0)) -> 0 | BF24: =INDEX('Capital base input'!$H$27:$XFD$76, MATCH($E24, 'Capital base input'!$E$27:$E$76, 0), MATCH(BF$4, RAB_years, 0)) -> 0 | BG24: =INDEX('Capital base input'!$H$27:$XFD$76, MATCH($E24, 'Capital base input'!$E$27:$E$76, 0), MATCH(BG$4, RAB_years, 0)) -> 0 | BH24: =INDEX('Capital base input'!$H$27:$XFD$76, MATCH($E24, 'Capital base input'!$E$27:$E$76, 0), MATCH(BH$4, RAB_years, 0)) -> 0 | BI24: =INDEX('Capital base input'!$H$27:$XFD$76, MATCH($E24, 'Capital base input'!$E$27:$E$76, 0), MATCH(BI$4, RAB_years, 0)) -> 0 | BJ24: =INDEX('Capital base input'!$H$27:$XFD$76, MATCH($E24, 'Capital base input'!$E$27:$E$76, 0), MATCH(BJ$4, RAB_years, 0)) -> 0 | BK24: =INDEX('Capital base input'!$H$27:$XFD$76, MATCH($E24, 'Capital base input'!$E$27:$E$76, 0), MATCH(BK$4, RAB_years, 0)) -> 0 | BL24: =INDEX('Capital base input'!$H$27:$XFD$76, MATCH($E24, 'Capital base input'!$E$27:$E$76, 0), MATCH(BL$4, RAB_years, 0)) -> 0 | BM24: =INDEX('Capital base input'!$H$27:$XFD$76, MATCH($E24, 'Capital base input'!$E$27:$E$76, 0), MATCH(BM$4, RAB_years, 0)) -> 0 | BN24: =INDEX('Capital base input'!$H$27:$XFD$76, MATCH($E24, 'Capital base input'!$E$27:$E$76, 0), MATCH(BN$4, RAB_years, 0)) -> 0 | BO24: =INDEX('Capital base input'!$H$27:$XFD$76, MATCH($E24, 'Capital base input'!$E$27:$E$76, 0), MATCH(BO$4, RAB_years, 0)) -> 0 | BP24: =INDEX('Capital base input'!$H$27:$XFD$76, MATCH($E24, 'Capital base input'!$E$27:$E$76, 0), MATCH(BP$4, RAB_years, 0)) -> 0 | BQ24: =INDEX('Capital base input'!$H$27:$XFD$76, MATCH($E24, 'Capital base input'!$E$27:$E$76, 0), MATCH(BQ$4, RAB_years, 0)) -> 0 | BR24: =INDEX('Capital base input'!$H$27:$XFD$76, MATCH($E24, 'Capital base input'!$E$27:$E$76, 0), MATCH(BR$4, RAB_years, 0)) -> 0 | BS24: =INDEX('Capital base input'!$H$27:$XFD$76, MATCH($E24, 'Capital base input'!$E$27:$E$76, 0), MATCH(BS$4, RAB_years, 0)) -> 0 | BT24: =INDEX('Capital base input'!$H$27:$XFD$76, MATCH($E24, 'Capital base input'!$E$27:$E$76, 0), MATCH(BT$4, RAB_years, 0)) -> 0 | BU24: =INDEX('Capital base input'!$H$27:$XFD$76, MATCH($E24, 'Capital base input'!$E$27:$E$76, 0), MATCH(BU$4, RAB_years, 0)) -> 0 | BV24: =INDEX('Capital base input'!$H$27:$XFD$76, MATCH($E24, 'Capital base input'!$E$27:$E$76, 0), MATCH(BV$4, RAB_years, 0)) -> 0 | BW24: =INDEX('Capital base input'!$H$27:$XFD$76, MATCH($E24, 'Capital base input'!$E$27:$E$76, 0), MATCH(BW$4, RAB_years, 0)) -> 0 | BX24: =INDEX('Capital base input'!$H$27:$XFD$76, MATCH($E24, 'Capital base input'!$E$27:$E$76, 0), MATCH(BX$4, RAB_years, 0)) -> 0 | BY24: =INDEX('Capital base input'!$H$27:$XFD$76, MATCH($E24, 'Capital base input'!$E$27:$E$76, 0), MATCH(BY$4, RAB_years, 0)) -> 0 | BZ24: =INDEX('Capital base input'!$H$27:$XFD$76, MATCH($E24, 'Capital base input'!$E$27:$E$76, 0), MATCH(BZ$4, RAB_years, 0)) -> 0 | CA24: =INDEX('Capital base input'!$H$27:$XFD$76, MATCH($E24, 'Capital base input'!$E$27:$E$76, 0), MATCH(CA$4, RAB_years, 0)) -> 0 | CB24: =INDEX('Capital base input'!$H$27:$XFD$76, MATCH($E24, 'Capital base input'!$E$27:$E$76, 0), MATCH(CB$4, RAB_years, 0)) -> 0 | CC24: =INDEX('Capital base input'!$H$27:$XFD$76, MATCH($E24, 'Capital base input'!$E$27:$E$76, 0), MATCH(CC$4, RAB_years, 0)) -> 0 | CD24: =INDEX('Capital base input'!$H$27:$XFD$76, MATCH($E24, 'Capital base input'!$E$27:$E$76, 0), MATCH(CD$4, RAB_years, 0)) -> 0 | CE24: =INDEX('Capital base input'!$H$27:$XFD$76, MATCH($E24, 'Capital base input'!$E$27:$E$76, 0), MATCH(CE$4, RAB_years, 0)) -> 0 | CF24: =INDEX('Capital base input'!$H$27:$XFD$76, MATCH($E24, 'Capital base input'!$E$27:$E$76, 0), MATCH(CF$4, RAB_years, 0)) -> 0 | CG24: =INDEX('Capital base input'!$H$27:$XFD$76, MATCH($E24, 'Capital base input'!$E$27:$E$76, 0), MATCH(CG$4, RAB_years, 0)) -> 0 | CH24: =INDEX('Capital base input'!$H$27:$XFD$76, MATCH($E24, 'Capital base input'!$E$27:$E$76, 0), MATCH(CH$4, RAB_years, 0)) -> 0 | CI24: =INDEX('Capital base input'!$H$27:$XFD$76, MATCH($E24, 'Capital base input'!$E$27:$E$76, 0), MATCH(CI$4, RAB_years, 0)) -> 0 | CJ24: =INDEX('Capital base input'!$H$27:$XFD$76, MATCH($E24, 'Capital base input'!$E$27:$E$76, 0), MATCH(CJ$4, RAB_years, 0)) -> 0 | CK24: =INDEX('Capital base input'!$H$27:$XFD$76, MATCH($E24, 'Capital base input'!$E$27:$E$76, 0), MATCH(CK$4, RAB_years, 0)) -> 0 | CL24: =INDEX('Capital base input'!$H$27:$XFD$76, MATCH($E24, 'Capital base input'!$E$27:$E$76, 0), MATCH(CL$4, RAB_years, 0)) -> 0 | CM24: =INDEX('Capital base input'!$H$27:$XFD$76, MATCH($E24, 'Capital base input'!$E$27:$E$76, 0), MATCH(CM$4, RAB_years, 0)) -> 0 | CN24: =INDEX('Capital base input'!$H$27:$XFD$76, MATCH($E24, 'Capital base input'!$E$27:$E$76, 0), MATCH(CN$4, RAB_years, 0)) -> 0 | CO24: =INDEX('Capital base input'!$H$27:$XFD$76, MATCH($E24, 'Capital base input'!$E$27:$E$76, 0), MATCH(CO$4, RAB_years, 0)) -> 0 | CP24: =INDEX('Capital base input'!$H$27:$XFD$76, MATCH($E24, 'Capital base input'!$E$27:$E$76, 0), MATCH(CP$4, RAB_years, 0)) -> 0 | CQ24: =INDEX('Capital base input'!$H$27:$XFD$76, MATCH($E24, 'Capital base input'!$E$27:$E$76, 0), MATCH(CQ$4, RAB_years, 0)) -> 0 | CR24: =INDEX('Capital base input'!$H$27:$XFD$76, MATCH($E24, 'Capital base input'!$E$27:$E$76, 0), MATCH(CR$4, RAB_years, 0)) -> 0 | CS24: =INDEX('Capital base input'!$H$27:$XFD$76, MATCH($E24, 'Capital base input'!$E$27:$E$76, 0), MATCH(CS$4, RAB_years, 0)) -> 0 | CT24: =INDEX('Capital base input'!$H$27:$XFD$76, MATCH($E24, 'Capital base input'!$E$27:$E$76, 0), MATCH(CT$4, RAB_years, 0)) -> 0 | CU24: =INDEX('Capital base input'!$H$27:$XFD$76, MATCH($E24, 'Capital base input'!$E$27:$E$76, 0), MATCH(CU$4, RAB_years, 0)) -> 0 | CV24: =INDEX('Capital base input'!$H$27:$XFD$76, MATCH($E24, 'Capital base input'!$E$27:$E$76, 0), MATCH(CV$4, RAB_years, 0)) -> 0 | CW24: =INDEX('Capital base input'!$H$27:$XFD$76, MATCH($E24, 'Capital base input'!$E$27:$E$76, 0), MATCH(CW$4, RAB_years, 0)) -> 0 | CX24: =INDEX('Capital base input'!$H$27:$XFD$76, MATCH($E24, 'Capital base input'!$E$27:$E$76, 0), MATCH(CX$4, RAB_years, 0)) -> 0 | CY24: =INDEX('Capital base input'!$H$27:$XFD$76, MATCH($E24, 'Capital base input'!$E$27:$E$76, 0), MATCH(CY$4, RAB_years, 0)) -> 0
D25: 8 | E25: ='Capital base input'!E34 -> Low pressure mains depn | G25: 0 | H25: =INDEX('Capital base input'!$H$27:$XFD$76, MATCH($E25, 'Capital base input'!$E$27:$E$76, 0), MATCH(H$4, RAB_years, 0)) -> 0 | I25: =INDEX('Capital base input'!$H$27:$XFD$76, MATCH($E25, 'Capital base input'!$E$27:$E$76, 0), MATCH(I$4, RAB_years, 0)) -> 0 | J25: =INDEX('Capital base input'!$H$27:$XFD$76, MATCH($E25, 'Capital base input'!$E$27:$E$76, 0), MATCH(J$4, RAB_years, 0)) -> 0 | K25: =INDEX('Capital base input'!$H$27:$XFD$76, MATCH($E25, 'Capital base input'!$E$27:$E$76, 0), MATCH(K$4, RAB_years, 0)) -> 0 | L25: =INDEX('Capital base input'!$H$27:$XFD$76, MATCH($E25, 'Capital base input'!$E$27:$E$76, 0), MATCH(L$4, RAB_years, 0)) -> 0 | M25: =INDEX('Capital base input'!$H$27:$XFD$76, MATCH($E25, 'Capital base input'!$E$27:$E$76, 0), MATCH(M$4, RAB_years, 0)) -> 0 | N25: =INDEX('Capital base input'!$H$27:$XFD$76, MATCH($E25, 'Capital base input'!$E$27:$E$76, 0), MATCH(N$4, RAB_years, 0)) -> 0 | O25: =INDEX('Capital base input'!$H$27:$XFD$76, MATCH($E25, 'Capital base input'!$E$27:$E$76, 0), MATCH(O$4, RAB_years, 0)) -> 0 | P25: =INDEX('Capital base input'!$H$27:$XFD$76, MATCH($E25, 'Capital base input'!$E$27:$E$76, 0), MATCH(P$4, RAB_years, 0)) -> 0 | Q25: =INDEX('Capital base input'!$H$27:$XFD$76, MATCH($E25, 'Capital base input'!$E$27:$E$76, 0), MATCH(Q$4, RAB_years, 0)) -> 0 | R25: =INDEX('Capital base input'!$H$27:$XFD$76, MATCH($E25, 'Capital base input'!$E$27:$E$76, 0), MATCH(R$4, RAB_years, 0)) -> 0 | S25: =INDEX('Capital base input'!$H$27:$XFD$76, MATCH($E25, 'Capital base input'!$E$27:$E$76, 0), MATCH(S$4, RAB_years, 0)) -> 0 | T25: =INDEX('Capital base input'!$H$27:$XFD$76, MATCH($E25, 'Capital base input'!$E$27:$E$76, 0), MATCH(T$4, RAB_years, 0)) -> 0 | U25: =INDEX('Capital base input'!$H$27:$XFD$76, MATCH($E25, 'Capital base input'!$E$27:$E$76, 0), MATCH(U$4, RAB_years, 0)) -> 0 | V25: =INDEX('Capital base input'!$H$27:$XFD$76, MATCH($E25, 'Capital base input'!$E$27:$E$76, 0), MATCH(V$4, RAB_years, 0)) -> 0 | W25: =INDEX('Capital base input'!$H$27:$XFD$76, MATCH($E25, 'Capital base input'!$E$27:$E$76, 0), MATCH(W$4, RAB_years, 0)) -> 0 | X25: =INDEX('Capital base input'!$H$27:$XFD$76, MATCH($E25, 'Capital base input'!$E$27:$E$76, 0), MATCH(X$4, RAB_years, 0)) -> 0 | Y25: =INDEX('Capital base input'!$H$27:$XFD$76, MATCH($E25, 'Capital base input'!$E$27:$E$76, 0), MATCH(Y$4, RAB_years, 0)) -> 0 | Z25: =INDEX('Capital base input'!$H$27:$XFD$76, MATCH($E25, 'Capital base input'!$E$27:$E$76, 0), MATCH(Z$4, RAB_years, 0)) -> 0 | AA25: =INDEX('Capital base input'!$H$27:$XFD$76, MATCH($E25, 'Capital base input'!$E$27:$E$76, 0), MATCH(AA$4, RAB_years, 0)) -> 0 | AB25: =INDEX('Capital base input'!$H$27:$XFD$76, MATCH($E25, 'Capital base input'!$E$27:$E$76, 0), MATCH(AB$4, RAB_years, 0)) -> 0 | AC25: =INDEX('Capital base input'!$H$27:$XFD$76, MATCH($E25, 'Capital base input'!$E$27:$E$76, 0), MATCH(AC$4, RAB_years, 0)) -> 0 | AD25: =INDEX('Capital base input'!$H$27:$XFD$76, MATCH($E25, 'Capital base input'!$E$27:$E$76, 0), MATCH(AD$4, RAB_years, 0)) -> 0 | AE25: =INDEX('Capital base input'!$H$27:$XFD$76, MATCH($E25, 'Capital base input'!$E$27:$E$76, 0), MATCH(AE$4, RAB_years, 0)) -> 0 | AF25: =INDEX('Capital base input'!$H$27:$XFD$76, MATCH($E25, 'Capital base input'!$E$27:$E$76, 0), MATCH(AF$4, RAB_years, 0)) -> 0 | AG25: =INDEX('Capital base input'!$H$27:$XFD$76, MATCH($E25, 'Capital base input'!$E$27:$E$76, 0), MATCH(AG$4, RAB_years, 0)) -> 0 | AH25: =INDEX('Capital base input'!$H$27:$XFD$76, MATCH($E25, 'Capital base input'!$E$27:$E$76, 0), MATCH(AH$4, RAB_years, 0)) -> 0 | AI25: =INDEX('Capital base input'!$H$27:$XFD$76, MATCH($E25, 'Capital base input'!$E$27:$E$76, 0), MATCH(AI$4, RAB_years, 0)) -> 0 | AJ25: =INDEX('Capital base input'!$H$27:$XFD$76, MATCH($E25, 'Capital base input'!$E$27:$E$76, 0), MATCH(AJ$4, RAB_years, 0)) -> 0 | AK25: =INDEX('Capital base input'!$H$27:$XFD$76, MATCH($E25, 'Capital base input'!$E$27:$E$76, 0), MATCH(AK$4, RAB_years, 0)) -> 0 | AL25: =INDEX('Capital base input'!$H$27:$XFD$76, MATCH($E25, 'Capital base input'!$E$27:$E$76, 0), MATCH(AL$4, RAB_years, 0)) -> 0 | AM25: =INDEX('Capital base input'!$H$27:$XFD$76, MATCH($E25, 'Capital base input'!$E$27:$E$76, 0), MATCH(AM$4, RAB_years, 0)) -> 0 | AN25: =INDEX('Capital base input'!$H$27:$XFD$76, MATCH($E25, 'Capital base input'!$E$27:$E$76, 0), MATCH(AN$4, RAB_years, 0)) -> 0 | AO25: =INDEX('Capital base input'!$H$27:$XFD$76, MATCH($E25, 'Capital base input'!$E$27:$E$76, 0), MATCH(AO$4, RAB_years, 0)) -> 0 | AP25: =INDEX('Capital base input'!$H$27:$XFD$76, MATCH($E25, 'Capital base input'!$E$27:$E$76, 0), MATCH(AP$4, RAB_years, 0)) -> 0 | AQ25: =INDEX('Capital base input'!$H$27:$XFD$76, MATCH($E25, 'Capital base input'!$E$27:$E$76, 0), MATCH(AQ$4, RAB_years, 0)) -> 0 | AR25: =INDEX('Capital base input'!$H$27:$XFD$76, MATCH($E25, 'Capital base input'!$E$27:$E$76, 0), MATCH(AR$4, RAB_years, 0)) -> 0 | AS25: =INDEX('Capital base input'!$H$27:$XFD$76, MATCH($E25, 'Capital base input'!$E$27:$E$76, 0), MATCH(AS$4, RAB_years, 0)) -> 0 | AT25: =INDEX('Capital base input'!$H$27:$XFD$76, MATCH($E25, 'Capital base input'!$E$27:$E$76, 0), MATCH(AT$4, RAB_years, 0)) -> 0 | AU25: =INDEX('Capital base input'!$H$27:$XFD$76, MATCH($E25, 'Capital base input'!$E$27:$E$76, 0), MATCH(AU$4, RAB_years, 0)) -> 0 | AV25: =INDEX('Capital base input'!$H$27:$XFD$76, MATCH($E25, 'Capital base input'!$E$27:$E$76, 0), MATCH(AV$4, RAB_years, 0)) -> 0 | AW25: =INDEX('Capital base input'!$H$27:$XFD$76, MATCH($E25, 'Capital base input'!$E$27:$E$76, 0), MATCH(AW$4, RAB_years, 0)) -> 0 | AX25: =INDEX('Capital base input'!$H$27:$XFD$76, MATCH($E25, 'Capital base input'!$E$27:$E$76, 0), MATCH(AX$4, RAB_years, 0)) -> 0 | AY25: =INDEX('Capital base input'!$H$27:$XFD$76, MATCH($E25, 'Capital base input'!$E$27:$E$76, 0), MATCH(AY$4, RAB_years, 0)) -> 0 | AZ25: =INDEX('Capital base input'!$H$27:$XFD$76, MATCH($E25, 'Capital base input'!$E$27:$E$76, 0), MATCH(AZ$4, RAB_years, 0)) -> 0 | BA25: =INDEX('Capital base input'!$H$27:$XFD$76, MATCH($E25, 'Capital base input'!$E$27:$E$76, 0), MATCH(BA$4, RAB_years, 0)) -> 0 | BB25: =INDEX('Capital base input'!$H$27:$XFD$76, MATCH($E25, 'Capital base input'!$E$27:$E$76, 0), MATCH(BB$4, RAB_years, 0)) -> 0 | BC25: =INDEX('Capital base input'!$H$27:$XFD$76, MATCH($E25, 'Capital base input'!$E$27:$E$76, 0), MATCH(BC$4, RAB_years, 0)) -> 0 | BD25: =INDEX('Capital base input'!$H$27:$XFD$76, MATCH($E25, 'Capital base input'!$E$27:$E$76, 0), MATCH(BD$4, RAB_years, 0)) -> 0 | BE25: =INDEX('Capital base input'!$H$27:$XFD$76, MATCH($E25, 'Capital base input'!$E$27:$E$76, 0), MATCH(BE$4, RAB_years, 0)) -> 0 | BF25: =INDEX('Capital base input'!$H$27:$XFD$76, MATCH($E25, 'Capital base input'!$E$27:$E$76, 0), MATCH(BF$4, RAB_years, 0)) -> 0 | BG25: =INDEX('Capital base input'!$H$27:$XFD$76, MATCH($E25, 'Capital base input'!$E$27:$E$76, 0), MATCH(BG$4, RAB_years, 0)) -> 0 | BH25: =INDEX('Capital base input'!$H$27:$XFD$76, MATCH($E25, 'Capital base input'!$E$27:$E$76, 0), MATCH(BH$4, RAB_years, 0)) -> 0 | BI25: =INDEX('Capital base input'!$H$27:$XFD$76, MATCH($E25, 'Capital base input'!$E$27:$E$76, 0), MATCH(BI$4, RAB_years, 0)) -> 0 | BJ25: =INDEX('Capital base input'!$H$27:$XFD$76, MATCH($E25, 'Capital base input'!$E$27:$E$76, 0), MATCH(BJ$4, RAB_years, 0)) -> 0 | BK25: =INDEX('Capital base input'!$H$27:$XFD$76, MATCH($E25, 'Capital base input'!$E$27:$E$76, 0), MATCH(BK$4, RAB_years, 0)) -> 0 | BL25: =INDEX('Capital base input'!$H$27:$XFD$76, MATCH($E25, 'Capital base input'!$E$27:$E$76, 0), MATCH(BL$4, RAB_years, 0)) -> 0 | BM25: =INDEX('Capital base input'!$H$27:$XFD$76, MATCH($E25, 'Capital base input'!$E$27:$E$76, 0), MATCH(BM$4, RAB_years, 0)) -> 0 | BN25: =INDEX('Capital base input'!$H$27:$XFD$76, MATCH($E25, 'Capital base input'!$E$27:$E$76, 0), MATCH(BN$4, RAB_years, 0)) -> 0 | BO25: =INDEX('Capital base input'!$H$27:$XFD$76, MATCH($E25, 'Capital base input'!$E$27:$E$76, 0), MATCH(BO$4, RAB_years, 0)) -> 0 | BP25: =INDEX('Capital base input'!$H$27:$XFD$76, MATCH($E25, 'Capital base input'!$E$27:$E$76, 0), MATCH(BP$4, RAB_years, 0)) -> 0 | BQ25: =INDEX('Capital base input'!$H$27:$XFD$76, MATCH($E25, 'Capital base input'!$E$27:$E$76, 0), MATCH(BQ$4, RAB_years, 0)) -> 0 | BR25: =INDEX('Capital base input'!$H$27:$XFD$76, MATCH($E25, 'Capital base input'!$E$27:$E$76, 0), MATCH(BR$4, RAB_years, 0)) -> 0 | BS25: =INDEX('Capital base input'!$H$27:$XFD$76, MATCH($E25, 'Capital base input'!$E$27:$E$76, 0), MATCH(BS$4, RAB_years, 0)) -> 0 | BT25: =INDEX('Capital base input'!$H$27:$XFD$76, MATCH($E25, 'Capital base input'!$E$27:$E$76, 0), MATCH(BT$4, RAB_years, 0)) -> 0 | BU25: =INDEX('Capital base input'!$H$27:$XFD$76, MATCH($E25, 'Capital base input'!$E$27:$E$76, 0), MATCH(BU$4, RAB_years, 0)) -> 0 | BV25: =INDEX('Capital base input'!$H$27:$XFD$76, MATCH($E25, 'Capital base input'!$E$27:$E$76, 0), MATCH(BV$4, RAB_years, 0)) -> 0 | BW25: =INDEX('Capital base input'!$H$27:$XFD$76, MATCH($E25, 'Capital base input'!$E$27:$E$76, 0), MATCH(BW$4, RAB_years, 0)) -> 0 | BX25: =INDEX('Capital base input'!$H$27:$XFD$76, MATCH($E25, 'Capital base input'!$E$27:$E$76, 0), MATCH(BX$4, RAB_years, 0)) -> 0 | BY25: =INDEX('Capital base input'!$H$27:$XFD$76, MATCH($E25, 'Capital base input'!$E$27:$E$76, 0), MATCH(BY$4, RAB_years, 0)) -> 0 | BZ25: =INDEX('Capital base input'!$H$27:$XFD$76, MATCH($E25, 'Capital base input'!$E$27:$E$76, 0), MATCH(BZ$4, RAB_years, 0)) -> 0 | CA25: =INDEX('Capital base input'!$H$27:$XFD$76, MATCH($E25, 'Capital base input'!$E$27:$E$76, 0), MATCH(CA$4, RAB_years, 0)) -> 0 | CB25: =INDEX('Capital base input'!$H$27:$XFD$76, MATCH($E25, 'Capital base input'!$E$27:$E$76, 0), MATCH(CB$4, RAB_years, 0)) -> 0 | CC25: =INDEX('Capital base input'!$H$27:$XFD$76, MATCH($E25, 'Capital base input'!$E$27:$E$76, 0), MATCH(CC$4, RAB_years, 0)) -> 0 | CD25: =INDEX('Capital base input'!$H$27:$XFD$76, MATCH($E25, 'Capital base input'!$E$27:$E$76, 0), MATCH(CD$4, RAB_years, 0)) -> 0 | CE25: =INDEX('Capital base input'!$H$27:$XFD$76, MATCH($E25, 'Capital base input'!$E$27:$E$76, 0), MATCH(CE$4, RAB_years, 0)) -> 0 | CF25: =INDEX('Capital base input'!$H$27:$XFD$76, MATCH($E25, 'Capital base input'!$E$27:$E$76, 0), MATCH(CF$4, RAB_years, 0)) -> 0 | CG25: =INDEX('Capital base input'!$H$27:$XFD$76, MATCH($E25, 'Capital base input'!$E$27:$E$76, 0), MATCH(CG$4, RAB_years, 0)) -> 0 | CH25: =INDEX('Capital base input'!$H$27:$XFD$76, MATCH($E25, 'Capital base input'!$E$27:$E$76, 0), MATCH(CH$4, RAB_years, 0)) -> 0 | CI25: =INDEX('Capital base input'!$H$27:$XFD$76, MATCH($E25, 'Capital base input'!$E$27:$E$76, 0), MATCH(CI$4, RAB_years, 0)) -> 0 | CJ25: =INDEX('Capital base input'!$H$27:$XFD$76, MATCH($E25, 'Capital base input'!$E$27:$E$76, 0), MATCH(CJ$4, RAB_years, 0)) -> 0 | CK25: =INDEX('Capital base input'!$H$27:$XFD$76, MATCH($E25, 'Capital base input'!$E$27:$E$76, 0), MATCH(CK$4, RAB_years, 0)) -> 0 | CL25: =INDEX('Capital base input'!$H$27:$XFD$76, MATCH($E25, 'Capital base input'!$E$27:$E$76, 0), MATCH(CL$4, RAB_years, 0)) -> 0 | CM25: =INDEX('Capital base input'!$H$27:$XFD$76, MATCH($E25, 'Capital base input'!$E$27:$E$76, 0), MATCH(CM$4, RAB_years, 0)) -> 0 | CN25: =INDEX('Capital base input'!$H$27:$XFD$76, MATCH($E25, 'Capital base input'!$E$27:$E$76, 0), MATCH(CN$4, RAB_years, 0)) -> 0 | CO25: =INDEX('Capital base input'!$H$27:$XFD$76, MATCH($E25, 'Capital base input'!$E$27:$E$76, 0), MATCH(CO$4, RAB_years, 0)) -> 0 | CP25: =INDEX('Capital base input'!$H$27:$XFD$76, MATCH($E25, 'Capital base input'!$E$27:$E$76, 0), MATCH(CP$4, RAB_years, 0)) -> 0 | CQ25: =INDEX('Capital base input'!$H$27:$XFD$76, MATCH($E25, 'Capital base input'!$E$27:$E$76, 0), MATCH(CQ$4, RAB_years, 0)) -> 0 | CR25: =INDEX('Capital base input'!$H$27:$XFD$76, MATCH($E25, 'Capital base input'!$E$27:$E$76, 0), MATCH(CR$4, RAB_years, 0)) -> 0 | CS25: =INDEX('Capital base input'!$H$27:$XFD$76, MATCH($E25, 'Capital base input'!$E$27:$E$76, 0), MATCH(CS$4, RAB_years, 0)) -> 0 | CT25: =INDEX('Capital base input'!$H$27:$XFD$76, MATCH($E25, 'Capital base input'!$E$27:$E$76, 0), MATCH(CT$4, RAB_years, 0)) -> 0 | CU25: =INDEX('Capital base input'!$H$27:$XFD$76, MATCH($E25, 'Capital base input'!$E$27:$E$76, 0), MATCH(CU$4, RAB_years, 0)) -> 0 | CV25: =INDEX('Capital base input'!$H$27:$XFD$76, MATCH($E25, 'Capital base input'!$E$27:$E$76, 0), MATCH(CV$4, RAB_years, 0)) -> 0 | CW25: =INDEX('Capital base input'!$H$27:$XFD$76, MATCH($E25, 'Capital base input'!$E$27:$E$76, 0), MATCH(CW$4, RAB_years, 0)) -> 0 | CX25: =INDEX('Capital base input'!$H$27:$XFD$76, MATCH($E25, 'Capital base input'!$E$27:$E$76, 0), MATCH(CX$4, RAB_years, 0)) -> 0 | CY25: =INDEX('Capital base input'!$H$27:$XFD$76, MATCH($E25, 'Capital base input'!$E$27:$E$76, 0), MATCH(CY$4, RAB_years, 0)) -> 0
D26: 9 | E26: ='Capital base input'!E35 -> Low pressure inlets depn | G26: 0 | H26: =INDEX('Capital base input'!$H$27:$XFD$76, MATCH($E26, 'Capital base input'!$E$27:$E$76, 0), MATCH(H$4, RAB_years, 0)) -> 0 | I26: =INDEX('Capital base input'!$H$27:$XFD$76, MATCH($E26, 'Capital base input'!$E$27:$E$76, 0), MATCH(I$4, RAB_years, 0)) -> 0 | J26: =INDEX('Capital base input'!$H$27:$XFD$76, MATCH($E26, 'Capital base input'!$E$27:$E$76, 0), MATCH(J$4, RAB_years, 0)) -> 0 | K26: =INDEX('Capital base input'!$H$27:$XFD$76, MATCH($E26, 'Capital base input'!$E$27:$E$76, 0), MATCH(K$4, RAB_years, 0)) -> 0 | L26: =INDEX('Capital base input'!$H$27:$XFD$76, MATCH($E26, 'Capital base input'!$E$27:$E$76, 0), MATCH(L$4, RAB_years, 0)) -> 0 | M26: =INDEX('Capital base input'!$H$27:$XFD$76, MATCH($E26, 'Capital base input'!$E$27:$E$76, 0), MATCH(M$4, RAB_years, 0)) -> 0 | N26: =INDEX('Capital base input'!$H$27:$XFD$76, MATCH($E26, 'Capital base input'!$E$27:$E$76, 0), MATCH(N$4, RAB_years, 0)) -> 0 | O26: =INDEX('Capital base input'!$H$27:$XFD$76, MATCH($E26, 'Capital base input'!$E$27:$E$76, 0), MATCH(O$4, RAB_years, 0)) -> 0 | P26: =INDEX('Capital base input'!$H$27:$XFD$76, MATCH($E26, 'Capital base input'!$E$27:$E$76, 0), MATCH(P$4, RAB_years, 0)) -> 0 | Q26: =INDEX('Capital base input'!$H$27:$XFD$76, MATCH($E26, 'Capital base input'!$E$27:$E$76, 0), MATCH(Q$4, RAB_years, 0)) -> 0 | R26: =INDEX('Capital base input'!$H$27:$XFD$76, MATCH($E26, 'Capital base input'!$E$27:$E$76, 0), MATCH(R$4, RAB_years, 0)) -> 0 | S26: =INDEX('Capital base input'!$H$27:$XFD$76, MATCH($E26, 'Capital base input'!$E$27:$E$76, 0), MATCH(S$4, RAB_years, 0)) -> 0 | T26: =INDEX('Capital base input'!$H$27:$XFD$76, MATCH($E26, 'Capital base input'!$E$27:$E$76, 0), MATCH(T$4, RAB_years, 0)) -> 0 | U26: =INDEX('Capital base input'!$H$27:$XFD$76, MATCH($E26, 'Capital base input'!$E$27:$E$76, 0), MATCH(U$4, RAB_years, 0)) -> 0 | V26: =INDEX('Capital base input'!$H$27:$XFD$76, MATCH($E26, 'Capital base input'!$E$27:$E$76, 0), MATCH(V$4, RAB_years, 0)) -> 0 | W26: =INDEX('Capital base input'!$H$27:$XFD$76, MATCH($E26, 'Capital base input'!$E$27:$E$76, 0), MATCH(W$4, RAB_years, 0)) -> 0 | X26: =INDEX('Capital base input'!$H$27:$XFD$76, MATCH($E26, 'Capital base input'!$E$27:$E$76, 0), MATCH(X$4, RAB_years, 0)) -> 0 | Y26: =INDEX('Capital base input'!$H$27:$XFD$76, MATCH($E26, 'Capital base input'!$E$27:$E$76, 0), MATCH(Y$4, RAB_years, 0)) -> 0 | Z26: =INDEX('Capital base input'!$H$27:$XFD$76, MATCH($E26, 'Capital base input'!$E$27:$E$76, 0), MATCH(Z$4, RAB_years, 0)) -> 0 | AA26: =INDEX('Capital base input'!$H$27:$XFD$76, MATCH($E26, 'Capital base input'!$E$27:$E$76, 0), MATCH(AA$4, RAB_years, 0)) -> 0 | AB26: =INDEX('Capital base input'!$H$27:$XFD$76, MATCH($E26, 'Capital base input'!$E$27:$E$76, 0), MATCH(AB$4, RAB_years, 0)) -> 0 | AC26: =INDEX('Capital base input'!$H$27:$XFD$76, MATCH($E26, 'Capital base input'!$E$27:$E$76, 0), MATCH(AC$4, RAB_years, 0)) -> 0 | AD26: =INDEX('Capital base input'!$H$27:$XFD$76, MATCH($E26, 'Capital base input'!$E$27:$E$76, 0), MATCH(AD$4, RAB_years, 0)) -> 0 | AE26: =INDEX('Capital base input'!$H$27:$XFD$76, MATCH($E26, 'Capital base input'!$E$27:$E$76, 0), MATCH(AE$4, RAB_years, 0)) -> 0 | AF26: =INDEX('Capital base input'!$H$27:$XFD$76, MATCH($E26, 'Capital base input'!$E$27:$E$76, 0), MATCH(AF$4, RAB_years, 0)) -> 0 | AG26: =INDEX('Capital base input'!$H$27:$XFD$76, MATCH($E26, 'Capital base input'!$E$27:$E$76, 0), MATCH(AG$4, RAB_years, 0)) -> 0 | AH26: =INDEX('Capital base input'!$H$27:$XFD$76, MATCH($E26, 'Capital base input'!$E$27:$E$76, 0), MATCH(AH$4, RAB_years, 0)) -> 0 | AI26: =INDEX('Capital base input'!$H$27:$XFD$76, MATCH($E26, 'Capital base input'!$E$27:$E$76, 0), MATCH(AI$4, RAB_years, 0)) -> 0 | AJ26: =INDEX('Capital base input'!$H$27:$XFD$76, MATCH($E26, 'Capital base input'!$E$27:$E$76, 0), MATCH(AJ$4, RAB_years, 0)) -> 0 | AK26: =INDEX('Capital base input'!$H$27:$XFD$76, MATCH($E26, 'Capital base input'!$E$27:$E$76, 0), MATCH(AK$4, RAB_years, 0)) -> 0 | AL26: =INDEX('Capital base input'!$H$27:$XFD$76, MATCH($E26, 'Capital base input'!$E$27:$E$76, 0), MATCH(AL$4, RAB_years, 0)) -> 0 | AM26: =INDEX('Capital base input'!$H$27:$XFD$76, MATCH($E26, 'Capital base input'!$E$27:$E$76, 0), MATCH(AM$4, RAB_years, 0)) -> 0 | AN26: =INDEX('Capital base input'!$H$27:$XFD$76, MATCH($E26, 'Capital base input'!$E$27:$E$76, 0), MATCH(AN$4, RAB_years, 0)) -> 0 | AO26: =INDEX('Capital base input'!$H$27:$XFD$76, MATCH($E26, 'Capital base input'!$E$27:$E$76, 0), MATCH(AO$4, RAB_years, 0)) -> 0 | AP26: =INDEX('Capital base input'!$H$27:$XFD$76, MATCH($E26, 'Capital base input'!$E$27:$E$76, 0), MATCH(AP$4, RAB_years, 0)) -> 0 | AQ26: =INDEX('Capital base input'!$H$27:$XFD$76, MATCH($E26, 'Capital base input'!$E$27:$E$76, 0), MATCH(AQ$4, RAB_years, 0)) -> 0 | AR26: =INDEX('Capital base input'!$H$27:$XFD$76, MATCH($E26, 'Capital base input'!$E$27:$E$76, 0), MATCH(AR$4, RAB_years, 0)) -> 0 | AS26: =INDEX('Capital base input'!$H$27:$XFD$76, MATCH($E26, 'Capital base input'!$E$27:$E$76, 0), MATCH(AS$4, RAB_years, 0)) -> 0 | AT26: =INDEX('Capital base input'!$H$27:$XFD$76, MATCH($E26, 'Capital base input'!$E$27:$E$76, 0), MATCH(AT$4, RAB_years, 0)) -> 0 | AU26: =INDEX('Capital base input'!$H$27:$XFD$76, MATCH($E26, 'Capital base input'!$E$27:$E$76, 0), MATCH(AU$4, RAB_years, 0)) -> 0 | AV26: =INDEX('Capital base input'!$H$27:$XFD$76, MATCH($E26, 'Capital base input'!$E$27:$E$76, 0), MATCH(AV$4, RAB_years, 0)) -> 0 | AW26: =INDEX('Capital base input'!$H$27:$XFD$76, MATCH($E26, 'Capital base input'!$E$27:$E$76, 0), MATCH(AW$4, RAB_years, 0)) -> 0 | AX26: =INDEX('Capital base input'!$H$27:$XFD$76, MATCH($E26, 'Capital base input'!$E$27:$E$76, 0), MATCH(AX$4, RAB_years, 0)) -> 0 | AY26: =INDEX('Capital base input'!$H$27:$XFD$76, MATCH($E26, 'Capital base input'!$E$27:$E$76, 0), MATCH(AY$4, RAB_years, 0)) -> 0 | AZ26: =INDEX('Capital base input'!$H$27:$XFD$76, MATCH($E26, 'Capital base input'!$E$27:$E$76, 0), MATCH(AZ$4, RAB_years, 0)) -> 0 | BA26: =INDEX('Capital base input'!$H$27:$XFD$76, MATCH($E26, 'Capital base input'!$E$27:$E$76, 0), MATCH(BA$4, RAB_years, 0)) -> 0 | BB26: =INDEX('Capital base input'!$H$27:$XFD$76, MATCH($E26, 'Capital base input'!$E$27:$E$76, 0), MATCH(BB$4, RAB_years, 0)) -> 0 | BC26: =INDEX('Capital base input'!$H$27:$XFD$76, MATCH($E26, 'Capital base input'!$E$27:$E$76, 0), MATCH(BC$4, RAB_years, 0)) -> 0 | BD26: =INDEX('Capital base input'!$H$27:$XFD$76, MATCH($E26, 'Capital base input'!$E$27:$E$76, 0), MATCH(BD$4, RAB_years, 0)) -> 0 | BE26: =INDEX('Capital base input'!$H$27:$XFD$76, MATCH($E26, 'Capital base input'!$E$27:$E$76, 0), MATCH(BE$4, RAB_years, 0)) -> 0 | BF26: =INDEX('Capital base input'!$H$27:$XFD$76, MATCH($E26, 'Capital base input'!$E$27:$E$76, 0), MATCH(BF$4, RAB_years, 0)) -> 0 | BG26: =INDEX('Capital base input'!$H$27:$XFD$76, MATCH($E26, 'Capital base input'!$E$27:$E$76, 0), MATCH(BG$4, RAB_years, 0)) -> 0 | BH26: =INDEX('Capital base input'!$H$27:$XFD$76, MATCH($E26, 'Capital base input'!$E$27:$E$76, 0), MATCH(BH$4, RAB_years, 0)) -> 0 | BI26: =INDEX('Capital base input'!$H$27:$XFD$76, MATCH($E26, 'Capital base input'!$E$27:$E$76, 0), MATCH(BI$4, RAB_years, 0)) -> 0 | BJ26: =INDEX('Capital base input'!$H$27:$XFD$76, MATCH($E26, 'Capital base input'!$E$27:$E$76, 0), MATCH(BJ$4, RAB_years, 0)) -> 0 | BK26: =INDEX('Capital base input'!$H$27:$XFD$76, MATCH($E26, 'Capital base input'!$E$27:$E$76, 0), MATCH(BK$4, RAB_years, 0)) -> 0 | BL26: =INDEX('Capital base input'!$H$27:$XFD$76, MATCH($E26, 'Capital base input'!$E$27:$E$76, 0), MATCH(BL$4, RAB_years, 0)) -> 0 | BM26: =INDEX('Capital base input'!$H$27:$XFD$76, MATCH($E26, 'Capital base input'!$E$27:$E$76, 0), MATCH(BM$4, RAB_years, 0)) -> 0 | BN26: =INDEX('Capital base input'!$H$27:$XFD$76, MATCH($E26, 'Capital base input'!$E$27:$E$76, 0), MATCH(BN$4, RAB_years, 0)) -> 0 | BO26: =INDEX('Capital base input'!$H$27:$XFD$76, MATCH($E26, 'Capital base input'!$E$27:$E$76, 0), MATCH(BO$4, RAB_years, 0)) -> 0 | BP26: =INDEX('Capital base input'!$H$27:$XFD$76, MATCH($E26, 'Capital base input'!$E$27:$E$76, 0), MATCH(BP$4, RAB_years, 0)) -> 0 | BQ26: =INDEX('Capital base input'!$H$27:$XFD$76, MATCH($E26, 'Capital base input'!$E$27:$E$76, 0), MATCH(BQ$4, RAB_years, 0)) -> 0 | BR26: =INDEX('Capital base input'!$H$27:$XFD$76, MATCH($E26, 'Capital base input'!$E$27:$E$76, 0), MATCH(BR$4, RAB_years, 0)) -> 0 | BS26: =INDEX('Capital base input'!$H$27:$XFD$76, MATCH($E26, 'Capital base input'!$E$27:$E$76, 0), MATCH(BS$4, RAB_years, 0)) -> 0 | BT26: =INDEX('Capital base input'!$H$27:$XFD$76, MATCH($E26, 'Capital base input'!$E$27:$E$76, 0), MATCH(BT$4, RAB_years, 0)) -> 0 | BU26: =INDEX('Capital base input'!$H$27:$XFD$76, MATCH($E26, 'Capital base input'!$E$27:$E$76, 0), MATCH(BU$4, RAB_years, 0)) -> 0 | BV26: =INDEX('Capital base input'!$H$27:$XFD$76, MATCH($E26, 'Capital base input'!$E$27:$E$76, 0), MATCH(BV$4, RAB_years, 0)) -> 0 | BW26: =INDEX('Capital base input'!$H$27:$XFD$76, MATCH($E26, 'Capital base input'!$E$27:$E$76, 0), MATCH(BW$4, RAB_years, 0)) -> 0 | BX26: =INDEX('Capital base input'!$H$27:$XFD$76, MATCH($E26, 'Capital base input'!$E$27:$E$76, 0), MATCH(BX$4, RAB_years, 0)) -> 0 | BY26: =INDEX('Capital base input'!$H$27:$XFD$76, MATCH($E26, 'Capital base input'!$E$27:$E$76, 0), MATCH(BY$4, RAB_years, 0)) -> 0 | BZ26: =INDEX('Capital base input'!$H$27:$XFD$76, MATCH($E26, 'Capital base input'!$E$27:$E$76, 0), MATCH(BZ$4, RAB_years, 0)) -> 0 | CA26: =INDEX('Capital base input'!$H$27:$XFD$76, MATCH($E26, 'Capital base input'!$E$27:$E$76, 0), MATCH(CA$4, RAB_years, 0)) -> 0 | CB26: =INDEX('Capital base input'!$H$27:$XFD$76, MATCH($E26, 'Capital base input'!$E$27:$E$76, 0), MATCH(CB$4, RAB_years, 0)) -> 0 | CC26: =INDEX('Capital base input'!$H$27:$XFD$76, MATCH($E26, 'Capital base input'!$E$27:$E$76, 0), MATCH(CC$4, RAB_years, 0)) -> 0 | CD26: =INDEX('Capital base input'!$H$27:$XFD$76, MATCH($E26, 'Capital base input'!$E$27:$E$76, 0), MATCH(CD$4, RAB_years, 0)) -> 0 | CE26: =INDEX('Capital base input'!$H$27:$XFD$76, MATCH($E26, 'Capital base input'!$E$27:$E$76, 0), MATCH(CE$4, RAB_years, 0)) -> 0 | CF26: =INDEX('Capital base input'!$H$27:$XFD$76, MATCH($E26, 'Capital base input'!$E$27:$E$76, 0), MATCH(CF$4, RAB_years, 0)) -> 0 | CG26: =INDEX('Capital base input'!$H$27:$XFD$76, MATCH($E26, 'Capital base input'!$E$27:$E$76, 0), MATCH(CG$4, RAB_years, 0)) -> 0 | CH26: =INDEX('Capital base input'!$H$27:$XFD$76, MATCH($E26, 'Capital base input'!$E$27:$E$76, 0), MATCH(CH$4, RAB_years, 0)) -> 0 | CI26: =INDEX('Capital base input'!$H$27:$XFD$76, MATCH($E26, 'Capital base input'!$E$27:$E$76, 0), MATCH(CI$4, RAB_years, 0)) -> 0 | CJ26: =INDEX('Capital base input'!$H$27:$XFD$76, MATCH($E26, 'Capital base input'!$E$27:$E$76, 0), MATCH(CJ$4, RAB_years, 0)) -> 0 | CK26: =INDEX('Capital base input'!$H$27:$XFD$76, MATCH($E26, 'Capital base input'!$E$27:$E$76, 0), MATCH(CK$4, RAB_years, 0)) -> 0 | CL26: =INDEX('Capital base input'!$H$27:$XFD$76, MATCH($E26, 'Capital base input'!$E$27:$E$76, 0), MATCH(CL$4, RAB_years, 0)) -> 0 | CM26: =INDEX('Capital base input'!$H$27:$XFD$76, MATCH($E26, 'Capital base input'!$E$27:$E$76, 0), MATCH(CM$4, RAB_years, 0)) -> 0 | CN26: =INDEX('Capital base input'!$H$27:$XFD$76, MATCH($E26, 'Capital base input'!$E$27:$E$76, 0), MATCH(CN$4, RAB_years, 0)) -> 0 | CO26: =INDEX('Capital base input'!$H$27:$XFD$76, MATCH($E26, 'Capital base input'!$E$27:$E$76, 0), MATCH(CO$4, RAB_years, 0)) -> 0 | CP26: =INDEX('Capital base input'!$H$27:$XFD$76, MATCH($E26, 'Capital base input'!$E$27:$E$76, 0), MATCH(CP$4, RAB_years, 0)) -> 0 | CQ26: =INDEX('Capital base input'!$H$27:$XFD$76, MATCH($E26, 'Capital base input'!$E$27:$E$76, 0), MATCH(CQ$4, RAB_years, 0)) -> 0 | CR26: =INDEX('Capital base input'!$H$27:$XFD$76, MATCH($E26, 'Capital base input'!$E$27:$E$76, 0), MATCH(CR$4, RAB_years, 0)) -> 0 | CS26: =INDEX('Capital base input'!$H$27:$XFD$76, MATCH($E26, 'Capital base input'!$E$27:$E$76, 0), MATCH(CS$4, RAB_years, 0)) -> 0 | CT26: =INDEX('Capital base input'!$H$27:$XFD$76, MATCH($E26, 'Capital base input'!$E$27:$E$76, 0), MATCH(CT$4, RAB_years, 0)) -> 0 | CU26: =INDEX('Capital base input'!$H$27:$XFD$76, MATCH($E26, 'Capital base input'!$E$27:$E$76, 0), MATCH(CU$4, RAB_years, 0)) -> 0 | CV26: =INDEX('Capital base input'!$H$27:$XFD$76, MATCH($E26, 'Capital base input'!$E$27:$E$76, 0), MATCH(CV$4, RAB_years, 0)) -> 0 | CW26: =INDEX('Capital base input'!$H$27:$XFD$76, MATCH($E26, 'Capital base input'!$E$27:$E$76, 0), MATCH(CW$4, RAB_years, 0)) -> 0 | CX26: =INDEX('Capital base input'!$H$27:$XFD$76, MATCH($E26, 'Capital base input'!$E$27:$E$76, 0), MATCH(CX$4, RAB_years, 0)) -> 0 | CY26: =INDEX('Capital base input'!$H$27:$XFD$76, MATCH($E26, 'Capital base input'!$E$27:$E$76, 0), MATCH(CY$4, RAB_years, 0)) -> 0
D27: 10 | E27: ='Capital base input'!E36 -> Future of Gas Depreciation | G27: 0 | H27: =INDEX('Capital base input'!$H$27:$XFD$76, MATCH($E27, 'Capital base input'!$E$27:$E$76, 0), MATCH(H$4, RAB_years, 0)) -> 0 | I27: =INDEX('Capital base input'!$H$27:$XFD$76, MATCH($E27, 'Capital base input'!$E$27:$E$76, 0), MATCH(I$4, RAB_years, 0)) -> 0 | J27: =INDEX('Capital base input'!$H$27:$XFD$76, MATCH($E27, 'Capital base input'!$E$27:$E$76, 0), MATCH(J$4, RAB_years, 0)) -> 0 | K27: =INDEX('Capital base input'!$H$27:$XFD$76, MATCH($E27, 'Capital base input'!$E$27:$E$76, 0), MATCH(K$4, RAB_years, 0)) -> 0 | L27: =INDEX('Capital base input'!$H$27:$XFD$76, MATCH($E27, 'Capital base input'!$E$27:$E$76, 0), MATCH(L$4, RAB_years, 0)) -> 0 | M27: =INDEX('Capital base input'!$H$27:$XFD$76, MATCH($E27, 'Capital base input'!$E$27:$E$76, 0), MATCH(M$4, RAB_years, 0)) -> 0 | N27: =INDEX('Capital base input'!$H$27:$XFD$76, MATCH($E27, 'Capital base input'!$E$27:$E$76, 0), MATCH(N$4, RAB_years, 0)) -> 0 | O27: =INDEX('Capital base input'!$H$27:$XFD$76, MATCH($E27, 'Capital base input'!$E$27:$E$76, 0), MATCH(O$4, RAB_years, 0)) -> 0 | P27: =INDEX('Capital base input'!$H$27:$XFD$76, MATCH($E27, 'Capital base input'!$E$27:$E$76, 0), MATCH(P$4, RAB_years, 0)) -> 0 | Q27: =INDEX('Capital base input'!$H$27:$XFD$76, MATCH($E27, 'Capital base input'!$E$27:$E$76, 0), MATCH(Q$4, RAB_years, 0)) -> 0 | R27: =INDEX('Capital base input'!$H$27:$XFD$76, MATCH($E27, 'Capital base input'!$E$27:$E$76, 0), MATCH(R$4, RAB_years, 0)) -> 0 | S27: =INDEX('Capital base input'!$H$27:$XFD$76, MATCH($E27, 'Capital base input'!$E$27:$E$76, 0), MATCH(S$4, RAB_years, 0)) -> 0 | T27: =INDEX('Capital base input'!$H$27:$XFD$76, MATCH($E27, 'Capital base input'!$E$27:$E$76, 0), MATCH(T$4, RAB_years, 0)) -> 0 | U27: =INDEX('Capital base input'!$H$27:$XFD$76, MATCH($E27, 'Capital base input'!$E$27:$E$76, 0), MATCH(U$4, RAB_years, 0)) -> 0 | V27: =INDEX('Capital base input'!$H$27:$XFD$76, MATCH($E27, 'Capital base input'!$E$27:$E$76, 0), MATCH(V$4, RAB_years, 0)) -> 0 | W27: =INDEX('Capital base input'!$H$27:$XFD$76, MATCH($E27, 'Capital base input'!$E$27:$E$76, 0), MATCH(W$4, RAB_years, 0)) -> 0 | X27: =INDEX('Capital base input'!$H$27:$XFD$76, MATCH($E27, 'Capital base input'!$E$27:$E$76, 0), MATCH(X$4, RAB_years, 0)) -> 0 | Y27: =INDEX('Capital base input'!$H$27:$XFD$76, MATCH($E27, 'Capital base input'!$E$27:$E$76, 0), MATCH(Y$4, RAB_years, 0)) -> 0 | Z27: =INDEX('Capital base input'!$H$27:$XFD$76, MATCH($E27, 'Capital base input'!$E$27:$E$76, 0), MATCH(Z$4, RAB_years, 0)) -> 0 | AA27: =INDEX('Capital base input'!$H$27:$XFD$76, MATCH($E27, 'Capital base input'!$E$27:$E$76, 0), MATCH(AA$4, RAB_years, 0)) -> 0 | AB27: =INDEX('Capital base input'!$H$27:$XFD$76, MATCH($E27, 'Capital base input'!$E$27:$E$76, 0), MATCH(AB$4, RAB_years, 0)) -> 0 | AC27: =INDEX('Capital base input'!$H$27:$XFD$76, MATCH($E27, 'Capital base input'!$E$27:$E$76, 0), MATCH(AC$4, RAB_years, 0)) -> 0 | AD27: =INDEX('Capital base input'!$H$27:$XFD$76, MATCH($E27, 'Capital base input'!$E$27:$E$76, 0), MATCH(AD$4, RAB_years, 0)) -> 0 | AE27: =INDEX('Capital base input'!$H$27:$XFD$76, MATCH($E27, 'Capital base input'!$E$27:$E$76, 0), MATCH(AE$4, RAB_years, 0)) -> 0 | AF27: =INDEX('Capital base input'!$H$27:$XFD$76, MATCH($E27, 'Capital base input'!$E$27:$E$76, 0), MATCH(AF$4, RAB_years, 0)) -> 0 | AG27: =INDEX('Capital base input'!$H$27:$XFD$76, MATCH($E27, 'Capital base input'!$E$27:$E$76, 0), MATCH(AG$4, RAB_years, 0)) -> 0 | AH27: =INDEX('Capital base input'!$H$27:$XFD$76, MATCH($E27, 'Capital base input'!$E$27:$E$76, 0), MATCH(AH$4, RAB_years, 0)) -> 0 | AI27: =INDEX('Capital base input'!$H$27:$XFD$76, MATCH($E27, 'Capital base input'!$E$27:$E$76, 0), MATCH(AI$4, RAB_years, 0)) -> 0 | AJ27: =INDEX('Capital base input'!$H$27:$XFD$76, MATCH($E27, 'Capital base input'!$E$27:$E$76, 0), MATCH(AJ$4, RAB_years, 0)) -> 0 | AK27: =INDEX('Capital base input'!$H$27:$XFD$76, MATCH($E27, 'Capital base input'!$E$27:$E$76, 0), MATCH(AK$4, RAB_years, 0)) -> 0 | AL27: =INDEX('Capital base input'!$H$27:$XFD$76, MATCH($E27, 'Capital base input'!$E$27:$E$76, 0), MATCH(AL$4, RAB_years, 0)) -> 0 | AM27: =INDEX('Capital base input'!$H$27:$XFD$76, MATCH($E27, 'Capital base input'!$E$27:$E$76, 0), MATCH(AM$4, RAB_years, 0)) -> 0 | AN27: =INDEX('Capital base input'!$H$27:$XFD$76, MATCH($E27, 'Capital base input'!$E$27:$E$76, 0), MATCH(AN$4, RAB_years, 0)) -> 0 | AO27: =INDEX('Capital base input'!$H$27:$XFD$76, MATCH($E27, 'Capital base input'!$E$27:$E$76, 0), MATCH(AO$4, RAB_years, 0)) -> 0 | AP27: =INDEX('Capital base input'!$H$27:$XFD$76, MATCH($E27, 'Capital base input'!$E$27:$E$76, 0), MATCH(AP$4, RAB_years, 0)) -> 0 | AQ27: =INDEX('Capital base input'!$H$27:$XFD$76, MATCH($E27, 'Capital base input'!$E$27:$E$76, 0), MATCH(AQ$4, RAB_years, 0)) -> 0 | AR27: =INDEX('Capital base input'!$H$27:$XFD$76, MATCH($E27, 'Capital base input'!$E$27:$E$76, 0), MATCH(AR$4, RAB_years, 0)) -> 0 | AS27: =INDEX('Capital base input'!$H$27:$XFD$76, MATCH($E27, 'Capital base input'!$E$27:$E$76, 0), MATCH(AS$4, RAB_years, 0)) -> 0 | AT27: =INDEX('Capital base input'!$H$27:$XFD$76, MATCH($E27, 'Capital base input'!$E$27:$E$76, 0), MATCH(AT$4, RAB_years, 0)) -> 0 | AU27: =INDEX('Capital base input'!$H$27:$XFD$76, MATCH($E27, 'Capital base input'!$E$27:$E$76, 0), MATCH(AU$4, RAB_years, 0)) -> 0 | AV27: =INDEX('Capital base input'!$H$27:$XFD$76, MATCH($E27, 'Capital base input'!$E$27:$E$76, 0), MATCH(AV$4, RAB_years, 0)) -> 0 | AW27: =INDEX('Capital base input'!$H$27:$XFD$76, MATCH($E27, 'Capital base input'!$E$27:$E$76, 0), MATCH(AW$4, RAB_years, 0)) -> 0 | AX27: =INDEX('Capital base input'!$H$27:$XFD$76, MATCH($E27, 'Capital base input'!$E$27:$E$76, 0), MATCH(AX$4, RAB_years, 0)) -> 0 | AY27: =INDEX('Capital base input'!$H$27:$XFD$76, MATCH($E27, 'Capital base input'!$E$27:$E$76, 0), MATCH(AY$4, RAB_years, 0)) -> 0 | AZ27: =INDEX('Capital base input'!$H$27:$XFD$76, MATCH($E27, 'Capital base input'!$E$27:$E$76, 0), MATCH(AZ$4, RAB_years, 0)) -> 0 | BA27: =INDEX('Capital base input'!$H$27:$XFD$76, MATCH($E27, 'Capital base input'!$E$27:$E$76, 0), MATCH(BA$4, RAB_years, 0)) -> 0 | BB27: =INDEX('Capital base input'!$H$27:$XFD$76, MATCH($E27, 'Capital base input'!$E$27:$E$76, 0), MATCH(BB$4, RAB_years, 0)) -> 0 | BC27: =INDEX('Capital base input'!$H$27:$XFD$76, MATCH($E27, 'Capital base input'!$E$27:$E$76, 0), MATCH(BC$4, RAB_years, 0)) -> 0 | BD27: =INDEX('Capital base input'!$H$27:$XFD$76, MATCH($E27, 'Capital base input'!$E$27:$E$76, 0), MATCH(BD$4, RAB_years, 0)) -> 0 | BE27: =INDEX('Capital base input'!$H$27:$XFD$76, MATCH($E27, 'Capital base input'!$E$27:$E$76, 0), MATCH(BE$4, RAB_years, 0)) -> 0 | BF27: =INDEX('Capital base input'!$H$27:$XFD$76, MATCH($E27, 'Capital base input'!$E$27:$E$76, 0), MATCH(BF$4, RAB_years, 0)) -> 0 | BG27: =INDEX('Capital base input'!$H$27:$XFD$76, MATCH($E27, 'Capital base input'!$E$27:$E$76, 0), MATCH(BG$4, RAB_years, 0)) -> 0 | BH27: =INDEX('Capital base input'!$H$27:$XFD$76, MATCH($E27, 'Capital base input'!$E$27:$E$76, 0), MATCH(BH$4, RAB_years, 0)) -> 0 | BI27: =INDEX('Capital base input'!$H$27:$XFD$76, MATCH($E27, 'Capital base input'!$E$27:$E$76, 0), MATCH(BI$4, RAB_years, 0)) -> 0 | BJ27: =INDEX('Capital base input'!$H$27:$XFD$76, MATCH($E27, 'Capital base input'!$E$27:$E$76, 0), MATCH(BJ$4, RAB_years, 0)) -> 0 | BK27: =INDEX('Capital base input'!$H$27:$XFD$76, MATCH($E27, 'Capital base input'!$E$27:$E$76, 0), MATCH(BK$4, RAB_years, 0)) -> 0 | BL27: =INDEX('Capital base input'!$H$27:$XFD$76, MATCH($E27, 'Capital base input'!$E$27:$E$76, 0), MATCH(BL$4, RAB_years, 0)) -> 0 | BM27: =INDEX('Capital base input'!$H$27:$XFD$76, MATCH($E27, 'Capital base input'!$E$27:$E$76, 0), MATCH(BM$4, RAB_years, 0)) -> 0 | BN27: =INDEX('Capital base input'!$H$27:$XFD$76, MATCH($E27, 'Capital base input'!$E$27:$E$76, 0), MATCH(BN$4, RAB_years, 0)) -> 0 | BO27: =INDEX('Capital base input'!$H$27:$XFD$76, MATCH($E27, 'Capital base input'!$E$27:$E$76, 0), MATCH(BO$4, RAB_years, 0)) -> 0 | BP27: =INDEX('Capital base input'!$H$27:$XFD$76, MATCH($E27, 'Capital base input'!$E$27:$E$76, 0), MATCH(BP$4, RAB_years, 0)) -> 0 | BQ27: =INDEX('Capital base input'!$H$27:$XFD$76, MATCH($E27, 'Capital base input'!$E$27:$E$76, 0), MATCH(BQ$4, RAB_years, 0)) -> 0 | BR27: =INDEX('Capital base input'!$H$27:$XFD$76, MATCH($E27, 'Capital base input'!$E$27:$E$76, 0), MATCH(BR$4, RAB_years, 0)) -> 0 | BS27: =INDEX('Capital base input'!$H$27:$XFD$76, MATCH($E27, 'Capital base input'!$E$27:$E$76, 0), MATCH(BS$4, RAB_years, 0)) -> 0 | BT27: =INDEX('Capital base input'!$H$27:$XFD$76, MATCH($E27, 'Capital base input'!$E$27:$E$76, 0), MATCH(BT$4, RAB_years, 0)) -> 0 | BU27: =INDEX('Capital base input'!$H$27:$XFD$76, MATCH($E27, 'Capital base input'!$E$27:$E$76, 0), MATCH(BU$4, RAB_years, 0)) -> 0 | BV27: =INDEX('Capital base input'!$H$27:$XFD$76, MATCH($E27, 'Capital base input'!$E$27:$E$76, 0), MATCH(BV$4, RAB_years, 0)) -> 0 | BW27: =INDEX('Capital base input'!$H$27:$XFD$76, MATCH($E27, 'Capital base input'!$E$27:$E$76, 0), MATCH(BW$4, RAB_years, 0)) -> 0 | BX27: =INDEX('Capital base input'!$H$27:$XFD$76, MATCH($E27, 'Capital base input'!$E$27:$E$76, 0), MATCH(BX$4, RAB_years, 0)) -> 0 | BY27: =INDEX('Capital base input'!$H$27:$XFD$76, MATCH($E27, 'Capital base input'!$E$27:$E$76, 0), MATCH(BY$4, RAB_years, 0)) -> 0 | BZ27: =INDEX('Capital base input'!$H$27:$XFD$76, MATCH($E27, 'Capital base input'!$E$27:$E$76, 0), MATCH(BZ$4, RAB_years, 0)) -> 0 | CA27: =INDEX('Capital base input'!$H$27:$XFD$76, MATCH($E27, 'Capital base input'!$E$27:$E$76, 0), MATCH(CA$4, RAB_years, 0)) -> 0 | CB27: =INDEX('Capital base input'!$H$27:$XFD$76, MATCH($E27, 'Capital base input'!$E$27:$E$76, 0), MATCH(CB$4, RAB_years, 0)) -> 0 | CC27: =INDEX('Capital base input'!$H$27:$XFD$76, MATCH($E27, 'Capital base input'!$E$27:$E$76, 0), MATCH(CC$4, RAB_years, 0)) -> 0 | CD27: =INDEX('Capital base input'!$H$27:$XFD$76, MATCH($E27, 'Capital base input'!$E$27:$E$76, 0), MATCH(CD$4, RAB_years, 0)) -> 0 | CE27: =INDEX('Capital base input'!$H$27:$XFD$76, MATCH($E27, 'Capital base input'!$E$27:$E$76, 0), MATCH(CE$4, RAB_years, 0)) -> 0 | CF27: =INDEX('Capital base input'!$H$27:$XFD$76, MATCH($E27, 'Capital base input'!$E$27:$E$76, 0), MATCH(CF$4, RAB_years, 0)) -> 0 | CG27: =INDEX('Capital base input'!$H$27:$XFD$76, MATCH($E27, 'Capital base input'!$E$27:$E$76, 0), MATCH(CG$4, RAB_years, 0)) -> 0 | CH27: =INDEX('Capital base input'!$H$27:$XFD$76, MATCH($E27, 'Capital base input'!$E$27:$E$76, 0), MATCH(CH$4, RAB_years, 0)) -> 0 | CI27: =INDEX('Capital base input'!$H$27:$XFD$76, MATCH($E27, 'Capital base input'!$E$27:$E$76, 0), MATCH(CI$4, RAB_years, 0)) -> 0 | CJ27: =INDEX('Capital base input'!$H$27:$XFD$76, MATCH($E27, 'Capital base input'!$E$27:$E$76, 0), MATCH(CJ$4, RAB_years, 0)) -> 0 | CK27: =INDEX('Capital base input'!$H$27:$XFD$76, MATCH($E27, 'Capital base input'!$E$27:$E$76, 0), MATCH(CK$4, RAB_years, 0)) -> 0 | CL27: =INDEX('Capital base input'!$H$27:$XFD$76, MATCH($E27, 'Capital base input'!$E$27:$E$76, 0), MATCH(CL$4, RAB_years, 0)) -> 0 | CM27: =INDEX('Capital base input'!$H$27:$XFD$76, MATCH($E27, 'Capital base input'!$E$27:$E$76, 0), MATCH(CM$4, RAB_years, 0)) -> 0 | CN27: =INDEX('Capital base input'!$H$27:$XFD$76, MATCH($E27, 'Capital base input'!$E$27:$E$76, 0), MATCH(CN$4, RAB_years, 0)) -> 0 | CO27: =INDEX('Capital base input'!$H$27:$XFD$76, MATCH($E27, 'Capital base input'!$E$27:$E$76, 0), MATCH(CO$4, RAB_years, 0)) -> 0 | CP27: =INDEX('Capital base input'!$H$27:$XFD$76, MATCH($E27, 'Capital base input'!$E$27:$E$76, 0), MATCH(CP$4, RAB_years, 0)) -> 0 | CQ27: =INDEX('Capital base input'!$H$27:$XFD$76, MATCH($E27, 'Capital base input'!$E$27:$E$76, 0), MATCH(CQ$4, RAB_years, 0)) -> 0 | CR27: =INDEX('Capital base input'!$H$27:$XFD$76, MATCH($E27, 'Capital base input'!$E$27:$E$76, 0), MATCH(CR$4, RAB_years, 0)) -> 0 | CS27: =INDEX('Capital base input'!$H$27:$XFD$76, MATCH($E27, 'Capital base input'!$E$27:$E$76, 0), MATCH(CS$4, RAB_years, 0)) -> 0 | CT27: =INDEX('Capital base input'!$H$27:$XFD$76, MATCH($E27, 'Capital base input'!$E$27:$E$76, 0), MATCH(CT$4, RAB_years, 0)) -> 0 | CU27: =INDEX('Capital base input'!$H$27:$XFD$76, MATCH($E27, 'Capital base input'!$E$27:$E$76, 0), MATCH(CU$4, RAB_years, 0)) -> 0 | CV27: =INDEX('Capital base input'!$H$27:$XFD$76, MATCH($E27, 'Capital base input'!$E$27:$E$76, 0), MATCH(CV$4, RAB_years, 0)) -> 0 | CW27: =INDEX('Capital base input'!$H$27:$XFD$76, MATCH($E27, 'Capital base input'!$E$27:$E$76, 0), MATCH(CW$4, RAB_years, 0)) -> 0 | CX27: =INDEX('Capital base input'!$H$27:$XFD$76, MATCH($E27, 'Capital base input'!$E$27:$E$76, 0), MATCH(CX$4, RAB_years, 0)) -> 0 | CY27: =INDEX('Capital base input'!$H$27:$XFD$76, MATCH($E27, 'Capital base input'!$E$27:$E$76, 0), MATCH(CY$4, RAB_years, 0)) -> 0
D28: 11 | E28: ='Capital base input'!E37 -> 0 | G28: 0 | H28: =INDEX('Capital base input'!$H$27:$XFD$76, MATCH($E28, 'Capital base input'!$E$27:$E$76, 0), MATCH(H$4, RAB_years, 0)) -> 0 | I28: =INDEX('Capital base input'!$H$27:$XFD$76, MATCH($E28, 'Capital base input'!$E$27:$E$76, 0), MATCH(I$4, RAB_years, 0)) -> 0 | J28: =INDEX('Capital base input'!$H$27:$XFD$76, MATCH($E28, 'Capital base input'!$E$27:$E$76, 0), MATCH(J$4, RAB_years, 0)) -> 0 | K28: =INDEX('Capital base input'!$H$27:$XFD$76, MATCH($E28, 'Capital base input'!$E$27:$E$76, 0), MATCH(K$4, RAB_years, 0)) -> 0 | L28: =INDEX('Capital base input'!$H$27:$XFD$76, MATCH($E28, 'Capital base input'!$E$27:$E$76, 0), MATCH(L$4, RAB_years, 0)) -> 0 | M28: =INDEX('Capital base input'!$H$27:$XFD$76, MATCH($E28, 'Capital base input'!$E$27:$E$76, 0), MATCH(M$4, RAB_years, 0)) -> 0 | N28: =INDEX('Capital base input'!$H$27:$XFD$76, MATCH($E28, 'Capital base input'!$E$27:$E$76, 0), MATCH(N$4, RAB_years, 0)) -> 0 | O28: =INDEX('Capital base input'!$H$27:$XFD$76, MATCH($E28, 'Capital base input'!$E$27:$E$76, 0), MATCH(O$4, RAB_years, 0)) -> 0 | P28: =INDEX('Capital base input'!$H$27:$XFD$76, MATCH($E28, 'Capital base input'!$E$27:$E$76, 0), MATCH(P$4, RAB_years, 0)) -> 0 | Q28: =INDEX('Capital base input'!$H$27:$XFD$76, MATCH($E28, 'Capital base input'!$E$27:$E$76, 0), MATCH(Q$4, RAB_years, 0)) -> 0 | R28: =INDEX('Capital base input'!$H$27:$XFD$76, MATCH($E28, 'Capital base input'!$E$27:$E$76, 0), MATCH(R$4, RAB_years, 0)) -> 0 | S28: =INDEX('Capital base input'!$H$27:$XFD$76, MATCH($E28, 'Capital base input'!$E$27:$E$76, 0), MATCH(S$4, RAB_years, 0)) -> 0 | T28: =INDEX('Capital base input'!$H$27:$XFD$76, MATCH($E28, 'Capital base input'!$E$27:$E$76, 0), MATCH(T$4, RAB_years, 0)) -> 0 | U28: =INDEX('Capital base input'!$H$27:$XFD$76, MATCH($E28, 'Capital base input'!$E$27:$E$76, 0), MATCH(U$4, RAB_years, 0)) -> 0 | V28: =INDEX('Capital base input'!$H$27:$XFD$76, MATCH($E28, 'Capital base input'!$E$27:$E$76, 0), MATCH(V$4, RAB_years, 0)) -> 0 | W28: =INDEX('Capital base input'!$H$27:$XFD$76, MATCH($E28, 'Capital base input'!$E$27:$E$76, 0), MATCH(W$4, RAB_years, 0)) -> 0 | X28: =INDEX('Capital base input'!$H$27:$XFD$76, MATCH($E28, 'Capital base input'!$E$27:$E$76, 0), MATCH(X$4, RAB_years, 0)) -> 0 | Y28: =INDEX('Capital base input'!$H$27:$XFD$76, MATCH($E28, 'Capital base input'!$E$27:$E$76, 0), MATCH(Y$4, RAB_years, 0)) -> 0 | Z28: =INDEX('Capital base input'!$H$27:$XFD$76, MATCH($E28, 'Capital base input'!$E$27:$E$76, 0), MATCH(Z$4, RAB_years, 0)) -> 0 | AA28: =INDEX('Capital base input'!$H$27:$XFD$76, MATCH($E28, 'Capital base input'!$E$27:$E$76, 0), MATCH(AA$4, RAB_years, 0)) -> 0 | AB28: =INDEX('Capital base input'!$H$27:$XFD$76, MATCH($E28, 'Capital base input'!$E$27:$E$76, 0), MATCH(AB$4, RAB_years, 0)) -> 0 | AC28: =INDEX('Capital base input'!$H$27:$XFD$76, MATCH($E28, 'Capital base input'!$E$27:$E$76, 0), MATCH(AC$4, RAB_years, 0)) -> 0 | AD28: =INDEX('Capital base input'!$H$27:$XFD$76, MATCH($E28, 'Capital base input'!$E$27:$E$76, 0), MATCH(AD$4, RAB_years, 0)) -> 0 | AE28: =INDEX('Capital base input'!$H$27:$XFD$76, MATCH($E28, 'Capital base input'!$E$27:$E$76, 0), MATCH(AE$4, RAB_years, 0)) -> 0 | AF28: =INDEX('Capital base input'!$H$27:$XFD$76, MATCH($E28, 'Capital base input'!$E$27:$E$76, 0), MATCH(AF$4, RAB_years, 0)) -> 0 | AG28: =INDEX('Capital base input'!$H$27:$XFD$76, MATCH($E28, 'Capital base input'!$E$27:$E$76, 0), MATCH(AG$4, RAB_years, 0)) -> 0 | AH28: =INDEX('Capital base input'!$H$27:$XFD$76, MATCH($E28, 'Capital base input'!$E$27:$E$76, 0), MATCH(AH$4, RAB_years, 0)) -> 0 | AI28: =INDEX('Capital base input'!$H$27:$XFD$76, MATCH($E28, 'Capital base input'!$E$27:$E$76, 0), MATCH(AI$4, RAB_years, 0)) -> 0 | AJ28: =INDEX('Capital base input'!$H$27:$XFD$76, MATCH($E28, 'Capital base input'!$E$27:$E$76, 0), MATCH(AJ$4, RAB_years, 0)) -> 0 | AK28: =INDEX('Capital base input'!$H$27:$XFD$76, MATCH($E28, 'Capital base input'!$E$27:$E$76, 0), MATCH(AK$4, RAB_years, 0)) -> 0 | AL28: =INDEX('Capital base input'!$H$27:$XFD$76, MATCH($E28, 'Capital base input'!$E$27:$E$76, 0), MATCH(AL$4, RAB_years, 0)) -> 0 | AM28: =INDEX('Capital base input'!$H$27:$XFD$76, MATCH($E28, 'Capital base input'!$E$27:$E$76, 0), MATCH(AM$4, RAB_years, 0)) -> 0 | AN28: =INDEX('Capital base input'!$H$27:$XFD$76, MATCH($E28, 'Capital base input'!$E$27:$E$76, 0), MATCH(AN$4, RAB_years, 0)) -> 0 | AO28: =INDEX('Capital base input'!$H$27:$XFD$76, MATCH($E28, 'Capital base input'!$E$27:$E$76, 0), MATCH(AO$4, RAB_years, 0)) -> 0 | AP28: =INDEX('Capital base input'!$H$27:$XFD$76, MATCH($E28, 'Capital base input'!$E$27:$E$76, 0), MATCH(AP$4, RAB_years, 0)) -> 0 | AQ28: =INDEX('Capital base input'!$H$27:$XFD$76, MATCH($E28, 'Capital base input'!$E$27:$E$76, 0), MATCH(AQ$4, RAB_years, 0)) -> 0 | AR28: =INDEX('Capital base input'!$H$27:$XFD$76, MATCH($E28, 'Capital base input'!$E$27:$E$76, 0), MATCH(AR$4, RAB_years, 0)) -> 0 | AS28: =INDEX('Capital base input'!$H$27:$XFD$76, MATCH($E28, 'Capital base input'!$E$27:$E$76, 0), MATCH(AS$4, RAB_years, 0)) -> 0 | AT28: =INDEX('Capital base input'!$H$27:$XFD$76, MATCH($E28, 'Capital base input'!$E$27:$E$76, 0), MATCH(AT$4, RAB_years, 0)) -> 0 | AU28: =INDEX('Capital base input'!$H$27:$XFD$76, MATCH($E28, 'Capital base input'!$E$27:$E$76, 0), MATCH(AU$4, RAB_years, 0)) -> 0 | AV28: =INDEX('Capital base input'!$H$27:$XFD$76, MATCH($E28, 'Capital base input'!$E$27:$E$76, 0), MATCH(AV$4, RAB_years, 0)) -> 0 | AW28: =INDEX('Capital base input'!$H$27:$XFD$76, MATCH($E28, 'Capital base input'!$E$27:$E$76, 0), MATCH(AW$4, RAB_years, 0)) -> 0 | AX28: =INDEX('Capital base input'!$H$27:$XFD$76, MATCH($E28, 'Capital base input'!$E$27:$E$76, 0), MATCH(AX$4, RAB_years, 0)) -> 0 | AY28: =INDEX('Capital base input'!$H$27:$XFD$76, MATCH($E28, 'Capital base input'!$E$27:$E$76, 0), MATCH(AY$4, RAB_years, 0)) -> 0 | AZ28: =INDEX('Capital base input'!$H$27:$XFD$76, MATCH($E28, 'Capital base input'!$E$27:$E$76, 0), MATCH(AZ$4, RAB_years, 0)) -> 0 | BA28: =INDEX('Capital base input'!$H$27:$XFD$76, MATCH($E28, 'Capital base input'!$E$27:$E$76, 0), MATCH(BA$4, RAB_years, 0)) -> 0 | BB28: =INDEX('Capital base input'!$H$27:$XFD$76, MATCH($E28, 'Capital base input'!$E$27:$E$76, 0), MATCH(BB$4, RAB_years, 0)) -> 0 | BC28: =INDEX('Capital base input'!$H$27:$XFD$76, MATCH($E28, 'Capital base input'!$E$27:$E$76, 0), MATCH(BC$4, RAB_years, 0)) -> 0 | BD28: =INDEX('Capital base input'!$H$27:$XFD$76, MATCH($E28, 'Capital base input'!$E$27:$E$76, 0), MATCH(BD$4, RAB_years, 0)) -> 0 | BE28: =INDEX('Capital base input'!$H$27:$XFD$76, MATCH($E28, 'Capital base input'!$E$27:$E$76, 0), MATCH(BE$4, RAB_years, 0)) -> 0 | BF28: =INDEX('Capital base input'!$H$27:$XFD$76, MATCH($E28, 'Capital base input'!$E$27:$E$76, 0), MATCH(BF$4, RAB_years, 0)) -> 0 | BG28: =INDEX('Capital base input'!$H$27:$XFD$76, MATCH($E28, 'Capital base input'!$E$27:$E$76, 0), MATCH(BG$4, RAB_years, 0)) -> 0 | BH28: =INDEX('Capital base input'!$H$27:$XFD$76, MATCH($E28, 'Capital base input'!$E$27:$E$76, 0), MATCH(BH$4, RAB_years, 0)) -> 0 | BI28: =INDEX('Capital base input'!$H$27:$XFD$76, MATCH($E28, 'Capital base input'!$E$27:$E$76, 0), MATCH(BI$4, RAB_years, 0)) -> 0 | BJ28: =INDEX('Capital base input'!$H$27:$XFD$76, MATCH($E28, 'Capital base input'!$E$27:$E$76, 0), MATCH(BJ$4, RAB_years, 0)) -> 0 | BK28: =INDEX('Capital base input'!$H$27:$XFD$76, MATCH($E28, 'Capital base input'!$E$27:$E$76, 0), MATCH(BK$4, RAB_years, 0)) -> 0 | BL28: =INDEX('Capital base input'!$H$27:$XFD$76, MATCH($E28, 'Capital base input'!$E$27:$E$76, 0), MATCH(BL$4, RAB_years, 0)) -> 0 | BM28: =INDEX('Capital base input'!$H$27:$XFD$76, MATCH($E28, 'Capital base input'!$E$27:$E$76, 0), MATCH(BM$4, RAB_years, 0)) -> 0 | BN28: =INDEX('Capital base input'!$H$27:$XFD$76, MATCH($E28, 'Capital base input'!$E$27:$E$76, 0), MATCH(BN$4, RAB_years, 0)) -> 0 | BO28: =INDEX('Capital base input'!$H$27:$XFD$76, MATCH($E28, 'Capital base input'!$E$27:$E$76, 0), MATCH(BO$4, RAB_years, 0)) -> 0 | BP28: =INDEX('Capital base input'!$H$27:$XFD$76, MATCH($E28, 'Capital base input'!$E$27:$E$76, 0), MATCH(BP$4, RAB_years, 0)) -> 0 | BQ28: =INDEX('Capital base input'!$H$27:$XFD$76, MATCH($E28, 'Capital base input'!$E$27:$E$76, 0), MATCH(BQ$4, RAB_years, 0)) -> 0 | BR28: =INDEX('Capital base input'!$H$27:$XFD$76, MATCH($E28, 'Capital base input'!$E$27:$E$76, 0), MATCH(BR$4, RAB_years, 0)) -> 0 | BS28: =INDEX('Capital base input'!$H$27:$XFD$76, MATCH($E28, 'Capital base input'!$E$27:$E$76, 0), MATCH(BS$4, RAB_years, 0)) -> 0 | BT28: =INDEX('Capital base input'!$H$27:$XFD$76, MATCH($E28, 'Capital base input'!$E$27:$E$76, 0), MATCH(BT$4, RAB_years, 0)) -> 0 | BU28: =INDEX('Capital base input'!$H$27:$XFD$76, MATCH($E28, 'Capital base input'!$E$27:$E$76, 0), MATCH(BU$4, RAB_years, 0)) -> 0 | BV28: =INDEX('Capital base input'!$H$27:$XFD$76, MATCH($E28, 'Capital base input'!$E$27:$E$76, 0), MATCH(BV$4, RAB_years, 0)) -> 0 | BW28: =INDEX('Capital base input'!$H$27:$XFD$76, MATCH($E28, 'Capital base input'!$E$27:$E$76, 0), MATCH(BW$4, RAB_years, 0)) -> 0 | BX28: =INDEX('Capital base input'!$H$27:$XFD$76, MATCH($E28, 'Capital base input'!$E$27:$E$76, 0), MATCH(BX$4, RAB_years, 0)) -> 0 | BY28: =INDEX('Capital base input'!$H$27:$XFD$76, MATCH($E28, 'Capital base input'!$E$27:$E$76, 0), MATCH(BY$4, RAB_years, 0)) -> 0 | BZ28: =INDEX('Capital base input'!$H$27:$XFD$76, MATCH($E28, 'Capital base input'!$E$27:$E$76, 0), MATCH(BZ$4, RAB_years, 0)) -> 0 | CA28: =INDEX('Capital base input'!$H$27:$XFD$76, MATCH($E28, 'Capital base input'!$E$27:$E$76, 0), MATCH(CA$4, RAB_years, 0)) -> 0 | CB28: =INDEX('Capital base input'!$H$27:$XFD$76, MATCH($E28, 'Capital base input'!$E$27:$E$76, 0), MATCH(CB$4, RAB_years, 0)) -> 0 | CC28: =INDEX('Capital base input'!$H$27:$XFD$76, MATCH($E28, 'Capital base input'!$E$27:$E$76, 0), MATCH(CC$4, RAB_years, 0)) -> 0 | CD28: =INDEX('Capital base input'!$H$27:$XFD$76, MATCH($E28, 'Capital base input'!$E$27:$E$76, 0), MATCH(CD$4, RAB_years, 0)) -> 0 | CE28: =INDEX('Capital base input'!$H$27:$XFD$76, MATCH($E28, 'Capital base input'!$E$27:$E$76, 0), MATCH(CE$4, RAB_years, 0)) -> 0 | CF28: =INDEX('Capital base input'!$H$27:$XFD$76, MATCH($E28, 'Capital base input'!$E$27:$E$76, 0), MATCH(CF$4, RAB_years, 0)) -> 0 | CG28: =INDEX('Capital base input'!$H$27:$XFD$76, MATCH($E28, 'Capital base input'!$E$27:$E$76, 0), MATCH(CG$4, RAB_years, 0)) -> 0 | CH28: =INDEX('Capital base input'!$H$27:$XFD$76, MATCH($E28, 'Capital base input'!$E$27:$E$76, 0), MATCH(CH$4, RAB_years, 0)) -> 0 | CI28: =INDEX('Capital base input'!$H$27:$XFD$76, MATCH($E28, 'Capital base input'!$E$27:$E$76, 0), MATCH(CI$4, RAB_years, 0)) -> 0 | CJ28: =INDEX('Capital base input'!$H$27:$XFD$76, MATCH($E28, 'Capital base input'!$E$27:$E$76, 0), MATCH(CJ$4, RAB_years, 0)) -> 0 | CK28: =INDEX('Capital base input'!$H$27:$XFD$76, MATCH($E28, 'Capital base input'!$E$27:$E$76, 0), MATCH(CK$4, RAB_years, 0)) -> 0 | CL28: =INDEX('Capital base input'!$H$27:$XFD$76, MATCH($E28, 'Capital base input'!$E$27:$E$76, 0), MATCH(CL$4, RAB_years, 0)) -> 0 | CM28: =INDEX('Capital base input'!$H$27:$XFD$76, MATCH($E28, 'Capital base input'!$E$27:$E$76, 0), MATCH(CM$4, RAB_years, 0)) -> 0 | CN28: =INDEX('Capital base input'!$H$27:$XFD$76, MATCH($E28, 'Capital base input'!$E$27:$E$76, 0), MATCH(CN$4, RAB_years, 0)) -> 0 | CO28: =INDEX('Capital base input'!$H$27:$XFD$76, MATCH($E28, 'Capital base input'!$E$27:$E$76, 0), MATCH(CO$4, RAB_years, 0)) -> 0 | CP28: =INDEX('Capital base input'!$H$27:$XFD$76, MATCH($E28, 'Capital base input'!$E$27:$E$76, 0), MATCH(CP$4, RAB_years, 0)) -> 0 | CQ28: =INDEX('Capital base input'!$H$27:$XFD$76, MATCH($E28, 'Capital base input'!$E$27:$E$76, 0), MATCH(CQ$4, RAB_years, 0)) -> 0 | CR28: =INDEX('Capital base input'!$H$27:$XFD$76, MATCH($E28, 'Capital base input'!$E$27:$E$76, 0), MATCH(CR$4, RAB_years, 0)) -> 0 | CS28: =INDEX('Capital base input'!$H$27:$XFD$76, MATCH($E28, 'Capital base input'!$E$27:$E$76, 0), MATCH(CS$4, RAB_years, 0)) -> 0 | CT28: =INDEX('Capital base input'!$H$27:$XFD$76, MATCH($E28, 'Capital base input'!$E$27:$E$76, 0), MATCH(CT$4, RAB_years, 0)) -> 0 | CU28: =INDEX('Capital base input'!$H$27:$XFD$76, MATCH($E28, 'Capital base input'!$E$27:$E$76, 0), MATCH(CU$4, RAB_years, 0)) -> 0 | CV28: =INDEX('Capital base input'!$H$27:$XFD$76, MATCH($E28, 'Capital base input'!$E$27:$E$76, 0), MATCH(CV$4, RAB_years, 0)) -> 0 | CW28: =INDEX('Capital base input'!$H$27:$XFD$76, MATCH($E28, 'Capital base input'!$E$27:$E$76, 0), MATCH(CW$4, RAB_years, 0)) -> 0 | CX28: =INDEX('Capital base input'!$H$27:$XFD$76, MATCH($E28, 'Capital base input'!$E$27:$E$76, 0), MATCH(CX$4, RAB_years, 0)) -> 0 | CY28: =INDEX('Capital base input'!$H$27:$XFD$76, MATCH($E28, 'Capital base input'!$E$27:$E$76, 0), MATCH(CY$4, RAB_years, 0)) -> 0
D29: 12 | E29: ='Capital base input'!E38 -> 0 | G29: 0 | H29: =INDEX('Capital base input'!$H$27:$XFD$76, MATCH($E29, 'Capital base input'!$E$27:$E$76, 0), MATCH(H$4, RAB_years, 0)) -> 0 | I29: =INDEX('Capital base input'!$H$27:$XFD$76, MATCH($E29, 'Capital base input'!$E$27:$E$76, 0), MATCH(I$4, RAB_years, 0)) -> 0 | J29: =INDEX('Capital base input'!$H$27:$XFD$76, MATCH($E29, 'Capital base input'!$E$27:$E$76, 0), MATCH(J$4, RAB_years, 0)) -> 0 | K29: =INDEX('Capital base input'!$H$27:$XFD$76, MATCH($E29, 'Capital base input'!$E$27:$E$76, 0), MATCH(K$4, RAB_years, 0)) -> 0 | L29: =INDEX('Capital base input'!$H$27:$XFD$76, MATCH($E29, 'Capital base input'!$E$27:$E$76, 0), MATCH(L$4, RAB_years, 0)) -> 0 | M29: =INDEX('Capital base input'!$H$27:$XFD$76, MATCH($E29, 'Capital base input'!$E$27:$E$76, 0), MATCH(M$4, RAB_years, 0)) -> 0 | N29: =INDEX('Capital base input'!$H$27:$XFD$76, MATCH($E29, 'Capital base input'!$E$27:$E$76, 0), MATCH(N$4, RAB_years, 0)) -> 0 | O29: =INDEX('Capital base input'!$H$27:$XFD$76, MATCH($E29, 'Capital base input'!$E$27:$E$76, 0), MATCH(O$4, RAB_years, 0)) -> 0 | P29: =INDEX('Capital base input'!$H$27:$XFD$76, MATCH($E29, 'Capital base input'!$E$27:$E$76, 0), MATCH(P$4, RAB_years, 0)) -> 0 | Q29: =INDEX('Capital base input'!$H$27:$XFD$76, MATCH($E29, 'Capital base input'!$E$27:$E$76, 0), MATCH(Q$4, RAB_years, 0)) -> 0 | R29: =INDEX('Capital base input'!$H$27:$XFD$76, MATCH($E29, 'Capital base input'!$E$27:$E$76, 0), MATCH(R$4, RAB_years, 0)) -> 0 | S29: =INDEX('Capital base input'!$H$27:$XFD$76, MATCH($E29, 'Capital base input'!$E$27:$E$76, 0), MATCH(S$4, RAB_years, 0)) -> 0 | T29: =INDEX('Capital base input'!$H$27:$XFD$76, MATCH($E29, 'Capital base input'!$E$27:$E$76, 0), MATCH(T$4, RAB_years, 0)) -> 0 | U29: =INDEX('Capital base input'!$H$27:$XFD$76, MATCH($E29, 'Capital base input'!$E$27:$E$76, 0), MATCH(U$4, RAB_years, 0)) -> 0 | V29: =INDEX('Capital base input'!$H$27:$XFD$76, MATCH($E29, 'Capital base input'!$E$27:$E$76, 0), MATCH(V$4, RAB_years, 0)) -> 0 | W29: =INDEX('Capital base input'!$H$27:$XFD$76, MATCH($E29, 'Capital base input'!$E$27:$E$76, 0), MATCH(W$4, RAB_years, 0)) -> 0 | X29: =INDEX('Capital base input'!$H$27:$XFD$76, MATCH($E29, 'Capital base input'!$E$27:$E$76, 0), MATCH(X$4, RAB_years, 0)) -> 0 | Y29: =INDEX('Capital base input'!$H$27:$XFD$76, MATCH($E29, 'Capital base input'!$E$27:$E$76, 0), MATCH(Y$4, RAB_years, 0)) -> 0 | Z29: =INDEX('Capital base input'!$H$27:$XFD$76, MATCH($E29, 'Capital base input'!$E$27:$E$76, 0), MATCH(Z$4, RAB_years, 0)) -> 0 | AA29: =INDEX('Capital base input'!$H$27:$XFD$76, MATCH($E29, 'Capital base input'!$E$27:$E$76, 0), MATCH(AA$4, RAB_years, 0)) -> 0 | AB29: =INDEX('Capital base input'!$H$27:$XFD$76, MATCH($E29, 'Capital base input'!$E$27:$E$76, 0), MATCH(AB$4, RAB_years, 0)) -> 0 | AC29: =INDEX('Capital base input'!$H$27:$XFD$76, MATCH($E29, 'Capital base input'!$E$27:$E$76, 0), MATCH(AC$4, RAB_years, 0)) -> 0 | AD29: =INDEX('Capital base input'!$H$27:$XFD$76, MATCH($E29, 'Capital base input'!$E$27:$E$76, 0), MATCH(AD$4, RAB_years, 0)) -> 0 | AE29: =INDEX('Capital base input'!$H$27:$XFD$76, MATCH($E29, 'Capital base input'!$E$27:$E$76, 0), MATCH(AE$4, RAB_years, 0)) -> 0 | AF29: =INDEX('Capital base input'!$H$27:$XFD$76, MATCH($E29, 'Capital base input'!$E$27:$E$76, 0), MATCH(AF$4, RAB_years, 0)) -> 0 | AG29: =INDEX('Capital base input'!$H$27:$XFD$76, MATCH($E29, 'Capital base input'!$E$27:$E$76, 0), MATCH(AG$4, RAB_years, 0)) -> 0 | AH29: =INDEX('Capital base input'!$H$27:$XFD$76, MATCH($E29, 'Capital base input'!$E$27:$E$76, 0), MATCH(AH$4, RAB_years, 0)) -> 0 | AI29: =INDEX('Capital base input'!$H$27:$XFD$76, MATCH($E29, 'Capital base input'!$E$27:$E$76, 0), MATCH(AI$4, RAB_years, 0)) -> 0 | AJ29: =INDEX('Capital base input'!$H$27:$XFD$76, MATCH($E29, 'Capital base input'!$E$27:$E$76, 0), MATCH(AJ$4, RAB_years, 0)) -> 0 | AK29: =INDEX('Capital base input'!$H$27:$XFD$76, MATCH($E29, 'Capital base input'!$E$27:$E$76, 0), MATCH(AK$4, RAB_years, 0)) -> 0 | AL29: =INDEX('Capital base input'!$H$27:$XFD$76, MATCH($E29, 'Capital base input'!$E$27:$E$76, 0), MATCH(AL$4, RAB_years, 0)) -> 0 | AM29: =INDEX('Capital base input'!$H$27:$XFD$76, MATCH($E29, 'Capital base input'!$E$27:$E$76, 0), MATCH(AM$4, RAB_years, 0)) -> 0 | AN29: =INDEX('Capital base input'!$H$27:$XFD$76, MATCH($E29, 'Capital base input'!$E$27:$E$76, 0), MATCH(AN$4, RAB_years, 0)) -> 0 | AO29: =INDEX('Capital base input'!$H$27:$XFD$76, MATCH($E29, 'Capital base input'!$E$27:$E$76, 0), MATCH(AO$4, RAB_years, 0)) -> 0 | AP29: =INDEX('Capital base input'!$H$27:$XFD$76, MATCH($E29, 'Capital base input'!$E$27:$E$76, 0), MATCH(AP$4, RAB_years, 0)) -> 0 | AQ29: =INDEX('Capital base input'!$H$27:$XFD$76, MATCH($E29, 'Capital base input'!$E$27:$E$76, 0), MATCH(AQ$4, RAB_years, 0)) -> 0 | AR29: =INDEX('Capital base input'!$H$27:$XFD$76, MATCH($E29, 'Capital base input'!$E$27:$E$76, 0), MATCH(AR$4, RAB_years, 0)) -> 0 | AS29: =INDEX('Capital base input'!$H$27:$XFD$76, MATCH($E29, 'Capital base input'!$E$27:$E$76, 0), MATCH(AS$4, RAB_years, 0)) -> 0 | AT29: =INDEX('Capital base input'!$H$27:$XFD$76, MATCH($E29, 'Capital base input'!$E$27:$E$76, 0), MATCH(AT$4, RAB_years, 0)) -> 0 | AU29: =INDEX('Capital base input'!$H$27:$XFD$76, MATCH($E29, 'Capital base input'!$E$27:$E$76, 0), MATCH(AU$4, RAB_years, 0)) -> 0 | AV29: =INDEX('Capital base input'!$H$27:$XFD$76, MATCH($E29, 'Capital base input'!$E$27:$E$76, 0), MATCH(AV$4, RAB_years, 0)) -> 0 | AW29: =INDEX('Capital base input'!$H$27:$XFD$76, MATCH($E29, 'Capital base input'!$E$27:$E$76, 0), MATCH(AW$4, RAB_years, 0)) -> 0 | AX29: =INDEX('Capital base input'!$H$27:$XFD$76, MATCH($E29, 'Capital base input'!$E$27:$E$76, 0), MATCH(AX$4, RAB_years, 0)) -> 0 | AY29: =INDEX('Capital base input'!$H$27:$XFD$76, MATCH($E29, 'Capital base input'!$E$27:$E$76, 0), MATCH(AY$4, RAB_years, 0)) -> 0 | AZ29: =INDEX('Capital base input'!$H$27:$XFD$76, MATCH($E29, 'Capital base input'!$E$27:$E$76, 0), MATCH(AZ$4, RAB_years, 0)) -> 0 | BA29: =INDEX('Capital base input'!$H$27:$XFD$76, MATCH($E29, 'Capital base input'!$E$27:$E$76, 0), MATCH(BA$4, RAB_years, 0)) -> 0 | BB29: =INDEX('Capital base input'!$H$27:$XFD$76, MATCH($E29, 'Capital base input'!$E$27:$E$76, 0), MATCH(BB$4, RAB_years, 0)) -> 0 | BC29: =INDEX('Capital base input'!$H$27:$XFD$76, MATCH($E29, 'Capital base input'!$E$27:$E$76, 0), MATCH(BC$4, RAB_years, 0)) -> 0 | BD29: =INDEX('Capital base input'!$H$27:$XFD$76, MATCH($E29, 'Capital base input'!$E$27:$E$76, 0), MATCH(BD$4, RAB_years, 0)) -> 0 | BE29: =INDEX('Capital base input'!$H$27:$XFD$76, MATCH($E29, 'Capital base input'!$E$27:$E$76, 0), MATCH(BE$4, RAB_years, 0)) -> 0 | BF29: =INDEX('Capital base input'!$H$27:$XFD$76, MATCH($E29, 'Capital base input'!$E$27:$E$76, 0), MATCH(BF$4, RAB_years, 0)) -> 0 | BG29: =INDEX('Capital base input'!$H$27:$XFD$76, MATCH($E29, 'Capital base input'!$E$27:$E$76, 0), MATCH(BG$4, RAB_years, 0)) -> 0 | BH29: =INDEX('Capital base input'!$H$27:$XFD$76, MATCH($E29, 'Capital base input'!$E$27:$E$76, 0), MATCH(BH$4, RAB_years, 0)) -> 0 | BI29: =INDEX('Capital base input'!$H$27:$XFD$76, MATCH($E29, 'Capital base input'!$E$27:$E$76, 0), MATCH(BI$4, RAB_years, 0)) -> 0 | BJ29: =INDEX('Capital base input'!$H$27:$XFD$76, MATCH($E29, 'Capital base input'!$E$27:$E$76, 0), MATCH(BJ$4, RAB_years, 0)) -> 0 | BK29: =INDEX('Capital base input'!$H$27:$XFD$76, MATCH($E29, 'Capital base input'!$E$27:$E$76, 0), MATCH(BK$4, RAB_years, 0)) -> 0 | BL29: =INDEX('Capital base input'!$H$27:$XFD$76, MATCH($E29, 'Capital base input'!$E$27:$E$76, 0), MATCH(BL$4, RAB_years, 0)) -> 0 | BM29: =INDEX('Capital base input'!$H$27:$XFD$76, MATCH($E29, 'Capital base input'!$E$27:$E$76, 0), MATCH(BM$4, RAB_years, 0)) -> 0 | BN29: =INDEX('Capital base input'!$H$27:$XFD$76, MATCH($E29, 'Capital base input'!$E$27:$E$76, 0), MATCH(BN$4, RAB_years, 0)) -> 0 | BO29: =INDEX('Capital base input'!$H$27:$XFD$76, MATCH($E29, 'Capital base input'!$E$27:$E$76, 0), MATCH(BO$4, RAB_years, 0)) -> 0 | BP29: =INDEX('Capital base input'!$H$27:$XFD$76, MATCH($E29, 'Capital base input'!$E$27:$E$76, 0), MATCH(BP$4, RAB_years, 0)) -> 0 | BQ29: =INDEX('Capital base input'!$H$27:$XFD$76, MATCH($E29, 'Capital base input'!$E$27:$E$76, 0), MATCH(BQ$4, RAB_years, 0)) -> 0 | BR29: =INDEX('Capital base input'!$H$27:$XFD$76, MATCH($E29, 'Capital base input'!$E$27:$E$76, 0), MATCH(BR$4, RAB_years, 0)) -> 0 | BS29: =INDEX('Capital base input'!$H$27:$XFD$76, MATCH($E29, 'Capital base input'!$E$27:$E$76, 0), MATCH(BS$4, RAB_years, 0)) -> 0 | BT29: =INDEX('Capital base input'!$H$27:$XFD$76, MATCH($E29, 'Capital base input'!$E$27:$E$76, 0), MATCH(BT$4, RAB_years, 0)) -> 0 | BU29: =INDEX('Capital base input'!$H$27:$XFD$76, MATCH($E29, 'Capital base input'!$E$27:$E$76, 0), MATCH(BU$4, RAB_years, 0)) -> 0 | BV29: =INDEX('Capital base input'!$H$27:$XFD$76, MATCH($E29, 'Capital base input'!$E$27:$E$76, 0), MATCH(BV$4, RAB_years, 0)) -> 0 | BW29: =INDEX('Capital base input'!$H$27:$XFD$76, MATCH($E29, 'Capital base input'!$E$27:$E$76, 0), MATCH(BW$4, RAB_years, 0)) -> 0 | BX29: =INDEX('Capital base input'!$H$27:$XFD$76, MATCH($E29, 'Capital base input'!$E$27:$E$76, 0), MATCH(BX$4, RAB_years, 0)) -> 0 | BY29: =INDEX('Capital base input'!$H$27:$XFD$76, MATCH($E29, 'Capital base input'!$E$27:$E$76, 0), MATCH(BY$4, RAB_years, 0)) -> 0 | BZ29: =INDEX('Capital base input'!$H$27:$XFD$76, MATCH($E29, 'Capital base input'!$E$27:$E$76, 0), MATCH(BZ$4, RAB_years, 0)) -> 0 | CA29: =INDEX('Capital base input'!$H$27:$XFD$76, MATCH($E29, 'Capital base input'!$E$27:$E$76, 0), MATCH(CA$4, RAB_years, 0)) -> 0 | CB29: =INDEX('Capital base input'!$H$27:$XFD$76, MATCH($E29, 'Capital base input'!$E$27:$E$76, 0), MATCH(CB$4, RAB_years, 0)) -> 0 | CC29: =INDEX('Capital base input'!$H$27:$XFD$76, MATCH($E29, 'Capital base input'!$E$27:$E$76, 0), MATCH(CC$4, RAB_years, 0)) -> 0 | CD29: =INDEX('Capital base input'!$H$27:$XFD$76, MATCH($E29, 'Capital base input'!$E$27:$E$76, 0), MATCH(CD$4, RAB_years, 0)) -> 0 | CE29: =INDEX('Capital base input'!$H$27:$XFD$76, MATCH($E29, 'Capital base input'!$E$27:$E$76, 0), MATCH(CE$4, RAB_years, 0)) -> 0 | CF29: =INDEX('Capital base input'!$H$27:$XFD$76, MATCH($E29, 'Capital base input'!$E$27:$E$76, 0), MATCH(CF$4, RAB_years, 0)) -> 0 | CG29: =INDEX('Capital base input'!$H$27:$XFD$76, MATCH($E29, 'Capital base input'!$E$27:$E$76, 0), MATCH(CG$4, RAB_years, 0)) -> 0 | CH29: =INDEX('Capital base input'!$H$27:$XFD$76, MATCH($E29, 'Capital base input'!$E$27:$E$76, 0), MATCH(CH$4, RAB_years, 0)) -> 0 | CI29: =INDEX('Capital base input'!$H$27:$XFD$76, MATCH($E29, 'Capital base input'!$E$27:$E$76, 0), MATCH(CI$4, RAB_years, 0)) -> 0 | CJ29: =INDEX('Capital base input'!$H$27:$XFD$76, MATCH($E29, 'Capital base input'!$E$27:$E$76, 0), MATCH(CJ$4, RAB_years, 0)) -> 0 | CK29: =INDEX('Capital base input'!$H$27:$XFD$76, MATCH($E29, 'Capital base input'!$E$27:$E$76, 0), MATCH(CK$4, RAB_years, 0)) -> 0 | CL29: =INDEX('Capital base input'!$H$27:$XFD$76, MATCH($E29, 'Capital base input'!$E$27:$E$76, 0), MATCH(CL$4, RAB_years, 0)) -> 0 | CM29: =INDEX('Capital base input'!$H$27:$XFD$76, MATCH($E29, 'Capital base input'!$E$27:$E$76, 0), MATCH(CM$4, RAB_years, 0)) -> 0 | CN29: =INDEX('Capital base input'!$H$27:$XFD$76, MATCH($E29, 'Capital base input'!$E$27:$E$76, 0), MATCH(CN$4, RAB_years, 0)) -> 0 | CO29: =INDEX('Capital base input'!$H$27:$XFD$76, MATCH($E29, 'Capital base input'!$E$27:$E$76, 0), MATCH(CO$4, RAB_years, 0)) -> 0 | CP29: =INDEX('Capital base input'!$H$27:$XFD$76, MATCH($E29, 'Capital base input'!$E$27:$E$76, 0), MATCH(CP$4, RAB_years, 0)) -> 0 | CQ29: =INDEX('Capital base input'!$H$27:$XFD$76, MATCH($E29, 'Capital base input'!$E$27:$E$76, 0), MATCH(CQ$4, RAB_years, 0)) -> 0 | CR29: =INDEX('Capital base input'!$H$27:$XFD$76, MATCH($E29, 'Capital base input'!$E$27:$E$76, 0), MATCH(CR$4, RAB_years, 0)) -> 0 | CS29: =INDEX('Capital base input'!$H$27:$XFD$76, MATCH($E29, 'Capital base input'!$E$27:$E$76, 0), MATCH(CS$4, RAB_years, 0)) -> 0 | CT29: =INDEX('Capital base input'!$H$27:$XFD$76, MATCH($E29, 'Capital base input'!$E$27:$E$76, 0), MATCH(CT$4, RAB_years, 0)) -> 0 | CU29: =INDEX('Capital base input'!$H$27:$XFD$76, MATCH($E29, 'Capital base input'!$E$27:$E$76, 0), MATCH(CU$4, RAB_years, 0)) -> 0 | CV29: =INDEX('Capital base input'!$H$27:$XFD$76, MATCH($E29, 'Capital base input'!$E$27:$E$76, 0), MATCH(CV$4, RAB_years, 0)) -> 0 | CW29: =INDEX('Capital base input'!$H$27:$XFD$76, MATCH($E29, 'Capital base input'!$E$27:$E$76, 0), MATCH(CW$4, RAB_years, 0)) -> 0 | CX29: =INDEX('Capital base input'!$H$27:$XFD$76, MATCH($E29, 'Capital base input'!$E$27:$E$76, 0), MATCH(CX$4, RAB_years, 0)) -> 0 | CY29: =INDEX('Capital base input'!$H$27:$XFD$76, MATCH($E29, 'Capital base input'!$E$27:$E$76, 0), MATCH(CY$4, RAB_years, 0)) -> 0
D30: 13 | E30: ='Capital base input'!E39 -> 0 | G30: 0 | H30: =INDEX('Capital base input'!$H$27:$XFD$76, MATCH($E30, 'Capital base input'!$E$27:$E$76, 0), MATCH(H$4, RAB_years, 0)) -> 0 | I30: =INDEX('Capital base input'!$H$27:$XFD$76, MATCH($E30, 'Capital base input'!$E$27:$E$76, 0), MATCH(I$4, RAB_years, 0)) -> 0 | J30: =INDEX('Capital base input'!$H$27:$XFD$76, MATCH($E30, 'Capital base input'!$E$27:$E$76, 0), MATCH(J$4, RAB_years, 0)) -> 0 | K30: =INDEX('Capital base input'!$H$27:$XFD$76, MATCH($E30, 'Capital base input'!$E$27:$E$76, 0), MATCH(K$4, RAB_years, 0)) -> 0 | L30: =INDEX('Capital base input'!$H$27:$XFD$76, MATCH($E30, 'Capital base input'!$E$27:$E$76, 0), MATCH(L$4, RAB_years, 0)) -> 0 | M30: =INDEX('Capital base input'!$H$27:$XFD$76, MATCH($E30, 'Capital base input'!$E$27:$E$76, 0), MATCH(M$4, RAB_years, 0)) -> 0 | N30: =INDEX('Capital base input'!$H$27:$XFD$76, MATCH($E30, 'Capital base input'!$E$27:$E$76, 0), MATCH(N$4, RAB_years, 0)) -> 0 | O30: =INDEX('Capital base input'!$H$27:$XFD$76, MATCH($E30, 'Capital base input'!$E$27:$E$76, 0), MATCH(O$4, RAB_years, 0)) -> 0 | P30: =INDEX('Capital base input'!$H$27:$XFD$76, MATCH($E30, 'Capital base input'!$E$27:$E$76, 0), MATCH(P$4, RAB_years, 0)) -> 0 | Q30: =INDEX('Capital base input'!$H$27:$XFD$76, MATCH($E30, 'Capital base input'!$E$27:$E$76, 0), MATCH(Q$4, RAB_years, 0)) -> 0 | R30: =INDEX('Capital base input'!$H$27:$XFD$76, MATCH($E30, 'Capital base input'!$E$27:$E$76, 0), MATCH(R$4, RAB_years, 0)) -> 0 | S30: =INDEX('Capital base input'!$H$27:$XFD$76, MATCH($E30, 'Capital base input'!$E$27:$E$76, 0), MATCH(S$4, RAB_years, 0)) -> 0 | T30: =INDEX('Capital base input'!$H$27:$XFD$76, MATCH($E30, 'Capital base input'!$E$27:$E$76, 0), MATCH(T$4, RAB_years, 0)) -> 0 | U30: =INDEX('Capital base input'!$H$27:$XFD$76, MATCH($E30, 'Capital base input'!$E$27:$E$76, 0), MATCH(U$4, RAB_years, 0)) -> 0 | V30: =INDEX('Capital base input'!$H$27:$XFD$76, MATCH($E30, 'Capital base input'!$E$27:$E$76, 0), MATCH(V$4, RAB_years, 0)) -> 0 | W30: =INDEX('Capital base input'!$H$27:$XFD$76, MATCH($E30, 'Capital base input'!$E$27:$E$76, 0), MATCH(W$4, RAB_years, 0)) -> 0 | X30: =INDEX('Capital base input'!$H$27:$XFD$76, MATCH($E30, 'Capital base input'!$E$27:$E$76, 0), MATCH(X$4, RAB_years, 0)) -> 0 | Y30: =INDEX('Capital base input'!$H$27:$XFD$76, MATCH($E30, 'Capital base input'!$E$27:$E$76, 0), MATCH(Y$4, RAB_years, 0)) -> 0 | Z30: =INDEX('Capital base input'!$H$27:$XFD$76, MATCH($E30, 'Capital base input'!$E$27:$E$76, 0), MATCH(Z$4, RAB_years, 0)) -> 0 | AA30: =INDEX('Capital base input'!$H$27:$XFD$76, MATCH($E30, 'Capital base input'!$E$27:$E$76, 0), MATCH(AA$4, RAB_years, 0)) -> 0 | AB30: =INDEX('Capital base input'!$H$27:$XFD$76, MATCH($E30, 'Capital base input'!$E$27:$E$76, 0), MATCH(AB$4, RAB_years, 0)) -> 0 | AC30: =INDEX('Capital base input'!$H$27:$XFD$76, MATCH($E30, 'Capital base input'!$E$27:$E$76, 0), MATCH(AC$4, RAB_years, 0)) -> 0 | AD30: =INDEX('Capital base input'!$H$27:$XFD$76, MATCH($E30, 'Capital base input'!$E$27:$E$76, 0), MATCH(AD$4, RAB_years, 0)) -> 0 | AE30: =INDEX('Capital base input'!$H$27:$XFD$76, MATCH($E30, 'Capital base input'!$E$27:$E$76, 0), MATCH(AE$4, RAB_years, 0)) -> 0 | AF30: =INDEX('Capital base input'!$H$27:$XFD$76, MATCH($E30, 'Capital base input'!$E$27:$E$76, 0), MATCH(AF$4, RAB_years, 0)) -> 0 | AG30: =INDEX('Capital base input'!$H$27:$XFD$76, MATCH($E30, 'Capital base input'!$E$27:$E$76, 0), MATCH(AG$4, RAB_years, 0)) -> 0 | AH30: =INDEX('Capital base input'!$H$27:$XFD$76, MATCH($E30, 'Capital base input'!$E$27:$E$76, 0), MATCH(AH$4, RAB_years, 0)) -> 0 | AI30: =INDEX('Capital base input'!$H$27:$XFD$76, MATCH($E30, 'Capital base input'!$E$27:$E$76, 0), MATCH(AI$4, RAB_years, 0)) -> 0 | AJ30: =INDEX('Capital base input'!$H$27:$XFD$76, MATCH($E30, 'Capital base input'!$E$27:$E$76, 0), MATCH(AJ$4, RAB_years, 0)) -> 0 | AK30: =INDEX('Capital base input'!$H$27:$XFD$76, MATCH($E30, 'Capital base input'!$E$27:$E$76, 0), MATCH(AK$4, RAB_years, 0)) -> 0 | AL30: =INDEX('Capital base input'!$H$27:$XFD$76, MATCH($E30, 'Capital base input'!$E$27:$E$76, 0), MATCH(AL$4, RAB_years, 0)) -> 0 | AM30: =INDEX('Capital base input'!$H$27:$XFD$76, MATCH($E30, 'Capital base input'!$E$27:$E$76, 0), MATCH(AM$4, RAB_years, 0)) -> 0 | AN30: =INDEX('Capital base input'!$H$27:$XFD$76, MATCH($E30, 'Capital base input'!$E$27:$E$76, 0), MATCH(AN$4, RAB_years, 0)) -> 0 | AO30: =INDEX('Capital base input'!$H$27:$XFD$76, MATCH($E30, 'Capital base input'!$E$27:$E$76, 0), MATCH(AO$4, RAB_years, 0)) -> 0 | AP30: =INDEX('Capital base input'!$H$27:$XFD$76, MATCH($E30, 'Capital base input'!$E$27:$E$76, 0), MATCH(AP$4, RAB_years, 0)) -> 0 | AQ30: =INDEX('Capital base input'!$H$27:$XFD$76, MATCH($E30, 'Capital base input'!$E$27:$E$76, 0), MATCH(AQ$4, RAB_years, 0)) -> 0 | AR30: =INDEX('Capital base input'!$H$27:$XFD$76, MATCH($E30, 'Capital base input'!$E$27:$E$76, 0), MATCH(AR$4, RAB_years, 0)) -> 0 | AS30: =INDEX('Capital base input'!$H$27:$XFD$76, MATCH($E30, 'Capital base input'!$E$27:$E$76, 0), MATCH(AS$4, RAB_years, 0)) -> 0 | AT30: =INDEX('Capital base input'!$H$27:$XFD$76, MATCH($E30, 'Capital base input'!$E$27:$E$76, 0), MATCH(AT$4, RAB_years, 0)) -> 0 | AU30: =INDEX('Capital base input'!$H$27:$XFD$76, MATCH($E30, 'Capital base input'!$E$27:$E$76, 0), MATCH(AU$4, RAB_years, 0)) -> 0 | AV30: =INDEX('Capital base input'!$H$27:$XFD$76, MATCH($E30, 'Capital base input'!$E$27:$E$76, 0), MATCH(AV$4, RAB_years, 0)) -> 0 | AW30: =INDEX('Capital base input'!$H$27:$XFD$76, MATCH($E30, 'Capital base input'!$E$27:$E$76, 0), MATCH(AW$4, RAB_years, 0)) -> 0 | AX30: =INDEX('Capital base input'!$H$27:$XFD$76, MATCH($E30, 'Capital base input'!$E$27:$E$76, 0), MATCH(AX$4, RAB_years, 0)) -> 0 | AY30: =INDEX('Capital base input'!$H$27:$XFD$76, MATCH($E30, 'Capital base input'!$E$27:$E$76, 0), MATCH(AY$4, RAB_years, 0)) -> 0 | AZ30: =INDEX('Capital base input'!$H$27:$XFD$76, MATCH($E30, 'Capital base input'!$E$27:$E$76, 0), MATCH(AZ$4, RAB_years, 0)) -> 0 | BA30: =INDEX('Capital base input'!$H$27:$XFD$76, MATCH($E30, 'Capital base input'!$E$27:$E$76, 0), MATCH(BA$4, RAB_years, 0)) -> 0 | BB30: =INDEX('Capital base input'!$H$27:$XFD$76, MATCH($E30, 'Capital base input'!$E$27:$E$76, 0), MATCH(BB$4, RAB_years, 0)) -> 0 | BC30: =INDEX('Capital base input'!$H$27:$XFD$76, MATCH($E30, 'Capital base input'!$E$27:$E$76, 0), MATCH(BC$4, RAB_years, 0)) -> 0 | BD30: =INDEX('Capital base input'!$H$27:$XFD$76, MATCH($E30, 'Capital base input'!$E$27:$E$76, 0), MATCH(BD$4, RAB_years, 0)) -> 0 | BE30: =INDEX('Capital base input'!$H$27:$XFD$76, MATCH($E30, 'Capital base input'!$E$27:$E$76, 0), MATCH(BE$4, RAB_years, 0)) -> 0 | BF30: =INDEX('Capital base input'!$H$27:$XFD$76, MATCH($E30, 'Capital base input'!$E$27:$E$76, 0), MATCH(BF$4, RAB_years, 0)) -> 0 | BG30: =INDEX('Capital base input'!$H$27:$XFD$76, MATCH($E30, 'Capital base input'!$E$27:$E$76, 0), MATCH(BG$4, RAB_years, 0)) -> 0 | BH30: =INDEX('Capital base input'!$H$27:$XFD$76, MATCH($E30, 'Capital base input'!$E$27:$E$76, 0), MATCH(BH$4, RAB_years, 0)) -> 0 | BI30: =INDEX('Capital base input'!$H$27:$XFD$76, MATCH($E30, 'Capital base input'!$E$27:$E$76, 0), MATCH(BI$4, RAB_years, 0)) -> 0 | BJ30: =INDEX('Capital base input'!$H$27:$XFD$76, MATCH($E30, 'Capital base input'!$E$27:$E$76, 0), MATCH(BJ$4, RAB_years, 0)) -> 0 | BK30: =INDEX('Capital base input'!$H$27:$XFD$76, MATCH($E30, 'Capital base input'!$E$27:$E$76, 0), MATCH(BK$4, RAB_years, 0)) -> 0 | BL30: =INDEX('Capital base input'!$H$27:$XFD$76, MATCH($E30, 'Capital base input'!$E$27:$E$76, 0), MATCH(BL$4, RAB_years, 0)) -> 0 | BM30: =INDEX('Capital base input'!$H$27:$XFD$76, MATCH($E30, 'Capital base input'!$E$27:$E$76, 0), MATCH(BM$4, RAB_years, 0)) -> 0 | BN30: =INDEX('Capital base input'!$H$27:$XFD$76, MATCH($E30, 'Capital base input'!$E$27:$E$76, 0), MATCH(BN$4, RAB_years, 0)) -> 0 | BO30: =INDEX('Capital base input'!$H$27:$XFD$76, MATCH($E30, 'Capital base input'!$E$27:$E$76, 0), MATCH(BO$4, RAB_years, 0)) -> 0 | BP30: =INDEX('Capital base input'!$H$27:$XFD$76, MATCH($E30, 'Capital base input'!$E$27:$E$76, 0), MATCH(BP$4, RAB_years, 0)) -> 0 | BQ30: =INDEX('Capital base input'!$H$27:$XFD$76, MATCH($E30, 'Capital base input'!$E$27:$E$76, 0), MATCH(BQ$4, RAB_years, 0)) -> 0 | BR30: =INDEX('Capital base input'!$H$27:$XFD$76, MATCH($E30, 'Capital base input'!$E$27:$E$76, 0), MATCH(BR$4, RAB_years, 0)) -> 0 | BS30: =INDEX('Capital base input'!$H$27:$XFD$76, MATCH($E30, 'Capital base input'!$E$27:$E$76, 0), MATCH(BS$4, RAB_years, 0)) -> 0 | BT30: =INDEX('Capital base input'!$H$27:$XFD$76, MATCH($E30, 'Capital base input'!$E$27:$E$76, 0), MATCH(BT$4, RAB_years, 0)) -> 0 | BU30: =INDEX('Capital base input'!$H$27:$XFD$76, MATCH($E30, 'Capital base input'!$E$27:$E$76, 0), MATCH(BU$4, RAB_years, 0)) -> 0 | BV30: =INDEX('Capital base input'!$H$27:$XFD$76, MATCH($E30, 'Capital base input'!$E$27:$E$76, 0), MATCH(BV$4, RAB_years, 0)) -> 0 | BW30: =INDEX('Capital base input'!$H$27:$XFD$76, MATCH($E30, 'Capital base input'!$E$27:$E$76, 0), MATCH(BW$4, RAB_years, 0)) -> 0 | BX30: =INDEX('Capital base input'!$H$27:$XFD$76, MATCH($E30, 'Capital base input'!$E$27:$E$76, 0), MATCH(BX$4, RAB_years, 0)) -> 0 | BY30: =INDEX('Capital base input'!$H$27:$XFD$76, MATCH($E30, 'Capital base input'!$E$27:$E$76, 0), MATCH(BY$4, RAB_years, 0)) -> 0 | BZ30: =INDEX('Capital base input'!$H$27:$XFD$76, MATCH($E30, 'Capital base input'!$E$27:$E$76, 0), MATCH(BZ$4, RAB_years, 0)) -> 0 | CA30: =INDEX('Capital base input'!$H$27:$XFD$76, MATCH($E30, 'Capital base input'!$E$27:$E$76, 0), MATCH(CA$4, RAB_years, 0)) -> 0 | CB30: =INDEX('Capital base input'!$H$27:$XFD$76, MATCH($E30, 'Capital base input'!$E$27:$E$76, 0), MATCH(CB$4, RAB_years, 0)) -> 0 | CC30: =INDEX('Capital base input'!$H$27:$XFD$76, MATCH($E30, 'Capital base input'!$E$27:$E$76, 0), MATCH(CC$4, RAB_years, 0)) -> 0 | CD30: =INDEX('Capital base input'!$H$27:$XFD$76, MATCH($E30, 'Capital base input'!$E$27:$E$76, 0), MATCH(CD$4, RAB_years, 0)) -> 0 | CE30: =INDEX('Capital base input'!$H$27:$XFD$76, MATCH($E30, 'Capital base input'!$E$27:$E$76, 0), MATCH(CE$4, RAB_years, 0)) -> 0 | CF30: =INDEX('Capital base input'!$H$27:$XFD$76, MATCH($E30, 'Capital base input'!$E$27:$E$76, 0), MATCH(CF$4, RAB_years, 0)) -> 0 | CG30: =INDEX('Capital base input'!$H$27:$XFD$76, MATCH($E30, 'Capital base input'!$E$27:$E$76, 0), MATCH(CG$4, RAB_years, 0)) -> 0 | CH30: =INDEX('Capital base input'!$H$27:$XFD$76, MATCH($E30, 'Capital base input'!$E$27:$E$76, 0), MATCH(CH$4, RAB_years, 0)) -> 0 | CI30: =INDEX('Capital base input'!$H$27:$XFD$76, MATCH($E30, 'Capital base input'!$E$27:$E$76, 0), MATCH(CI$4, RAB_years, 0)) -> 0 | CJ30: =INDEX('Capital base input'!$H$27:$XFD$76, MATCH($E30, 'Capital base input'!$E$27:$E$76, 0), MATCH(CJ$4, RAB_years, 0)) -> 0 | CK30: =INDEX('Capital base input'!$H$27:$XFD$76, MATCH($E30, 'Capital base input'!$E$27:$E$76, 0), MATCH(CK$4, RAB_years, 0)) -> 0 | CL30: =INDEX('Capital base input'!$H$27:$XFD$76, MATCH($E30, 'Capital base input'!$E$27:$E$76, 0), MATCH(CL$4, RAB_years, 0)) -> 0 | CM30: =INDEX('Capital base input'!$H$27:$XFD$76, MATCH($E30, 'Capital base input'!$E$27:$E$76, 0), MATCH(CM$4, RAB_years, 0)) -> 0 | CN30: =INDEX('Capital base input'!$H$27:$XFD$76, MATCH($E30, 'Capital base input'!$E$27:$E$76, 0), MATCH(CN$4, RAB_years, 0)) -> 0 | CO30: =INDEX('Capital base input'!$H$27:$XFD$76, MATCH($E30, 'Capital base input'!$E$27:$E$76, 0), MATCH(CO$4, RAB_years, 0)) -> 0 | CP30: =INDEX('Capital base input'!$H$27:$XFD$76, MATCH($E30, 'Capital base input'!$E$27:$E$76, 0), MATCH(CP$4, RAB_years, 0)) -> 0 | CQ30: =INDEX('Capital base input'!$H$27:$XFD$76, MATCH($E30, 'Capital base input'!$E$27:$E$76, 0), MATCH(CQ$4, RAB_years, 0)) -> 0 | CR30: =INDEX('Capital base input'!$H$27:$XFD$76, MATCH($E30, 'Capital base input'!$E$27:$E$76, 0), MATCH(CR$4, RAB_years, 0)) -> 0 | CS30: =INDEX('Capital base input'!$H$27:$XFD$76, MATCH($E30, 'Capital base input'!$E$27:$E$76, 0), MATCH(CS$4, RAB_years, 0)) -> 0 | CT30: =INDEX('Capital base input'!$H$27:$XFD$76, MATCH($E30, 'Capital base input'!$E$27:$E$76, 0), MATCH(CT$4, RAB_years, 0)) -> 0 | CU30: =INDEX('Capital base input'!$H$27:$XFD$76, MATCH($E30, 'Capital base input'!$E$27:$E$76, 0), MATCH(CU$4, RAB_years, 0)) -> 0 | CV30: =INDEX('Capital base input'!$H$27:$XFD$76, MATCH($E30, 'Capital base input'!$E$27:$E$76, 0), MATCH(CV$4, RAB_years, 0)) -> 0 | CW30: =INDEX('Capital base input'!$H$27:$XFD$76, MATCH($E30, 'Capital base input'!$E$27:$E$76, 0), MATCH(CW$4, RAB_years, 0)) -> 0 | CX30: =INDEX('Capital base input'!$H$27:$XFD$76, MATCH($E30, 'Capital base input'!$E$27:$E$76, 0), MATCH(CX$4, RAB_years, 0)) -> 0 | CY30: =INDEX('Capital base input'!$H$27:$XFD$76, MATCH($E30, 'Capital base input'!$E$27:$E$76, 0), MATCH(CY$4, RAB_years, 0)) -> 0
D31: 14 | E31: ='Capital base input'!E40 -> 0 | G31: 0 | H31: =INDEX('Capital base input'!$H$27:$XFD$76, MATCH($E31, 'Capital base input'!$E$27:$E$76, 0), MATCH(H$4, RAB_years, 0)) -> 0 | I31: =INDEX('Capital base input'!$H$27:$XFD$76, MATCH($E31, 'Capital base input'!$E$27:$E$76, 0), MATCH(I$4, RAB_years, 0)) -> 0 | J31: =INDEX('Capital base input'!$H$27:$XFD$76, MATCH($E31, 'Capital base input'!$E$27:$E$76, 0), MATCH(J$4, RAB_years, 0)) -> 0 | K31: =INDEX('Capital base input'!$H$27:$XFD$76, MATCH($E31, 'Capital base input'!$E$27:$E$76, 0), MATCH(K$4, RAB_years, 0)) -> 0 | L31: =INDEX('Capital base input'!$H$27:$XFD$76, MATCH($E31, 'Capital base input'!$E$27:$E$76, 0), MATCH(L$4, RAB_years, 0)) -> 0 | M31: =INDEX('Capital base input'!$H$27:$XFD$76, MATCH($E31, 'Capital base input'!$E$27:$E$76, 0), MATCH(M$4, RAB_years, 0)) -> 0 | N31: =INDEX('Capital base input'!$H$27:$XFD$76, MATCH($E31, 'Capital base input'!$E$27:$E$76, 0), MATCH(N$4, RAB_years, 0)) -> 0 | O31: =INDEX('Capital base input'!$H$27:$XFD$76, MATCH($E31, 'Capital base input'!$E$27:$E$76, 0), MATCH(O$4, RAB_years, 0)) -> 0 | P31: =INDEX('Capital base input'!$H$27:$XFD$76, MATCH($E31, 'Capital base input'!$E$27:$E$76, 0), MATCH(P$4, RAB_years, 0)) -> 0 | Q31: =INDEX('Capital base input'!$H$27:$XFD$76, MATCH($E31, 'Capital base input'!$E$27:$E$76, 0), MATCH(Q$4, RAB_years, 0)) -> 0 | R31: =INDEX('Capital base input'!$H$27:$XFD$76, MATCH($E31, 'Capital base input'!$E$27:$E$76, 0), MATCH(R$4, RAB_years, 0)) -> 0 | S31: =INDEX('Capital base input'!$H$27:$XFD$76, MATCH($E31, 'Capital base input'!$E$27:$E$76, 0), MATCH(S$4, RAB_years, 0)) -> 0 | T31: =INDEX('Capital base input'!$H$27:$XFD$76, MATCH($E31, 'Capital base input'!$E$27:$E$76, 0), MATCH(T$4, RAB_years, 0)) -> 0 | U31: =INDEX('Capital base input'!$H$27:$XFD$76, MATCH($E31, 'Capital base input'!$E$27:$E$76, 0), MATCH(U$4, RAB_years, 0)) -> 0 | V31: =INDEX('Capital base input'!$H$27:$XFD$76, MATCH($E31, 'Capital base input'!$E$27:$E$76, 0), MATCH(V$4, RAB_years, 0)) -> 0 | W31: =INDEX('Capital base input'!$H$27:$XFD$76, MATCH($E31, 'Capital base input'!$E$27:$E$76, 0), MATCH(W$4, RAB_years, 0)) -> 0 | X31: =INDEX('Capital base input'!$H$27:$XFD$76, MATCH($E31, 'Capital base input'!$E$27:$E$76, 0), MATCH(X$4, RAB_years, 0)) -> 0 | Y31: =INDEX('Capital base input'!$H$27:$XFD$76, MATCH($E31, 'Capital base input'!$E$27:$E$76, 0), MATCH(Y$4, RAB_years, 0)) -> 0 | Z31: =INDEX('Capital base input'!$H$27:$XFD$76, MATCH($E31, 'Capital base input'!$E$27:$E$76, 0), MATCH(Z$4, RAB_years, 0)) -> 0 | AA31: =INDEX('Capital base input'!$H$27:$XFD$76, MATCH($E31, 'Capital base input'!$E$27:$E$76, 0), MATCH(AA$4, RAB_years, 0)) -> 0 | AB31: =INDEX('Capital base input'!$H$27:$XFD$76, MATCH($E31, 'Capital base input'!$E$27:$E$76, 0), MATCH(AB$4, RAB_years, 0)) -> 0 | AC31: =INDEX('Capital base input'!$H$27:$XFD$76, MATCH($E31, 'Capital base input'!$E$27:$E$76, 0), MATCH(AC$4, RAB_years, 0)) -> 0 | AD31: =INDEX('Capital base input'!$H$27:$XFD$76, MATCH($E31, 'Capital base input'!$E$27:$E$76, 0), MATCH(AD$4, RAB_years, 0)) -> 0 | AE31: =INDEX('Capital base input'!$H$27:$XFD$76, MATCH($E31, 'Capital base input'!$E$27:$E$76, 0), MATCH(AE$4, RAB_years, 0)) -> 0 | AF31: =INDEX('Capital base input'!$H$27:$XFD$76, MATCH($E31, 'Capital base input'!$E$27:$E$76, 0), MATCH(AF$4, RAB_years, 0)) -> 0 | AG31: =INDEX('Capital base input'!$H$27:$XFD$76, MATCH($E31, 'Capital base input'!$E$27:$E$76, 0), MATCH(AG$4, RAB_years, 0)) -> 0 | AH31: =INDEX('Capital base input'!$H$27:$XFD$76, MATCH($E31, 'Capital base input'!$E$27:$E$76, 0), MATCH(AH$4, RAB_years, 0)) -> 0 | AI31: =INDEX('Capital base input'!$H$27:$XFD$76, MATCH($E31, 'Capital base input'!$E$27:$E$76, 0), MATCH(AI$4, RAB_years, 0)) -> 0 | AJ31: =INDEX('Capital base input'!$H$27:$XFD$76, MATCH($E31, 'Capital base input'!$E$27:$E$76, 0), MATCH(AJ$4, RAB_years, 0)) -> 0 | AK31: =INDEX('Capital base input'!$H$27:$XFD$76, MATCH($E31, 'Capital base input'!$E$27:$E$76, 0), MATCH(AK$4, RAB_years, 0)) -> 0 | AL31: =INDEX('Capital base input'!$H$27:$XFD$76, MATCH($E31, 'Capital base input'!$E$27:$E$76, 0), MATCH(AL$4, RAB_years, 0)) -> 0 | AM31: =INDEX('Capital base input'!$H$27:$XFD$76, MATCH($E31, 'Capital base input'!$E$27:$E$76, 0), MATCH(AM$4, RAB_years, 0)) -> 0 | AN31: =INDEX('Capital base input'!$H$27:$XFD$76, MATCH($E31, 'Capital base input'!$E$27:$E$76, 0), MATCH(AN$4, RAB_years, 0)) -> 0 | AO31: =INDEX('Capital base input'!$H$27:$XFD$76, MATCH($E31, 'Capital base input'!$E$27:$E$76, 0), MATCH(AO$4, RAB_years, 0)) -> 0 | AP31: =INDEX('Capital base input'!$H$27:$XFD$76, MATCH($E31, 'Capital base input'!$E$27:$E$76, 0), MATCH(AP$4, RAB_years, 0)) -> 0 | AQ31: =INDEX('Capital base input'!$H$27:$XFD$76, MATCH($E31, 'Capital base input'!$E$27:$E$76, 0), MATCH(AQ$4, RAB_years, 0)) -> 0 | AR31: =INDEX('Capital base input'!$H$27:$XFD$76, MATCH($E31, 'Capital base input'!$E$27:$E$76, 0), MATCH(AR$4, RAB_years, 0)) -> 0 | AS31: =INDEX('Capital base input'!$H$27:$XFD$76, MATCH($E31, 'Capital base input'!$E$27:$E$76, 0), MATCH(AS$4, RAB_years, 0)) -> 0 | AT31: =INDEX('Capital base input'!$H$27:$XFD$76, MATCH($E31, 'Capital base input'!$E$27:$E$76, 0), MATCH(AT$4, RAB_years, 0)) -> 0 | AU31: =INDEX('Capital base input'!$H$27:$XFD$76, MATCH($E31, 'Capital base input'!$E$27:$E$76, 0), MATCH(AU$4, RAB_years, 0)) -> 0 | AV31: =INDEX('Capital base input'!$H$27:$XFD$76, MATCH($E31, 'Capital base input'!$E$27:$E$76, 0), MATCH(AV$4, RAB_years, 0)) -> 0 | AW31: =INDEX('Capital base input'!$H$27:$XFD$76, MATCH($E31, 'Capital base input'!$E$27:$E$76, 0), MATCH(AW$4, RAB_years, 0)) -> 0 | AX31: =INDEX('Capital base input'!$H$27:$XFD$76, MATCH($E31, 'Capital base input'!$E$27:$E$76, 0), MATCH(AX$4, RAB_years, 0)) -> 0 | AY31: =INDEX('Capital base input'!$H$27:$XFD$76, MATCH($E31, 'Capital base input'!$E$27:$E$76, 0), MATCH(AY$4, RAB_years, 0)) -> 0 | AZ31: =INDEX('Capital base input'!$H$27:$XFD$76, MATCH($E31, 'Capital base input'!$E$27:$E$76, 0), MATCH(AZ$4, RAB_years, 0)) -> 0 | BA31: =INDEX('Capital base input'!$H$27:$XFD$76, MATCH($E31, 'Capital base input'!$E$27:$E$76, 0), MATCH(BA$4, RAB_years, 0)) -> 0 | BB31: =INDEX('Capital base input'!$H$27:$XFD$76, MATCH($E31, 'Capital base input'!$E$27:$E$76, 0), MATCH(BB$4, RAB_years, 0)) -> 0 | BC31: =INDEX('Capital base input'!$H$27:$XFD$76, MATCH($E31, 'Capital base input'!$E$27:$E$76, 0), MATCH(BC$4, RAB_years, 0)) -> 0 | BD31: =INDEX('Capital base input'!$H$27:$XFD$76, MATCH($E31, 'Capital base input'!$E$27:$E$76, 0), MATCH(BD$4, RAB_years, 0)) -> 0 | BE31: =INDEX('Capital base input'!$H$27:$XFD$76, MATCH($E31, 'Capital base input'!$E$27:$E$76, 0), MATCH(BE$4, RAB_years, 0)) -> 0 | BF31: =INDEX('Capital base input'!$H$27:$XFD$76, MATCH($E31, 'Capital base input'!$E$27:$E$76, 0), MATCH(BF$4, RAB_years, 0)) -> 0 | BG31: =INDEX('Capital base input'!$H$27:$XFD$76, MATCH($E31, 'Capital base input'!$E$27:$E$76, 0), MATCH(BG$4, RAB_years, 0)) -> 0 | BH31: =INDEX('Capital base input'!$H$27:$XFD$76, MATCH($E31, 'Capital base input'!$E$27:$E$76, 0), MATCH(BH$4, RAB_years, 0)) -> 0 | BI31: =INDEX('Capital base input'!$H$27:$XFD$76, MATCH($E31, 'Capital base input'!$E$27:$E$76, 0), MATCH(BI$4, RAB_years, 0)) -> 0 | BJ31: =INDEX('Capital base input'!$H$27:$XFD$76, MATCH($E31, 'Capital base input'!$E$27:$E$76, 0), MATCH(BJ$4, RAB_years, 0)) -> 0 | BK31: =INDEX('Capital base input'!$H$27:$XFD$76, MATCH($E31, 'Capital base input'!$E$27:$E$76, 0), MATCH(BK$4, RAB_years, 0)) -> 0 | BL31: =INDEX('Capital base input'!$H$27:$XFD$76, MATCH($E31, 'Capital base input'!$E$27:$E$76, 0), MATCH(BL$4, RAB_years, 0)) -> 0 | BM31: =INDEX('Capital base input'!$H$27:$XFD$76, MATCH($E31, 'Capital base input'!$E$27:$E$76, 0), MATCH(BM$4, RAB_years, 0)) -> 0 | BN31: =INDEX('Capital base input'!$H$27:$XFD$76, MATCH($E31, 'Capital base input'!$E$27:$E$76, 0), MATCH(BN$4, RAB_years, 0)) -> 0 | BO31: =INDEX('Capital base input'!$H$27:$XFD$76, MATCH($E31, 'Capital base input'!$E$27:$E$76, 0), MATCH(BO$4, RAB_years, 0)) -> 0 | BP31: =INDEX('Capital base input'!$H$27:$XFD$76, MATCH($E31, 'Capital base input'!$E$27:$E$76, 0), MATCH(BP$4, RAB_years, 0)) -> 0 | BQ31: =INDEX('Capital base input'!$H$27:$XFD$76, MATCH($E31, 'Capital base input'!$E$27:$E$76, 0), MATCH(BQ$4, RAB_years, 0)) -> 0 | BR31: =INDEX('Capital base input'!$H$27:$XFD$76, MATCH($E31, 'Capital base input'!$E$27:$E$76, 0), MATCH(BR$4, RAB_years, 0)) -> 0 | BS31: =INDEX('Capital base input'!$H$27:$XFD$76, MATCH($E31, 'Capital base input'!$E$27:$E$76, 0), MATCH(BS$4, RAB_years, 0)) -> 0 | BT31: =INDEX('Capital base input'!$H$27:$XFD$76, MATCH($E31, 'Capital base input'!$E$27:$E$76, 0), MATCH(BT$4, RAB_years, 0)) -> 0 | BU31: =INDEX('Capital base input'!$H$27:$XFD$76, MATCH($E31, 'Capital base input'!$E$27:$E$76, 0), MATCH(BU$4, RAB_years, 0)) -> 0 | BV31: =INDEX('Capital base input'!$H$27:$XFD$76, MATCH($E31, 'Capital base input'!$E$27:$E$76, 0), MATCH(BV$4, RAB_years, 0)) -> 0 | BW31: =INDEX('Capital base input'!$H$27:$XFD$76, MATCH($E31, 'Capital base input'!$E$27:$E$76, 0), MATCH(BW$4, RAB_years, 0)) -> 0 | BX31: =INDEX('Capital base input'!$H$27:$XFD$76, MATCH($E31, 'Capital base input'!$E$27:$E$76, 0), MATCH(BX$4, RAB_years, 0)) -> 0 | BY31: =INDEX('Capital base input'!$H$27:$XFD$76, MATCH($E31, 'Capital base input'!$E$27:$E$76, 0), MATCH(BY$4, RAB_years, 0)) -> 0 | BZ31: =INDEX('Capital base input'!$H$27:$XFD$76, MATCH($E31, 'Capital base input'!$E$27:$E$76, 0), MATCH(BZ$4, RAB_years, 0)) -> 0 | CA31: =INDEX('Capital base input'!$H$27:$XFD$76, MATCH($E31, 'Capital base input'!$E$27:$E$76, 0), MATCH(CA$4, RAB_years, 0)) -> 0 | CB31: =INDEX('Capital base input'!$H$27:$XFD$76, MATCH($E31, 'Capital base input'!$E$27:$E$76, 0), MATCH(CB$4, RAB_years, 0)) -> 0 | CC31: =INDEX('Capital base input'!$H$27:$XFD$76, MATCH($E31, 'Capital base input'!$E$27:$E$76, 0), MATCH(CC$4, RAB_years, 0)) -> 0 | CD31: =INDEX('Capital base input'!$H$27:$XFD$76, MATCH($E31, 'Capital base input'!$E$27:$E$76, 0), MATCH(CD$4, RAB_years, 0)) -> 0 | CE31: =INDEX('Capital base input'!$H$27:$XFD$76, MATCH($E31, 'Capital base input'!$E$27:$E$76, 0), MATCH(CE$4, RAB_years, 0)) -> 0 | CF31: =INDEX('Capital base input'!$H$27:$XFD$76, MATCH($E31, 'Capital base input'!$E$27:$E$76, 0), MATCH(CF$4, RAB_years, 0)) -> 0 | CG31: =INDEX('Capital base input'!$H$27:$XFD$76, MATCH($E31, 'Capital base input'!$E$27:$E$76, 0), MATCH(CG$4, RAB_years, 0)) -> 0 | CH31: =INDEX('Capital base input'!$H$27:$XFD$76, MATCH($E31, 'Capital base input'!$E$27:$E$76, 0), MATCH(CH$4, RAB_years, 0)) -> 0 | CI31: =INDEX('Capital base input'!$H$27:$XFD$76, MATCH($E31, 'Capital base input'!$E$27:$E$76, 0), MATCH(CI$4, RAB_years, 0)) -> 0 | CJ31: =INDEX('Capital base input'!$H$27:$XFD$76, MATCH($E31, 'Capital base input'!$E$27:$E$76, 0), MATCH(CJ$4, RAB_years, 0)) -> 0 | CK31: =INDEX('Capital base input'!$H$27:$XFD$76, MATCH($E31, 'Capital base input'!$E$27:$E$76, 0), MATCH(CK$4, RAB_years, 0)) -> 0 | CL31: =INDEX('Capital base input'!$H$27:$XFD$76, MATCH($E31, 'Capital base input'!$E$27:$E$76, 0), MATCH(CL$4, RAB_years, 0)) -> 0 | CM31: =INDEX('Capital base input'!$H$27:$XFD$76, MATCH($E31, 'Capital base input'!$E$27:$E$76, 0), MATCH(CM$4, RAB_years, 0)) -> 0 | CN31: =INDEX('Capital base input'!$H$27:$XFD$76, MATCH($E31, 'Capital base input'!$E$27:$E$76, 0), MATCH(CN$4, RAB_years, 0)) -> 0 | CO31: =INDEX('Capital base input'!$H$27:$XFD$76, MATCH($E31, 'Capital base input'!$E$27:$E$76, 0), MATCH(CO$4, RAB_years, 0)) -> 0 | CP31: =INDEX('Capital base input'!$H$27:$XFD$76, MATCH($E31, 'Capital base input'!$E$27:$E$76, 0), MATCH(CP$4, RAB_years, 0)) -> 0 | CQ31: =INDEX('Capital base input'!$H$27:$XFD$76, MATCH($E31, 'Capital base input'!$E$27:$E$76, 0), MATCH(CQ$4, RAB_years, 0)) -> 0 | CR31: =INDEX('Capital base input'!$H$27:$XFD$76, MATCH($E31, 'Capital base input'!$E$27:$E$76, 0), MATCH(CR$4, RAB_years, 0)) -> 0 | CS31: =INDEX('Capital base input'!$H$27:$XFD$76, MATCH($E31, 'Capital base input'!$E$27:$E$76, 0), MATCH(CS$4, RAB_years, 0)) -> 0 | CT31: =INDEX('Capital base input'!$H$27:$XFD$76, MATCH($E31, 'Capital base input'!$E$27:$E$76, 0), MATCH(CT$4, RAB_years, 0)) -> 0 | CU31: =INDEX('Capital base input'!$H$27:$XFD$76, MATCH($E31, 'Capital base input'!$E$27:$E$76, 0), MATCH(CU$4, RAB_years, 0)) -> 0 | CV31: =INDEX('Capital base input'!$H$27:$XFD$76, MATCH($E31, 'Capital base input'!$E$27:$E$76, 0), MATCH(CV$4, RAB_years, 0)) -> 0 | CW31: =INDEX('Capital base input'!$H$27:$XFD$76, MATCH($E31, 'Capital base input'!$E$27:$E$76, 0), MATCH(CW$4, RAB_years, 0)) -> 0 | CX31: =INDEX('Capital base input'!$H$27:$XFD$76, MATCH($E31, 'Capital base input'!$E$27:$E$76, 0), MATCH(CX$4, RAB_years, 0)) -> 0 | CY31: =INDEX('Capital base input'!$H$27:$XFD$76, MATCH($E31, 'Capital base input'!$E$27:$E$76, 0), MATCH(CY$4, RAB_years, 0)) -> 0
D32: 15 | E32: ='Capital base input'!E41 -> 0 | G32: 0 | H32: =INDEX('Capital base input'!$H$27:$XFD$76, MATCH($E32, 'Capital base input'!$E$27:$E$76, 0), MATCH(H$4, RAB_years, 0)) -> 0 | I32: =INDEX('Capital base input'!$H$27:$XFD$76, MATCH($E32, 'Capital base input'!$E$27:$E$76, 0), MATCH(I$4, RAB_years, 0)) -> 0 | J32: =INDEX('Capital base input'!$H$27:$XFD$76, MATCH($E32, 'Capital base input'!$E$27:$E$76, 0), MATCH(J$4, RAB_years, 0)) -> 0 | K32: =INDEX('Capital base input'!$H$27:$XFD$76, MATCH($E32, 'Capital base input'!$E$27:$E$76, 0), MATCH(K$4, RAB_years, 0)) -> 0 | L32: =INDEX('Capital base input'!$H$27:$XFD$76, MATCH($E32, 'Capital base input'!$E$27:$E$76, 0), MATCH(L$4, RAB_years, 0)) -> 0 | M32: =INDEX('Capital base input'!$H$27:$XFD$76, MATCH($E32, 'Capital base input'!$E$27:$E$76, 0), MATCH(M$4, RAB_years, 0)) -> 0 | N32: =INDEX('Capital base input'!$H$27:$XFD$76, MATCH($E32, 'Capital base input'!$E$27:$E$76, 0), MATCH(N$4, RAB_years, 0)) -> 0 | O32: =INDEX('Capital base input'!$H$27:$XFD$76, MATCH($E32, 'Capital base input'!$E$27:$E$76, 0), MATCH(O$4, RAB_years, 0)) -> 0 | P32: =INDEX('Capital base input'!$H$27:$XFD$76, MATCH($E32, 'Capital base input'!$E$27:$E$76, 0), MATCH(P$4, RAB_years, 0)) -> 0 | Q32: =INDEX('Capital base input'!$H$27:$XFD$76, MATCH($E32, 'Capital base input'!$E$27:$E$76, 0), MATCH(Q$4, RAB_years, 0)) -> 0 | R32: =INDEX('Capital base input'!$H$27:$XFD$76, MATCH($E32, 'Capital base input'!$E$27:$E$76, 0), MATCH(R$4, RAB_years, 0)) -> 0 | S32: =INDEX('Capital base input'!$H$27:$XFD$76, MATCH($E32, 'Capital base input'!$E$27:$E$76, 0), MATCH(S$4, RAB_years, 0)) -> 0 | T32: =INDEX('Capital base input'!$H$27:$XFD$76, MATCH($E32, 'Capital base input'!$E$27:$E$76, 0), MATCH(T$4, RAB_years, 0)) -> 0 | U32: =INDEX('Capital base input'!$H$27:$XFD$76, MATCH($E32, 'Capital base input'!$E$27:$E$76, 0), MATCH(U$4, RAB_years, 0)) -> 0 | V32: =INDEX('Capital base input'!$H$27:$XFD$76, MATCH($E32, 'Capital base input'!$E$27:$E$76, 0), MATCH(V$4, RAB_years, 0)) -> 0 | W32: =INDEX('Capital base input'!$H$27:$XFD$76, MATCH($E32, 'Capital base input'!$E$27:$E$76, 0), MATCH(W$4, RAB_years, 0)) -> 0 | X32: =INDEX('Capital base input'!$H$27:$XFD$76, MATCH($E32, 'Capital base input'!$E$27:$E$76, 0), MATCH(X$4, RAB_years, 0)) -> 0 | Y32: =INDEX('Capital base input'!$H$27:$XFD$76, MATCH($E32, 'Capital base input'!$E$27:$E$76, 0), MATCH(Y$4, RAB_years, 0)) -> 0 | Z32: =INDEX('Capital base input'!$H$27:$XFD$76, MATCH($E32, 'Capital base input'!$E$27:$E$76, 0), MATCH(Z$4, RAB_years, 0)) -> 0 | AA32: =INDEX('Capital base input'!$H$27:$XFD$76, MATCH($E32, 'Capital base input'!$E$27:$E$76, 0), MATCH(AA$4, RAB_years, 0)) -> 0 | AB32: =INDEX('Capital base input'!$H$27:$XFD$76, MATCH($E32, 'Capital base input'!$E$27:$E$76, 0), MATCH(AB$4, RAB_years, 0)) -> 0 | AC32: =INDEX('Capital base input'!$H$27:$XFD$76, MATCH($E32, 'Capital base input'!$E$27:$E$76, 0), MATCH(AC$4, RAB_years, 0)) -> 0 | AD32: =INDEX('Capital base input'!$H$27:$XFD$76, MATCH($E32, 'Capital base input'!$E$27:$E$76, 0), MATCH(AD$4, RAB_years, 0)) -> 0 | AE32: =INDEX('Capital base input'!$H$27:$XFD$76, MATCH($E32, 'Capital base input'!$E$27:$E$76, 0), MATCH(AE$4, RAB_years, 0)) -> 0 | AF32: =INDEX('Capital base input'!$H$27:$XFD$76, MATCH($E32, 'Capital base input'!$E$27:$E$76, 0), MATCH(AF$4, RAB_years, 0)) -> 0 | AG32: =INDEX('Capital base input'!$H$27:$XFD$76, MATCH($E32, 'Capital base input'!$E$27:$E$76, 0), MATCH(AG$4, RAB_years, 0)) -> 0 | AH32: =INDEX('Capital base input'!$H$27:$XFD$76, MATCH($E32, 'Capital base input'!$E$27:$E$76, 0), MATCH(AH$4, RAB_years, 0)) -> 0 | AI32: =INDEX('Capital base input'!$H$27:$XFD$76, MATCH($E32, 'Capital base input'!$E$27:$E$76, 0), MATCH(AI$4, RAB_years, 0)) -> 0 | AJ32: =INDEX('Capital base input'!$H$27:$XFD$76, MATCH($E32, 'Capital base input'!$E$27:$E$76, 0), MATCH(AJ$4, RAB_years, 0)) -> 0 | AK32: =INDEX('Capital base input'!$H$27:$XFD$76, MATCH($E32, 'Capital base input'!$E$27:$E$76, 0), MATCH(AK$4, RAB_years, 0)) -> 0 | AL32: =INDEX('Capital base input'!$H$27:$XFD$76, MATCH($E32, 'Capital base input'!$E$27:$E$76, 0), MATCH(AL$4, RAB_years, 0)) -> 0 | AM32: =INDEX('Capital base input'!$H$27:$XFD$76, MATCH($E32, 'Capital base input'!$E$27:$E$76, 0), MATCH(AM$4, RAB_years, 0)) -> 0 | AN32: =INDEX('Capital base input'!$H$27:$XFD$76, MATCH($E32, 'Capital base input'!$E$27:$E$76, 0), MATCH(AN$4, RAB_years, 0)) -> 0 | AO32: =INDEX('Capital base input'!$H$27:$XFD$76, MATCH($E32, 'Capital base input'!$E$27:$E$76, 0), MATCH(AO$4, RAB_years, 0)) -> 0 | AP32: =INDEX('Capital base input'!$H$27:$XFD$76, MATCH($E32, 'Capital base input'!$E$27:$E$76, 0), MATCH(AP$4, RAB_years, 0)) -> 0 | AQ32: =INDEX('Capital base input'!$H$27:$XFD$76, MATCH($E32, 'Capital base input'!$E$27:$E$76, 0), MATCH(AQ$4, RAB_years, 0)) -> 0 | AR32: =INDEX('Capital base input'!$H$27:$XFD$76, MATCH($E32, 'Capital base input'!$E$27:$E$76, 0), MATCH(AR$4, RAB_years, 0)) -> 0 | AS32: =INDEX('Capital base input'!$H$27:$XFD$76, MATCH($E32, 'Capital base input'!$E$27:$E$76, 0), MATCH(AS$4, RAB_years, 0)) -> 0 | AT32: =INDEX('Capital base input'!$H$27:$XFD$76, MATCH($E32, 'Capital base input'!$E$27:$E$76, 0), MATCH(AT$4, RAB_years, 0)) -> 0 | AU32: =INDEX('Capital base input'!$H$27:$XFD$76, MATCH($E32, 'Capital base input'!$E$27:$E$76, 0), MATCH(AU$4, RAB_years, 0)) -> 0 | AV32: =INDEX('Capital base input'!$H$27:$XFD$76, MATCH($E32, 'Capital base input'!$E$27:$E$76, 0), MATCH(AV$4, RAB_years, 0)) -> 0 | AW32: =INDEX('Capital base input'!$H$27:$XFD$76, MATCH($E32, 'Capital base input'!$E$27:$E$76, 0), MATCH(AW$4, RAB_years, 0)) -> 0 | AX32: =INDEX('Capital base input'!$H$27:$XFD$76, MATCH($E32, 'Capital base input'!$E$27:$E$76, 0), MATCH(AX$4, RAB_years, 0)) -> 0 | AY32: =INDEX('Capital base input'!$H$27:$XFD$76, MATCH($E32, 'Capital base input'!$E$27:$E$76, 0), MATCH(AY$4, RAB_years, 0)) -> 0 | AZ32: =INDEX('Capital base input'!$H$27:$XFD$76, MATCH($E32, 'Capital base input'!$E$27:$E$76, 0), MATCH(AZ$4, RAB_years, 0)) -> 0 | BA32: =INDEX('Capital base input'!$H$27:$XFD$76, MATCH($E32, 'Capital base input'!$E$27:$E$76, 0), MATCH(BA$4, RAB_years, 0)) -> 0 | BB32: =INDEX('Capital base input'!$H$27:$XFD$76, MATCH($E32, 'Capital base input'!$E$27:$E$76, 0), MATCH(BB$4, RAB_years, 0)) -> 0 | BC32: =INDEX('Capital base input'!$H$27:$XFD$76, MATCH($E32, 'Capital base input'!$E$27:$E$76, 0), MATCH(BC$4, RAB_years, 0)) -> 0 | BD32: =INDEX('Capital base input'!$H$27:$XFD$76, MATCH($E32, 'Capital base input'!$E$27:$E$76, 0), MATCH(BD$4, RAB_years, 0)) -> 0 | BE32: =INDEX('Capital base input'!$H$27:$XFD$76, MATCH($E32, 'Capital base input'!$E$27:$E$76, 0), MATCH(BE$4, RAB_years, 0)) -> 0 | BF32: =INDEX('Capital base input'!$H$27:$XFD$76, MATCH($E32, 'Capital base input'!$E$27:$E$76, 0), MATCH(BF$4, RAB_years, 0)) -> 0 | BG32: =INDEX('Capital base input'!$H$27:$XFD$76, MATCH($E32, 'Capital base input'!$E$27:$E$76, 0), MATCH(BG$4, RAB_years, 0)) -> 0 | BH32: =INDEX('Capital base input'!$H$27:$XFD$76, MATCH($E32, 'Capital base input'!$E$27:$E$76, 0), MATCH(BH$4, RAB_years, 0)) -> 0 | BI32: =INDEX('Capital base input'!$H$27:$XFD$76, MATCH($E32, 'Capital base input'!$E$27:$E$76, 0), MATCH(BI$4, RAB_years, 0)) -> 0 | BJ32: =INDEX('Capital base input'!$H$27:$XFD$76, MATCH($E32, 'Capital base input'!$E$27:$E$76, 0), MATCH(BJ$4, RAB_years, 0)) -> 0 | BK32: =INDEX('Capital base input'!$H$27:$XFD$76, MATCH($E32, 'Capital base input'!$E$27:$E$76, 0), MATCH(BK$4, RAB_years, 0)) -> 0 | BL32: =INDEX('Capital base input'!$H$27:$XFD$76, MATCH($E32, 'Capital base input'!$E$27:$E$76, 0), MATCH(BL$4, RAB_years, 0)) -> 0 | BM32: =INDEX('Capital base input'!$H$27:$XFD$76, MATCH($E32, 'Capital base input'!$E$27:$E$76, 0), MATCH(BM$4, RAB_years, 0)) -> 0 | BN32: =INDEX('Capital base input'!$H$27:$XFD$76, MATCH($E32, 'Capital base input'!$E$27:$E$76, 0), MATCH(BN$4, RAB_years, 0)) -> 0 | BO32: =INDEX('Capital base input'!$H$27:$XFD$76, MATCH($E32, 'Capital base input'!$E$27:$E$76, 0), MATCH(BO$4, RAB_years, 0)) -> 0 | BP32: =INDEX('Capital base input'!$H$27:$XFD$76, MATCH($E32, 'Capital base input'!$E$27:$E$76, 0), MATCH(BP$4, RAB_years, 0)) -> 0 | BQ32: =INDEX('Capital base input'!$H$27:$XFD$76, MATCH($E32, 'Capital base input'!$E$27:$E$76, 0), MATCH(BQ$4, RAB_years, 0)) -> 0 | BR32: =INDEX('Capital base input'!$H$27:$XFD$76, MATCH($E32, 'Capital base input'!$E$27:$E$76, 0), MATCH(BR$4, RAB_years, 0)) -> 0 | BS32: =INDEX('Capital base input'!$H$27:$XFD$76, MATCH($E32, 'Capital base input'!$E$27:$E$76, 0), MATCH(BS$4, RAB_years, 0)) -> 0 | BT32: =INDEX('Capital base input'!$H$27:$XFD$76, MATCH($E32, 'Capital base input'!$E$27:$E$76, 0), MATCH(BT$4, RAB_years, 0)) -> 0 | BU32: =INDEX('Capital base input'!$H$27:$XFD$76, MATCH($E32, 'Capital base input'!$E$27:$E$76, 0), MATCH(BU$4, RAB_years, 0)) -> 0 | BV32: =INDEX('Capital base input'!$H$27:$XFD$76, MATCH($E32, 'Capital base input'!$E$27:$E$76, 0), MATCH(BV$4, RAB_years, 0)) -> 0 | BW32: =INDEX('Capital base input'!$H$27:$XFD$76, MATCH($E32, 'Capital base input'!$E$27:$E$76, 0), MATCH(BW$4, RAB_years, 0)) -> 0 | BX32: =INDEX('Capital base input'!$H$27:$XFD$76, MATCH($E32, 'Capital base input'!$E$27:$E$76, 0), MATCH(BX$4, RAB_years, 0)) -> 0 | BY32: =INDEX('Capital base input'!$H$27:$XFD$76, MATCH($E32, 'Capital base input'!$E$27:$E$76, 0), MATCH(BY$4, RAB_years, 0)) -> 0 | BZ32: =INDEX('Capital base input'!$H$27:$XFD$76, MATCH($E32, 'Capital base input'!$E$27:$E$76, 0), MATCH(BZ$4, RAB_years, 0)) -> 0 | CA32: =INDEX('Capital base input'!$H$27:$XFD$76, MATCH($E32, 'Capital base input'!$E$27:$E$76, 0), MATCH(CA$4, RAB_years, 0)) -> 0 | CB32: =INDEX('Capital base input'!$H$27:$XFD$76, MATCH($E32, 'Capital base input'!$E$27:$E$76, 0), MATCH(CB$4, RAB_years, 0)) -> 0 | CC32: =INDEX('Capital base input'!$H$27:$XFD$76, MATCH($E32, 'Capital base input'!$E$27:$E$76, 0), MATCH(CC$4, RAB_years, 0)) -> 0 | CD32: =INDEX('Capital base input'!$H$27:$XFD$76, MATCH($E32, 'Capital base input'!$E$27:$E$76, 0), MATCH(CD$4, RAB_years, 0)) -> 0 | CE32: =INDEX('Capital base input'!$H$27:$XFD$76, MATCH($E32, 'Capital base input'!$E$27:$E$76, 0), MATCH(CE$4, RAB_years, 0)) -> 0 | CF32: =INDEX('Capital base input'!$H$27:$XFD$76, MATCH($E32, 'Capital base input'!$E$27:$E$76, 0), MATCH(CF$4, RAB_years, 0)) -> 0 | CG32: =INDEX('Capital base input'!$H$27:$XFD$76, MATCH($E32, 'Capital base input'!$E$27:$E$76, 0), MATCH(CG$4, RAB_years, 0)) -> 0 | CH32: =INDEX('Capital base input'!$H$27:$XFD$76, MATCH($E32, 'Capital base input'!$E$27:$E$76, 0), MATCH(CH$4, RAB_years, 0)) -> 0 | CI32: =INDEX('Capital base input'!$H$27:$XFD$76, MATCH($E32, 'Capital base input'!$E$27:$E$76, 0), MATCH(CI$4, RAB_years, 0)) -> 0 | CJ32: =INDEX('Capital base input'!$H$27:$XFD$76, MATCH($E32, 'Capital base input'!$E$27:$E$76, 0), MATCH(CJ$4, RAB_years, 0)) -> 0 | CK32: =INDEX('Capital base input'!$H$27:$XFD$76, MATCH($E32, 'Capital base input'!$E$27:$E$76, 0), MATCH(CK$4, RAB_years, 0)) -> 0 | CL32: =INDEX('Capital base input'!$H$27:$XFD$76, MATCH($E32, 'Capital base input'!$E$27:$E$76, 0), MATCH(CL$4, RAB_years, 0)) -> 0 | CM32: =INDEX('Capital base input'!$H$27:$XFD$76, MATCH($E32, 'Capital base input'!$E$27:$E$76, 0), MATCH(CM$4, RAB_years, 0)) -> 0 | CN32: =INDEX('Capital base input'!$H$27:$XFD$76, MATCH($E32, 'Capital base input'!$E$27:$E$76, 0), MATCH(CN$4, RAB_years, 0)) -> 0 | CO32: =INDEX('Capital base input'!$H$27:$XFD$76, MATCH($E32, 'Capital base input'!$E$27:$E$76, 0), MATCH(CO$4, RAB_years, 0)) -> 0 | CP32: =INDEX('Capital base input'!$H$27:$XFD$76, MATCH($E32, 'Capital base input'!$E$27:$E$76, 0), MATCH(CP$4, RAB_years, 0)) -> 0 | CQ32: =INDEX('Capital base input'!$H$27:$XFD$76, MATCH($E32, 'Capital base input'!$E$27:$E$76, 0), MATCH(CQ$4, RAB_years, 0)) -> 0 | CR32: =INDEX('Capital base input'!$H$27:$XFD$76, MATCH($E32, 'Capital base input'!$E$27:$E$76, 0), MATCH(CR$4, RAB_years, 0)) -> 0 | CS32: =INDEX('Capital base input'!$H$27:$XFD$76, MATCH($E32, 'Capital base input'!$E$27:$E$76, 0), MATCH(CS$4, RAB_years, 0)) -> 0 | CT32: =INDEX('Capital base input'!$H$27:$XFD$76, MATCH($E32, 'Capital base input'!$E$27:$E$76, 0), MATCH(CT$4, RAB_years, 0)) -> 0 | CU32: =INDEX('Capital base input'!$H$27:$XFD$76, MATCH($E32, 'Capital base input'!$E$27:$E$76, 0), MATCH(CU$4, RAB_years, 0)) -> 0 | CV32: =INDEX('Capital base input'!$H$27:$XFD$76, MATCH($E32, 'Capital base input'!$E$27:$E$76, 0), MATCH(CV$4, RAB_years, 0)) -> 0 | CW32: =INDEX('Capital base input'!$H$27:$XFD$76, MATCH($E32, 'Capital base input'!$E$27:$E$76, 0), MATCH(CW$4, RAB_years, 0)) -> 0 | CX32: =INDEX('Capital base input'!$H$27:$XFD$76, MATCH($E32, 'Capital base input'!$E$27:$E$76, 0), MATCH(CX$4, RAB_years, 0)) -> 0 | CY32: =INDEX('Capital base input'!$H$27:$XFD$76, MATCH($E32, 'Capital base input'!$E$27:$E$76, 0), MATCH(CY$4, RAB_years, 0)) -> 0
